Workbook

Sheet _TM_Sheet1 (hidden)
A1: Left | B1: Top | C1: Right | D1: Bottom | E1: Ref
A2: 1 | B2: 2 | C2: 7 | D2: 19 | E2: $A$2:$G$19

Sheet _TM_Reg Framework - Public Fina (hidden)
A1: Left | B1: Top | C1: Right | D1: Bottom | E1: Ref
A2: 2 | B2: 4 | C2: 3 | D2: 32 | E2: $B$4:$C$32

Sheet Cover

Sheet Completion schedule
A1: ='[4]General information'!A1 -> Project STAR
A2: ='General information'!$H$12 -> xxx
A3: Complete Financial statement template
A4: =[4]Checks!A4 -> All checks ok
A7: =MAX($A$1:A6)+1 -> 1 | B7: Transfer sheets to the Form section
D9: Forms
A11: =MAX($A$1:A10)+1 -> 2 | B11: Prepared consolidated adjustments and input numbers into the respective sheets
D13: Index - Forms
A15: =MAX($A$1:A14)+1 -> 3 | B15: End

Sheet Excel basics
A1: ='[4]General information'!A1 -> Project STAR
A2: ='General information'!$H$12 -> xxx
A3: Basic operations in excel
A4: =[4]Checks!A4 -> All checks ok
A7: =MAX($A$1:A6)+1 -> 1 | B7: Basic shortcut combinations
D9: Command | E9: Explanation
D10: Ctrl + PgUp | E10: Go to previous sheet
D11: Ctrl + PgDn | E11: Go to next sheet
D12: Ctrl + Arrow | E12: Move to the edge of region
D13: Shift + Arrow | E13: Select next cell
D14: Ctrl + Shift + Arrow | E14: Select all cells containing data in the given direction
D15: Ctrl + Space | E15: Select all cells in current column
D16: Shift + Space | E16: Select all cells in current row
D17: Ctrl + Shift + '+' | E17: Insert cell/row/column above the selected cell(s)
D18: Ctrl + C | E18: Copy selection
D19: Ctrl + V | E19: Paste
D20: Ctrl + Z | E20: Undo the last action
A22: =MAX($A$1:A21)+1 -> 2 | B22: Operations in excel using the mouse
B24: =MAX($A$1:B23)+0.1 -> 2.1 | C24: Selecting data | E24: Click and hold the left button on the desired cell, then drag to select the whole section and release the button
E25: Or select the starting cell in a table and use the shortcut buttons Ctrl + Shift + Arrow
B27: =MAX($A$1:B25)+0.1 -> 2.2 | C27: Copying data | E27: After selecting data, right-click on the selection and chose Copy from the drop-down menu
E28: Or use the shortcut combination Ctrl + C
D29: Example:
B62: =MAX($A$1:B61)+0.1 -> 2.3 | C62: Pasting data | E62: Go to the desired place, right click on the empty cell and chose Paste from the drop-down menu
E63: Or use the shortcut combination Ctrl + V
D65: Example:
B96: =MAX($A$1:B95)+0.1 -> 2.4 | C96: Inserting rows | E96: Select a row by clicking on the row number on the left most section in a sheet
D98: Example:
E119: Right-click on the selected row and chose Insert from the drop-down menu
E120: Or use the shortcut combination Ctrl + Shift + '+'
E121: Repeat as many times as you need rows
D122: Example:
A144: =MAX($A$1:A143)+1 -> 3 | B144: Using formulas
C146: All cells have a reference depending on the column and row they appear - the cell located in column A and row 1 has a reference name 'A1'
C147: To right a formula for the program to automatically calculate or perform a task, select a cell then press '=' and then right the formula
C148: Example formulas are presented below
D150: Task | E150: Command
D151: Sum two cells, i.e. A1 and A2 | E151: =A1 + A2
D152: Subtract two cells, i.e. A1 and A2 | E152: =A1 - A2
D153: Multiply two cells, i.e. A1 and A2 | E153: =A1*A2
D154: Divide two cells, i.e. A1 and A2 | E154: =A1/A2
D155: Link a cell value to another cell, i.e. the Value in A1 to appear in A2 - in A2 right the following formula | E155: =A1
C157: You can either type the reference names of the cells in the formula, or select them using the mouse.
C158: You can prepare formulas between cells in different sheets - the process is the same - select the cell in which to write the formula then press '=', choose the first cell by left clicking on it with the mouse, right the operation (i.e. +/-) and select the second cell by left-clicking on it with the mouse and hit Enter button to complete the formula
A160: =MAX($A$1:A159)+1 -> 4 | B160: Hiding/unhiding columns/rows
C162: For the sake of presentation, some columns or rows may be hidden. To unhide or hide section click on the '+' symbol located above the column names or to the left of the row numbers
C164: Example:
A196: =MAX($A$1:A195)+1 -> 5 | B196: Copying whole sheets to another workbook
D198: To copy a whole sheet to another workbook, i.e. sheet LGU FS Template to a section in the Consolidation Financial model, right-click on the name of the sheet and choose Move or copy
D200: Example:
D223: From the pop-up window choose the desired destination workbook, i.e. Consolidation Financial model
D225: Example:
D243: From the list below, choose the location where to put the sheet into the destination workbook - for the Consolidation Financial model always choose to place the sheet Before sheet Template 2
D245: Example:
D264: In the Consolidation Financial model the financial information of all LGU FS Templates moved after the PBC--> sheet would be consolidated into the Tables 1 to 11
A267: =MAX($A$1:A266)+1 -> 6 | B267: End

Sheet General information
A1: =H11 -> Project STAR
A2: =H12 -> xxx
A3: =B7 -> General information / Te dhenat e pergjithshme
A7: =MAX($A$1:A6)+1 -> 1 | B7: General information / Te dhenat e pergjithshme
B9: =MAX($A$1:B8)+0.1 -> 1.1 | C9: General / E pergjithshme
D11: Emri i projektit | E11: Project name | F11: emri | G11: name | H11: Project STAR
D12: Njesia e qeverisjes lokale | E12: Local government unit | F12: emri | G12: name | H12: xxx
D14: Pregatitur nga: | E14: Checklist prepared by: | F14: emri | G14: name | H14: xx
F15: emri | G15: name | H15: xx
F16: emri | G16: name
F17: emri | G17: name
F18: emri | G18: name
D20: Approvuar nga: | E20: Checklist approved by: | F20: emri | G20: name | H20: xxx
F21: data | G21: date
B23: =MAX($A$1:B21)+0.1 -> 1.2 | C23: Site visits / Vizitat ne terren
D25: Vizitat ne terren | E25: Dates of site visits:
D26: Vizita 1 | E26: Visit 1 | F26: data | G26: date
D27: Vizita 2 | E27: Visit 2 | F27: data | G27: date
D28: Vizita 3 | E28: Visit 3 | F28: data | G28: date
D29: Vizita 4 | E29: Visit 4 | F29: data | G29: date
D30: Vizita 5 | E30: Visit 5 | F30: data | G30: date
D31: Vizita 6 | E31: Visit 6 | F31: data | G31: date
D32: Vizita 7 | E32: Visit 7 | F32: data | G32: date
D33: Vizita 8 | E33: Visit 8 | F33: data | G33: date
D34: Vizita 9 | E34: Visit 9 | F34: data | G34: date
D35: Vizita 10 | E35: Visit 10 | F35: data | G35: date
B37: =MAX($A$1:B36)+0.1 -> 1.3 | C37: Interviewed personnel / Personeli i intervistuar
E39: Name | H39: Position
B60: =MAX($A$1:B59)+0.1 -> 1.4 | C60: Financial periods / Periudhat financiare
E62: Template timeline
D63: Fundi I periudhes raportuese | E63: Current reporting period end | G63: date | H63: 2014-12-31
D64: Fillimi I periudhes raportuese | E64: Current reporting period beginning | G64: date | H64: 2014-01-01
E65: Months in current reporting period | G65: months | H65: =MONTH(H63-H66) -> 12
D66: Fundi periudhes se meparshme raportuese | E66: Corresponding period | G66: date | H66: 2013-12-31
B68: =MAX($A$1:B67)+0.1 -> 1.5 | C68: Presentation / Prezentimi
D70: Njesia raportuese (1000 ose tjeter) | E70: Presentation currency | G70: ALL | H70: 1000
E71: Presentation currency text | G71: text | H71: (Shumat ne ALL'000, nëse nuk shprehet ndryshe)

Sheet Month notation (hidden)
A1: 1 | B1: janar | C1: January | D1: janar
A2: 2 | B2: shkurt | C2: February | D2: shkurt
A3: 3 | B3: mars | C3: March | D3: mars
A4: 4 | B4: prill | C4: April | D4: prill
A5: 5 | B5: maj | C5: May | D5: maj
A6: 6 | B6: qershor | C6: June | D6: qershor
A7: 7 | B7: korrik | C7: July | D7: korrik
A8: 8 | B8: gusht | C8: August | D8: gusht
A9: 9 | B9: Shtator | C9: September | D9: Shtator
A10: 10 | B10: tetor | C10: October | D10: tetor
A11: 11 | B11: nëntor | C11: November | D11: nëntor
A12: 12 | B12: dhjetor | C12: December | D12: dhjetor

Sheet Language (hidden)
A1: ='General information'!A1 -> Project STAR
A2: ='General information'!A2 -> xxx
A7: =MAX($A$1:A6)+1 -> 1 | B7: Headings
C9: =MAX($A$1:C8)+0.1 -> 1.1 | D9: Date related
D11: =D33&" "&DAY('General information'!$H$63)&" "&VLOOKUP(MONTH('General information'!$H$63),'Month notation'!$A:$B,2,FALSE)&" "&YEAR('General information'!$H$63) -> Mё 31 dhjetor 2014
D12: =D33&" "&DAY('General information'!$H$66)&" "&VLOOKUP(MONTH('General information'!$H$66),'Month notation'!$A:$B,2,FALSE)&" "&YEAR('General information'!$H$66) -> Mё 31 dhjetor 2013
D13: =D34&" "&DAY('General information'!$H$63)&" "&VLOOKUP(MONTH('General information'!$H$63),'Month notation'!$A:$B,2,FALSE)&" "&YEAR('General information'!$H$63) -> mё 31 dhjetor 2014
D14: =D36&" "&DAY('General information'!$H$63)&" "&VLOOKUP(MONTH('General information'!$H$63),'Month notation'!A:B,2,FALSE)&" "&YEAR('General information'!$H$63) -> Pёr vitin e mbyllur mё 31 dhjetor 2014
D15: =D48&" "&DAY('General information'!$H$64)&" "&VLOOKUP(MONTH('General information'!$H$64),'Month notation'!$A:$B,2,FALSE)&" "&YEAR('General information'!$H$64) -> Balanca hapёse e amortizimit tё akumuluar 1 janar 2014
D16: =D49&" "&DAY('General information'!H63)&" "&VLOOKUP(MONTH('General information'!H63),'Month notation'!A:B,2,FALSE)&" "&YEAR('General information'!H63) -> Balanca mbyllёse e amortizimit tё akumuluar 31 dhjetor 2014
D17: =D57&" "&DAY('General information'!$H$64)&" "&VLOOKUP(MONTH('General information'!$H$64),'Month notation'!$A:$B,2,FALSE)&" "&YEAR('General information'!$H$64) -> Balanca hapёse 1 janar 2014
D18: =D61&" "&DAY('General information'!H63)&" "&VLOOKUP(MONTH('General information'!H63),'Month notation'!A:B,2,FALSE)&" "&YEAR('General information'!H63) -> Balancat mbyllёse 31 dhjetor 2014
D19: =IF('General information'!$H$65<12,"YTD "&YEAR('General information'!$H$63),D40&" "&YEAR('General information'!$H$63)) -> Vit ushtrimor 2014
D20: =D40&" "&YEAR('General information'!$H$66) -> Vit ushtrimor 2013
D21: Depreciation for 2015
D22: =D114&D11 -> Vlera neto kontabёl mёMё 31 dhjetor 2014
D23: Inherited from 2014
D24: Budget for 2015
D25: Total revenue 2014 and 2015
D26: Used during 2015
D27: =D176&" "&DAY('General information'!H63)&" "&VLOOKUP(MONTH('General information'!H63),'Month notation'!A:B,2,FALSE)&" "&YEAR('General information'!H63) -> Vlera e mbartur e investimeve mё 31 dhjetor 2014
D28: =D177&" "&DAY('General information'!H63)&" "&VLOOKUP(MONTH('General information'!H63),'Month notation'!A:B,2,FALSE)&" "&YEAR('General information'!H63) -> Totali I detyrimeve mё 31 dhjetor 2014
D29: =D177&" "&DAY('General information'!H66)&" "&VLOOKUP(MONTH('General information'!H66),'Month notation'!A:B,2,FALSE)&" "&YEAR('General information'!H66) -> Totali I detyrimeve mё 31 dhjetor 2013
C31: =MAX($A$1:C30)+0.1 -> 1.2 | D31: Hard coded texts
D33: Mё | E33: As at | F33: Mё
D34: mё | E34: as at | F34: mё
D35: sipas NJQV-ve | E35: by LGU | F35: sipas NJQV-ve
D36: Pёr vitin e mbyllur mё | E36: for the year ended | F36: Pёr vitin e mbyllur mё
D37: Pёrmbledhje e performancёs financiare | E37: Summary of the financial performance | F37: Pёrmbledhje e performancёs financiare
D38: Shёnime shpjeguese | E38: Notes | F38: Shёnime shpjeguese
D39: Numёr | E39: No | F39: Numёr
D40: Vit ushtrimor | E40: FY | F40: Vit ushtrimor
D41: Transaksione gjatё vitit | E41: Transaction during the year | F41: Transaksione gjatё vitit
D42: Llogaria dhe pёrshkrimi | E42: Accounts and description | F42: Llogaria dhe pёrshkrimi
D43: Llojet e rregullimeve: - Modifikimi I Politikave (MP) - Riklasifikim (RI) - Pёrjashtime | E43: Type of Adjustments: - Policy Modification ("PM") - Reclassifications ("RE") - Omissions ("OM") | F43: Llojet e rregullimeve: - Modifikimi I Politikave (MP) - Riklasifikim (RI) - Pёrjashtime
D44: Debia | E44: Debit | F44: Debia
D45: Kredia | E45: Credit | F45: Kredia
D46: Pasqyrat e prekura | E46: Impacted statements | F46: Pasqyrat e prekura
D47: Numri I llogarisё | E47: Acc. No. | F47: Numri I llogarisё
D48: Balanca hapёse e amortizimit tё akumuluar | E48: Opening accumulated depreciation | F48: Balanca hapёse e amortizimit tё akumuluar
D49: Balanca mbyllёse e amortizimit tё akumuluar | E49: Closing accumulated depreciation | F49: Balanca mbyllёse e amortizimit tё akumuluar
D50: Lёvizjet e periudhёs | E50: Period movements | F50: Lёvizjet e periudhёs
D51: Numri I llogarisё | E51: Account Number | F51: Numri I llogarisё
D52: Aktive | E52: Assets | F52: Aktive
D53: Riparaqitur | E53: Restated | F53: Riparaqitur
D54: Referencё me informacionin nga klienti | E54: Evidence provided Reference | F54: Referencё me informacionin nga klienti
D55: Balanca e thesarit | E55: Treasury balance | F55: Balanca e thesarit
D56: Likuiditeti I bankёs | E56: Bank liquidity | F56: Likuiditeti I bankёs
D57: Balanca hapёse | E57: Opening balance | F57: Balanca hapёse
D58: Shtesat gjatё vitit | E58: Addtions during the year | F58: Shtesat gjatё vitit
D59: Transferta | E59: Transfers | F59: Transferta
D60: Pakёsimet gjatё vitit | E60: Decrease during the year | F60: Pakёsimet gjatё vitit
D61: Balancat mbyllёse | E61: Closing balance | F61: Balancat mbyllёse
D62: Blerje | E62: Purchases | F62: Blerje
D63: Jashtё | E63: Out | F63: Jashtё
D64: Brenda | E64: In | F64: Brenda
D65: Lёvizjet | E65: Movements | F65: Lёvizjet
D66: Totali | E66: Total | F66: Totali
D67: Shitjet | E67: Sales | F67: Shitjet
D68: Nxjerrje jashtё pёrdorimit | E68: Write off | F68: Nxjerrje jashtё pёrdorimit
D69: Pakёsime tё tjera | E69: Other decr. | F69: Pakёsime tё tjera
D70: Amortizimi i vitit | E70: Depreciation charge for the year | F70: Amortizimi i vitit
D71: Shtesa tё tjera | E71: Other additions | F71: Shtesa tё tjera
D72: Numri mesatar vjetor i punonjёsve | E72: Annual average number of employees | F72: Numri mesatar vjetor i punonjёsve
D73: Qarkullimi I punonjёsve gjatё vitit | E73: Turnover of employees during the year | F73: Qarkullimi I punonjёsve gjatё vitit
D74: Numri I punonjёsve nё fund tё vitit | E74: Number of employees at year end | F74: Numri I punonjёsve nё fund tё vitit
D75: Punonjёs tё rinj | E75: New employees | F75: Punonjёs tё rinj
D76: Tё larguar | E76: Leavers | F76: Tё larguar
D77: Paga dhe kontribute | E77: Salaries and contributions | F77: Paga dhe kontribute
D78: Totali I pagave | E78: Total salaries | F78: Totali I pagave
D79: Shpёrblime shtesё | E79: Additional rewards | F79: Shpёrblime shtesё
D80: Mbёshtetje sociale e menjёhershme | E80: Immediate social assistance | F80: Mbёshtetje sociale e menjёhershme
D81: Sigurimi shoqёror dhe shёndetёsor | E81: Social and health insurance | F81: Sigurimi shoqёror dhe shёndetёsor
D82: Shpёrblime tё tjera | E82: Other rewards | F82: Shpёrblime tё tjera
D83: Tatimi mbi tё ardhurat | E83: Income tax | F83: Tatimi mbi tё ardhurat
D84: Regjistri I aktiveve fikse | E84: Fixed Assets Regsiter | F84: Regjistri I aktiveve fikse
D85: Bilanci Kontabёl - Aktivi (Formati 1) | E85: Balance Sheet - Statement of assets (Template 1) | F85: Bilanci Kontabёl - Aktivi (Formati 1)
D86: Bilanci Kontabёl - Pasivi (Formati 2) | E86: Balance Sheet - Statement of fund and liabilities (Template 2) | F86: Bilanci Kontabёl - Pasivi (Formati 2)
D87: Pasqyra e Shpenzimeve (Formati 3/1) | E87: Statement of expenses (Template 3/1) | F87: Pasqyra e Shpenzimeve (Formati 3/1)
D88: Pasqyra e tё Ardhurave (Formati 3/2) | E88: Statement of revenues (Template 3/2) | F88: Pasqyra e tё Ardhurave (Formati 3/2)
D89: Burimet dhe shpenzimet lidhur me investimet (Formati 4) | E89: Funds and expenses related to investments (Template) | F89: Burimet dhe shpenzimet lidhur me investimet (Formati 4)
D90: Pasqyra mbi levizjen Cash (Formati 5) | E90: Statement of cash flows (Template 5) | F90: Pasqyra mbi levizjen Cash (Formati 5)
D91: Pasyqra mbi gjendjen dhe ndryshimet nё Aktivet e Qёndrueshme (Formati 6) | E91: Statement of Fixed Assets' Balance and Changes during the year (Template 6) | F91: Pasyqra mbi gjendjen dhe ndryshimet nё Aktivet e Qёndrueshme (Formati 6)
D92: Pasqyra e amortizimit tё aktiveve tё qёndrueshme (Formati 7) | E92: Statement of Fixed Assets' depreciation (Template 7) | F92: Pasqyra e amortizimit tё aktiveve tё qёndrueshme (Formati 7)
D93: Pasqyra e lёvizjes sё fondeve (Formati 8) | E93: Statement of changes in fund (Template 8) | F93: Pasqyra e lёvizjes sё fondeve (Formati 8)
D94: Pasqyrё mbi numrin e punonjёsve dhe fondin e pagave (Formati 9) | E94: Statement of number of employees and personnel expenses (Template 9) | F94: Pasqyrё mbi numrin e punonjёsve dhe fondin e pagave (Formati 9)
D95: Pasqyrё Pёrmbledhёse e Konsoliduar e Gjendjes Financiare (Formati 10) | E95: Consolidated Statement of Financial Position (Template 10) | F95: Pasqyrё Pёrmbledhёse e Konsoliduar e Gjendjes Financiare (Formati 10)
D96: Pasqyrё Pёrmbledhёse e Konsoliduar e tё ardhurave dhe shpenzimeve tё funksionimit (Formati 11) | E96: Consolidated Statement of Revenues and Expenses (Template 11) | F96: Pasqyrё Pёrmbledhёse e Konsoliduar e tё ardhurave dhe shpenzimeve tё funksionimit (Formati 11)
D97: Shёnime shpjeguese tё Pasqyrave Financiare | E97: Notes to the Financial Statements | F97: Shёnime shpjeguese tё Pasqyrave Financiare
D98: Pёrshkrimi I aktiveve | E98: Asset description | F98: Pёrshkrimi I aktiveve
D99: Kategoria | E99: Category | F99: Kategoria
D100: Kodi I kategorisё | E100: Category code | F100: Kodi I kategorisё
D101: Vendodhje | E101: Location | F101: Vendodhje
D102: Data e blerjes | E102: Purchase date | F102: Data e blerjes
D103: Norma e amortizimit | E103: Depreciation rate | F103: Norma e amortizimit
D104: Viti | E104: Year | F104: Viti
D105: Muaji | E105: Month | F105: Muaji
D106: Njёsia | E106: Unit | F106: Njёsia
D107: Cmimi pёr njёsi | E107: Unit price | F107: Cmimi pёr njёsi
D108: Kosto | E108: Cost | F108: Kosto
D109: Amortizimi I akumuluar me 1 Jan 2015 | E109: Accumulated depreciation as at 1 Jan 2015 | F109: Amortizimi I akumuluar me 1 Jan 2015
D110: Njёsia | E110: Unit | F110: Njёsia
D111: Cmimi pёr njёsi | E111: Unit price | F111: Cmimi pёr njёsi
D112: Kosto | E112: Cost | F112: Kosto
D113: Amortizimi pёr | E113: Depreciation for | F113: Amortizimi pёr
D114: Vlera neto kontabёl mё | E114: NBV as at | F114: Vlera neto kontabёl mё
D115: Numrat e llogarisё | E115: Account numbers: | F115: Numrat e llogarisё
D116: Evidencё suportuese | E116: Supporting evidence: | F116: Evidencё suportuese
D117: Evidencё suportuese nga LGU | E117: Supporting evidence to be provided by the LGU | F117: Evidencё suportuese nga LGU
D118: Rakordimi I Shpenzimeve Kapitale dhe Shpenzimeve tё tjera nё Pasqyrat Financiare me Thesarin | E118: Reconciliation of Capital Expenditures and Other Expenses in the Financial Statements with Treasury | F118: Rakordimi I Shpenzimeve Kapitale dhe Shpenzimeve tё tjera nё Pasqyrat Financiare me Thesarin
D119: Format pёr Bilancin Vёrtetues | E119: Template for Trial Balance | F119: Format pёr Bilancin Vёrtetues
D120: Aktive afatgjata materiale | E120: Property, plant and equipment | F120: Aktive afatgjata materiale
D121: Amortizimi I aktiveve afatgjata materiale | E121: Depreciation FA | F121: Amortizimi I aktiveve afatgjata materiale
D122: Grant I pakushtёzuar | E122: Unconditional Grant | F122: Grant I pakushtёzuar
D123: Operacione tё tjera me Qeverinё | E123: Other Operations with Gov. | F123: Operacione tё tjera me Qeverinё
D124: Paga tё papaguara | E124: Unpaid salaries | F124: Paga tё papaguara
D125: Pulla | E125: Stamps | F125: Pulla
D126: Investime nё proces per aktivet afatgjata materiale | E126: Investments in process for PPE | F126: Investime nё proces per aktivet afatgjata materiale
D127: Akt trashgimie | E127: Act of inhereted balances | F127: Akt trashgimie
D128: Regjistri I aktiveve fikse | E128: Fixed Assets Regsiter | F128: Regjistri I aktiveve fikse
D129: Kosto pёr njёsi | E129: Cost per item | F129: Kosto pёr njёsi
D130: Debitor | E130: Debtor | F130: Debitor
D131: Data e krijimit | E131: Originating date | F131: Data e krijimit
D132: Pershkrimi I njesive | E132: Item description | F132: Pershkrimi I njesive
D133: Vendodhje | E133: Location | F133: Vendodhje
D134: Numri I njesive | E134: No of items | F134: Numri I njesive
D135: Shtesat gjatё vitit | E135: Additional charge for the year | F135: Shtesat gjatё vitit
D136: Pagesat gjatё vitit | E136: Payments during the year | F136: Pagesat gjatё vitit
D137: Pёrshkrimi | E137: Description | F137: Pёrshkrimi
D138: Trashёguar nga | E138: Inherited from | F138: Trashёguar nga
D139: Buxhetuar pёr | E139: Budget for | F139: Buxhetuar pёr
D140: Granti plus tё ardhurat (kapitulli 5) | E140: Grant plus revenue (Chapter 5) | F140: Granti plus tё ardhurat (kapitulli 5)
D141: Kapitulli 6 | E141: Chapter 6 | F141: Kapitulli 6
D142: Kapitulli 5 | E142: Chapter 5 | F142: Kapitulli 5
D143: Totali I tё ardhurave | E143: Total revenue | F143: Totali I tё ardhurave
D144: dhe | E144: and | F144: dhe
D145: Pёrdorur gjatё | E145: Used during | F145: Pёrdorur gjatё
D146: Balancat hapёse | E146: Balance to be carried forward | F146: Balancat hapёse
D147: NIPT (numri fiskal) | E147: NIPT (Fiscal number) | F147: NIPT (numri fiskal)
D148: Data e krijimit | E148: Originating date | F148: Data e krijimit
D149: Numri I faturёs | E149: Invoice no | F149: Numri I faturёs
D150: Grupi | E150: Group | F150: Grupi
D151: Pasqyra e shpenzimeve | E151: Statement of expenses | F151: Pasqyra e shpenzimeve
D152: Rakordimi I shpenzimeve midis Thesarit dhe librit te bankёs sё LGU | E152: Expenses reconciliation between Treasury and LGU bank book | F152: Rakordimi I shpenzimeve midis Thesarit dhe librit te bankёs sё LGU
D153: Balanca sipas Thesarit | E153: Balance as per Treasury | F153: Balanca sipas Thesarit
D154: Kapitulli 01 | E154: Chapter 01 | F154: Kapitulli 01
D155: Kapitulli 05 | E155: Chapter 05 | F155: Kapitulli 05
D156: Balanca totale | E156: Total Balance | F156: Balanca totale
D157: Balanca sipas dokumentave suportues te LGU | E157: Balance as per LGU's supporting documents | F157: Balanca sipas dokumentave suportues te LGU
D158: Diferenca | E158: Difference | F158: Diferenca
D159: Balanca sipas Thesarit | E159: Balance as per Treasury | F159: Balanca sipas Thesarit
D160: Pasqyra e te Ardhurave | E160: Statement of revenue | F160: Pasqyra e te Ardhurave
D161: Rakordimi I tё ardhurave me Thesarin | E161: Revenue reconciliation with Treausury | F161: Rakordimi I tё ardhurave me Thesarin
D162: Titulli | E162: Title | F162: Titulli
D163: Artikulli | E163: Article | F163: Artikulli
D164: Totali I tё ardhurave grumbulluar me banke- rakordim me llogaritё 700-719 ne T3-2 | E164: Total revenue received at bank - reconcile to accounts 700-719 in T3-2 | F164: Totali I tё ardhurave grumbulluar me banke- rakordim me llogaritё 700-719 ne T3-2
D165: Transfertat e brendshme nga buxheti (kapitulli 7)- rakordim me llogaritё 720 nё T3-2 | E165: Transfers IN from the budget (chapter 7) - reconcile to accounts 720 in T3-2 | F165: Transfertat e brendshme nga buxheti (kapitulli 7)- rakordim me llogaritё 720 nё T3-2
D166: Totali I tё ardhurave | E166: Total revenue | F166: Totali I tё ardhurave
D167: Transfertat e jashtme pёr buxhetin- rakordim me llogaritё 8420 nё T3-1 | E167: Transfers OUT to the budget (Reconcile to acc 8420 in T3-1) | F167: Transfertat e jashtme pёr buxhetin- rakordim me llogaritё 8420 nё T3-1
D168: Totali I tё ardhurave pjesё e institucionit | E168: Total revenue share of the institution | F168: Totali I tё ardhurave pjesё e institucionit
D169: Investime nё kompani degё | E169: Investment in Subsidiaries | F169: Investime nё kompani degё
D170: Viti I krijimit | E170: Year of establishment | F170: Viti I krijimit
D171: Viti I blerjes (kur ka) | E171: Year of acquisition (if applicable) | F171: Viti I blerjes (kur ka)
D172: Pёrqindja e pronёsisё | E172: % of ownership | F172: Pёrqindja e pronёsisё
D173: Totali I kapitalit | E173: Total equity | F173: Totali I kapitalit
D174: Pjesa e Bashkisё | E174: Share of Municipality | F174: Pjesa e Bashkisё
D175: Zhvlerёsim | E175: Impairment | F175: Zhvlerёsim
D176: Vlera e mbartur e investimeve mё | E176: Carrying value of investment as at | F176: Vlera e mbartur e investimeve mё
D177: Totali I detyrimeve mё | E177: Total outstanding liability as at | F177: Totali I detyrimeve mё
D178: Principali I papaguar | E178: Outstanding principal | F178: Principali I papaguar
D179: Interesi I akumuluar | E179: Accrued interest | F179: Interesi I akumuluar
D180: Pjesa afatshkurtёr | E180: Current portion | F180: Pjesa afatshkurtёr
D181: Pjesa afatgjatё | E181: Non-current portion | F181: Pjesa afatgjatё
D182: Tipi I facilitetit | E182: Type of facility | F182: Tipi I facilitetit
D183: Institucioni financues | E183: Financing institution | F183: Institucioni financues
D184: Vlera e facilitetit | E184: Facility amount | F184: Vlera e facilitetit
D185: Data e kontratёs | E185: Contract date | F185: Data e kontratёs
D186: Termat e kontratёs | E186: Term of contract | F186: Termat e kontratёs
D187: Norma e interesit | E187: Interest rate | F187: Norma e interesit
D188: Kolateral | E188: Collateral | F188: Kolateral
D189: Kontratё | E189: Covenants | F189: Kontratё
D190: Huatё | E190: Loans and borrowings | F190: Huatё
D191: Tipi I facilitetit | E191: Type of facility | F191: Tipi I facilitetit
D192: Institucioni financues | E192: Financing institution | F192: Institucioni financues
D193: Vlera e facilitetit | E193: Facility amount | F193: Vlera e facilitetit
D194: Data e kontratёs | E194: Contract date | F194: Data e kontratёs
D195: Termat e kontratёs | E195: Term of contract | F195: Termat e kontratёs
D196: Norma e interesit | E196: Interest rate | F196: Norma e interesit
D197: Kolateral | E197: Collateral | F197: Kolateral
D198: Kontratё | E198: Covenants | F198: Kontratё
D199: Principali I papaguar | E199: Outstanding principal | F199: Principali I papaguar
D200: Interesi I akumuluar | E200: Accrued interest | F200: Interesi I akumuluar
D201: Tipi I facilitetit | E201: Type of facility | F201: Tipi I facilitetit
D202: Institucioni financues | E202: Financing institution | F202: Institucioni financues
D203: Vlera e facilitetit | E203: Facility amount | F203: Vlera e facilitetit
D204: Data e kontratёs | E204: Contract date | F204: Data e kontratёs
D205: Termat e kontratёs | E205: Term of contract | F205: Termat e kontratёs
D206: Norma e interesit | E206: Interest rate | F206: Norma e interesit
D207: Kolateral | E207: Collateral | F207: Kolateral
D208: Kontratё | E208: Covenants | F208: Kontratё
... 18 more rows

Sheet FS Forms-->

Sheet Index - Forms
A1: ='General information'!A1 -> Project STAR
A2: ='General information'!A2 -> xxx
A3: Index of Financial Statements Templates (as per Directive 26 dated 26.12.2007)
E9: Ref | F9: Statements' name in Albanian | G9: Statements' name in English
D10: Form 1 | E10: F1 | F10: Bilanci Kontabel - Aktivi | G10: Balance Sheet - Statement of Assets
D11: Form 2 | E11: F2 | F11: Bilanci Kontabel - Pasivi | G11: Balance Sheet - Statement of Fund and Liabilities
D12: Form 3/1 | E12: F3-1 | F12: Pasqyra e Shpenzimeve | G12: Statement of Expenses
D13: Form 3/2 | E13: F3-2 | F13: Pasqyra e te Ardhurave | G13: Statement of Revenues
D14: Form 4 | E14: F4 | F14: Burimet dhe shpenzimet lidhur me investimet | G14: Funds and expenses related to investments
D15: Form 5 | E15: F5 | F15: Pasqyra mbi levizjen Cash | G15: Statement of Cash Flows
D16: Form 6 | E16: F6 | F16: Pasyqra mbi gjendjen dhe ndryshimet ne Aktivet e Qendrueshme | G16: Statement of Fixed Assets' Balance and Changes during the year
D17: Form 7 | E17: F7 | F17: Pasqyra e amortizimit te aktiveve te qendrueshme | G17: Statement of Fixed Assets' depreciation
D18: Form 8 | E18: F8 | F18: Pasqyra e levizjes se fondeve | G18: Statement of Changes in Fund
D19: Form 9 | E19: F9 | F19: Pasqyre mbi numrin e punonjesve dhe fondin e pagave | G19: Statement of number of employees and personnel expenses
D20: Form 10 | E20: F10 (Cons) | F20: Pasqyre Permbledhese e Konsoliduar e Gjendjes Financiare | G20: Consolidated Statement of Financial Position
D21: Form 11 | E21: F11 (Cons) | F21: Pasqyre Permbledhese e Konsoliduare te ardhurave dhe shpenzimeve te funksionimit | G21: Consolidated Statement of Revenues and Expenses

Sheet F1
A1: ='General information'!A1 -> Project STAR
A2: ='General information'!A2 -> xxx
A3: =A8 -> Bilanci Kontabёl - Aktivi (Formati 1)
A7: ='General information'!A2 -> xxx
A8: =Language!$D$85 -> Bilanci Kontabёl - Aktivi (Formati 1)
A9: =Language!$D$14 -> Pёr vitin e mbyllur mё 31 dhjetor 2014
A10: =ALL -> (Shumat ne ALL'000, nëse nuk shprehet ndryshe)
A11: =Language!$D$39 -> Numёr | B11: =Language!$D$47 -> Numri I llogarisё | C11: EMERTIMI I LLOGARIVE TE AKTIVIT | D11: Assets | F11: =Language!$D$38 -> Shёnime shpjeguese | H11: =N11 -> Mё 31 dhjetor 2014 Riparaqitur | J11: =P11 -> Mё 31 dhjetor 2014 | L11: =R11 -> Mё 31 dhjetor 2013 | N11: =P11&" "&Language!D53 -> Mё 31 dhjetor 2014 Riparaqitur | P11: =Language!$D$11 -> Mё 31 dhjetor 2014 | R11: =Language!$D$12 -> Mё 31 dhjetor 2013 | T11: =Language!$D$54 -> Referencё me informacionin nga klienti
A12: 1 | B12: 12 | C12: Rezultate te mbartura(saldo debitore) | D12: Brought forward results
A13: 2 | B13: A | C13: AKTIVE TE QENDRUESHME | D13: Non Current Assets | H13: =N13/Presentation_curr -> 0 | J13: 0 | L13: 0 | N13: =N14+N20+N35 -> 0 | P13: =P14+P20+P35 -> 0 | R13: =R14+R20+R35 -> 0
A14: 3 | B14: 20, 230 | C14: I.Te pa trupezuara | D14: I. Intangible Assets | H14: 0 | J14: 0 | L14: 0 | N14: =SUM(N15:N19) -> 0 | P14: =SUM(P15:P19) -> 0 | R14: =SUM(R15:R19) -> 0
A15: 4 | B15: 201 | C15: Prime te emisionit dhe rimbursimit te huave | D15: Amounts to be remitted and loan reimbursements | H15: 0 | J15: 0 | L15: 0 | N15: =SUM('F1 restated'!F15:X15) -> 0 | P15: =SUM(First:Last!E8) -> 0 | R15: =SUM(First:Last!F8) -> 0
A16: 5 | B16: 202 | C16: Studime dhe kerkime | D16: Studies and research | F16: T6, N1 | H16: 0 | J16: 0 | L16: 0 | N16: =SUM('F1 restated'!F16:X16) -> 0 | P16: =SUM(First:Last!E9) -> 0 | R16: =SUM(First:Last!F9) -> 0
A17: 6 | B17: 203 | C17: Koncesione, patenta,licenca e tjera ngjashme | D17: Concessions, license, other similar licenses | H17: 0 | J17: 0 | L17: 0 | N17: =SUM('F1 restated'!F17:X17) -> 0 | P17: =SUM(First:Last!E10) -> 0 | R17: =SUM(First:Last!F10) -> 0
A18: 7 | B18: 209 | C18: Amortizimi i aktiveve qendrushme te pa trupezuara(-) | D18: Amortization of current intangible assets (-) | F18: T7, N1 | H18: 0 | J18: 0 | L18: 0 | N18: =SUM('F1 restated'!F18:X18) -> 0 | P18: =SUM(First:Last!E11) -> 0 | R18: =SUM(First:Last!F11) -> 0
A19: 8 | B19: 230 | C19: Shpenzime per rritjen e aktiv.qendr.patrupezuara | D19: Expenses for increase of current intangible assets | H19: 0 | J19: 0 | L19: 0 | N19: =SUM('F1 restated'!F19:X19) -> 0 | P19: =SUM(First:Last!E12) -> 0 | R19: =SUM(First:Last!F12) -> 0
A20: 9 | B20: 21,23, 24,28 | C20: II.Akt.Qendr.te Trupezuara | D20: II. Tangible Assets | H20: 0 | J20: 0 | L20: 0 | N20: =SUM(N21:N34) -> 0 | P20: =SUM(P21:P34) -> 0 | R20: =SUM(R21:R34) -> 0
A21: 10 | B21: 210 | C21: Toka,troje,Terene | D21: Land | H21: 0 | J21: 0 | L21: 0 | N21: =SUM('F1 restated'!F21:X21) -> 0 | P21: =SUM(First:Last!E14) -> 0 | R21: =SUM(First:Last!F14) -> 0
A22: 11 | B22: 211 | C22: Pyje,Kullota Plantacione | D22: Forests, Pasture, Plantation | F22: T6, N1 | H22: 0 | J22: 0 | L22: 0 | N22: =SUM('F1 restated'!F22:X22) -> 0 | P22: =SUM(First:Last!E15) -> 0 | R22: =SUM(First:Last!F15) -> 0
A23: 12 | B23: 212 | C23: Ndertime e Konstruksione | D23: Building and Constructions | F23: T6, N1 | H23: 0 | J23: 0 | L23: 0 | N23: =SUM('F1 restated'!F23:X23) -> 0 | P23: =SUM(First:Last!E16) -> 0 | R23: =SUM(First:Last!F16) -> 0
A24: 13 | B24: 213 | C24: Rruge,rrjete,vepra ujore | D24: Roads, networks, water facilities | F24: T6, N1 | H24: 0 | J24: 0 | L24: 0 | N24: =SUM('F1 restated'!F24:X24) -> 0 | P24: =SUM(First:Last!E17) -> 0 | R24: =SUM(First:Last!F17) -> 0
A25: 14 | B25: 214 | C25: Instalime teknike,makineri,paisje,vegla pune | D25: Technical installment, machinery, equipment, working tools | F25: T6, N1 | H25: 0 | J25: 0 | L25: 0 | N25: =SUM('F1 restated'!F25:X25) -> 0 | P25: =SUM(First:Last!E18) -> 0 | R25: =SUM(First:Last!F18) -> 0
A26: 15 | B26: 215 | C26: Mjete transporti | D26: Transport vehicles | F26: T6, N1 | H26: 0 | J26: 0 | L26: 0 | N26: =SUM('F1 restated'!F26:X26) -> 0 | P26: =SUM(First:Last!E19) -> 0 | R26: =SUM(First:Last!F19) -> 0
A27: 16 | B27: 216 | C27: Rezerva shtetrore | D27: Government reserve | H27: 0 | J27: 0 | L27: 0 | N27: =SUM('F1 restated'!F27:X27) -> 0 | P27: =SUM(First:Last!E20) -> 0 | R27: =SUM(First:Last!F20) -> 0
A28: 17 | B28: 217 | C28: Kafshe pune e prodhimi | D28: Working and production animals | H28: 0 | J28: 0 | L28: 0 | N28: =SUM('F1 restated'!F28:X28) -> 0 | P28: =SUM(First:Last!E21) -> 0 | R28: =SUM(First:Last!F21) -> 0
A29: 18 | B29: 218 | C29: Inventar ekonomik | D29: Economic Inventory | F29: T6, N1 | H29: 0 | J29: 0 | L29: 0 | N29: =SUM('F1 restated'!F29:X29) -> 0 | P29: =SUM(First:Last!E22) -> 0 | R29: =SUM(First:Last!F22) -> 0
A30: 19 | B30: 219 | C30: Amortizimi aktiv.Qendr.te trupezuara(-) | D30: Depreciation of tangible assets | F30: T7, N1 | H30: 0 | J30: 0 | L30: 0 | N30: =SUM('F1 restated'!F30:X30) -> 0 | P30: =SUM(First:Last!E23) -> 0 | R30: =SUM(First:Last!F23) -> 0
A31: 20 | B31: 231 | C31: Shpenzime proces per rritjen e AQT | D31: Expenses in process for increase of current tangible assets | F31: T4 | H31: 0 | J31: 0 | L31: 0 | N31: =SUM('F1 restated'!F31:X31) -> 0 | P31: =SUM(First:Last!E24) -> 0 | R31: =SUM(First:Last!F24) -> 0 | T31: T4 Statement
A32: 21 | B32: 232 | C32: Shpenzime proces per transferime kapitale | D32: Expenses in process for capital transfers | H32: 0 | J32: 0 | L32: 0 | N32: =SUM('F1 restated'!F32:X32) -> 0 | P32: =SUM(First:Last!E25) -> 0 | R32: =SUM(First:Last!F25) -> 0
A33: 22 | B33: 24 | C33: Aktive te Qend.te trupezuara te demtuara | D33: Damaged current tangible assets | H33: 0 | J33: 0 | L33: 0 | N33: =SUM('F1 restated'!F33:X33) -> 0 | P33: =SUM(First:Last!E26) -> 0 | R33: =SUM(First:Last!F26) -> 0
A34: 23 | B34: 28 | C34: Caktime | D34: Assignments | H34: 0 | J34: 0 | L34: 0 | N34: =SUM('F1 restated'!F34:X34) -> 0 | P34: =SUM(First:Last!E27) -> 0 | R34: =SUM(First:Last!F27) -> 0
A35: 24 | B35: 25.26 | C35: III.Aktive Financiare | D35: III. Financial Assets | H35: 0 | J35: 0 | L35: 0 | N35: =SUM('F1 restated'!F35:X35) -> 0 | P35: =SUM(First:Last!E28) -> 0 | R35: =SUM(First:Last!F28) -> 0
A36: 25 | B36: 25 | C36: Huadhenie e nenhuadhenie | D36: Loan and sub-loans | H36: 0 | J36: 0 | L36: 0 | N36: =SUM('F1 restated'!F36:X36) -> 0 | P36: =SUM(First:Last!E29) -> 0 | R36: =SUM(First:Last!F29) -> 0
A37: 26 | B37: 26 | C37: Pjesmarrje ne kapitalin e vet | D37: Participation with own capital | H37: 0 | J37: 0 | L37: 0 | N37: =SUM('F1 restated'!F37:X37) -> 0 | P37: =SUM(First:Last!E30) -> 0 | R37: =SUM(First:Last!F30) -> 0
A38: 27 | B38: B | C38: AKTIVE QARKULLUESE | D38: CURRENT ASSETS | H38: 0 | J38: 0 | L38: 0 | N38: =N39+N49+N65 -> 0 | P38: =P39+P49+P65 -> 0 | R38: =R39+R49+R65 -> 0
A39: 28 | B39: Klasa 3 | C39: I.Gjendja e Inventarit | D39: I. Inventory Status | H39: 0 | J39: 0 | L39: 0 | N39: =SUM(N40:N48) -> 0 | P39: =SUM(P40:P48) -> 0 | R39: =SUM(R40:R48) -> 0
A40: 29 | B40: 31 | C40: Materiale | D40: Materials | F40: N2 | H40: 0 | J40: 0 | L40: 0 | N40: =SUM('F1 restated'!F40:X40) -> 0 | P40: =SUM(First:Last!E33) -> 0 | R40: =SUM(First:Last!F33) -> 0
A41: 30 | B41: 32 | C41: Objekte inventari | D41: Inventory Objects | F41: N2 | H41: 0 | J41: 0 | L41: 0 | N41: =SUM('F1 restated'!F41:X41) -> 0 | P41: =SUM(First:Last!E34) -> 0 | R41: =SUM(First:Last!F34) -> 0
A42: 31 | B42: 33 | C42: Prodhime, punime e sherbime ne proces | D42: Production, work and services in process | H42: 0 | J42: 0 | L42: 0 | N42: =SUM('F1 restated'!F42:X42) -> 0 | P42: =SUM(First:Last!E35) -> 0 | R42: =SUM(First:Last!F35) -> 0
A43: 32 | B43: 34 | C43: Produkte | D43: Products | H43: 0 | J43: 0 | L43: 0 | N43: =SUM('F1 restated'!F43:X43) -> 0 | P43: =SUM(First:Last!E36) -> 0 | R43: =SUM(First:Last!F36) -> 0
A44: 33 | B44: 35 | C44: Mallra | D44: Goods | H44: 0 | J44: 0 | L44: 0 | N44: =SUM('F1 restated'!F44:X44) -> 0 | P44: =SUM(First:Last!E37) -> 0 | R44: =SUM(First:Last!F37) -> 0
A45: 34 | B45: 36 | C45: Gje e gjalle ne rritje e majmeri | D45: Animals fattening | H45: =N45/Presentation_curr -> 0 | J45: 0 | L45: 0 | N45: =SUM('F1 restated'!F45:X45) -> 0 | P45: =SUM(First:Last!E38) -> 0 | R45: =SUM(First:Last!F38) -> 0
A46: 35 | B46: 37 | C46: Gjendje te pambritura ose prane te treteve | D46: Undelivered items or close to third party | H46: 0 | J46: 0 | L46: 0 | N46: =SUM('F1 restated'!F46:X46) -> 0 | P46: =SUM(First:Last!E39) -> 0 | R46: =SUM(First:Last!F39) -> 0
A47: 36 | B47: 38 | C47: Diferenca nga cmimet e magazinimit | D47: Differences from warehouse prices | H47: 0 | J47: 0 | L47: 0 | N47: =SUM('F1 restated'!F47:X47) -> 0 | P47: =SUM(First:Last!E40) -> 0 | R47: =SUM(First:Last!F40) -> 0
A48: 37 | B48: 39 | C48: Shuma te parashikuara per zhvleresim te inventarit(-) | D48: Forecasted amounts for inventory depreciation (-) | H48: 0 | J48: 0 | L48: 0 | N48: =SUM('F1 restated'!F48:X48) -> 0 | P48: =SUM(First:Last!E41) -> 0 | R48: =SUM(First:Last!F41) -> 0
A49: 38 | B49: Klasa 4 | C49: II.Kerkesa arketimi mbi Debitoret | D49: II. Request for receivables | H49: 0 | J49: 0 | L49: 0 | N49: =SUM(N50:N64) -> 0 | P49: =SUM(P50:P64) -> 0 | R49: =SUM(R50:R64) -> 0
A50: 39 | B50: 409 | C50: Furnitore(Debitore),parapagime pagesa pjesore | D50: Suppliers, prepayments or partial payment | H50: 0 | J50: 0 | L50: 0 | N50: =SUM('F1 restated'!F50:X50) -> 0 | P50: =SUM(First:Last!E43) -> 0 | R50: =SUM(First:Last!F43) -> 0
A51: 40 | B51: 411-418 | C51: Kliente e llogari te ngjashme | D51: Similar clients or accounts | H51: 0 | J51: 0 | L51: 0 | N51: =SUM('F1 restated'!F51:X51) -> 0 | P51: =SUM(First:Last!E44) -> 0 | R51: =SUM(First:Last!F44) -> 0
A52: 41 | B52: 423.429 | C52: Personeli, paradhenie, deficite e gjoba | D52: Employees, prepayment, deficits and penalties | F52: N3 | H52: 0 | J52: 0 | L52: 0 | N52: =SUM('F1 restated'!F52:X52) -> 0 | P52: =SUM(First:Last!E45) -> 0 | R52: =SUM(First:Last!F45) -> 0
A53: 42 | B53: 431 | C53: Te drejta e taksa per t'u derdhur ne shtet | D53: Rights and taxes to deposit to government | H53: 0 | J53: 0 | L53: 0 | N53: =SUM('F1 restated'!F53:X53) -> 0 | P53: =SUM(First:Last!E46) -> 0 | R53: =SUM(First:Last!F46) -> 0
A54: 43 | B54: 432 | C54: Tatime mbledh nga shteti per llog.Pushtetit Lokal | D54: Taxes collected from central government for the Local Government | H54: 0 | J54: 0 | L54: 0 | N54: =SUM('F1 restated'!F54:X54) -> 0 | P54: =SUM(First:Last!E47) -> 0 | R54: =SUM(First:Last!F47) -> 0
A55: 44 | B55: 433 | C55: Shenz.fatkeqesi natyrore qe mbulon shteti | D55: Expenses for natural disaster covered from the government | H55: 0 | J55: 0 | L55: 0 | N55: =SUM('F1 restated'!F55:X55) -> 0 | P55: =SUM(First:Last!E48) -> 0 | R55: =SUM(First:Last!F48) -> 0
A56: 45 | B56: 4342 | C56: Te tjera operacione me shtetin(debitor) | D56: Other operations with the government (debtor) | H56: 0 | J56: 0 | L56: 0 | N56: =SUM('F1 restated'!F56:X56) -> 0 | P56: =SUM(First:Last!E49) -> 0 | R56: =SUM(First:Last!F49) -> 0
A57: 46 | B57: 435 | C57: Sigurime Shoqerore | D57: Social Insurance | H57: 0 | J57: 0 | L57: 0 | N57: =SUM('F1 restated'!F57:X57) -> 0 | P57: =SUM(First:Last!E50) -> 0 | R57: =SUM(First:Last!F50) -> 0
A58: 47 | B58: 436 | C58: Sigurime Shendetesore | D58: Health Insurance | H58: 0 | J58: 0 | L58: 0 | N58: =SUM('F1 restated'!F58:X58) -> 0 | P58: =SUM(First:Last!E51) -> 0 | R58: =SUM(First:Last!F51) -> 0
A59: 48 | B59: 437.438 | C59: Organizma te tjere shoqerore | D59: Other social organizations | H59: 0 | J59: 0 | L59: 0 | N59: =SUM('F1 restated'!F59:X59) -> 0 | P59: =SUM(First:Last!E52) -> 0 | R59: =SUM(First:Last!F52) -> 0
A60: 49 | B60: 44 | C60: Institucione te tjera publike | D60: Other public institutions | H60: 0 | J60: 0 | L60: 0 | N60: =SUM('F1 restated'!F60:X60) -> 0 | P60: =SUM(First:Last!E53) -> 0 | R60: =SUM(First:Last!F53) -> 0
A61: 50 | B61: 45 | C61: Mardhenie me instit.brenda dhe jasht sistemit | D61: Relationships with institutions in and outside the system | H61: 0 | J61: 0 | L61: 0 | N61: =SUM('F1 restated'!F61:X61) -> 0 | P61: =SUM(First:Last!E54) -> 0 | R61: =SUM(First:Last!F54) -> 0
A62: 51 | B62: 465 | C62: Efekte per t'u arketuar nga shitja let.vlere vendosjes | D62: Receivables from selling of bonds | H62: 0 | J62: 0 | L62: 0 | N62: =SUM('F1 restated'!F62:X62) -> 0 | P62: =SUM(First:Last!E55) -> 0 | R62: =SUM(First:Last!F55) -> 0
A63: 52 | B63: 468 | C63: Debitore te ndryshem | D63: Different Debtors | F63: N4 | H63: 0 | J63: 0 | L63: 0 | N63: =SUM('F1 restated'!F63:X63) -> 0 | P63: =SUM(First:Last!E56) -> 0 | R63: =SUM(First:Last!F56) -> 0
A64: 53 | B64: 49 | C64: Shuma te parashikuara per zhvleresim(-) | D64: Forecasted amounts for depreciation (-) | H64: 0 | J64: 0 | L64: 0 | N64: =SUM('F1 restated'!F64:X64) -> 0 | P64: =SUM(First:Last!E57) -> 0 | R64: =SUM(First:Last!F57) -> 0
A65: 54 | B65: 50.59 | C65: III.Llogarite financiare | D65: III. Financial accounts | H65: 0 | J65: 0 | L65: 0 | N65: =SUM(N66:N74) -> 0 | P65: =SUM(P66:P74) -> 0 | R65: =SUM(R66:R74) -> 0
A66: 55 | B66: 50 | C66: Letra me vlere te vendosjes | D66: Securities | H66: 0 | J66: 0 | L66: 0 | N66: =SUM('F1 restated'!F66:X66) -> 0 | P66: =SUM(First:Last!E59) -> 0 | R66: =SUM(First:Last!F59) -> 0
A67: 56 | B67: 511 | C67: Vlera per tu arketuar | D67: Amounts to receive | H67: 0 | J67: 0 | L67: 0 | N67: =SUM('F1 restated'!F67:X67) -> 0 | P67: =SUM(First:Last!E60) -> 0 | R67: =SUM(First:Last!F60) -> 0
A68: 57 | B68: 512 | C68: Llogari ne banke | D68: Bank | H68: 0 | J68: 0 | L68: 0 | N68: =SUM('F1 restated'!F68:X68) -> 0 | P68: =SUM(First:Last!E61) -> 0 | R68: =SUM(First:Last!F61) -> 0
A69: 58 | B69: 520 | C69: Disponibilitete ne thesar | D69: Treasury funds | F69: N5 | H69: 0 | J69: 0 | L69: 0 | N69: =SUM('F1 restated'!F69:X69) -> 0 | P69: =SUM(First:Last!E62) -> 0 | R69: =SUM(First:Last!F62) -> 0
A70: 59 | B70: 531 | C70: Llogari ne arke | D70: Petty-cash | H70: 0 | J70: 0 | L70: 0 | N70: =SUM('F1 restated'!F70:X70) -> 0 | P70: =SUM(First:Last!E63) -> 0 | R70: =SUM(First:Last!F63) -> 0
A71: 60 | B71: 532 | C71: Vlera te tjera | D71: Other amounts | H71: 0 | J71: 0 | L71: 0 | N71: =SUM('F1 restated'!F71:X71) -> 0 | P71: =SUM(First:Last!E64) -> 0 | R71: =SUM(First:Last!F64) -> 0
A72: 61 | B72: 54 | C72: Akreditiva dhe paradhenie | D72: Recognized and prepayments | H72: 0 | J72: 0 | L72: 0 | N72: =SUM('F1 restated'!F72:X72) -> 0 | P72: =SUM(First:Last!E65) -> 0 | R72: =SUM(First:Last!F65) -> 0
A73: 62 | B73: 56 | C73: Llogari ne organizma krediti | D73: Accounts in Lending Institutions | H73: 0 | J73: 0 | L73: 0 | N73: =SUM('F1 restated'!F73:X73) -> 0 | P73: =SUM(First:Last!E66) -> 0 | R73: =SUM(First:Last!F66) -> 0
A74: 63 | B74: 59 | C74: Provigjone zhvlersimi letra me vlere vendosjes(-) | D74: devaluation provisions on securities(-) | H74: 0 | J74: 0 | L74: 0 | N74: =SUM('F1 restated'!F74:X74) -> 0 | P74: =SUM(First:Last!E67) -> 0 | R74: =SUM(First:Last!F67) -> 0
A75: 64 | B75: C | C75: LLOGARI TE TJERA AKTIVE | D75: Other Assets | H75: 0 | J75: 0 | L75: 0 | N75: =SUM(N76:N78) -> 0 | P75: =SUM(P76:P78) -> 0 | R75: =SUM(R76:R78) -> 0
A76: 65 | B76: 477 | C76: Diferenca konvertimi aktive | D76: Assets conversion differences | H76: 0 | J76: 0 | L76: 0 | N76: =SUM('F1 restated'!F76:X76) -> 0 | P76: =SUM(First:Last!E69) -> 0 | R76: =SUM(First:Last!F69) -> 0
A77: 66 | B77: 481 | C77: Shpenz.per tu shpernd.ne disa ushtrime | D77: Expenses to distribute in several exercises | H77: =N77/Presentation_curr -> 0 | J77: 0 | L77: 0 | N77: =SUM('F1 restated'!F77:X77) -> 0 | P77: =SUM(First:Last!E70) -> 0 | R77: =SUM(First:Last!F70) -> 0
A78: 67 | B78: 486 | C78: Shpenzime te periudhave te ardheshme | D78: Expenses in the future | H78: 0 | J78: 0 | L78: 0 | N78: =SUM('F1 restated'!F78:X78) -> 0 | P78: =SUM(First:Last!E71) -> 0 | R78: =SUM(First:Last!F71) -> 0
A79: 68 | B79: 85 | C79: REZULTATI I USHTRIMIT(saldo debitore) | D79: EXERCISE RESULTS (saldo debitore) | H79: 0 | J79: 0 | L79: 0 | N79: =SUM('F1 restated'!F79:X79) -> 0 | P79: =SUM(First:Last!E72) -> 0 | R79: =SUM(First:Last!F72) -> 0
A80: 69 | B80: X | C80: TOTALI I AKTIVIT | D80: ASSETS TOTAL | H80: 0 | J80: 0 | L80: 0 | N80: =P12+N13+N38+N75+N79 -> 0 | P80: =R12+P13+P38+P75+P79 -> 0 | R80: =S12+R13+R38+R75+R79 -> 0
A82: 70 | B82: 80.81 | C82: LLOGARITE JASHTE BILANCIT | D82: ACCOUNTS OUT OF BALANCE SHEET | H82: 0 | J82: 0 | L82: 0 | N82: =SUM('F1 restated'!F82:X82) -> 0 | P82: =SUM(P83) -> 0 | R82: =SUM(R83) -> 0
A83: 71 | B83: 80,81 | C83: Evidenca aktive | D83: Active evidences | H83: 0 | J83: 0 | L83: 0 | N83: =SUM('F1 restated'!F83:X83) -> 0 | P83: =SUM(First:Last!E76) -> 0 | R83: =SUM(First:Last!F76) -> 0
N89: =N80-'F2'!N55 -> 0 | P89: =P80-'F2'!P55 -> 0
N90: ='F3-1'!N84-'F3-2'!N100 -> 0 | P90: ='F3-1'!P84-'F3-2'!P100 -> 0

Sheet F2
A1: ='General information'!A1 -> Project STAR
A2: ='General information'!A2 -> xxx
A3: =A8 -> Bilanci Kontabёl - Pasivi (Formati 2)
A7: ='General information'!A2 -> xxx
A8: =Language!$D$86 -> Bilanci Kontabёl - Pasivi (Formati 2)
A9: =Language!$D$14 -> Pёr vitin e mbyllur mё 31 dhjetor 2014
A10: =ALL -> (Shumat ne ALL'000, nëse nuk shprehet ndryshe)
A11: =Language!$D$39 -> Numёr | B11: =Language!$D$47 -> Numri I llogarisё | C11: EMERTIMI I LLOGARIVE TE PASIVIT | D11: Liabilities
F12: =Language!$D$38 -> Shёnime shpjeguese | H12: =N12 -> Mё 31 dhjetor 2014 Riparaqitur | J12: =P12 -> Mё 31 dhjetor 2014 | L12: =R12 -> Mё 31 dhjetor 2013 | N12: =P12&" "&Language!D53 -> Mё 31 dhjetor 2014 Riparaqitur | P12: =Language!$D$11 -> Mё 31 dhjetor 2014 | R12: =Language!$D$12 -> Mё 31 dhjetor 2013 | T12: =Language!$D$54 -> Referencё me informacionin nga klienti
A13: 1 | B13: A | C13: FONDE TE VETA | D13: OWN FUNDS | H13: =N13/Presentation_curr -> 0 | J13: =P13/Presentation_curr -> 0 | L13: =R13/Presentation_curr -> 0 | N13: =N14+N20+N24+N25+N26+N27 -> 0 | P13: =P14+P20+P24+P25+P26+P27 -> 0 | R13: =R14+R20+R24+R25+R26+R27 -> 0
A14: 2 | B14: 10 | C14: I. Fonde te veta | D14: I. Own funds | H14: 0 | J14: 0 | L14: 0 | N14: =SUM(N15:N19) -> 0 | P14: =SUM(P15:P19) -> 0 | R14: =SUM(R15:R19) -> 0
A15: 3 | B15: 101 | C15: Fonde baze | D15: Base funds | F15: T8 | H15: 0 | J15: 0 | L15: 0 | N15: =SUM('F2 restated'!F15:Y15) -> 0 | P15: =SUM(First:Last!E86) -> 0 | R15: =SUM(First:Last!F86) -> 0 | T15: T8 Statement of changes in fund
A16: 4 | B16: 105 | C16: Grante te brendshme kapitale | D16: Capital internal grants | H16: 0 | J16: 0 | L16: 0 | N16: =SUM('F2 restated'!F16:Y16) -> 0 | P16: =SUM(First:Last!E87) -> 0 | R16: =SUM(First:Last!F87) -> 0
A17: 5 | B17: 106 | C17: Grante te huaja kapitale | D17: Capital foreigner grants | H17: 0 | J17: 0 | L17: 0 | N17: =SUM('F2 restated'!F17:Y17) -> 0 | P17: =SUM(First:Last!E88) -> 0 | R17: =SUM(First:Last!F88) -> 0
A18: 6 | B18: 107 | C18: Vlera Akt.Qend.te caktuara ne perdorim | D18: Current assets in use | H18: 0 | J18: 0 | L18: 0 | N18: =SUM('F2 restated'!F18:Y18) -> 0 | P18: =SUM(First:Last!E89) -> 0 | R18: =SUM(First:Last!F89) -> 0
A19: 7 | B19: 109 | C19: Rezerva nga rivlersimi aktiveve te qendrushme | D19: Reserves from revaluation of current assets | H19: 0 | J19: 0 | L19: 0 | N19: =SUM('F2 restated'!F19:Y19) -> 0 | P19: =SUM(First:Last!E90) -> 0 | R19: =SUM(First:Last!F90) -> 0
A20: 8 | B20: 11 | C20: II.Fonde te tjera te veta | D20: II. Other own funds | H20: 0 | J20: 0 | L20: 0 | N20: =SUM(N21:N23) -> 0 | P20: =SUM(P21:P23) -> 0 | R20: =SUM(R21:R23) -> 0
A21: 9 | B21: 111 | C21: Fonde rezerve | D21: Reserve funds | H21: 0 | J21: 0 | L21: 0 | N21: =SUM('F2 restated'!F21:Y21) -> 0 | P21: =SUM(First:Last!E92) -> 0 | R21: =SUM(First:Last!F92) -> 0
A22: 10 | B22: 115 | C22: Caktim nga rezultati i vitit per investime | D22: Assignments from the year results for investments | H22: 0 | J22: 0 | L22: 0 | N22: =SUM('F2 restated'!F22:Y22) -> 0 | P22: =SUM(First:Last!E93) -> 0 | R22: =SUM(First:Last!F93) -> 0
A23: 11 | B23: 116 | C23: Te ardhura nga shitja e Ak.Qendrushme | D23: Revenues from selling of current assets | H23: 0 | J23: 0 | L23: 0 | N23: =SUM('F2 restated'!F23:Y23) -> 0 | P23: =SUM(First:Last!E94) -> 0 | R23: =SUM(First:Last!F94) -> 0
A24: 12 | B24: 12 | C24: III.Rezultati i mbartur | D24: III. Carried result | H24: 0 | J24: 0 | L24: 0 | N24: =SUM('F2 restated'!F24:Y24) -> 0 | P24: =SUM(First:Last!E95) -> 0 | R24: =SUM(First:Last!F95) -> 0
A25: 13 | B25: 13 | C25: IV.Subvecione te jashtezakonshme( - ) | D25: IV. Exceptional subsidiaries ( - ) | H25: 0 | J25: 0 | L25: 0 | N25: =SUM('F2 restated'!F25:Y25) -> 0 | P25: =SUM(First:Last!E96) -> 0 | R25: =SUM(First:Last!F96) -> 0
A26: 14 | B26: 14 | C26: V.Pjesemarrje te instit.ne invest.per te trete | D26: V. Participation of the institution in investing for third parties | H26: 0 | J26: 0 | L26: 0 | N26: =SUM('F2 restated'!F26:Y26) -> 0 | P26: =SUM(First:Last!E97) -> 0 | R26: =SUM(First:Last!F97) -> 0
A27: 15 | B27: 15 | C27: VI.Shuma parashikuara per rreziqe e shpenz. | D27: VI. Forecasted amounts for disasters and expenses | H27: 0 | J27: 0 | L27: 0 | N27: =SUM('F2 restated'!F27:Y27) -> 0 | P27: =SUM(First:Last!E98) -> 0 | R27: =SUM(First:Last!F98) -> 0
A28: 16 | B28: B | C28: D E T Y R I M E | D28: LIABILITIES | H28: 0 | J28: 0 | L28: 0 | N28: =N29+N32 -> 0 | P28: =P29+P32 -> 0 | R28: =R29+R32 -> 0
A29: 17 | B29: 16,17,18 | C29: I.Borxhe afatgjate | D29: I. Long-term debts | H29: 0 | J29: 0 | L29: 0 | N29: =SUM(N30:N31) -> 0 | P29: =SUM(P30:P31) -> 0 | R29: =SUM(R30:R31) -> 0
A30: 18 | B30: 16 | C30: Huamarrje e brendeshme dhe te ngjashme | D30: Internal borrowing and similar | H30: 0 | J30: 0 | L30: 0 | N30: =SUM('F2 restated'!F30:Y30) -> 0 | P30: =SUM(First:Last!E101) -> 0 | R30: =SUM(First:Last!F101) -> 0
A31: 19 | B31: 17 | C31: Huamarrje e huaj | D31: Borrowing out of the country | H31: 0 | J31: 0 | L31: 0 | N31: =SUM('F2 restated'!F31:Y31) -> 0 | P31: =SUM(First:Last!E102) -> 0 | R31: =SUM(First:Last!F102) -> 0
A32: 20 | B32: Klasa 4 | C32: II.Detyrime afatshkurter | D32: II. Short term liabilities | H32: 0 | J32: 0 | L32: 0 | N32: =SUM(N33:N48) -> 0 | P32: =SUM(P33:P48) -> 0 | R32: =SUM(R33:R48) -> 0
A33: 21 | B33: 419 | C33: Kliente(Kreditore), parapagese pjesore | D33: Clients (Creditors ), partial prepayment | H33: 0 | J33: 0 | L33: 0 | N33: =SUM('F2 restated'!F33:Y33) -> 0 | P33: =SUM(First:Last!E104) -> 0 | R33: =SUM(First:Last!F104) -> 0
A34: 22 | B34: 401-408 | C34: Furnitore e llogari te lidhura me to | D34: Suppliers and related accounts | F34: N6 | H34: 0 | J34: 0 | L34: 0 | N34: =SUM('F2 restated'!F34:Y34) -> 0 | P34: =SUM(First:Last!E105) -> 0 | R34: =SUM(First:Last!F105) -> 0
A35: 23 | B35: 42 | C35: Personeli e llogari te lidhura me to | D35: Employees and related accounts | H35: 0 | J35: 0 | L35: 0 | N35: =SUM('F2 restated'!F35:Y35) -> 0 | P35: =SUM(First:Last!E106) -> 0 | R35: =SUM(First:Last!F106) -> 0
A36: 24 | B36: 431 | C36: Detyrime ndaj Shtetit per tatim-taksa | D36: Liabilities to government for taxes | H36: 0 | J36: 0 | L36: 0 | N36: =SUM('F2 restated'!F36:Y36) -> 0 | P36: =SUM(First:Last!E107) -> 0 | R36: =SUM(First:Last!F107) -> 0
A37: 25 | B37: 432 | C37: Tatime mbedhura nga shteti per llog.Pusht.Lokal | D37: Taxes collected from government for the local government | H37: 0 | J37: 0 | L37: 0 | N37: =SUM('F2 restated'!F37:Y37) -> 0 | P37: =SUM(First:Last!E108) -> 0 | R37: =SUM(First:Last!F108) -> 0
A38: 26 | B38: 433 | C38: Shteti fatkeqesi natyrore | D38: Government natural disaster | H38: 0 | J38: 0 | L38: 0 | N38: =SUM('F2 restated'!F38:Y38) -> 0 | P38: =SUM(First:Last!E109) -> 0 | R38: =SUM(First:Last!F109) -> 0
A39: 27 | B39: 4341 | C39: Te tjera operacione me shtetin(kreditor) | D39: Te tjera operacione me shtetin(kreditor) | H39: 0 | J39: 0 | L39: 0 | N39: =SUM('F2 restated'!F39:Y39) -> 0 | P39: =SUM(First:Last!E110) -> 0 | R39: =SUM(First:Last!F110) -> 0
A40: 28 | B40: 435 | C40: Sigurime shoqerore | D40: Social Insurance | H40: 0 | J40: 0 | L40: 0 | N40: =SUM('F2 restated'!F40:Y40) -> 0 | P40: =SUM(First:Last!E111) -> 0 | R40: =SUM(First:Last!F111) -> 0
A41: 29 | B41: 436 | C41: Sigurime shendetsore | D41: Health Insurance | H41: 0 | J41: 0 | L41: 0 | N41: =SUM('F2 restated'!F41:Y41) -> 0 | P41: =SUM(First:Last!E112) -> 0 | R41: =SUM(First:Last!F112) -> 0
A42: 30 | B42: 437.438 | C42: Organizma te tjere shoqerore | D42: Other social organizations | H42: 0 | J42: 0 | L42: 0 | N42: =SUM('F2 restated'!F42:Y42) -> 0 | P42: =SUM(First:Last!E113) -> 0 | R42: =SUM(First:Last!F113) -> 0
A43: 31 | B43: 44 | C43: Institucione te tjera publike | D43: Other public institutions | H43: 0 | J43: 0 | L43: 0 | N43: =SUM('F2 restated'!F43:Y43) -> 0 | P43: =SUM(First:Last!E114) -> 0 | R43: =SUM(First:Last!F114) -> 0
A44: 32 | B44: 45 | C44: Marrdhenie me institucione brenda e jasht sistemit | D44: Relationships with institutions in and outside the system | H44: 0 | J44: 0 | L44: 0 | N44: =SUM('F2 restated'!F44:Y44) -> 0 | P44: =SUM(First:Last!E115) -> 0 | R44: =SUM(First:Last!F115) -> 0
A45: 33 | B45: 460 | C45: Huadhenes | D45: Borrower | H45: 0 | J45: 0 | L45: 0 | N45: =SUM('F2 restated'!F45:Y45) -> 0 | P45: =SUM(First:Last!E116) -> 0 | R45: =SUM(First:Last!F116) -> 0
A46: 34 | B46: 464 | C46: Detyrime per t'u paguar per blerjen e letr,vlere | D46: Liabilities for bond purchasing | H46: 0 | J46: 0 | L46: 0 | N46: =SUM('F2 restated'!F46:Y46) -> 0 | P46: =SUM(First:Last!E117) -> 0 | R46: =SUM(First:Last!F117) -> 0
A47: 35 | B47: 466 | C47: Kreditore per mjete ne ruajtje | D47: Creditors for assets under guard | F47: N5 | H47: 0 | J47: 0 | L47: 0 | N47: =SUM('F2 restated'!F47:Y47) -> 0 | P47: =SUM(First:Last!E118) -> 0 | R47: =SUM(First:Last!F118) -> 0
A48: 36 | B48: 467 | C48: Kreditore te ndryshem | D48: Other creditors | H48: 0 | J48: 0 | L48: 0 | N48: =SUM('F2 restated'!F48:Y48) -> 0 | P48: =SUM(First:Last!E119) -> 0 | R48: =SUM(First:Last!F119) -> 0
A49: 37 | B49: C | C49: LLOGARI TE TJERA | D49: OTHER ACCOUNTS | H49: 0 | J49: 0 | L49: 0 | N49: =SUM(N50:N53) -> 0 | P49: =SUM(P50:P53) -> 0 | R49: =SUM(R50:R53) -> 0
A50: 38 | B50: 475 | C50: Te ardhura per tu regjist.vitet pasardhese | D50: incomes to register in the coming years | H50: 0 | J50: 0 | L50: 0 | N50: =SUM('F2 restated'!F50:Y50) -> 0 | P50: =SUM(First:Last!E121) -> 0 | R50: =SUM(First:Last!F121) -> 0
A51: 39 | B51: 478 | C51: Diferenca konvertime pasive | D51: passive converting differences | H51: 0 | J51: 0 | L51: 0 | N51: =SUM('F2 restated'!F51:Y51) -> 0 | P51: =SUM(First:Last!E122) -> 0 | R51: =SUM(First:Last!F122) -> 0
A52: 40 | B52: 480 | C52: Te ardhura per tu klasifikuar ose rregulluar | D52: Incomes to classify or adjust | H52: 0 | J52: 0 | L52: 0 | N52: =SUM('F2 restated'!F52:Y52) -> 0 | P52: =SUM(First:Last!E123) -> 0 | R52: =SUM(First:Last!F123) -> 0
A53: 41 | B53: 487 | C53: te ardhura te arketuara para nxjerrjes titullit | D53: incomes received before title exposure | H53: 0 | J53: 0 | L53: 0 | N53: =SUM('F2 restated'!F53:Y53) -> 0 | P53: =SUM(First:Last!E124) -> 0 | R53: =SUM(First:Last!F124) -> 0
A54: 42 | B54: 85 | C54: REZULTATI I USHTRIMIT(Saldo kreditore) | D54: Result (credit amount) | H54: 0 | J54: 0 | L54: 0 | N54: =SUM('F2 restated'!F54:Y54) -> 0 | P54: =SUM(First:Last!E125) -> 0 | R54: =SUM(First:Last!F125) -> 0
A55: 43 | B55: X | C55: T O T A L I I P A S I V I T | D55: TOTAL LIABILITY | H55: 0 | J55: 0 | L55: 0 | N55: =N13+N28+N49+N54 -> 0 | P55: =P13+P28+P49+P54 -> 0 | R55: =R13+R28+R49+R54 -> 0
A57: 44 | B57: 80.81 | C57: LLOGARITE JASHTE BILANCIT | D57: ACCOUNTS OUT OF BALANCE SHEET | N57: =SUM('F2 restated'!F57:Y57) -> 0 | P57: =SUM(P58) -> 0 | R57: =SUM(R58) -> 0
A58: 45 | B58: 80,81 | C58: Evidenca pasive | D58: Passive evidences | N58: =SUM('F2 restated'!F58:Y58) -> 0 | P58: =SUM(First:Last!E129) -> 0 | R58: =SUM(First:Last!F129) -> 0

Sheet F3-1
A1: ='General information'!A1 -> Project STAR
A2: ='General information'!A2 -> xxx
A3: =A8 -> Pasqyra e Shpenzimeve (Formati 3/1)
A7: ='General information'!A2 -> xxx
A8: =Language!$D$87 -> Pasqyra e Shpenzimeve (Formati 3/1)
A9: =Language!$D$14 -> Pёr vitin e mbyllur mё 31 dhjetor 2014
A10: =ALL -> (Shumat ne ALL'000, nëse nuk shprehet ndryshe)
A11: =Language!$D$39 -> Numёr | B11: =Language!$D$47 -> Numri I llogarisё | C11: PERSHKRIMI I SHPENZIMEVE TE USHTRIMIT
D12: Description of Expenses | F12: =Language!$D$38 -> Shёnime shpjeguese | H12: =N12 -> Vit ushtrimor 2014 Riparaqitur | J12: =P12 -> Vit ushtrimor 2014 | L12: =R12 -> Vit ushtrimor 2013 | N12: =P12&" "&Language!D53 -> Vit ushtrimor 2014 Riparaqitur | P12: =Language!$D$19 -> Vit ushtrimor 2014 | R12: =Language!$D$20 -> Vit ushtrimor 2013
A13: a | B13: b | C13: c | H13: =N13 -> 2 | I13: =O13 -> 0 | J13: =P13 -> 1 | L13: =R13 -> 2 | N13: 2 | P13: 1 | R13: 2
A14: 1 | B14: Klasa 6 | C14: A. SHPENZIMET SHFRYTEZIMI (I - III) | D14: A. Expenses for exploitation/usage | H14: =N14/Presentation_curr -> 0 | J14: =P14/Presentation_curr -> 0 | L14: =R14/Presentation_curr -> 0 | N14: =SUM(N15+N54+N55) -> 0 | P14: =SUM(P15+P54+P55) -> 0 | R14: =SUM(R15+R54+R55) -> 0
A15: 2 | B15: 60 | C15: I. Shpenzime Korrente | D15: I. Current expenses | H15: 0 | I15: =O15/Presentation_curr -> 0 | J15: 0 | K15: =Q15/Presentation_curr -> 0 | L15: 0 | N15: =SUM(N16+N21+N24+N35+N41+N46+N51) -> 0 | P15: =SUM(P16+P21+P24+P35+P41+P46+P51) -> 0 | R15: =SUM(R16+R21+R24+R35+R41+R46+R51) -> 0
A16: 3 | B16: 600 | C16: Paga,shperblime e te tjera personeli | D16: Salaries, bonuses | H16: 0 | I16: =O16/Presentation_curr -> 0 | J16: 0 | K16: 0 | L16: 0 | N16: =SUM(N17:N20) -> 0 | P16: =SUM(P17:P20) -> 0 | R16: =SUM(R17:R20) -> 0
A17: 4 | B17: 6001 | C17: Paga, personeli i perhershem | D17: Salaries | H17: 0 | J17: 0 | K17: 0 | L17: 0 | N17: =SUM('F3-1 restated'!F17:Y17) -> 0 | P17: =SUM(First:Last!E141) -> 0 | R17: =SUM(First:Last!F141) -> 0
A18: 5 | B18: 6002 | C18: Paga, personel I perkohshem | D18: Temporary salaries | H18: 0 | J18: 0 | K18: 0 | L18: 0 | N18: =SUM('F3-1 restated'!F18:Y18) -> 0 | P18: =SUM(First:Last!E142) -> 0 | R18: =SUM(First:Last!F142) -> 0
A19: 6 | B19: 6003 | C19: Shperblime | D19: Bonuses | H19: 0 | J19: 0 | K19: 0 | L19: 0 | N19: =SUM('F3-1 restated'!F19:Y19) -> 0 | P19: =SUM(First:Last!E143) -> 0 | R19: =SUM(First:Last!F143) -> 0
A20: 7 | B20: 6009 | C20: Shpenzime tjera personeli | D20: Other personal expenses | H20: 0 | J20: 0 | K20: 0 | L20: 0 | N20: =SUM('F3-1 restated'!F20:Y20) -> 0 | P20: =SUM(First:Last!E144) -> 0 | R20: =SUM(First:Last!F144) -> 0
A21: 8 | B21: 601 | C21: Kontrib.te sig.shoq.e shendets. | D21: health and social insurance contributions | H21: 0 | J21: 0 | K21: 0 | L21: 0 | N21: =SUM(N22:N23) -> 0 | P21: =SUM(P22:P23) -> 0 | R21: =SUM(R22:R23) -> 0
A22: 9 | B22: 6010 | C22: Kontribute per sigurimet shoqerore | D22: Insurance contributions | H22: 0 | J22: 0 | K22: 0 | L22: 0 | N22: =SUM('F3-1 restated'!F22:Y22) -> 0 | P22: =SUM(First:Last!E146) -> 0 | R22: =SUM(First:Last!F146) -> 0
A23: 10 | B23: 6011 | C23: Kontribute per sigurimet shendetesore | D23: Health insurance | H23: 0 | J23: 0 | K23: 0 | L23: 0 | N23: =SUM('F3-1 restated'!F23:Y23) -> 0 | P23: =SUM(First:Last!E147) -> 0 | R23: =SUM(First:Last!F147) -> 0
A24: 11 | B24: 602 | C24: Mallra dhe sherbime te tjera | D24: Other goods and services | H24: 0 | J24: 0 | K24: 0 | L24: 0 | N24: =SUM(N25:N34) -> 0 | P24: =SUM(P25:P34) -> 0 | R24: =SUM(R25:R34) -> 0
A25: 12 | B25: 6020 | C25: Materiale zyre e te pergjitheshme | D25: stationary | H25: 0 | J25: 0 | K25: 0 | L25: 0 | N25: =SUM('F3-1 restated'!F25:Y25) -> 0 | P25: =SUM(First:Last!E149) -> 0 | R25: =SUM(First:Last!F149) -> 0
A26: 13 | B26: 6021 | C26: Materiale dhe sherbime speciale | D26: Special services | H26: 0 | J26: 0 | K26: 0 | L26: 0 | N26: =SUM('F3-1 restated'!F26:Y26) -> 0 | P26: =SUM(First:Last!E150) -> 0 | R26: =SUM(First:Last!F150) -> 0
A27: 14 | B27: 6022 | C27: Sherbime nga te trete | D27: Services from third party | H27: 0 | J27: 0 | K27: 0 | L27: 0 | N27: =SUM('F3-1 restated'!F27:Y27) -> 0 | P27: =SUM(First:Last!E151) -> 0 | R27: =SUM(First:Last!F151) -> 0
A28: 15 | B28: 6023 | C28: Shpenzime transporti | D28: Transport expenses | H28: 0 | J28: 0 | K28: 0 | L28: 0 | N28: =SUM('F3-1 restated'!F28:Y28) -> 0 | P28: =SUM(First:Last!E152) -> 0 | R28: =SUM(First:Last!F152) -> 0
A29: 16 | B29: 6024 | C29: Shpenzime udhetimi | D29: Travel expense | H29: 0 | J29: 0 | K29: 0 | L29: 0 | N29: =SUM('F3-1 restated'!F29:Y29) -> 0 | P29: =SUM(First:Last!E153) -> 0 | R29: =SUM(First:Last!F153) -> 0
A30: 17 | B30: 6025 | C30: Shpenzime per mirembajtje te zakonshme | D30: Ordinary maintenance expenses | H30: 0 | J30: 0 | K30: 0 | L30: 0 | N30: =SUM('F3-1 restated'!F30:Y30) -> 0 | P30: =SUM(First:Last!E154) -> 0 | R30: =SUM(First:Last!F154) -> 0
A31: 18 | B31: 6026 | C31: Shpenzime per qeramarrje | D31: Rent expenses | H31: 0 | J31: 0 | K31: 0 | L31: 0 | N31: =SUM('F3-1 restated'!F31:Y31) -> 0 | P31: =SUM(First:Last!E155) -> 0 | R31: =SUM(First:Last!F155) -> 0
A32: 19 | B32: 6027 | C32: Shpenzime per detyrime per kompesime legale | D32: Expenses for legal liability for compensation | H32: 0 | J32: 0 | K32: 0 | L32: 0 | N32: =SUM('F3-1 restated'!F32:Y32) -> 0 | P32: =SUM(First:Last!E156) -> 0 | R32: =SUM(First:Last!F156) -> 0
A33: 20 | B33: 6028 | C33: Shpenzime te lidhura me huamarrjen per hua | D33: Borrowing costs related to loans | H33: 0 | J33: 0 | K33: 0 | L33: 0 | N33: =SUM('F3-1 restated'!F33:Y33) -> 0 | P33: =SUM(First:Last!E157) -> 0 | R33: =SUM(First:Last!F157) -> 0
A34: 21 | B34: 6029 | C34: Shpenzime te tjera operative | D34: Other operating expenses | H34: 0 | J34: 0 | K34: 0 | L34: 0 | N34: =SUM('F3-1 restated'!F34:Y34) -> 0 | P34: =SUM(First:Last!E158) -> 0 | R34: =SUM(First:Last!F158) -> 0
A35: 22 | B35: 603 | C35: Subvencionet | D35: Subsidies | H35: 0 | J35: 0 | K35: 0 | L35: 0 | N35: =SUM('F3-1 restated'!F35:Y35) -> 0 | P35: =SUM(P36:P40) -> 0 | R35: =SUM(R36:R40) -> 0
A36: 23 | B36: 6030 | C36: Subvecione per diference cmimi | D36: Subsidies for price differences | H36: 0 | J36: 0 | K36: 0 | L36: 0 | N36: =SUM('F3-1 restated'!F36:Y36) -> 0 | P36: =SUM(First:Last!E160) -> 0 | R36: =SUM(First:Last!F160) -> 0
A37: 24 | B37: 6031 | C37: Subvecione per te nxitur punesimin | D37: Subsidies to promote employment | H37: 0 | J37: 0 | K37: 0 | L37: 0 | N37: =SUM('F3-1 restated'!F37:Y37) -> 0 | P37: =SUM(First:Last!E161) -> 0 | R37: =SUM(First:Last!F161) -> 0
A38: 25 | B38: 6032 | C38: Subvecione per te mbuluar humbjet | D38: Subsidies to cover loss | H38: 0 | J38: 0 | K38: 0 | L38: 0 | N38: =SUM('F3-1 restated'!F38:Y38) -> 0 | P38: =SUM(First:Last!E162) -> 0 | R38: =SUM(First:Last!F162) -> 0
A39: 26 | B39: 6033 | C39: Subvecione per sipermarrjet individuale | D39: Subsidies for entrepreneurship | H39: 0 | J39: 0 | K39: 0 | L39: 0 | N39: =SUM('F3-1 restated'!F39:Y39) -> 0 | P39: =SUM(First:Last!E163) -> 0 | R39: =SUM(First:Last!F163) -> 0
A40: 27 | B40: 6039 | C40: Subvecione te tjera | D40: Other subsidies | H40: 0 | J40: 0 | K40: 0 | L40: 0 | N40: =SUM('F3-1 restated'!F40:Y40) -> 0 | P40: =SUM(First:Last!E164) -> 0 | R40: =SUM(First:Last!F164) -> 0
A41: 28 | B41: 604 | C41: Transferime korrente te brendshme | D41: Current internal transfers | H41: 0 | J41: 0 | K41: 0 | L41: 0 | N41: =SUM(N42:N45) -> 0 | P41: =SUM(P42:P45) -> 0 | R41: =SUM(R42:R45) -> 0
A42: 29 | B42: 6040 | C42: Transferime korente tek nivele tjera te Qeverise | D42: Current transfers to other government levels | H42: 0 | J42: 0 | K42: 0 | L42: 0 | N42: =SUM('F3-1 restated'!F42:Y42) -> 0 | P42: =SUM(First:Last!E166) -> 0 | R42: =SUM(First:Last!F166) -> 0
A43: 30 | B43: 6041 | C43: Transferime korente tek institucione qeveritare te ndryshme | D43: Current transfers to various government institutions | H43: 0 | J43: 0 | K43: 0 | L43: 0 | N43: =SUM('F3-1 restated'!F43:Y43) -> 0 | P43: =SUM(First:Last!E167) -> 0 | R43: =SUM(First:Last!F167) -> 0
A44: 31 | B44: 6042 | C44: Transferime korente tek Sigurimet Shoqerore e Shendetsore | D44: Current transfers for social and health insurance | H44: 0 | J44: 0 | K44: 0 | L44: 0 | N44: =SUM('F3-1 restated'!F44:Y44) -> 0 | P44: =SUM(First:Last!E168) -> 0 | R44: =SUM(First:Last!F168) -> 0
A45: 32 | B45: 6044 | C45: Transferime korente tek Organizatat jo fitimprurse | D45: Current transfers for not for profit organizations | H45: 0 | J45: 0 | K45: 0 | L45: 0 | N45: =SUM('F3-1 restated'!F45:Y45) -> 0 | P45: =SUM(First:Last!E169) -> 0 | R45: =SUM(First:Last!F169) -> 0
A46: 33 | B46: 605 | C46: Transferime korrente me jashte | D46: Current transfers with outsiders | H46: =N46/Presentation_curr -> 0 | J46: =P46/Presentation_curr -> 0 | K46: 0 | L46: =R46/Presentation_curr -> 0 | N46: =SUM('F3-1 restated'!F46:Y46) -> 0 | P46: =SUM(P47:P50) -> 0 | R46: =SUM(R47:R50) -> 0
A47: 34 | B47: 6051 | C47: Transferime Per Organizatat Nderkombetare | D47: Transfers for IOS | H47: 0 | J47: 0 | K47: =Q47/Presentation_curr -> 0 | L47: 0 | N47: =SUM('F3-1 restated'!F47:Y47) -> 0 | P47: =SUM(First:Last!E171) -> 0 | R47: =SUM(First:Last!F171) -> 0
A48: 35 | B48: 6052 | C48: Transferime Per Qeverite e Huaja | D48: Transfers for foreign governments | H48: 0 | J48: 0 | K48: 0 | L48: 0 | N48: =SUM('F3-1 restated'!F48:Y48) -> 0 | P48: =SUM(First:Last!E172) -> 0 | R48: =SUM(First:Last!F172) -> 0
A49: 36 | B49: 6053 | C49: Transferime Per institucionet jo fitimprurese te huaja | D49: Transfers for non not-for profit organizations | H49: 0 | J49: 0 | K49: 0 | L49: 0 | N49: =SUM('F3-1 restated'!F49:Y49) -> 0 | P49: =SUM(First:Last!E173) -> 0 | R49: =SUM(First:Last!F173) -> 0
A50: 37 | B50: 6059 | C50: Transferime Te tjera korrente me jashte shtetit | D50: Other current transfers with foreign governments | H50: 0 | J50: 0 | K50: 0 | L50: 0 | N50: =SUM('F3-1 restated'!F50:Y50) -> 0 | P50: =SUM(First:Last!E174) -> 0 | R50: =SUM(First:Last!F174) -> 0
A51: 38 | B51: 606 | C51: Transferta per buxh.familjare e individe | D51: Transfers family budges and other individuals | H51: 0 | J51: 0 | K51: 0 | L51: 0 | N51: =SUM(N52:N53) -> 0 | P51: =SUM(P52:P53) -> 0 | R51: =SUM(R52:R53) -> 0
A52: 39 | B52: 6060 | C52: Transferta Te paguara nga ISSH e ISKSH | D52: Transfers paid from ISS and HII | H52: 0 | J52: 0 | K52: 0 | L52: 0 | N52: =SUM('F3-1 restated'!F52:Y52) -> 0 | P52: =SUM(First:Last!E176) -> 0 | R52: =SUM(First:Last!F176) -> 0
A53: 40 | B53: 6061 | C53: Transferta Paguara nga Inst.Tjera e Org.Pusht.Vendor | D53: Transfers paid from other institutions and Local government | H53: 0 | J53: 0 | K53: 0 | L53: 0 | N53: =SUM('F3-1 restated'!F53:Y53) -> 0 | P53: =SUM(First:Last!E177) -> 0 | R53: =SUM(First:Last!F177) -> 0
A54: 41 | B54: 63 | C54: II. Ndryshimi I gjendjeve te inventarit ( + - ) | D54: II. Change in inventory balances | F54: T1 | H54: 0 | J54: 0 | K54: 0 | L54: 0 | N54: =SUM('F3-1 restated'!F54:Y54) -> 0 | P54: =SUM(First:Last!E178) -> 0 | R54: =SUM(First:Last!F178) -> 0
A55: 42 | B55: 68 | C55: III. Kuota amortizimi dhe shuma te parashikuara | D55: III.Depreciation rates and expected balances | H55: 0 | J55: 0 | K55: 0 | L55: 0 | N55: =SUM(N56:N59) -> 0 | P55: =SUM(P56:P59) -> 0 | R55: =SUM(R56:R59) -> 0
A56: 43 | B56: 681 | C56: Kuotat e amortizimit te shfrytezimit | D56: Amortization rates on exploitation | H56: 0 | J56: 0 | K56: 0 | L56: 0 | N56: =SUM('F3-1 restated'!F56:Y56) -> 0 | P56: =SUM(First:Last!E180) -> 0 | R56: =SUM(First:Last!F180) -> 0
A57: 44 | B57: 682 | C57: Vlera mbetur e AQ te nxjerra jasht perdorimit e shitura | D57: Residual value on fixed assets, damaged or disposed | H57: 0 | J57: 0 | K57: 0 | L57: 0 | N57: =SUM('F3-1 restated'!F57:Y57) -> 0 | P57: =SUM(First:Last!E181) -> 0 | R57: =SUM(First:Last!F181) -> 0
A58: 45 | B58: 683 | C58: Shuma te parashikuara te shfrytezimit | D58: Amounts provided for exploitations | H58: 0 | J58: 0 | K58: 0 | L58: 0 | N58: =SUM('F3-1 restated'!F58:Y58) -> 0 | P58: =SUM(First:Last!E182) -> 0 | R58: =SUM(First:Last!F182) -> 0
A59: 46 | B59: 686 | C59: Shuma te parashikuara per aktivet financiare | D59: Amounts provided for finance assets | H59: 0 | J59: 0 | K59: 0 | L59: 0 | N59: =SUM('F3-1 restated'!F59:Y59) -> 0 | P59: =SUM(First:Last!E183) -> 0 | R59: =SUM(First:Last!F183) -> 0
A60: 47 | B60: 65, 66 | C60: B. SHPENZIME FINANCIARE(I+II) | D60: B. Finance expenses | H60: 0 | J60: 0 | K60: 0 | L60: 0 | N60: =SUM(N61+N66) -> 0 | P60: =SUM(P61+P66) -> 0 | R60: =SUM(R61+R66) -> 0
A61: 48 | B61: 65 | C61: I. Shpen.financiare te brendshme | D61: I. Internal finance expenses | H61: 0 | J61: 0 | K61: 0 | L61: 0 | N61: =SUM(N62:N65) -> 0 | P61: =SUM(P62:P65) -> 0 | R61: =SUM(R62:R65) -> 0
A62: 49 | B62: 650 | C62: Interesa per bono thesarit dhe kredi direkte | D62: Bond interest rates and direct loans | H62: 0 | J62: 0 | K62: 0 | L62: 0 | N62: =SUM('F3-1 restated'!F62:Y62) -> 0 | P62: =SUM(First:Last!E186) -> 0 | R62: =SUM(First:Last!F186) -> 0
A63: 50 | B63: 651 | C63: Interesa per huamarrje te tj. Brendshme | D63: Borrowing costs related to loans | H63: 0 | J63: 0 | K63: 0 | L63: 0 | N63: =SUM('F3-1 restated'!F63:Y63) -> 0 | P63: =SUM(First:Last!E187) -> 0 | R63: =SUM(First:Last!F187) -> 0
A64: 51 | B64: 652 | C64: Interesa Letra tjera vlere Qeverise | D64: Other interest on government securities | H64: 0 | J64: 0 | K64: 0 | L64: 0 | N64: =SUM('F3-1 restated'!F64:Y64) -> 0 | P64: =SUM(First:Last!E188) -> 0 | R64: =SUM(First:Last!F188) -> 0
A65: 52 | B65: 656 | C65: Shpenz.nga kembimet valutore | D65: foreign exchange expenses | H65: 0 | J65: 0 | K65: 0 | L65: 0 | N65: =SUM('F3-1 restated'!F65:Y65) -> 0 | P65: =SUM(First:Last!E189) -> 0 | R65: =SUM(First:Last!F189) -> 0
A66: 53 | B66: 66 | C66: II. Shpen.financiare te jashtme | D66: II. External finance expenses | H66: 0 | J66: 0 | K66: 0 | L66: 0 | N66: =SUM(N67:N69) -> 0 | P66: =SUM(P67:P69) -> 0 | R66: =SUM(R67:R69) -> 0
A67: 54 | B67: 660 | C67: Interesa per huamarrje nga Qeveri.te Huaja | D67: Interest on loans from Foreign Governments | H67: 0 | J67: 0 | K67: 0 | L67: 0 | N67: =SUM('F3-1 restated'!F67:Y67) -> 0 | P67: =SUM(First:Last!E191) -> 0 | R67: =SUM(First:Last!F191) -> 0
A68: 55 | B68: 661 | C68: Interesa per financime nga Institucionet.nderkomb | D68: Interest on financing from international organizations | H68: 0 | J68: 0 | K68: 0 | L68: 0 | N68: =SUM('F3-1 restated'!F68:Y68) -> 0 | P68: =SUM(First:Last!E192) -> 0 | R68: =SUM(First:Last!F192) -> 0
A69: 56 | B69: 662 | C69: Interesa per huamarrje te tjera jashtme | D69: Interest on other foreign loans | H69: 0 | J69: 0 | K69: 0 | L69: 0 | N69: =SUM('F3-1 restated'!F69:Y69) -> 0 | P69: =SUM(First:Last!E193) -> 0 | R69: =SUM(First:Last!F193) -> 0
A70: 57 | B70: 67 | C70: C. SHPENZ.TE JASHTEZAKONSHME | D70: C. Extraordinary Expenses | H70: 0 | J70: 0 | K70: 0 | L70: 0 | N70: =SUM(N71:N72) -> 0 | P70: =SUM(P71:P72) -> 0 | R70: =SUM(R71:R72) -> 0
A71: 58 | B71: 677 | C71: Humbje nga gabime te lejuara ne ushtr.paraardhese | D71: Losses from allowed errors from previous years | H71: 0 | J71: 0 | K71: 0 | L71: 0 | N71: =SUM('F3-1 restated'!F71:Y71) -> 0 | P71: =SUM(First:Last!E195) -> 0 | R71: =SUM(First:Last!F195) -> 0
A72: 59 | B72: 678 | C72: Shpenzime te tjera te jashtzakonshme | D72: Other Extraordinary expenses | H72: 0 | J72: 0 | K72: 0 | L72: 0 | N72: =SUM('F3-1 restated'!F72:Y72) -> 0 | P72: =SUM(First:Last!E196) -> 0 | R72: =SUM(First:Last!F196) -> 0
A73: 60 | B73: Klasa 6 | C73: TOTALI I SHPENZIMEVE | D73: TOTAL EXPENSES | H73: 0 | J73: 0 | K73: 0 | L73: 0 | N73: =(N14+N60+N70) -> 0 | P73: =(P14+P60+P70) -> 0 | R73: =(R14+R60+R70) -> 0
A74: 61 | B74: 82,83,84 | C74: D. OPERAC.KORIGJ.REZULTATIT | D74: D. RESULT CORRECTIONS ACTIVITES | H74: 0 | J74: 0 | K74: 0 | L74: 0 | N74: =SUM(N75:N81) -> 0 | P74: =SUM(P75:P81) -> 0 | R74: =SUM(R75:R81) -> 0
A75: 62 | B75: 828 | C75: Tituj te ardhurash te anulluara | D75: Names of cancelled revenues | H75: 0 | J75: 0 | K75: 0 | L75: 0 | N75: =SUM('F3-1 restated'!F75:Y75) -> 0 | P75: =SUM(First:Last!E199) -> 0 | R75: =SUM(First:Last!F199) -> 0
A76: 63 | B76: 831 | C76: Caktim te ardh.funks.per investime | D76: Determination of revenues for investments | H76: 0 | J76: 0 | K76: 0 | L76: 0 | N76: =SUM('F3-1 restated'!F76:Y76) -> 0 | P76: =SUM(First:Last!E200) -> 0 | R76: =SUM(First:Last!F200) -> 0
A77: 64 | B77: 8420 | C77: Derdhje te ardhura ne buxhet | D77: Revenues deposited in the budget | H77: 0 | J77: 0 | K77: 0 | L77: 0 | N77: =SUM('F3-1 restated'!F77:Y77) -> 0 | P77: =SUM(First:Last!E201) -> 0 | R77: =SUM(First:Last!F201) -> 0
A78: 65 | B78: 8421 | C78: Derdhje buxhet te ardhuurave pa perdorura | D78: Deposit in the budget of unused revenues | H78: =N78/Presentation_curr -> 0 | J78: =P78/Presentation_curr -> 0 | K78: 0 | L78: =R78/Presentation_curr -> 0 | N78: =SUM('F3-1 restated'!F78:Y78) -> 0 | P78: =SUM(First:Last!E202) -> 0 | R78: =SUM(First:Last!F202) -> 0
A79: 66 | B79: 8422 | C79: Transferim te ardhurave brenda sistemit | D79: Transfers of revenues within the system | H79: 0 | J79: 0 | K79: =Q79/Presentation_curr -> 0 | L79: 0 | N79: =SUM('F3-1 restated'!F79:Y79) -> 0 | P79: =SUM(First:Last!E203) -> 0 | R79: =SUM(First:Last!F203) -> 0
A80: 67 | B80: 8423 | C80: Transferime per ndrysh gjendje | D80: Transfers for changes in situation | H80: 0 | J80: 0 | K80: 0 | L80: 0 | N80: =SUM('F3-1 restated'!F80:Y80) -> 0 | P80: =SUM(First:Last!E204) -> 0 | R80: =SUM(First:Last!F204) -> 0
A81: 68 | B81: 8424 | C81: Transferim per debitore te konstatuar e te ngjashme | D81: Transfers for identified debtors and similar items | H81: 0 | J81: 0 | K81: 0 | L81: 0 | N81: =SUM('F3-1 restated'!F81:Y81) -> 0 | P81: =SUM(First:Last!E205) -> 0 | R81: =SUM(First:Last!F205) -> 0
A82: 69 | B82: Klasa 6 e 8 | C82: TOTALI OPERACIONEVE | D82: TOTAL FROM OPERATIONS | H82: 0 | J82: 0 | K82: 0 | L82: 0 | N82: =N73+N74 -> 0 | P82: =P73+P74 -> 0 | R82: =R73+R74 -> 0
A83: 70 | B83: 85 | C83: REZULTATI NGA FUNKSIONIMI | D83: RESULTS FROM FUNCTIONING | H83: 0 | J83: 0 | K83: 0 | L83: 0 | N83: =SUM('F3-1 restated'!F83:Y83) -> 0 | P83: =SUM(First:Last!E207) -> 0 | R83: =SUM(First:Last!F207) -> 0
A84: 71 | B84: X | C84: T O T A L I | D84: TOTAL | H84: 0 | J84: 0 | K84: 0 | L84: 0 | N84: =SUM(N82:N83) -> 0 | P84: =SUM(P82:P83) -> 0 | R84: =SUM(R82:R83) -> 0
P86: =P84-'F3-2'!P100 -> 0

Sheet F3-2
A1: ='General information'!A1 -> Project STAR
A2: ='General information'!A2 -> xxx
A3: =A8 -> Pasqyra e tё Ardhurave (Formati 3/2)
A7: ='General information'!A2 -> xxx
A8: =Language!$D$88 -> Pasqyra e tё Ardhurave (Formati 3/2)
A9: =Language!$D$14 -> Pёr vitin e mbyllur mё 31 dhjetor 2014
A10: =ALL -> (Shumat ne ALL'000, nëse nuk shprehet ndryshe)
A12: =Language!$D$39 -> Numёr | B12: =Language!$D$47 -> Numri I llogarisё | D12: Description of Revenues | F12: =Language!$D$38 -> Shёnime shpjeguese | H12: =N12 -> Vit ushtrimor 2014 Riparaqitur | J12: =P12 -> Vit ushtrimor 2014 | L12: =R12 -> Vit ushtrimor 2013 | N12: =P12&" "&Language!D53 -> Vit ushtrimor 2014 Riparaqitur | P12: =Language!$D$19 -> Vit ushtrimor 2014 | R12: =Language!$D$20 -> Vit ushtrimor 2013
A13: a | B13: b | C13: c | H13: =N13 -> 2 | J13: =P13 -> 1 | L13: =R13 -> 2 | N13: 2 | P13: 1 | R13: 2
A14: 1 | B14: Klasa 7 | C14: A. TE ARDHURA TE SHFRYTEZIMIT(I - VI) | D14: A. REVENUES | H14: =N14/Presentation_curr -> 0 | J14: =P14/Presentation_curr -> 0 | L14: =R14/Presentation_curr -> 0 | N14: =SUM(N15+N39+N47+N62+N76+N77) -> 0 | P14: =SUM(P15+P39+P47+P62+P76+P77) -> 0 | R14: =SUM(R15+R39+R47+R62+R76+R77) -> 0
A15: 2 | B15: 70 | C15: I. TE ARDHURA TATIMORE(a+b+c+d+e+f+g) | D15: I. TAX INCOMES | H15: 0 | I15: =O15/Presentation_curr -> 0 | J15: 0 | K15: =Q15/Presentation_curr -> 0 | L15: 0 | N15: =SUM(N16+N21+N25+N31+N36+N37+N38) -> 0 | P15: =SUM(P16+P21+P25+P31+P36+P37+P38) -> 0 | R15: =SUM(R16+R21+R25+R31+R36+R37+R38) -> 0
A16: 3 | B16: 700 | C16: a) Mbi te ardhurat,fitimin e ardh.kapitale | D16: a) on revenues, profit, and equity revenue | H16: 0 | I16: =O16/Presentation_curr -> 0 | J16: 0 | K16: 0 | L16: 0 | N16: =SUM(N17:N20) -> 0 | P16: =SUM(P17:P20) -> 0 | R16: =SUM(R17:R20) -> 0
A17: 4 | B17: 7000 | C17: - Tatim mbi te ardhurat personale | D17: personal income tax | H17: 0 | J17: 0 | K17: 0 | L17: 0 | N17: =SUM('F3-2 restated'!F17:Y17) -> 0 | P17: =SUM(First:Last!E223) -> 0 | R17: =SUM(First:Last!F223) -> 0
A18: 5 | B18: 7001 | C18: - Tatim mbi fitimin | D18: income tax | H18: 0 | J18: 0 | K18: 0 | L18: 0 | N18: =SUM('F3-2 restated'!F18:Y18) -> 0 | P18: =SUM(First:Last!E224) -> 0 | R18: =SUM(First:Last!F224) -> 0
A19: 6 | B19: 7002 | C19: - Takse e tatim mbi biznesin e vogel | D19: small business tax | H19: 0 | J19: 0 | K19: 0 | L19: 0 | N19: =SUM('F3-2 restated'!F19:Y19) -> 0 | P19: =SUM(First:Last!E225) -> 0 | R19: =SUM(First:Last!F225) -> 0
A20: 7 | B20: 7009 | C20: - Tjera tatime | D20: other tax | H20: 0 | J20: 0 | K20: 0 | L20: 0 | N20: =SUM('F3-2 restated'!F20:Y20) -> 0 | P20: =SUM(First:Last!E226) -> 0 | R20: =SUM(First:Last!F226) -> 0
A21: 8 | B21: 702 | C21: b) Tatime mbi pasurine | D21: b) Property tax | H21: 0 | J21: 0 | K21: 0 | L21: 0 | N21: =SUM(N22:N24) -> 0 | P21: =SUM(P22:P24) -> 0 | R21: =SUM(R22:R24) -> 0
A22: 9 | B22: 7020 | C22: - Mbi pasurine e pa lujteshme | D22: on immovable property | H22: 0 | J22: 0 | K22: 0 | L22: 0 | N22: =SUM('F3-2 restated'!F22:Y22) -> 0 | P22: =SUM(First:Last!E228) -> 0 | R22: =SUM(First:Last!F228) -> 0
A23: 10 | B23: 7021 | C23: - Mbi shitjen e pasurise se palujteshme | D23: sales of immovable property | H23: 0 | J23: 0 | K23: 0 | L23: 0 | N23: =SUM('F3-2 restated'!F23:Y23) -> 0 | P23: =SUM(First:Last!E229) -> 0 | R23: =SUM(First:Last!F229) -> 0
A24: 11 | B24: 7029 | C24: - Te tjera mbi pasurine | D24: other on property | H24: 0 | J24: 0 | K24: 0 | L24: 0 | N24: =SUM('F3-2 restated'!F24:Y24) -> 0 | P24: =SUM(First:Last!E230) -> 0 | R24: =SUM(First:Last!F230) -> 0
A25: 12 | B25: 703 | C25: c) Tatime mbi mallrat e sherbimet brenda vendit | D25: c) tax upon goods and services in the country | H25: 0 | J25: 0 | K25: 0 | L25: 0 | N25: =SUM(N26:N30) -> 0 | P25: =SUM(P26:P30) -> 0 | R25: =SUM(R26:R30) -> 0
A26: 13 | B26: 7030 | C26: - Tatimi mbi Vleren e Shtuar(TVSH) | D26: VAT | H26: 0 | J26: 0 | K26: 0 | L26: 0 | N26: =SUM('F3-2 restated'!F26:Y26) -> 0 | P26: =SUM(First:Last!E232) -> 0 | R26: =SUM(First:Last!F232) -> 0
A27: 14 | B27: 7031 | C27: - Akciza | D27: Special taxes | H27: 0 | J27: 0 | K27: 0 | L27: 0 | N27: =SUM('F3-2 restated'!F27:Y27) -> 0 | P27: =SUM(First:Last!E233) -> 0 | R27: =SUM(First:Last!F233) -> 0
A28: 15 | B28: 7032 | C28: - Takse mbi sherbimet specifike | D28: tax upon specific services | H28: 0 | J28: 0 | K28: 0 | L28: 0 | N28: =SUM('F3-2 restated'!F28:Y28) -> 0 | P28: =SUM(First:Last!E234) -> 0 | R28: =SUM(First:Last!F234) -> 0
A29: 16 | B29: 7033 | C29: - Takse mbi perd.mallrave e lejim veprimtarie | D29: tax upon goods usage and activity permission | H29: 0 | J29: 0 | K29: 0 | L29: 0 | N29: =SUM('F3-2 restated'!F29:Y29) -> 0 | P29: =SUM(First:Last!E235) -> 0 | R29: =SUM(First:Last!F235) -> 0
A30: 17 | B30: 7035 | C30: - Takse vendore mbi perd.mallrave e lejim veprimtarie | D30: local tax on goods usage and activity permission | H30: 0 | J30: 0 | K30: 0 | L30: 0 | N30: =SUM('F3-2 restated'!F30:Y30) -> 0 | P30: =SUM(First:Last!E236) -> 0 | R30: =SUM(First:Last!F236) -> 0
A31: 18 | B31: 704 | C31: d) Takse mbi tregtine e transaks..nderkombetare | D31: d) tax upon commercial and international transactions | H31: 0 | J31: 0 | K31: 0 | L31: 0 | N31: =SUM(N32:N35) -> 0 | P31: =SUM(P32:P35) -> 0 | R31: =SUM(R32:R35) -> 0
A32: 19 | B32: 7040 | C32: - Takse doganore per mallrat e importit | D32: duties on import goods | H32: 0 | J32: 0 | K32: 0 | L32: 0 | N32: =SUM('F3-2 restated'!F32:Y32) -> 0 | P32: =SUM(First:Last!E238) -> 0 | R32: =SUM(First:Last!F238) -> 0
A33: 20 | B33: 7041 | C33: - Takse doganore per mallrat e eksportit | D33: duties on export goods | H33: 0 | J33: 0 | K33: 0 | L33: 0 | N33: =SUM('F3-2 restated'!F33:Y33) -> 0 | P33: =SUM(First:Last!E239) -> 0 | R33: =SUM(First:Last!F239) -> 0
A34: 21 | B34: 7042 | C34: - Tarife sherbimi doganor dhe kaliposte | D34: custom tariff and post service | H34: 0 | J34: 0 | K34: 0 | L34: 0 | N34: =SUM('F3-2 restated'!F34:Y34) -> 0 | P34: =SUM(First:Last!E240) -> 0 | R34: =SUM(First:Last!F240) -> 0
A35: 22 | B35: 7049 | C35: - Te tjera taksa mbi treg.e trans.nderkomb. | D35: other tax upon international commercial transport | H35: 0 | J35: 0 | K35: 0 | L35: 0 | N35: =SUM('F3-2 restated'!F35:Y35) -> 0 | P35: =SUM(First:Last!E241) -> 0 | R35: =SUM(First:Last!F241) -> 0
A36: 23 | B36: 705 | C36: e) Taksa e rruges | D36: e) road tax | H36: 0 | J36: 0 | K36: 0 | L36: 0 | N36: =SUM(N37:N40) -> 0 | P36: =SUM(P37:P40) -> 0 | R36: =SUM(R37:R40) -> 0
A37: 24 | B37: 708 | C37: f) Te tjera tatime e taksa kombtare | D37: f) other national tax | H37: 0 | J37: 0 | K37: 0 | L37: 0 | N37: =SUM('F3-2 restated'!F37:Y37) -> 0 | P37: =SUM(First:Last!E243) -> 0 | R37: =SUM(First:Last!F243) -> 0
A38: 25 | B38: 709 | C38: g) Kamat vonesa | D38: g) penalty interest | H38: 0 | J38: 0 | K38: 0 | L38: 0 | N38: =SUM('F3-2 restated'!F38:Y38) -> 0 | P38: =SUM(First:Last!E244) -> 0 | R38: =SUM(First:Last!F244) -> 0
A39: 26 | B39: 75 | C39: II. KONTRIBUTE SHOQERORE E SHENDETSORE | D39: II. SOCIAL AND HEALTH INSURANCE | H39: 0 | J39: 0 | K39: 0 | L39: 0 | N39: =SUM(N40:N46) -> 0 | P39: =SUM(P40:P46) -> 0 | R39: =SUM(R40:R46) -> 0
A40: 27 | B40: 750 | C40: - Nga te punesuarit | D40: from employee's | H40: 0 | J40: 0 | K40: 0 | L40: 0 | N40: =SUM('F3-2 restated'!F40:Y40) -> 0 | P40: =SUM(First:Last!E246) -> 0 | R40: =SUM(First:Last!F246) -> 0
A41: 28 | B41: 751 | C41: - Nga punedhenesit | D41: from employer | H41: 0 | J41: 0 | K41: 0 | L41: 0 | N41: =SUM('F3-2 restated'!F41:Y41) -> 0 | P41: =SUM(First:Last!E247) -> 0 | R41: =SUM(First:Last!F247) -> 0
A42: 29 | B42: 752 | C42: - Nga te vetepunesuarit | D42: from self employees | H42: 0 | J42: 0 | K42: 0 | L42: 0 | N42: =SUM('F3-2 restated'!F42:Y42) -> 0 | P42: =SUM(First:Last!E248) -> 0 | R42: =SUM(First:Last!F248) -> 0
A43: 30 | B43: 753 | C43: - Nga fermeret | D43: from farmers | H43: 0 | J43: 0 | K43: 0 | L43: 0 | N43: =SUM('F3-2 restated'!F43:Y43) -> 0 | P43: =SUM(First:Last!E249) -> 0 | R43: =SUM(First:Last!F249) -> 0
A44: 31 | B44: 754 | C44: - Nga sigurimet vullnetare | D44: form volunteer insurance | H44: 0 | J44: 0 | K44: 0 | L44: 0 | N44: =SUM('F3-2 restated'!F44:Y44) -> 0 | P44: =SUM(First:Last!E250) -> 0 | R44: =SUM(First:Last!F250) -> 0
A45: 32 | B45: 755 | C45: - Kontrib.buxhetit per Sigurimet Shoqerore | D45: Budget contribution for Social Insurance | H45: 0 | J45: 0 | K45: 0 | L45: 0 | N45: =SUM('F3-2 restated'!F45:Y45) -> 0 | P45: =SUM(First:Last!E251) -> 0 | R45: =SUM(First:Last!F251) -> 0
A46: 33 | B46: 756 | C46: - Kontrib.buxhetit per Sigurimet Shendetes | D46: Budget contribution for Health Insurance | H46: =N46/Presentation_curr -> 0 | J46: =P46/Presentation_curr -> 0 | K46: 0 | L46: =R46/Presentation_curr -> 0 | N46: =SUM('F3-2 restated'!F46:Y46) -> 0 | P46: =SUM(First:Last!E252) -> 0 | R46: =SUM(First:Last!F252) -> 0
A47: 34 | B47: 71 | C47: III. TE ARDHUTRA JO TATIMORE(a+b+c) | D47: III. NON TAX REVENUES | H47: 0 | J47: 0 | K47: =Q47/Presentation_curr -> 0 | L47: 0 | N47: =SUM(N48+N53+N61) -> 0 | P47: =SUM(P48+P53+P61) -> 0 | R47: =SUM(R48+R53+R61) -> 0
A48: 35 | B48: 710 | C48: a) Nga ndermarrjet dhe pronesia | D48: a) from enterprise and ownership | H48: 0 | J48: 0 | K48: 0 | L48: 0 | N48: =SUM(N49:N51) -> 0 | P48: =SUM(P49:P51) -> 0 | R48: =SUM(R49:R51) -> 0
A49: 36 | B49: 7100 | C49: - Nga nderm.publike jo financiare | D49: from public non financial enterprise | H49: 0 | J49: 0 | K49: 0 | L49: 0 | N49: =SUM('F3-2 restated'!F49:Y49) -> 0 | P49: =SUM(First:Last!E255) -> 0 | R49: =SUM(First:Last!F255) -> 0
A50: 37 | B50: 7101 | C50: - Nga nderm.publike financiare | D50: from public financial enterprise | H50: 0 | J50: 0 | K50: 0 | L50: 0 | N50: =SUM('F3-2 restated'!F50:Y50) -> 0 | P50: =SUM(First:Last!E256) -> 0 | R50: =SUM(First:Last!F256) -> 0
A51: 38 | B51: 7109 | C51: - Te tjera nga ndermarrjet dhe pronesia | D51: others from enterprise and ownership | H51: 0 | J51: 0 | K51: 0 | L51: 0 | N51: =SUM('F3-2 restated'!F51:Y51) -> 0 | P51: =SUM(First:Last!E257) -> 0 | R51: =SUM(First:Last!F257) -> 0
H52: 0 | J52: 0 | K52: 0 | L52: 0
A53: 39 | B53: 711 | C53: b) Sherbime administ.e ardhura sekondare | D53: b) Administrative service and secondary revenues | H53: 0 | J53: 0 | K53: 0 | L53: 0 | N53: =SUM(N54:N60) -> 0 | P53: =SUM(P54:P60) -> 0 | R53: =SUM(R54:R60) -> 0
A54: 40 | B54: 7110 | C54: - Tarifa administrative dhe rregullatore | D54: administrative tariffs and regulations | H54: 0 | J54: 0 | K54: 0 | L54: 0 | N54: =SUM('F3-2 restated'!F54:Y54) -> 0 | P54: =SUM(First:Last!E259) -> 0 | R54: =SUM(First:Last!F259) -> 0
A55: 41 | B55: 7111 | C55: - Te ardhura sekondare e pagesa sherbimesh | D55: secondary revenues and payments of services | H55: 0 | J55: 0 | K55: 0 | L55: 0 | N55: =SUM('F3-2 restated'!F55:Y55) -> 0 | P55: =SUM(First:Last!E260) -> 0 | R55: =SUM(First:Last!F260) -> 0
A56: 42 | B56: 7112 | C56: - Takse per veprime gjyqsore e noteriale | D56: tax for legal actions and notary | H56: 0 | J56: 0 | K56: 0 | L56: 0 | N56: =SUM('F3-2 restated'!F56:Y56) -> 0 | P56: =SUM(First:Last!E261) -> 0 | R56: =SUM(First:Last!F261) -> 0
A57: 43 | B57: 7113 | C57: - Nga shitja e mallrave e sherbimeve | D57: from goods and services sales | H57: 0 | J57: 0 | K57: 0 | L57: 0 | N57: =SUM('F3-2 restated'!F57:Y57) -> 0 | P57: =SUM(First:Last!E262) -> 0 | R57: =SUM(First:Last!F262) -> 0
A58: 44 | B58: 7114 | C58: - Te ardhura nga biletat | D58: revenues from tickets | H58: 0 | J58: 0 | K58: 0 | L58: 0 | N58: =SUM('F3-2 restated'!F58:Y58) -> 0 | P58: =SUM(First:Last!E263) -> 0 | R58: =SUM(First:Last!F263) -> 0
A59: 45 | B59: 7115 | C59: - Gjoba dhe kamatvonesa,sekuestrime e zhdemtime | D59: fines and late-fees, sequestration and compensation | H59: 0 | J59: 0 | K59: 0 | L59: 0 | N59: =SUM('F3-2 restated'!F59:Y59) -> 0 | P59: =SUM(First:Last!E264) -> 0 | R59: =SUM(First:Last!F264) -> 0
A60: 46 | B60: 7116 | C60: - Te ardhura nga transferimi prones,legalizimi ndertimeve pa leje | D60: revenues from ownership transfer, legalization of buildings without permits | H60: 0 | J60: 0 | K60: 0 | L60: 0 | N60: =SUM('F3-2 restated'!F60:Y60) -> 0 | P60: =SUM(First:Last!E265) -> 0 | R60: =SUM(First:Last!F265) -> 0
A61: 47 | B61: 719 | C61: c) Te tjera te ardhura jo tatimore | D61: c) other non tax revenues | H61: 0 | J61: 0 | K61: 0 | L61: 0 | N61: =SUM('F3-2 restated'!F61:Y61) -> 0 | P61: =SUM(First:Last!E266) -> 0 | R61: =SUM(First:Last!F266) -> 0
A62: 48 | B62: 72 | C62: IV.GRANTE KORENTE(a+b) | D62: IV. ACTUAL GRANTS (a+b) | H62: 0 | J62: 0 | K62: 0 | L62: 0 | N62: =SUM(N63+N73) -> 0 | P62: =SUM(P63+P73) -> 0 | R62: =SUM(R63+R73) -> 0
A63: 49 | B63: 720 | C63: a) Grant korent I brendeshem | D63: a) internal actual grant | H63: 0 | J63: 0 | K63: 0 | L63: 0 | N63: =SUM(N64:N72) -> 0 | P63: =SUM(P64:P72) -> 0 | R63: =SUM(R64:R72) -> 0
A64: 50 | B64: 7200 | C64: - Nga I njejti nivel Qeverisje | D64: from same Government level | H64: 0 | J64: 0 | K64: 0 | L64: 0 | N64: =SUM('F3-2 restated'!F64:Y64) -> 0 | P64: =SUM(First:Last!E269) -> 0 | R64: =SUM(First:Last!F269) -> 0 | T64: =#REF!/#REF! -> 
A65: 51 | B65: 7201 | C65: - Nga nivele tjera Qeverisje | D65: from other Government levels | H65: 0 | J65: 0 | K65: 0 | L65: 0 | N65: =SUM('F3-2 restated'!F65:Y65) -> 0 | P65: =SUM(First:Last!E270) -> 0 | R65: =SUM(First:Last!F270) -> 0 | T65: =#REF!/#REF! -> 
A66: 52 | B66: 7202 | C66: - Nga buxheti per pagesa.posacme te ISSH | D66: from budget for special payments to Social Institute | H66: 0 | J66: 0 | K66: 0 | L66: 0 | N66: =SUM('F3-2 restated'!F66:Y66) -> 0 | P66: =SUM(First:Last!E271) -> 0 | R66: =SUM(First:Last!F271) -> 0 | T66: =#REF!/#REF! -> 
A67: 53 | B67: 7203 | C67: - Nga buxheti per mbul.deficiti te ISSH e ISKSH | D67: from budget to cover the deficit of Social Institute and Healthcare Institute | H67: 0 | J67: 0 | K67: 0 | L67: 0 | N67: =SUM('F3-2 restated'!F67:Y67) -> 0 | P67: =SUM(First:Last!E272) -> 0 | R67: =SUM(First:Last!F272) -> 0 | T67: =#REF!/#REF! -> 
A68: 54 | B68: 7204 | C68: - Pjesmarrje instit.ne tatime nacionale | D68: participation of institution in national taxes | H68: 0 | J68: 0 | K68: 0 | L68: 0 | N68: =SUM('F3-2 restated'!F68:Y68) -> 0 | P68: =SUM(First:Last!E273) -> 0 | R68: =SUM(First:Last!F273) -> 0 | T68: =#REF!/#REF! -> 
A69: 55 | B69: 7205 | C69: - Financ.shtese nga te ardh.kriju.brenda sistemit | D69: additional finances created within the system | H69: 0 | J69: 0 | K69: 0 | L69: 0 | N69: =SUM('F3-2 restated'!F69:Y69) -> 0 | P69: =SUM(First:Last!E274) -> 0 | R69: =SUM(First:Last!F274) -> 0 | T69: =#REF!/#REF! -> 
A70: 56 | B70: 7206 | C70: - Financim I pritshem nga buxheti | D70: expected financing from budget | H70: 0 | J70: 0 | K70: 0 | L70: 0 | N70: =SUM('F3-2 restated'!F70:Y70) -> 0 | P70: =SUM(First:Last!E275) -> 0 | R70: =SUM(First:Last!F275) -> 0 | T70: =#REF!/#REF! -> 
A71: 57 | B71: 7207 | C71: - Sponsorizime nga te trete | D71: third party sponsorship | H71: 0 | J71: 0 | K71: 0 | L71: 0 | N71: =SUM('F3-2 restated'!F71:Y71) -> 0 | P71: =SUM(First:Last!E276) -> 0 | R71: =SUM(First:Last!F276) -> 0
A72: 58 | B72: 7209 | C72: - Te tjera grante te brendshme | D72: other internal grants | H72: 0 | J72: 0 | K72: 0 | L72: 0 | N72: =SUM('F3-2 restated'!F72:Y72) -> 0 | P72: =SUM(First:Last!E277) -> 0 | R72: =SUM(First:Last!F277) -> 0
A73: 59 | B73: 721 | C73: b) Grant korent I jashtem | D73: b) external actual grants | H73: 0 | J73: 0 | K73: 0 | L73: 0 | N73: =SUM(N74:N75) -> 0 | P73: =SUM(P74:P75) -> 0 | R73: =SUM(R74:R75) -> 0
A74: 60 | B74: 7210 | C74: - Nga Qeveri te Huaja | D74: from foreigner Governments | H74: 0 | J74: 0 | K74: 0 | L74: 0 | N74: =SUM('F3-2 restated'!F74:Y74) -> 0 | P74: =SUM(First:Last!E280) -> 0 | R74: =SUM(First:Last!F280) -> 0
A75: 61 | B75: 7211 | C75: - Nga Organizata Nderkombetare | D75: from international organizations | H75: 0 | J75: 0 | K75: 0 | L75: 0 | N75: =SUM('F3-2 restated'!F75:Y75) -> 0 | P75: =SUM(First:Last!E281) -> 0 | R75: =SUM(First:Last!F281) -> 0
A76: 62 | B76: 73 | C76: V. NDRYSHIM GJENDJEVE PRODUKTEVE | D76: V. CHANGES IN PRODCUTS BALANCE | H76: 0 | J76: 0 | K76: 0 | L76: 0 | N76: =SUM('F3-2 restated'!F76:Y76) -> 0 | P76: =SUM(First:Last!E282) -> 0 | R76: =SUM(First:Last!F282) -> 0
A77: 63 | B77: 78 | C77: VI.PUNIME PER INVESTIME E RIMARRJE | D77: VI. WORK INVESTMENTS AND RETAKINGS | H77: 0 | J77: 0 | K77: 0 | L77: 0 | N77: =SUM(N78:N83) -> 0 | P77: =SUM(P78:P83) -> 0 | R77: =SUM(R78:R83) -> 0
A78: 64 | B78: 781 | C78: Punime,investime ne ekonomi | D78: works, investments in economy | H78: =N78/Presentation_curr -> 0 | J78: =P78/Presentation_curr -> 0 | K78: 0 | L78: =R78/Presentation_curr -> 0 | N78: =SUM('F3-2 restated'!F78:Y78) -> 0 | P78: =SUM(First:Last!E284) -> 0 | R78: =SUM(First:Last!F284) -> 0
A79: 65 | B79: 782 | C79: Rimarrje parash.per aktive qarkulluese | D79: Forecasted retakings for liquid assets | H79: 0 | J79: 0 | K79: =Q79/Presentation_curr -> 0 | L79: 0 | N79: =SUM('F3-2 restated'!F79:Y79) -> 0 | P79: =SUM(First:Last!E285) -> 0 | R79: =SUM(First:Last!F285) -> 0
A80: 66 | B80: 783 | C80: Rimarrje parash.per aktivet e qendrushme | D80: Forecasted retakings for fixed assets | H80: 0 | J80: 0 | K80: 0 | L80: 0 | N80: =SUM('F3-2 restated'!F80:Y80) -> 0 | P80: =SUM(First:Last!E286) -> 0 | R80: =SUM(First:Last!F286) -> 0
A81: 67 | B81: 784 | C81: Suprim shumave parash.per shp.v.ardhshme | D81: prepayment of expenses in the years to come | H81: 0 | J81: 0 | K81: 0 | L81: 0 | N81: =SUM('F3-2 restated'!F81:Y81) -> 0 | P81: =SUM(First:Last!E287) -> 0 | R81: =SUM(First:Last!F287) -> 0
A82: 68 | B82: 785 | C82: Perdorim shumave parash.per shp.v.ardhshme | D82: Use of funds of the year to come | H82: 0 | J82: 0 | K82: 0 | L82: 0 | N82: =SUM('F3-2 restated'!F82:Y82) -> 0 | P82: =SUM(First:Last!E288) -> 0 | R82: =SUM(First:Last!F288) -> 0
A83: 69 | B83: 787 | C83: Terheqje nga seks.investimeve | D83: withdraw from investments | H83: 0 | J83: 0 | K83: 0 | L83: 0 | N83: =SUM('F3-2 restated'!F83:Y83) -> 0 | P83: =SUM(First:Last!E289) -> 0 | R83: =SUM(First:Last!F289) -> 0
A84: 70 | B84: 76 | C84: B. TE ARDHURA FINANCIARE | D84: B. FINANCIAL INCOMES | H84: 0 | J84: 0 | K84: 0 | L84: 0 | N84: =SUM(N85:N88) -> 0 | P84: =SUM(P85:P88) -> 0 | R84: =SUM(R85:R88) -> 0
A85: 71 | B85: 760 | C85: Nga interesat e huadhenies brendshme | D85: from internal borrowing interests | H85: 0 | J85: 0 | K85: 0 | L85: 0 | N85: =SUM('F3-2 restated'!F85:Y85) -> 0 | P85: =SUM(First:Last!E291) -> 0 | R85: =SUM(First:Last!F291) -> 0
A86: 72 | B86: 761 | C86: Nga interesat hudhenies se huaj | D86: from external borrowing interests | H86: 0 | J86: 0 | K86: 0 | L86: 0 | N86: =SUM('F3-2 restated'!F86:Y86) -> 0 | P86: =SUM(First:Last!E292) -> 0 | R86: =SUM(First:Last!F292) -> 0
A87: 73 | B87: 765 | C87: Te ardhura nga interesat e depozitave | D87: incomes from deposits interests | H87: 0 | J87: 0 | K87: 0 | L87: 0 | N87: =SUM('F3-2 restated'!F87:Y87) -> 0 | P87: =SUM(First:Last!E293) -> 0 | R87: =SUM(First:Last!F293) -> 0
A88: 74 | B88: 766 | C88: Te ardhura nga kembimet valutore | D88: revenues from exchange rates | H88: 0 | J88: 0 | K88: 0 | L88: 0 | N88: =SUM('F3-2 restated'!F88:Y88) -> 0 | P88: =SUM(First:Last!E294) -> 0 | R88: =SUM(First:Last!F294) -> 0
A89: 75 | B89: 77 | C89: C. TE ARDHURA TE JASHTZAKONSHME | D89: C. EXTRAORDINARY REVENUES | H89: 0 | J89: 0 | K89: 0 | L89: 0 | N89: =SUM(N90:N93) -> 0 | P89: =SUM(P90:P93) -> 0 | R89: =SUM(R90:R93) -> 0
A90: 76 | B90: 773 | C90: Nga veprimtari te mbyllura e ndryshime tjera trategjise | D90: from closed activities and changes in strategy | H90: 0 | J90: 0 | K90: 0 | L90: 0 | N90: =SUM('F3-2 restated'!F90:Y90) -> 0 | P90: =SUM(First:Last!E295) -> 0 | R90: =SUM(First:Last!F295) -> 0
A91: 77 | B91: 777 | C91: Nga gabime te lejuara ne ushtrimet paraardhese | D91: from mistakes allowed in previous exercise | H91: 0 | J91: 0 | K91: 0 | L91: 0 | N91: =SUM('F3-2 restated'!F91:Y91) -> 0 | P91: =SUM(First:Last!E296) -> 0 | R91: =SUM(First:Last!F296) -> 0
A92: 78 | B92: 778 | C92: Korigjime nga vitet e kaluara | D92: correction from previous year | H92: 0 | J92: 0 | K92: 0 | L92: 0 | N92: =SUM('F3-2 restated'!F92:Y92) -> 0 | P92: =SUM(First:Last!E297) -> 0 | R92: =SUM(First:Last!F297) -> 0
A93: 79 | B93: 779 | C93: Te ardhura te tjera | D93: Other revenues | H93: 0 | J93: 0 | K93: 0 | L93: 0 | N93: =SUM('F3-2 restated'!F93:Y93) -> 0 | P93: =SUM(First:Last!E298) -> 0 | R93: =SUM(First:Last!F298) -> 0
A94: 80 | B94: Klasa 7 | C94: TOTALI I TE ARDHURAVE | D94: TOTAL INCOMES | H94: 0 | J94: 0 | K94: 0 | L94: 0 | N94: =SUM(N14+N84+N89) -> 0 | P94: =SUM(P14+P84+P89) -> 0 | R94: =SUM(R14+R84+R89) -> 0
A95: 81 | B95: 82.84 | C95: D. OPERAC.KORIGJ.REZULTATIT | D95: D. RESULT CORRECTIONS ACTIVITES | H95: 0 | J95: 0 | K95: 0 | L95: 0 | N95: =SUM(N96:N97) -> 0 | P95: =SUM(P96:P97) -> 0 | R95: =SUM(R96:R97) -> 0
A96: 82 | B96: 829 | C96: Urdh.shp.anulluar ose parashkruar | D96: canceled or under written expense order | H96: 0 | J96: 0 | K96: 0 | L96: 0 | N96: =SUM('F3-2 restated'!F96:Y96) -> 0 | P96: =SUM(First:Last!E301) -> 0 | R96: =SUM(First:Last!F301) -> 0
A97: 83 | B97: 841 | C97: Transferimi i ndryshimt te gjendjeje | D97: status change transfer | F97: T1 | H97: 0 | J97: 0 | K97: 0 | L97: 0 | N97: =SUM('F3-2 restated'!F97:Y97) -> 0 | P97: =SUM(First:Last!E302) -> 0 | R97: =SUM(First:Last!F302) -> 0
A98: 84 | B98: Klasa 7 e 8 | C98: TOTALI OPERACIONEVE | D98: TOTAL FROM OPERATIONS | H98: 0 | J98: 0 | K98: 0 | L98: 0 | N98: =SUM(N94:N95) -> 0 | P98: =SUM(P94:P95) -> 0 | R98: =SUM(R94:R95) -> 0
A99: 85 | B99: 85 | C99: REZULTATI I VEPRIMTARISE | D99: RESULTS FROM FUNCTIONING | H99: 0 | J99: 0 | K99: 0 | L99: 0 | N99: =SUM('F3-2 restated'!F99:Y99) -> 0 | P99: =SUM(First:Last!E304) -> 0 | R99: =SUM(First:Last!F304) -> 0
A100: 86 | B100: X | C100: T O T A L I | D100: TOTAL | H100: 0 | J100: 0 | K100: 0 | L100: 0 | N100: =SUM(N98:N99) -> 0 | P100: =SUM(P98:P99) -> 0 | R100: =SUM(R98:R99) -> 0

Sheet F4
A1: ='General information'!A1 -> Project STAR
A2: ='General information'!A2 -> xxx
A3: =A8 -> Burimet dhe shpenzimet lidhur me investimet (Formati 4)
A7: ='General information'!A2 -> xxx
A8: =Language!$D$89 -> Burimet dhe shpenzimet lidhur me investimet (Formati 4)
A9: =Language!$D$14 -> Pёr vitin e mbyllur mё 31 dhjetor 2014
A10: =ALL -> (Shumat ne ALL'000, nëse nuk shprehet ndryshe)
A11: =Language!$D$39 -> Numёr | B11: =Language!$D$47 -> Numri I llogarisё | C11: EMERTIMI | D11: Description
F12: =M12 -> Balanca hapёse 1 janar 2014 | H12: =O12 -> Transaksione gjatё vitit | K12: =R12 -> Balancat mbyllёse 31 dhjetor 2014 | M12: =Language!$D$17 -> Balanca hapёse 1 janar 2014 | O12: =Language!$D$41 -> Transaksione gjatё vitit | R12: =Language!$D$18 -> Balancat mbyllёse 31 dhjetor 2014
H13: =O13 -> Debia | I13: =P13 -> Kredia | O13: =Language!$D$44 -> Debia | P13: =Language!$D$45 -> Kredia
A14: a | C14: b | F14: =M14 -> c | H14: =O14 -> d | I14: =P14 -> e | K14: =R14 -> f | M14: c | O14: d | P14: e | R14: f
A15: 1 | B15: I | C15: BURIMET PER INVESTIME | D15: SOURCE OF FUNDS | F15: =M15/Presentation_curr -> 0 | G15: =N15/Presentation_curr -> 0 | H15: =O15/Presentation_curr -> 0 | I15: =P15/Presentation_curr -> 0 | J15: =Q15/Presentation_curr -> 0 | K15: =R15/Presentation_curr -> 0 | M15: =SUM(M16+M21+M25+M32+M33+M40) -> 0 | O15: =SUM(O16+O21+O25+O32+O33+O40) -> 0 | P15: =SUM(P16+P21+P25+P32+P33+P40) -> 0 | R15: =SUM(R16+R21+R25+R32+R33+R40) -> 0
A16: 2 | B16: 105 | C16: Grante te brendshme kapitale | D16: Internal capital grants | F16: 0 | G16: 0 | H16: 0 | I16: 0 | J16: 0 | K16: 0 | M16: =SUM(M17:M20) -> 0 | O16: =SUM(O17:O20) -> 0 | P16: =SUM(P17:P20) -> 0 | R16: =SUM(R17:R20) -> 0
A17: 3 | B17: 1050 | C17: Nga I njejti nivel qeverisjeje | D17: from the same government level | F17: 0 | G17: 0 | H17: 0 | I17: 0 | J17: 0 | K17: 0 | M17: =SUM(First:Last!E318) -> 0 | O17: =SUM(First:Last!F318) -> 0 | P17: =SUM(First:Last!G318) -> 0 | R17: =M17+P17-O17 -> 0
A18: 4 | B18: 1051 | C18: Nga nivele te tjera te Qeverisjes | D18: from other Government levels | F18: 0 | G18: 0 | H18: 0 | I18: 0 | J18: 0 | K18: 0 | M18: =SUM(First:Last!E319) -> 0 | O18: =SUM(First:Last!F319) -> 0 | P18: =SUM(First:Last!G319) -> 0 | R18: =M18+P18-O18 -> 0
A19: 5 | B19: 1052 | C19: Kontribute te te treteve per investime | D19: third parties contribution for investments | F19: 0 | G19: 0 | H19: 0 | I19: 0 | J19: 0 | K19: 0 | M19: =SUM(First:Last!E320) -> 0 | O19: =SUM(First:Last!F320) -> 0 | P19: =SUM(First:Last!G320) -> 0 | R19: 0
A20: 6 | B20: 1059 | C20: Grante te brendeshme ne natyre | D20: internal grants in nature | F20: 0 | G20: 0 | H20: 0 | I20: 0 | J20: 0 | K20: 0 | M20: =SUM(First:Last!E321) -> 0 | O20: =SUM(First:Last!F321) -> 0 | P20: =SUM(First:Last!G321) -> 0 | R20: 0
A21: 7 | B21: 106 | C21: Grante te huaja Kapitale | D21: Foreigner Capital grants | F21: 0 | G21: 0 | H21: 0 | I21: 0 | J21: 0 | K21: 0 | M21: =SUM(M22:M24) -> 0 | O21: =SUM(First:Last!F322) -> 0 | P21: =SUM(First:Last!G322) -> 0 | R21: =SUM(R22:R24) -> 0
A22: 8 | B22: 1060 | C22: Nga qeveri te huaja | D22: From foreigner governments | F22: 0 | G22: 0 | H22: 0 | I22: 0 | J22: 0 | K22: 0 | M22: =SUM(First:Last!E323) -> 0 | O22: =SUM(First:Last!F323) -> 0 | P22: =SUM(First:Last!G323) -> 0 | R22: 0
A23: 9 | B23: 1061 | C23: Nga institucione nderkombetare | D23: from international institutions | F23: 0 | G23: 0 | H23: 0 | I23: 0 | J23: 0 | K23: 0 | M23: =SUM(First:Last!E324) -> 0 | O23: =SUM(First:Last!F324) -> 0 | P23: =SUM(First:Last!G324) -> 0 | R23: 0
A24: 10 | B24: 1069 | C24: Grante te huaja ne natyre | D24: foreigner grants in nature | F24: 0 | G24: 0 | H24: 0 | I24: 0 | J24: 0 | K24: 0 | M24: =SUM(First:Last!E325) -> 0 | O24: =SUM(First:Last!F325) -> 0 | P24: =SUM(First:Last!G325) -> 0 | R24: 0
A25: 11 | B25: 14 | C25: Grante kapitale per investime per te trete | D25: Capital grants for investments to third parties | F25: 0 | G25: 0 | H25: 0 | I25: 0 | J25: 0 | K25: 0 | M25: =SUM(M26:M27) -> 0 | O25: =SUM(O26:O27) -> 0 | P25: =SUM(P26:P27) -> 0 | R25: =SUM(R26:R27) -> 0
A26: 12 | B26: 145 | C26: Grante brendsh. kapitale per pjesm. ne invest. ne te trete | D26: Internal grants, participation capital in investments for third parties | F26: 0 | H26: 0 | I26: 0 | J26: 0 | K26: 0 | M26: =SUM(First:Last!E327) -> 0 | O26: =SUM(First:Last!F327) -> 0 | P26: =SUM(First:Last!G327) -> 0 | R26: 0
A27: 13 | B27: 146 | C27: Grante te huaja kapitale per pjesm. ne invest. ne te trete | D27: Foreigner grants, participation capital in investments for third parties | F27: 0 | H27: 0 | I27: 0 | J27: 0 | K27: 0 | M27: =SUM(First:Last!E328) -> 0 | O27: =SUM(First:Last!F328) -> 0 | P27: =SUM(First:Last!G328) -> 0 | R27: 0
A28: 14 | B28: 11 | C28: Fonde te tjera te veta | D28: Other own funds | F28: 0 | H28: 0 | I28: 0 | J28: 0 | K28: 0 | M28: =SUM(M29:M31) -> 0 | O28: =SUM(O29:O31) -> 0 | P28: =SUM(P29:P31) -> 0 | R28: =SUM(R29:R31) -> 0
A29: 15 | B29: 111 | C29: Fonde rezerve | D29: reserve funds | F29: 0 | H29: 0 | I29: 0 | J29: 0 | K29: 0 | M29: =SUM(First:Last!E330) -> 0 | O29: =SUM(First:Last!F330) -> 0 | P29: =SUM(First:Last!G330) -> 0 | R29: 0
A30: 16 | B30: 115 | C30: Caktim fondi per investime nga rezultati I vitit | D30: Fund allocation for investments from result of the year | F30: 0 | H30: 0 | I30: 0 | J30: 0 | K30: 0 | M30: =SUM(First:Last!E331) -> 0 | O30: =SUM(First:Last!F331) -> 0 | P30: =SUM(First:Last!G331) -> 0 | R30: 0
A31: 17 | B31: 116 | C31: Te ardhura nga Shitja e aktiveve te qendrueshme | D31: Revenues from tangible assets sales | F31: 0 | H31: 0 | I31: 0 | J31: 0 | K31: 0 | M31: =SUM(First:Last!E332) -> 0 | O31: =SUM(First:Last!F332) -> 0 | P31: =SUM(First:Last!G332) -> 0 | R31: 0
A32: 18 | B32: 12 | C32: Rezultati I Mbartur | D32: Carried result | F32: 0 | H32: 0 | I32: 0 | J32: 0 | K32: 0 | M32: =SUM(First:Last!E333) -> 0 | O32: =SUM(First:Last!F333) -> 0 | P32: =SUM(First:Last!G333) -> 0 | R32: =M32+P32-O32 -> 0
A33: 19 | B33: 16 | C33: Huamarrje brendshme e tjera ngjashme | D33: Internal borrowing and similar | F33: 0 | H33: 0 | I33: 0 | J33: 0 | K33: 0 | M33: =SUM(M34:M36) -> 0 | O33: =SUM(O37:O39) -> 0 | P33: =SUM(P34:P36) -> 0 | R33: =SUM(R34:R39) -> 0
A34: 20 | B34: 160 | C34: Bono thesari dhe kredi direkte(te hyra) | D34: Bonds and direct credit (entry) | F34: 0 | H34: 0 | I34: 0 | J34: 0 | K34: 0 | M34: =SUM(First:Last!E335) -> 0 | O34: =SUM(First:Last!F335) -> 0 | P34: =SUM(First:Last!G335) -> 0 | R34: =M34+P34-O34 -> 0
A35: 21 | B35: 161 | C35: Te tjera huamarrje te brendshme (Te hyra) | D35: Other internal borrowing (entry) | F35: 0 | H35: 0 | I35: 0 | J35: 0 | K35: 0 | M35: =SUM(First:Last!E336) -> 0 | O35: =SUM(First:Last!F336) -> 0 | P35: =SUM(First:Last!G336) -> 0 | R35: 0
A36: 22 | B36: 162 | C36: Huamarrje ne Letra me vlere(te hyra) | D36: Borrowing through securities (entry) | F36: 0 | H36: 0 | I36: 0 | J36: 0 | K36: 0 | M36: =SUM(First:Last!E337) -> 0 | O36: =SUM(First:Last!F337) -> 0 | P36: =SUM(First:Last!G337) -> 0 | R36: 0
A37: 23 | B37: 165 | C37: Bono thesari dhe kredi direkte(te dala) | D37: Bonds and direct credit (outing) | F37: 0 | H37: 0 | I37: 0 | J37: 0 | K37: 0 | M37: =SUM(First:Last!E338) -> 0 | O37: =SUM(First:Last!F338) -> 0 | P37: =SUM(First:Last!G338) -> 0 | R37: 0
A38: 24 | B38: 166 | C38: Te tjera huamarrje te brendshme (te dala) | D38: Other internal borrowing (outing) | F38: 0 | H38: 0 | I38: 0 | J38: 0 | K38: 0 | M38: =SUM(First:Last!E339) -> 0 | O38: =SUM(First:Last!F339) -> 0 | P38: =SUM(First:Last!G339) -> 0 | R38: 0
A39: 25 | B39: 167 | C39: Huamarrje ne Letra me vlere(te dala) | D39: Borrowing through securities (outing) | F39: 0 | H39: 0 | I39: 0 | J39: 0 | K39: 0 | M39: =SUM(First:Last!E340) -> 0 | O39: =SUM(First:Last!F340) -> 0 | P39: =SUM(First:Last!G340) -> 0 | R39: 0
A40: 26 | B40: 17 | C40: Huamarrje nga Qeveri te huaja | D40: Borrowing from foreigner Governments | F40: 0 | H40: 0 | I40: 0 | J40: 0 | K40: 0 | M40: =SUM(M41:M43) -> 0 | O40: =SUM(O44:O46) -> 0 | P40: =SUM(P41:P43) -> 0 | R40: =SUM(R41:R46) -> 0
A41: 27 | B41: 170 | C41: Huamarrje nga qeveri te huaja (te hyra) | D41: Borrowing from foreigner governments (entry) | F41: 0 | H41: 0 | I41: 0 | J41: 0 | K41: 0 | M41: =SUM(First:Last!E342) -> 0 | O41: =SUM(First:Last!F342) -> 0 | P41: =SUM(First:Last!G342) -> 0 | R41: =M41+P41-O41 -> 0
A42: 28 | B42: 171 | C42: Huamarrje nga institucione nderkombetare(te hyra) | D42: Borrowing from international institutions (entry) | F42: 0 | H42: 0 | I42: 0 | J42: 0 | K42: 0 | M42: =SUM(First:Last!E343) -> 0 | O42: =SUM(First:Last!F343) -> 0 | P42: =SUM(First:Last!G343) -> 0 | R42: 0
A43: 29 | B43: 172 | C43: Huamarrje te tjera (Te hyra) | D43: Other borrowings (entry) | F43: 0 | H43: 0 | I43: 0 | J43: 0 | K43: 0 | M43: =SUM(First:Last!E344) -> 0 | O43: =SUM(First:Last!F344) -> 0 | P43: =SUM(First:Last!G344) -> 0 | R43: 0
A44: 30 | B44: 175 | C44: Huamarrje nga Qeveri te huaja(te dala) | D44: Borrowing from foreigner Governments (outing) | F44: 0 | H44: 0 | I44: 0 | J44: 0 | K44: 0 | M44: =SUM(First:Last!E345) -> 0 | O44: =SUM(First:Last!F345) -> 0 | P44: =SUM(First:Last!G345) -> 0 | R44: 0
A45: 31 | B45: 176 | C45: Huamarrje nga institucione nderkombetare(te dala) | D45: Borrowing from international institutions (outing) | F45: 0 | H45: 0 | I45: 0 | J45: 0 | K45: 0 | M45: =SUM(First:Last!E346) -> 0 | O45: =SUM(First:Last!F346) -> 0 | P45: =SUM(First:Last!G346) -> 0 | R45: 0
A46: 32 | B46: 177 | C46: Huamarrje te tjera (Te dala) | D46: Other borrowings (outing) | F46: 0 | H46: 0 | I46: 0 | J46: 0 | K46: 0 | M46: =SUM(First:Last!E347) -> 0 | O46: =SUM(First:Last!F347) -> 0 | P46: =SUM(First:Last!G347) -> 0 | R46: 0
A47: 33 | B47: II | C47: SHPENZIMET PER INVESTIME | D47: EXPENSES FOR INVESTMENTS | F47: =M47/Presentation_curr -> 0 | H47: =O47/Presentation_curr -> 0 | I47: =P47/Presentation_curr -> 0 | J47: =Q47/Presentation_curr -> 0 | K47: =R47/Presentation_curr -> 0 | M47: =SUM(M48+M49+M60+M59+M65) -> 0 | O47: =SUM(O48+O49+O60+O59+O65) -> 0 | P47: =SUM(P48+P49+P60+P59+P65) -> 0 | R47: 0
A48: 34 | B48: 230 | C48: Shpenzime per rritjen e AQ te patrupezuara | D48: Expenses for increase of Intangible Assets | F48: 0 | H48: 0 | I48: 0 | J48: 0 | K48: 0 | M48: =SUM(First:Last!E349) -> 0 | O48: =SUM(First:Last!F349) -> 0 | P48: =SUM(First:Last!G349) -> 0 | R48: =M48+O48-P48 -> 0
A49: 35 | B49: 231 | C49: Shpenzime per rritjen e AQ te trupezuara | D49: Expenses for increase of Tangible Assets | F49: 0 | H49: 0 | I49: 0 | J49: 0 | K49: 0 | M49: =SUM(M50:M58) -> 0 | O49: =SUM(O50:O58) -> 0 | P49: =SUM(P50:P58) -> 0 | R49: =M49+O49-P49 -> 0
A50: 36 | B50: 2310 | C50: Toka,troje e terene | D50: Land | F50: 0 | H50: 0 | I50: 0 | J50: 0 | K50: 0 | M50: =SUM(First:Last!E351) -> 0 | O50: =SUM(First:Last!F351) -> 0 | P50: =SUM(First:Last!G351) -> 0 | R50: =M50+O50-P50 -> 0
A51: 37 | B51: 2311 | C51: Pyje,kullota,plantacione | D51: Forests, Pasture, Plantation | F51: 0 | H51: 0 | I51: 0 | J51: 0 | K51: 0 | M51: =SUM(First:Last!E352) -> 0 | O51: =SUM(First:Last!F352) -> 0 | P51: =SUM(First:Last!G352) -> 0 | R51: =M51+O51-P51 -> 0
A52: 38 | B52: 2312 | C52: Ndertime e konstruksione | D52: Building and Constructions | F52: 0 | H52: 0 | I52: 0 | J52: 0 | K52: 0 | M52: =SUM(First:Last!E353) -> 0 | O52: =SUM(First:Last!F353) -> 0 | P52: =SUM(First:Last!G353) -> 0 | R52: 0
A53: 39 | B53: 2313 | C53: Rruge, rrjete dhe vepra ujore | D53: Roads, networks, water facilities | F53: 0 | H53: 0 | I53: 0 | J53: 0 | K53: 0 | M53: =SUM(First:Last!E354) -> 0 | O53: =SUM(First:Last!F354) -> 0 | P53: =SUM(First:Last!G354) -> 0 | R53: 0
A54: 40 | B54: 2314 | C54: Instalime teknike,paisje,instrumenta dhe vegla pune | D54: Technical installment, machinery, equipment, working tools | F54: 0 | H54: 0 | I54: 0 | J54: 0 | K54: 0 | M54: =SUM(First:Last!E355) -> 0 | O54: =SUM(First:Last!F355) -> 0 | P54: =SUM(First:Last!G355) -> 0 | R54: 0
A55: 41 | B55: 2315 | C55: Mjete te transportit | D55: Transport vehicles | F55: 0 | H55: 0 | I55: 0 | J55: 0 | K55: 0 | M55: =SUM(First:Last!E356) -> 0 | O55: =SUM(First:Last!F356) -> 0 | P55: =SUM(First:Last!G356) -> 0 | R55: 0
A56: 42 | B56: 2316 | C56: Rezerva shteterore | D56: Government reserve | F56: 0 | H56: 0 | I56: 0 | J56: 0 | K56: 0 | M56: =SUM(First:Last!E357) -> 0 | O56: =SUM(First:Last!F357) -> 0 | P56: =SUM(First:Last!G357) -> 0 | R56: 0
A57: 43 | B57: 2317 | C57: Kafshe pune e prodhimi | D57: Working and production animals | F57: 0 | H57: 0 | I57: 0 | J57: 0 | K57: 0 | M57: =SUM(First:Last!E358) -> 0 | O57: =SUM(First:Last!F358) -> 0 | P57: =SUM(First:Last!G358) -> 0 | R57: 0
A58: 44 | B58: 2318 | C58: Inventar ekonomik | D58: Economic Inventory | F58: 0 | H58: 0 | I58: 0 | J58: 0 | K58: 0 | M58: =SUM(First:Last!E359) -> 0 | O58: =SUM(First:Last!F359) -> 0 | P58: =SUM(First:Last!G359) -> 0 | R58: 0
A59: 45 | B59: 232 | C59: Transferimet kapitale | D59: Capital transfers | F59: 0 | H59: 0 | I59: 0 | J59: 0 | K59: 0 | M59: =SUM(First:Last!E360) -> 0 | O59: =SUM(First:Last!F360) -> 0 | P59: =SUM(First:Last!G360) -> 0 | R59: =M59+O59-P59 -> 0
A60: 46 | B60: 25 | C60: Huadhenie dhe nenhuadhenie | D60: Lending | F60: 0 | H60: 0 | I60: 0 | J60: 0 | K60: 0 | M60: =SUM(M61:M64) -> 0 | O60: =SUM(O61:O64) -> 0 | P60: =SUM(P61:P64) -> 0 | R60: =SUM(R61:R64) -> 0
A61: 47 | B61: 255 | C61: Te dala per huadhenie dhe nenhuadhenie te brendshme | D61: Outing for internal lending | F61: 0 | H61: 0 | I61: 0 | J61: 0 | K61: 0 | M61: =SUM(First:Last!E362) -> 0 | O61: =SUM(First:Last!F362) -> 0 | P61: =SUM(First:Last!G362) -> 0 | R61: =M61+O61-P61 -> 0
A62: 48 | B62: 256 | C62: Te dala per transaksionet e huadhenies se huaj | D62: Outing for transactions of foreigner lending | F62: 0 | H62: 0 | I62: 0 | J62: 0 | K62: 0 | M62: =SUM(First:Last!E363) -> 0 | O62: =SUM(First:Last!F363) -> 0 | P62: =SUM(First:Last!G363) -> 0 | R62: =M62+O62-P62 -> 0
A63: 49 | B63: 250 | C63: Te hyra nga principali I huadhenieve te brendshme | D63: Entry from internal lending principal | F63: 0 | H63: 0 | I63: 0 | J63: 0 | K63: 0 | M63: =SUM(First:Last!E364) -> 0 | O63: =SUM(First:Last!F364) -> 0 | P63: =SUM(First:Last!G364) -> 0 | R63: =M63+O63-P63 -> 0
A64: 50 | B64: 251 | C64: Te hyra nga principali I transaks. te huadhenies se huaj | D64: Entry from foreigner lendings principal transaction | F64: 0 | H64: 0 | I64: 0 | J64: 0 | K64: 0 | M64: =SUM(First:Last!E365) -> 0 | O64: =SUM(First:Last!F365) -> 0 | P64: =SUM(First:Last!G365) -> 0 | R64: =M64+O64-P64 -> 0
A65: 51 | B65: 26 | C65: Pjesmarrje ne kapitalin e vet | D65: Participation with own equity | F65: 0 | H65: 0 | I65: 0 | J65: 0 | K65: 0 | M65: =SUM(M66:M69) -> 0 | O65: =SUM(O66:O69) -> 0 | P65: =SUM(P66:P69) -> 0 | R65: =SUM(R66:R69) -> 0
A66: 52 | B66: 265 | C66: Te dala per kapitale te veta ne nderm. publike jofitimprurese | D66: Outing for own equity in non profit public enterprise | F66: 0 | H66: 0 | I66: 0 | J66: 0 | K66: 0 | M66: =SUM(First:Last!E367) -> 0 | O66: =SUM(First:Last!F367) -> 0 | P66: =SUM(First:Last!G367) -> 0 | R66: =M66+O66-P66 -> 0
A67: 53 | B67: 266 | C67: Te dala per kapitale te veta ne institucionet financiare | D67: outing for own equity in financial institutions | F67: 0 | H67: 0 | I67: 0 | J67: 0 | K67: 0 | M67: =SUM(First:Last!E368) -> 0 | O67: =SUM(First:Last!F368) -> 0 | P67: =SUM(First:Last!G368) -> 0 | R67: =M67+O67-P67 -> 0
A68: 54 | B68: 267 | C68: Te dala per kapitale te veta ne joint venture | D68: Outing for own equity in joint venture | F68: 0 | H68: 0 | I68: 0 | J68: 0 | K68: 0 | M68: =SUM(First:Last!E369) -> 0 | O68: =SUM(First:Last!F369) -> 0 | P68: =SUM(First:Last!G369) -> 0 | R68: =M68+O68-P68 -> 0
A69: 55 | B69: 269 | C69: Te dala per kapitale te veta te tjera | D69: Outing for own equity other | F69: 0 | H69: 0 | I69: 0 | J69: 0 | K69: 0 | M69: =SUM(First:Last!E370) -> 0 | O69: =SUM(First:Last!F370) -> 0 | P69: =SUM(First:Last!G370) -> 0 | R69: =M69+O69-P69 -> 0
A70: 56 | C70: TOTALI (I + II) | D70: Total (I + II) | F70: 0 | H70: 0 | I70: 0 | J70: 0 | K70: 0 | M70: =SUM(M47+M15) -> 0 | O70: =SUM(O47+O15) -> 0 | P70: =SUM(P47+P15) -> 0 | R70: =SUM(R47+R15) -> 0

Sheet F5
A1: ='General information'!A1 -> Project STAR
A2: ='General information'!A2 -> xxx
A3: =A8 -> Pasqyra mbi levizjen Cash (Formati 5)
A7: ='General information'!A2 -> xxx
A8: =Language!$D$90 -> Pasqyra mbi levizjen Cash (Formati 5)
A9: =Language!$D$14 -> Pёr vitin e mbyllur mё 31 dhjetor 2014
A10: =ALL -> (Shumat ne ALL'000, nëse nuk shprehet ndryshe)
A11: =Language!$D$39 -> Numёr | B11: EMERTIMI | D11: Description
F12: =Language!$D$38 -> Shёnime shpjeguese | H12: =N12 -> Balanca e thesarit | K12: =Q12 -> Likuiditeti I bankёs | N12: =Language!$D$55 -> Balanca e thesarit | Q12: =Language!$D$56 -> Likuiditeti I bankёs
H13: =N13 -> Debia | I13: =O13 -> Kredia | K13: =Q13 -> Debia | L13: =R13 -> Kredia | N13: =Language!$D$44 -> Debia | O13: =Language!$D$45 -> Kredia | Q13: =Language!$D$44 -> Debia | R13: =Language!$D$45 -> Kredia
A14: a | B14: b | H14: =N14 -> c | I14: =O14 -> d | K14: =Q14 -> e | L14: =R14 -> f | N14: c | O14: d | Q14: e | R14: f
A15: 1 | B15: I.TEPRICA NE CELJE TE USHTRIMIT | D15: I. OPENING BALANCE | F15: N5 | H15: =N15/Presentation_curr -> 0 | I15: =O15/Presentation_curr -> 0 | K15: =Q15/Presentation_curr -> 0 | L15: =R15/Presentation_curr -> 0 | N15: =SUM(First:Last!E383) -> 0 | O15: =SUM(First:Last!F383) -> 0 | Q15: =SUM(First:Last!G383) -> 0 | R15: =SUM(First:Last!H383) -> 0
A16: 2 | B16: II.ARKETIMET E VITIT"CASH" | D16: II. RECEIVABLES "CASH" | H16: 0 | I16: 0 | K16: 0 | L16: 0 | N16: =SUM(N17+N20) -> 0 | O16: =SUM(O17+O20) -> 0 | Q16: =SUM(Q17+Q20) -> 0 | R16: =SUM(R17+R20) -> 0
A17: 3 | B17: 1. Fonde nga buxheti | D17: 1. Funds from budget | H17: 0 | I17: 0 | K17: 0 | L17: 0 | N17: =SUM(N18:N19) -> 0 | O17: =SUM(O18:O19) -> 0 | Q17: =SUM(Q18:Q19) -> 0 | R17: =SUM(R18:R19) -> 0
A18: 4 | B18: - Fonde buxhetore korente(Plani me ndryshimet) | D18: actual budget funds (Budget with changes) | F18: T3-2 | H18: 0 | I18: 0 | K18: 0 | L18: 0 | N18: =SUM(First:Last!E386) -> 0 | O18: =SUM(First:Last!F386) -> 0 | Q18: =SUM(First:Last!G386) -> 0 | R18: =SUM(First:Last!H386) -> 0
A19: 5 | B19: - Fonde buxhetore kapitale(Plani me ndryshimet) | D19: capital budget funds (Budget with changes) | H19: 0 | I19: 0 | K19: 0 | L19: 0 | N19: =SUM(First:Last!E387) -> 0 | O19: =SUM(First:Last!F387) -> 0 | Q19: =SUM(First:Last!G387) -> 0 | R19: =SUM(First:Last!H387) -> 0
A20: 6 | B20: 2. Te ardhura e te hyra gjate vitit ne "Cash" | D20: 2. Incomes and revenues during the year in "Cash" | H20: 0 | I20: 0 | K20: 0 | L20: 0 | N20: =SUM(N21:N27) -> 0 | O20: =SUM(O21:O27) -> 0 | Q20: =SUM(Q21:Q27) -> 0 | R20: =SUM(R21:R27) -> 0
A21: 7 | B21: - Te ardhura tatimore ne "Cash" | D21: Tax revenues in "Cash" | F21: N8 | H21: 0 | I21: 0 | K21: 0 | L21: 0 | N21: =SUM(First:Last!E389) -> 0 | O21: =SUM(First:Last!F389) -> 0 | Q21: =SUM(First:Last!G389) -> 0 | R21: =SUM(First:Last!H389) -> 0
A22: 8 | B22: - Kontribute te sigurimeve shoq. e shendets. ne "Cash" | D22: Social and health insurance in "Cash" | H22: 0 | I22: 0 | K22: 0 | L22: 0 | N22: =SUM(First:Last!E390) -> 0 | O22: =SUM(First:Last!F390) -> 0 | Q22: =SUM(First:Last!G390) -> 0 | R22: =SUM(First:Last!H390) -> 0
A23: 9 | B23: - Te ardhura jo tatimore ne "Cash" | D23: Non tax revenues "Cash" | H23: 0 | I23: 0 | K23: 0 | L23: 0 | N23: =SUM(First:Last!E391) -> 0 | O23: =SUM(First:Last!F391) -> 0 | Q23: =SUM(First:Last!G391) -> 0 | R23: =SUM(First:Last!H391) -> 0
A24: 10 | B24: - Te ardhura nga interesat "Cash" | D24: Interact incomes "Cash" | H24: 0 | I24: 0 | K24: 0 | L24: 0 | N24: =SUM(First:Last!E392) -> 0 | O24: =SUM(First:Last!F392) -> 0 | Q24: =SUM(First:Last!G392) -> 0 | R24: =SUM(First:Last!H392) -> 0
A25: 11 | B25: - Sponsorizime, grante e te ardhura te tjera "Cash" | D25: Sponsorships, grants and other revenues "cash" | H25: 0 | I25: 0 | K25: 0 | L25: 0 | N25: =SUM(First:Last!E393) -> 0 | O25: =SUM(First:Last!F393) -> 0 | Q25: =SUM(First:Last!G393) -> 0 | R25: =SUM(First:Last!H393) -> 0
A26: 12 | B26: - Kredi dhe huamarrje te ndryshme | D26: loans and different lending | H26: 0 | I26: 0 | K26: 0 | L26: 0 | N26: =SUM(First:Last!E394) -> 0 | O26: =SUM(First:Last!F394) -> 0 | Q26: =SUM(First:Last!G394) -> 0 | R26: =SUM(First:Last!H394) -> 0
A27: 13 | B27: - Te hyra nga mjetet ne ruajtje "Cash" | D27: entry from storage "Cash" | H27: 0 | I27: 0 | K27: 0 | L27: 0 | N27: =SUM(First:Last!E395) -> 0 | O27: =SUM(First:Last!F395) -> 0 | Q27: =SUM(First:Last!G395) -> 0 | R27: =SUM(First:Last!H395) -> 0
A28: 14 | B28: III.PAGESAT E VITIT "CASH" | D28: III. PAYMENTS OF THE YEAR "CASH" | F28: N7 | H28: 0 | I28: 0 | K28: 0 | L28: 0 | N28: =SUM(N29:N34) -> 0 | O28: =SUM(O29:O34) -> 0 | Q28: =SUM(Q29:Q34) -> 0 | R28: =SUM(R29:R34) -> 0
A29: 15 | B29: 1, Pagesa nga buxheti per shpenzime korente | D29: 1, payment from the budget for actual expenses | H29: 0 | I29: 0 | K29: 0 | L29: 0 | N29: =SUM(First:Last!E397) -> 0 | O29: =SUM(First:Last!F397) -> 0 | Q29: =SUM(First:Last!G397) -> 0 | R29: =SUM(First:Last!H397) -> 0
A30: 16 | B30: 2, Pagesa nga buxheti per shenzime kapitale | D30: 2, payments from the budget for capital expenses | H30: 0 | I30: 0 | K30: 0 | L30: 0 | N30: =SUM(First:Last!E398) -> 0 | O30: =SUM(First:Last!F398) -> 0 | Q30: =SUM(First:Last!G398) -> 0 | R30: =SUM(First:Last!H398) -> 0
A31: 17 | B31: 3, Pagesa nga te ardhurat per shpenzime korente | D31: 3, payments from revenues for actual expenses | H31: 0 | I31: 0 | K31: 0 | L31: 0 | N31: =SUM(First:Last!E399) -> 0 | O31: =SUM(First:Last!F399) -> 0 | Q31: =SUM(First:Last!G399) -> 0 | R31: =SUM(First:Last!H399) -> 0
A32: 18 | B32: 4, Pagesa nga te ardhurat per shpenzime kapitale | D32: 4, payments from revenues from capital expenses | H32: 0 | I32: 0 | K32: 0 | L32: 0 | N32: =SUM(First:Last!E400) -> 0 | O32: =SUM(First:Last!F400) -> 0 | Q32: =SUM(First:Last!G400) -> 0 | R32: =SUM(First:Last!H400) -> 0
A33: 19 | B33: 5, Pagesa nga mjetet ne ruajtje | D33: 5, payments from storage | H33: 0 | I33: 0 | K33: 0 | L33: 0 | N33: =SUM(First:Last!E401) -> 0 | O33: =SUM(First:Last!F401) -> 0 | Q33: =SUM(First:Last!G401) -> 0 | R33: =SUM(First:Last!H401) -> 0
A34: 20 | B34: 6, Pagesa te tjera | D34: 6, Other payments | H34: 0 | I34: 0 | K34: 0 | L34: 0 | N34: =SUM(First:Last!E402) -> 0 | O34: =SUM(First:Last!F402) -> 0 | Q34: =SUM(First:Last!G402) -> 0 | R34: =SUM(First:Last!H402) -> 0
A35: 21 | B35: IV. TRANSFERTA | D35: IV. TRANSFERS | H35: 0 | I35: 0 | K35: 0 | L35: 0 | N35: =SUM(N36:N38) -> 0 | O35: =SUM(O36:O38) -> 0 | Q35: =SUM(Q36:Q38) -> 0 | R35: =SUM(R36:R38) -> 0
A36: 22 | B36: 1, Derdhe te ardhurave buxhet | D36: 1, Deposit of revenues in the budget | F36: T3-1 | H36: 0 | I36: 0 | K36: 0 | L36: 0 | N36: =SUM(First:Last!E404) -> 0 | O36: =SUM(First:Last!F404) -> 0 | Q36: =SUM(First:Last!G404) -> 0 | R36: =SUM(First:Last!H404) -> 0
A37: 23 | B37: 2, Autorizime buxhetore te pa perdorura(krente dhe kapitale) | D37: 2, unused budget (actual and capital) | F37: T3-1 | H37: 0 | I37: 0 | K37: 0 | L37: 0 | N37: =SUM(First:Last!E405) -> 0 | O37: =SUM(First:Last!F405) -> 0 | Q37: =SUM(First:Last!G405) -> 0 | R37: =SUM(First:Last!H405) -> 0
A38: 24 | B38: 3, Levizje te brendshme e transferta te tjera | D38: 3, internal movements and transfers | H38: 0 | I38: 0 | K38: 0 | L38: 0 | N38: =SUM(First:Last!E406) -> 0 | O38: =SUM(First:Last!F406) -> 0 | Q38: =SUM(First:Last!G406) -> 0 | R38: =SUM(First:Last!H406) -> 0
A39: 25 | B39: V. SHUMA E LEVIZJEVE ( I deri IV ) | D39: V. MOVEMENTS TOTAL (I UP TO IV) | H39: 0 | I39: 0 | K39: 0 | L39: 0 | N39: =SUM(N15+N16+N28+N35) -> 0 | O39: =SUM(O15+O16+O28+O35) -> 0 | Q39: =SUM(Q15+Q16+Q28+Q35) -> 0 | R39: =SUM(R15+R16+R28+R35) -> 0
A40: 26 | B40: VI. TEPRICA NE MBYLLJE TE USHTRIMIT | D40: VI. CLOSING BALANCE | F40: T1, N5 | H40: 0 | I40: 0 | K40: 0 | L40: 0 | N40: =O39-N39 -> 0 | Q40: =R39-Q39 -> 0

Sheet F6
A1: ='General information'!A1 -> Project STAR
A2: ='General information'!A2 -> xxx
A3: =A8 -> Pasyqra mbi gjendjen dhe ndryshimet nё Aktivet e Qёndrueshme (Formati 6)
A7: ='General information'!A2 -> xxx
A8: =Language!$D$91 -> Pasyqra mbi gjendjen dhe ndryshimet nё Aktivet e Qёndrueshme (Formati 6)
A9: =Language!$D$14 -> Pёr vitin e mbyllur mё 31 dhjetor 2014
A10: =ALL -> (Shumat ne ALL'000, nëse nuk shprehet ndryshe)
F12: =U12 -> Balanca hapёse 1 janar 2014 | H12: =W12 -> Shtesat gjatё vitit | N12: =AC12 -> Pakёsimet gjatё vitit | S12: =AH12 -> Balancat mbyllёse 31 dhjetor 2014 | U12: =Language!$D$17 -> Balanca hapёse 1 janar 2014 | W12: =Language!$D$58 -> Shtesat gjatё vitit | AC12: =Language!$D$60 -> Pakёsimet gjatё vitit | AH12: =Language!$D$18 -> Balancat mbyllёse 31 dhjetor 2014
I13: =X13 -> Transferta | X13: =Language!$D$59 -> Transferta
A14: =Language!$D$39 -> Numёr | D14: Description | H14: =W14 -> Blerje | I14: =X14 -> Jashtё | J14: =Y14 -> Brenda | K14: =Z14 -> Lёvizjet | L14: =AA14 -> Totali | N14: =AC14 -> Shitjet | O14: =AD14 -> Nxjerrje jashtё pёrdorimit | P14: =AE14 -> Pakёsime tё tjera | Q14: =AF14 -> Totali | W14: =Language!$D$62 -> Blerje | X14: =Language!$D$63 -> Jashtё | Y14: =Language!$D$64 -> Brenda | Z14: =Language!$D$65 -> Lёvizjet | AA14: =Language!$D$66 -> Totali | AC14: =Language!$D$67 -> Shitjet | AD14: =Language!$D$68 -> Nxjerrje jashtё pёrdorimit | AE14: =Language!$D$69 -> Pakёsime tё tjera | AF14: =Language!$D$66 -> Totali
A15: a | B15: b | C15: c | F15: =U15 -> 1 | H15: =W15 -> 2 | I15: =X15 -> 3 | J15: =Y15 -> 4 | K15: =Z15 -> 5 | L15: =AA15 -> 6 | N15: 7 | O15: 8 | P15: 9 | Q15: 10 | R15: =AG15 -> 0 | S15: =AH15 -> 11 | U15: 1 | W15: 2 | X15: 3 | Y15: 4 | Z15: 5 | AA15: 6 | AC15: 7 | AD15: 8 | AE15: 9 | AF15: 10 | AH15: 11
A16: 1 | C16: I. TE PA TRUPEZUARA | D16: I. INTAGIBLE | F16: =U16/Presentation_curr -> 0 | H16: =W16/Presentation_curr -> 0 | I16: =X16/Presentation_curr -> 0 | J16: =Y16/Presentation_curr -> 0 | K16: =Z16/Presentation_curr -> 0 | L16: =AA16/Presentation_curr -> 0 | N16: =AC16/Presentation_curr -> 0 | O16: =AD16/Presentation_curr -> 0 | P16: =AE16/Presentation_curr -> 0 | Q16: =AF16/Presentation_curr -> 0 | S16: =AH16/Presentation_curr -> 0 | U16: =SUM(U17:U20) -> 0 | W16: =SUM(W17:W20) -> 0 | X16: 0 | Y16: 0 | Z16: 0 | AA16: 0 | AC16: 0 | AD16: 0 | AE16: 0 | AF16: 0 | AH16: 0
A17: 2 | B17: 201 | C17: Prime te emisionit dhe rimbursimit te huave | D17: Amounts to be remitted and loan reimbursements | F17: 0 | H17: 0 | I17: 0 | J17: 0 | K17: 0 | L17: 0 | N17: 0 | O17: 0 | P17: 0 | Q17: 0 | S17: 0 | U17: =SUM(First:Last!E423) -> 0 | W17: =SUM(First:Last!F423) -> 0 | X17: =SUM(First:Last!G423) -> 0 | Y17: =SUM(First:Last!H423) -> 0 | Z17: =SUM(First:Last!I423) -> 0 | AA17: =SUM(First:Last!J423) -> 0 | AC17: =SUM(First:Last!K423) -> 0 | AD17: =SUM(First:Last!L423) -> 0 | AE17: =SUM(First:Last!M423) -> 0 | AF17: =SUM(First:Last!N423) -> 0 | AH17: =U17+AA17-AF17 -> 0
A18: 3 | B18: 202 | C18: Studime dhe kerkime | D18: Studies and research | F18: 0 | H18: 0 | I18: 0 | J18: 0 | K18: 0 | L18: 0 | N18: 0 | O18: 0 | P18: 0 | Q18: 0 | S18: 0 | U18: =SUM(First:Last!E424) -> 0 | W18: =SUM(First:Last!F424) -> 0 | X18: =SUM(First:Last!G424) -> 0 | Y18: =SUM(First:Last!H424) -> 0 | Z18: =SUM(First:Last!I424) -> 0 | AA18: =SUM(First:Last!J424) -> 0 | AC18: =SUM(First:Last!K424) -> 0 | AD18: =SUM(First:Last!L424) -> 0 | AE18: =SUM(First:Last!M424) -> 0 | AF18: =SUM(First:Last!N424) -> 0 | AH18: =U18+AA18-AF18 -> 0
A19: 4 | B19: 203 | C19: Koncesione, patenta,licenca e tjera ngjashme | D19: Concessions, license, other similar licenses | F19: 0 | H19: 0 | I19: 0 | J19: 0 | K19: 0 | L19: 0 | N19: 0 | O19: 0 | P19: 0 | Q19: 0 | S19: 0 | U19: =SUM(First:Last!E425) -> 0 | W19: =SUM(First:Last!F425) -> 0 | X19: =SUM(First:Last!G425) -> 0 | Y19: =SUM(First:Last!H425) -> 0 | Z19: =SUM(First:Last!I425) -> 0 | AA19: =SUM(First:Last!J425) -> 0 | AC19: =SUM(First:Last!K425) -> 0 | AD19: =SUM(First:Last!L425) -> 0 | AE19: =SUM(First:Last!M425) -> 0 | AF19: =SUM(First:Last!N425) -> 0 | AH19: =U19+AA19-AF19 -> 0
A20: 4/1 | B20: 230 | C20: Shpenz.per rritjen e aktiv.qendr.patrupezuara | D20: Expenses for increase of current intangible assets | F20: 0 | H20: 0 | I20: 0 | J20: 0 | K20: 0 | L20: 0 | N20: 0 | O20: 0 | P20: 0 | Q20: 0 | S20: 0 | U20: =SUM(First:Last!E426) -> 0 | W20: =SUM(First:Last!F426) -> 0 | X20: =SUM(First:Last!G426) -> 0 | Y20: =SUM(First:Last!H426) -> 0 | Z20: =SUM(First:Last!I426) -> 0 | AA20: =SUM(First:Last!J426) -> 0 | AC20: =SUM(First:Last!K426) -> 0 | AD20: =SUM(First:Last!L426) -> 0 | AE20: =SUM(First:Last!M426) -> 0 | AF20: =SUM(First:Last!N426) -> 0 | AH20: =U20+AA20-AF20 -> 0
A21: 5 | C21: II. TE TRUPEZUARA | D21: II. TANGIBLE | F21: 0 | H21: 0 | I21: 0 | J21: 0 | K21: 0 | L21: 0 | N21: 0 | O21: 0 | P21: 0 | Q21: 0 | S21: 0 | U21: =SUM(U22:U32) -> 0 | W21: =SUM(W22:W32) -> 0 | X21: 0 | Y21: 0 | Z21: 0 | AA21: 0 | AC21: 0 | AD21: 0 | AE21: 0 | AF21: 0 | AH21: 0
A22: 6 | B22: 210 | C22: Toka,troje,Terene | D22: Land | F22: 0 | H22: 0 | I22: 0 | J22: 0 | K22: 0 | L22: 0 | N22: 0 | O22: 0 | P22: 0 | Q22: 0 | S22: 0 | U22: =SUM(First:Last!E428) -> 0 | W22: =SUM(First:Last!F428) -> 0 | X22: =SUM(First:Last!G428) -> 0 | Y22: =SUM(First:Last!H428) -> 0 | Z22: =SUM(First:Last!I428) -> 0 | AA22: =SUM(First:Last!J428) -> 0 | AC22: =SUM(First:Last!K428) -> 0 | AD22: =SUM(First:Last!L428) -> 0 | AE22: =SUM(First:Last!M428) -> 0 | AF22: =SUM(First:Last!N428) -> 0 | AH22: =U22+AA22-AF22 -> 0
A23: 7 | B23: 211 | C23: Pyje,Kullota Plantacione | D23: Forests, Pasture, Plantation | F23: 0 | H23: 0 | I23: 0 | J23: 0 | K23: 0 | L23: 0 | N23: 0 | O23: 0 | P23: 0 | Q23: 0 | S23: 0 | U23: =SUM(First:Last!E429) -> 0 | W23: =SUM(First:Last!F429) -> 0 | X23: =SUM(First:Last!G429) -> 0 | Y23: =SUM(First:Last!H429) -> 0 | Z23: =SUM(First:Last!I429) -> 0 | AA23: =SUM(First:Last!J429) -> 0 | AC23: =SUM(First:Last!K429) -> 0 | AD23: =SUM(First:Last!L429) -> 0 | AE23: =SUM(First:Last!M429) -> 0 | AF23: =SUM(First:Last!N429) -> 0 | AH23: 0
A24: 8 | B24: 212 | C24: Ndertime e Konstruksione | D24: Building and Constructions | F24: 0 | H24: 0 | I24: 0 | J24: 0 | K24: 0 | L24: 0 | N24: 0 | O24: 0 | P24: 0 | Q24: 0 | S24: 0 | U24: =SUM(First:Last!E430) -> 0 | W24: =SUM(First:Last!F430) -> 0 | X24: =SUM(First:Last!G430) -> 0 | Y24: =SUM(First:Last!H430) -> 0 | Z24: =SUM(First:Last!I430) -> 0 | AA24: =SUM(First:Last!J430) -> 0 | AC24: =SUM(First:Last!K430) -> 0 | AD24: =SUM(First:Last!L430) -> 0 | AE24: =SUM(First:Last!M430) -> 0 | AF24: =SUM(First:Last!N430) -> 0 | AH24: 0
A25: 9 | B25: 213 | C25: Rruge,rrjete,vepra ujore | D25: Roads, networks, water facilities | F25: 0 | H25: 0 | I25: 0 | J25: 0 | K25: 0 | L25: 0 | N25: 0 | O25: 0 | P25: 0 | Q25: 0 | S25: 0 | U25: =SUM(First:Last!E431) -> 0 | W25: =SUM(First:Last!F431) -> 0 | X25: =SUM(First:Last!G431) -> 0 | Y25: =SUM(First:Last!H431) -> 0 | Z25: =SUM(First:Last!I431) -> 0 | AA25: =SUM(First:Last!J431) -> 0 | AC25: =SUM(First:Last!K431) -> 0 | AD25: =SUM(First:Last!L431) -> 0 | AE25: =SUM(First:Last!M431) -> 0 | AF25: =SUM(First:Last!N431) -> 0 | AH25: 0
A26: 10 | B26: 214 | C26: Instalime teknike,makineri,paisje,vegla pune | D26: Technical installment, machinery, equipment, working tools | F26: 0 | H26: 0 | I26: 0 | J26: 0 | K26: 0 | L26: 0 | N26: 0 | O26: 0 | P26: 0 | Q26: 0 | S26: 0 | U26: =SUM(First:Last!E432) -> 0 | W26: =SUM(First:Last!F432) -> 0 | X26: =SUM(First:Last!G432) -> 0 | Y26: =SUM(First:Last!H432) -> 0 | Z26: =SUM(First:Last!I432) -> 0 | AA26: =SUM(First:Last!J432) -> 0 | AC26: =SUM(First:Last!K432) -> 0 | AD26: =SUM(First:Last!L432) -> 0 | AE26: =SUM(First:Last!M432) -> 0 | AF26: =SUM(First:Last!N432) -> 0 | AH26: 0
A27: 11 | B27: 215 | C27: Mjete transporti | D27: Transport vehicles | F27: 0 | H27: 0 | I27: 0 | J27: 0 | K27: 0 | L27: 0 | N27: 0 | O27: 0 | P27: 0 | Q27: 0 | S27: 0 | U27: =SUM(First:Last!E433) -> 0 | W27: =SUM(First:Last!F433) -> 0 | X27: =SUM(First:Last!G433) -> 0 | Y27: =SUM(First:Last!H433) -> 0 | Z27: =SUM(First:Last!I433) -> 0 | AA27: =SUM(First:Last!J433) -> 0 | AC27: =SUM(First:Last!K433) -> 0 | AD27: =SUM(First:Last!L433) -> 0 | AE27: =SUM(First:Last!M433) -> 0 | AF27: =SUM(First:Last!N433) -> 0 | AH27: 0
A28: 12 | B28: 216 | C28: Rezerva shtetrore | D28: Government reserve | F28: 0 | H28: 0 | I28: 0 | J28: 0 | K28: 0 | L28: 0 | N28: 0 | O28: 0 | P28: 0 | Q28: 0 | S28: 0 | U28: =SUM(First:Last!E434) -> 0 | W28: =SUM(First:Last!F434) -> 0 | X28: =SUM(First:Last!G434) -> 0 | Y28: =SUM(First:Last!H434) -> 0 | Z28: =SUM(First:Last!I434) -> 0 | AA28: =SUM(First:Last!J434) -> 0 | AC28: =SUM(First:Last!K434) -> 0 | AD28: =SUM(First:Last!L434) -> 0 | AE28: =SUM(First:Last!M434) -> 0 | AF28: =SUM(First:Last!N434) -> 0 | AH28: 0
A29: 13 | B29: 217 | C29: Kafshe pune e prodhimi | D29: Working and production animals | F29: 0 | H29: 0 | I29: 0 | J29: 0 | K29: 0 | L29: 0 | N29: 0 | O29: 0 | P29: 0 | Q29: 0 | S29: 0 | U29: =SUM(First:Last!E435) -> 0 | W29: =SUM(First:Last!F435) -> 0 | X29: =SUM(First:Last!G435) -> 0 | Y29: =SUM(First:Last!H435) -> 0 | Z29: =SUM(First:Last!I435) -> 0 | AA29: =SUM(First:Last!J435) -> 0 | AC29: =SUM(First:Last!K435) -> 0 | AD29: =SUM(First:Last!L435) -> 0 | AE29: =SUM(First:Last!M435) -> 0 | AF29: =SUM(First:Last!N435) -> 0 | AH29: 0
A30: 14 | B30: 218 | C30: Inventar ekonomik | D30: Economic Inventory | F30: 0 | H30: 0 | I30: 0 | J30: 0 | K30: 0 | L30: 0 | N30: 0 | O30: 0 | P30: 0 | Q30: 0 | S30: 0 | U30: =SUM(First:Last!E436) -> 0 | W30: =SUM(First:Last!F436) -> 0 | X30: =SUM(First:Last!G436) -> 0 | Y30: =SUM(First:Last!H436) -> 0 | Z30: =SUM(First:Last!I436) -> 0 | AA30: =SUM(First:Last!J436) -> 0 | AC30: =SUM(First:Last!K436) -> 0 | AD30: =SUM(First:Last!L436) -> 0 | AE30: =SUM(First:Last!M436) -> 0 | AF30: =SUM(First:Last!N436) -> 0 | AH30: 0
A31: 17 | B31: 24 | C31: Aktive te Qend.te trupezuara te demtuara | D31: Damaged current tangible assets | F31: 0 | H31: 0 | I31: 0 | J31: 0 | K31: 0 | L31: 0 | N31: 0 | O31: 0 | P31: 0 | Q31: 0 | S31: 0 | U31: =SUM(First:Last!E437) -> 0 | W31: =SUM(First:Last!F437) -> 0 | X31: =SUM(First:Last!G437) -> 0 | Y31: =SUM(First:Last!H437) -> 0 | Z31: =SUM(First:Last!I437) -> 0 | AA31: =SUM(First:Last!J437) -> 0 | AC31: =SUM(First:Last!K437) -> 0 | AD31: =SUM(First:Last!L437) -> 0 | AE31: =SUM(First:Last!M437) -> 0 | AF31: =SUM(First:Last!N437) -> 0 | AH31: 0
A32: 18 | B32: 28 | C32: Caktime | D32: Assignments | F32: 0 | H32: 0 | I32: 0 | J32: 0 | K32: 0 | L32: 0 | N32: 0 | O32: 0 | P32: 0 | Q32: 0 | S32: 0 | U32: =SUM(First:Last!E438) -> 0 | W32: =SUM(First:Last!F438) -> 0 | X32: =SUM(First:Last!G438) -> 0 | Y32: =SUM(First:Last!H438) -> 0 | Z32: =SUM(First:Last!I438) -> 0 | AA32: =SUM(First:Last!J438) -> 0 | AC32: =SUM(First:Last!K438) -> 0 | AD32: =SUM(First:Last!L438) -> 0 | AE32: =SUM(First:Last!M438) -> 0 | AF32: =SUM(First:Last!N438) -> 0 | AH32: 0
A33: 19 | C33: T O T A L I ( I + II ) | D33: T O T A L ( I + II ) | F33: 0 | H33: 0 | I33: 0 | J33: 0 | K33: 0 | L33: 0 | N33: 0 | O33: 0 | P33: 0 | Q33: 0 | S33: 0 | U33: =SUM(U16+U21) -> 0 | W33: =SUM(W16+W21) -> 0 | X33: 0 | Y33: 0 | Z33: 0 | AA33: 0 | AC33: 0 | AD33: 0 | AE33: 0 | AF33: 0 | AH33: 0

Sheet F7
A1: ='General information'!A1 -> Project STAR
A2: ='General information'!A2 -> xxx
A3: =A8 -> Pasqyra e amortizimit tё aktiveve tё qёndrueshme (Formati 7)
A7: ='General information'!A2 -> xxx
A8: =Language!$D$92 -> Pasqyra e amortizimit tё aktiveve tё qёndrueshme (Formati 7)
A9: =Language!$D$14 -> Pёr vitin e mbyllur mё 31 dhjetor 2014
A10: =ALL -> (Shumat ne ALL'000, nëse nuk shprehet ndryshe) | L10: `
A12: =Language!$D$39 -> Numёr | B12: =Language!$D$47 -> Numri I llogarisё | C12: EMERTIMI | D12: Description | F12: =S12 -> Balanca hapёse e amortizimit tё akumuluar 1 janar 2014 | Q12: =AD12 -> Balanca mbyllёse e amortizimit tё akumuluar 31 dhjetor 2014 | S12: =Language!$D$15 -> Balanca hapёse e amortizimit tё akumuluar 1 janar 2014 | AD12: =Language!$D$16 -> Balanca mbyllёse e amortizimit tё akumuluar 31 dhjetor 2014
H13: =U13 -> Shtesat gjatё vitit | L13: =Y13 -> Pakёsimet gjatё vitit | U13: =Language!$D$58 -> Shtesat gjatё vitit | Y13: =Language!$D$60 -> Pakёsimet gjatё vitit
H14: =U14 -> Amortizimi i vitit | I14: =V14 -> Shtesa tё tjera | J14: =W14 -> Totali | L14: =Y14 -> Shitjet | M14: =Z14 -> Nxjerrje jashtё pёrdorimit | N14: =AA14 -> Pakёsime tё tjera | O14: =AB14 -> Totali | U14: =Language!$D$70 -> Amortizimi i vitit | V14: =Language!$D$71 -> Shtesa tё tjera | W14: =Language!$D$66 -> Totali | Y14: =Language!$D$67 -> Shitjet | Z14: =Language!$D$68 -> Nxjerrje jashtё pёrdorimit | AA14: =Language!$D$69 -> Pakёsime tё tjera | AB14: =Language!$D$66 -> Totali
A15: a | B15: b | C15: c | F15: =S15 -> 1 | H15: 2 | I15: 3 | J15: 4 | L15: 5 | M15: 6 | N15: 7 | O15: 8 | Q15: 9 | S15: 1 | U15: 2 | V15: 3 | W15: 4 | Y15: 5 | Z15: 6 | AA15: 7 | AB15: 8 | AD15: 9
A16: 1 | B16: 209 | C16: I. PATRUPEZUARA | D16: I. INTAGIBLE | F16: =S16/Presentation_curr -> 0 | H16: 0 | I16: 0 | J16: 0 | L16: 0 | M16: 0 | N16: 0 | O16: 0 | Q16: 0 | S16: =SUM(First:Last!E448) -> 0 | U16: =SUM(First:Last!F448) -> 0 | V16: =SUM(First:Last!G448) -> 0 | W16: =SUM(U16:V16) -> 0 | Y16: =SUM(First:Last!K448) -> 0 | Z16: =SUM(First:Last!L448) -> 0 | AA16: =SUM(First:Last!M448) -> 0 | AB16: =SUM(Y16:AA16) -> 0 | AD16: =S16+W16-AB16 -> 0
A17: 2 | B17: 219 | C17: II. TRUPEZUARA | D17: II. TANGIBLE | F17: 0 | H17: 0 | I17: 0 | J17: 0 | L17: 0 | M17: 0 | N17: 0 | O17: 0 | Q17: 0 | S17: =SUM(First:Last!E449) -> 0 | U17: =SUM(First:Last!F449) -> 0 | V17: =SUM(First:Last!G449) -> 0 | W17: =SUM(U17:V17) -> 0 | Y17: =SUM(First:Last!K449) -> 0 | Z17: =SUM(First:Last!L449) -> 0 | AA17: =SUM(First:Last!M449) -> 0 | AB17: =SUM(Y17:AA17) -> 0 | AD17: =S17+W17-AB17 -> 0
C18: T O T A L I ( I + II ) | D18: TOTAL (I + II) | F18: 0 | H18: 0 | I18: 0 | J18: 0 | L18: 0 | M18: 0 | N18: 0 | O18: 0 | Q18: 0 | S18: =SUM(S16:S17) -> 0 | U18: 0 | V18: 0 | W18: 0 | Y18: 0 | Z18: 0 | AA18: 0 | AB18: 0 | AD18: 0

Sheet F8
A1: ='General information'!A1 -> Project STAR
A2: ='General information'!A2 -> xxx
A3: =A8 -> Pasqyra e lёvizjes sё fondeve (Formati 8)
A7: ='General information'!A2 -> xxx
A8: =Language!$D$93 -> Pasqyra e lёvizjes sё fondeve (Formati 8)
A9: =Language!$D$14 -> Pёr vitin e mbyllur mё 31 dhjetor 2014
A10: =ALL -> (Shumat ne ALL'000, nëse nuk shprehet ndryshe)
F11: =T11 -> Riparaqitur | T11: =Language!$D$53 -> Riparaqitur
A12: =Language!$D$39 -> Numёr | B12: =Language!$D$47 -> Numri I llogarisё | C12: EMERTIMI | D12: Description | F12: =T12 -> Balanca hapёse 1 janar 2014 | K12: =Y12 -> Balancat mbyllёse 31 dhjetor 2014 | M12: =AA12 -> Balanca hapёse 1 janar 2014 | R12: =AF12 -> Balancat mbyllёse 31 dhjetor 2014 | T12: =Language!$D$17 -> Balanca hapёse 1 janar 2014 | Y12: =Language!$D$18 -> Balancat mbyllёse 31 dhjetor 2014 | AA12: =Language!$D$17 -> Balanca hapёse 1 janar 2014 | AF12: =Language!$D$18 -> Balancat mbyllёse 31 dhjetor 2014
H13: =V13 -> Lёvizjet e periudhёs | O13: =AC13 -> Lёvizjet e periudhёs | V13: =Language!$D$50 -> Lёvizjet e periudhёs | AC13: =Language!$D$50 -> Lёvizjet e periudhёs
F14: =R14 -> Kredia | H14: =V14 -> Debia | I14: =W14 -> Kredia | K14: =Y14 -> Kredia | M14: =AA14 -> Kredia | O14: =AC14 -> Debia | P14: Kredia | Q14: 0 | R14: Kredia | T14: =Language!$D$45 -> Kredia | V14: =Language!$D$44 -> Debia | W14: =Language!$D$45 -> Kredia | Y14: =Language!$D$45 -> Kredia | AA14: =Language!$D$45 -> Kredia | AC14: =Language!$D$44 -> Debia | AD14: =Language!$D$45 -> Kredia | AF14: =Language!$D$45 -> Kredia
A15: a | B15: b | C15: c | F15: =T15 -> 1 | H15: =V15 -> 2 | I15: =W15 -> 3 | K15: =Y15 -> 4=1+3-2 | M15: =AA15 -> 1 | O15: 2 | P15: 3 | Q15: 0 | R15: 4=1+3-2 | T15: 1 | V15: 2 | W15: 3 | Y15: 4=1+3-2 | AA15: 1 | AC15: 2 | AD15: 3 | AF15: 4=1+3-2
A16: 1 | B16: 101 | C16: FONDE BAZE | D16: BASE FUND | F16: =T16/Presentation_curr -> 0 | H16: =V16/Presentation_curr -> 0 | I16: =W16/Presentation_curr -> 0 | K16: =Y16/Presentation_curr -> 0 | M16: =AA16/Presentation_curr -> 0 | O16: =AC16/Presentation_curr -> 0 | P16: =AD16/Presentation_curr -> 0 | R16: =AF16/Presentation_curr -> 0 | T16: =SUM(T17:T23) -> 0 | V16: =SUM(V17:V23) -> 0 | W16: =SUM(W17:W23) -> 0 | Y16: =SUM(Y17:Y23) -> 0 | AA16: =SUM(AA17:AA23) -> 0 | AC16: =SUM(AC17:AC23) -> 0 | AD16: =SUM(AD17:AD23) -> 0 | AF16: =SUM(AF17:AF23) -> 0
A17: 2 | B17: 1010 | C17: Fondi baze gjendje | D17: Status of base fund | F17: 0 | H17: 0 | I17: 0 | K17: 0 | M17: 0 | O17: 0 | P17: 0 | R17: 0 | T17: =SUMIF('F8 restated'!$F$15:$EN$15,'F8'!T$15,'F8 restated'!$F16:$EN16) -> 0 | V17: =SUMIF('F8 restated'!$F$15:$EN$15,'F8'!V$15,'F8 restated'!$F16:$EN16) -> 0 | W17: =SUMIF('F8 restated'!$F$15:$EN$15,'F8'!W$15,'F8 restated'!$F16:$EN16) -> 0 | Y17: =SUMIF('F8 restated'!$F$15:$EN$15,'F8'!Y$15,'F8 restated'!$F16:$EN16) -> 0 | AA17: =SUM(First:Last!E465) -> 0 | AC17: =SUM(First:Last!F465) -> 0 | AD17: =SUM(First:Last!G465) -> 0 | AF17: =AA17+AD17-AC17 -> 0
A18: 3 | B18: 1011 | C18: Shtesa fondi baze | D18: Additions base fund | F18: 0 | H18: 0 | I18: 0 | K18: 0 | M18: 0 | O18: 0 | P18: 0 | R18: 0 | T18: =SUMIF('F8 restated'!$F$15:$EN$15,'F8'!T$15,'F8 restated'!$F17:$EN17) -> 0 | V18: =SUMIF('F8 restated'!$F$15:$EN$15,'F8'!V$15,'F8 restated'!$F17:$EN17) -> 0 | W18: =SUMIF('F8 restated'!$F$15:$EN$15,'F8'!W$15,'F8 restated'!$F17:$EN17) -> 0 | Y18: =SUMIF('F8 restated'!$F$15:$EN$15,'F8'!Y$15,'F8 restated'!$F17:$EN17) -> 0 | AA18: =SUM(First:Last!E466) -> 0 | AC18: =SUM(First:Last!F466) -> 0 | AD18: =SUM(First:Last!G466) -> 0 | AF18: 0
A19: 4 | B19: 1012 | C19: Pakesime te fondit baze | D19: Decrease base fund | F19: 0 | H19: 0 | I19: 0 | K19: 0 | M19: 0 | O19: 0 | P19: 0 | R19: 0 | T19: =SUMIF('F8 restated'!$F$15:$EN$15,'F8'!T$15,'F8 restated'!$F18:$EN18) -> 0 | V19: =SUMIF('F8 restated'!$F$15:$EN$15,'F8'!V$15,'F8 restated'!$F18:$EN18) -> 0 | W19: =SUMIF('F8 restated'!$F$15:$EN$15,'F8'!W$15,'F8 restated'!$F18:$EN18) -> 0 | Y19: =SUMIF('F8 restated'!$F$15:$EN$15,'F8'!Y$15,'F8 restated'!$F18:$EN18) -> 0 | AA19: =SUM(First:Last!E467) -> 0 | AC19: =SUM(First:Last!F467) -> 0 | AD19: =SUM(First:Last!G467) -> 0 | AF19: 0
A20: 5 | B20: 1013 | C20: Pekesim nga konsumi i aktiveve qendrushshme | D20: Decrease from tangible assets consume | F20: 0 | H20: 0 | I20: 0 | K20: 0 | M20: 0 | O20: 0 | P20: 0 | R20: 0 | T20: =SUMIF('F8 restated'!$F$15:$EN$15,'F8'!T$15,'F8 restated'!$F19:$EN19) -> 0 | V20: =SUMIF('F8 restated'!$F$15:$EN$15,'F8'!V$15,'F8 restated'!$F19:$EN19) -> 0 | W20: =SUMIF('F8 restated'!$F$15:$EN$15,'F8'!W$15,'F8 restated'!$F19:$EN19) -> 0 | Y20: =SUMIF('F8 restated'!$F$15:$EN$15,'F8'!Y$15,'F8 restated'!$F19:$EN19) -> 0 | AA20: =SUM(First:Last!E468) -> 0 | AC20: =SUM(First:Last!F468) -> 0 | AD20: =SUM(First:Last!G468) -> 0 | AF20: 0
A21: 6 | B21: 1014 | C21: Pakesim nga shitja e aktiveve te qendrushme | D21: Decrease from selling tangible assets | F21: 0 | H21: 0 | I21: 0 | K21: 0 | M21: 0 | O21: 0 | P21: 0 | R21: 0 | T21: =SUMIF('F8 restated'!$F$15:$EN$15,'F8'!T$15,'F8 restated'!$F20:$EN20) -> 0 | V21: =SUMIF('F8 restated'!$F$15:$EN$15,'F8'!V$15,'F8 restated'!$F20:$EN20) -> 0 | W21: =SUMIF('F8 restated'!$F$15:$EN$15,'F8'!W$15,'F8 restated'!$F20:$EN20) -> 0 | Y21: =SUMIF('F8 restated'!$F$15:$EN$15,'F8'!Y$15,'F8 restated'!$F20:$EN20) -> 0 | AA21: =SUM(First:Last!E469) -> 0 | AC21: =SUM(First:Last!F469) -> 0 | AD21: =SUM(First:Last!G469) -> 0 | AF21: 0
A22: 7 | B22: 1015 | C22: Pakesim nga nxjerrja jasht perdorimit e AQ | D22: Decrease from | F22: 0 | H22: 0 | I22: 0 | K22: 0 | M22: 0 | O22: 0 | P22: 0 | R22: 0 | T22: =SUMIF('F8 restated'!$F$15:$EN$15,'F8'!T$15,'F8 restated'!$F21:$EN21) -> 0 | V22: =SUMIF('F8 restated'!$F$15:$EN$15,'F8'!V$15,'F8 restated'!$F21:$EN21) -> 0 | W22: =SUMIF('F8 restated'!$F$15:$EN$15,'F8'!W$15,'F8 restated'!$F21:$EN21) -> 0 | Y22: =SUMIF('F8 restated'!$F$15:$EN$15,'F8'!Y$15,'F8 restated'!$F21:$EN21) -> 0 | AA22: =SUM(First:Last!E470) -> 0 | AC22: =SUM(First:Last!F470) -> 0 | AD22: =SUM(First:Last!G470) -> 0 | AF22: 0
A23: 8 | B23: 1016 | C23: Pekseim nga transfertat e AQ | D23: decrease from transferring tangible assets | F23: 0 | H23: 0 | I23: 0 | K23: 0 | M23: 0 | O23: 0 | P23: 0 | R23: 0 | T23: =SUMIF('F8 restated'!$F$15:$EN$15,'F8'!T$15,'F8 restated'!$F22:$EN22) -> 0 | V23: =SUMIF('F8 restated'!$F$15:$EN$15,'F8'!V$15,'F8 restated'!$F22:$EN22) -> 0 | W23: =SUMIF('F8 restated'!$F$15:$EN$15,'F8'!W$15,'F8 restated'!$F22:$EN22) -> 0 | Y23: =SUMIF('F8 restated'!$F$15:$EN$15,'F8'!Y$15,'F8 restated'!$F22:$EN22) -> 0 | AA23: =SUM(First:Last!E471) -> 0 | AC23: =SUM(First:Last!F471) -> 0 | AD23: =SUM(First:Last!G471) -> 0 | AF23: 0
A24: 9 | B24: 109 | C24: DIFERENCA RIVLERSIMI AQ | D24: DIFFERENCE IN TANGIBLE ASSETS REVALUATION | F24: 0 | H24: 0 | I24: 0 | K24: 0 | M24: 0 | O24: 0 | P24: 0 | R24: 0 | T24: =SUMIF('F8 restated'!$F$15:$EN$15,'F8'!T$15,'F8 restated'!$F23:$EN23) -> 0 | V24: =SUMIF('F8 restated'!$F$15:$EN$15,'F8'!V$15,'F8 restated'!$F23:$EN23) -> 0 | W24: =SUMIF('F8 restated'!$F$15:$EN$15,'F8'!W$15,'F8 restated'!$F23:$EN23) -> 0 | Y24: =SUMIF('F8 restated'!$F$15:$EN$15,'F8'!Y$15,'F8 restated'!$F23:$EN23) -> 0 | AA24: =SUM(First:Last!E472) -> 0 | AC24: =SUM(First:Last!F472) -> 0 | AD24: =SUM(First:Last!G472) -> 0 | AF24: 0
A25: 10 | B25: 105,107,11,12,13,145,15,85 | C25: FONDI I BRENDESHEM | D25: INTERNAL FUND | F25: 0 | H25: 0 | I25: 0 | K25: 0 | M25: 0 | O25: 0 | P25: 0 | R25: 0 | T25: =SUM(T26:T33) -> 0 | V25: =SUM(V26:V33) -> 0 | W25: =SUM(W26:W33) -> 0 | Y25: =SUM(Y26:Y33) -> 0 | AA25: =SUM(AA26:AA33) -> 0 | AC25: =SUM(AC26:AC33) -> 0 | AD25: =SUM(AD26:AD33) -> 0 | AF25: =SUM(AF26:AF33) -> 0
A26: 11 | B26: 105 | C26: Grante brendeshme kapitale | D26: Capital internal grants | F26: 0 | H26: 0 | I26: 0 | K26: 0 | M26: 0 | O26: 0 | P26: 0 | R26: 0 | T26: =SUMIF('F8 restated'!$F$15:$EN$15,'F8'!T$15,'F8 restated'!$F25:$EN25) -> 0 | V26: =SUMIF('F8 restated'!$F$15:$EN$15,'F8'!V$15,'F8 restated'!$F25:$EN25) -> 0 | W26: =SUMIF('F8 restated'!$F$15:$EN$15,'F8'!W$15,'F8 restated'!$F25:$EN25) -> 0 | Y26: =SUMIF('F8 restated'!$F$15:$EN$15,'F8'!Y$15,'F8 restated'!$F25:$EN25) -> 0 | AA26: =SUM(First:Last!E474) -> 0 | AC26: =SUM(First:Last!F474) -> 0 | AD26: =SUM(First:Last!G474) -> 0 | AF26: =AA26+AD26-AC26 -> 0
A27: 12 | B27: 107 | C27: Vlera te caktuara ne perdorim | D27: Current assets in use | F27: 0 | H27: 0 | I27: 0 | K27: 0 | M27: 0 | O27: 0 | P27: 0 | R27: 0 | T27: =SUMIF('F8 restated'!$F$15:$EN$15,'F8'!T$15,'F8 restated'!$F26:$EN26) -> 0 | V27: =SUMIF('F8 restated'!$F$15:$EN$15,'F8'!V$15,'F8 restated'!$F26:$EN26) -> 0 | W27: =SUMIF('F8 restated'!$F$15:$EN$15,'F8'!W$15,'F8 restated'!$F26:$EN26) -> 0 | Y27: =SUMIF('F8 restated'!$F$15:$EN$15,'F8'!Y$15,'F8 restated'!$F26:$EN26) -> 0 | AA27: =SUM(First:Last!E475) -> 0 | AC27: =SUM(First:Last!F475) -> 0 | AD27: =SUM(First:Last!G475) -> 0 | AF27: 0
A28: 13 | B28: 11 | C28: Fonde te tjera veta | D28: Other own funds | F28: 0 | H28: 0 | I28: 0 | K28: 0 | M28: 0 | O28: 0 | P28: 0 | R28: 0 | T28: =SUMIF('F8 restated'!$F$15:$EN$15,'F8'!T$15,'F8 restated'!$F27:$EN27) -> 0 | V28: =SUMIF('F8 restated'!$F$15:$EN$15,'F8'!V$15,'F8 restated'!$F27:$EN27) -> 0 | W28: =SUMIF('F8 restated'!$F$15:$EN$15,'F8'!W$15,'F8 restated'!$F27:$EN27) -> 0 | Y28: =SUMIF('F8 restated'!$F$15:$EN$15,'F8'!Y$15,'F8 restated'!$F27:$EN27) -> 0 | AA28: =SUM(First:Last!E476) -> 0 | AC28: =SUM(First:Last!F476) -> 0 | AD28: =SUM(First:Last!G476) -> 0 | AF28: 0
A29: 14 | B29: 12 | C29: Rezultat I mbartur | D29: Carried result | F29: 0 | H29: 0 | I29: 0 | K29: 0 | M29: 0 | O29: 0 | P29: 0 | R29: 0 | T29: =SUMIF('F8 restated'!$F$15:$EN$15,'F8'!T$15,'F8 restated'!$F28:$EN28) -> 0 | V29: =SUMIF('F8 restated'!$F$15:$EN$15,'F8'!V$15,'F8 restated'!$F28:$EN28) -> 0 | W29: =SUMIF('F8 restated'!$F$15:$EN$15,'F8'!W$15,'F8 restated'!$F28:$EN28) -> 0 | Y29: =SUMIF('F8 restated'!$F$15:$EN$15,'F8'!Y$15,'F8 restated'!$F28:$EN28) -> 0 | AA29: =SUM(First:Last!E477) -> 0 | AC29: =SUM(First:Last!F477) -> 0 | AD29: =SUM(First:Last!G477) -> 0 | AF29: 0
A30: 15 | B30: 13 | C30: Subvecione jashtzakoneshme | D30: Exceptional subsidiaries | F30: 0 | H30: 0 | I30: 0 | K30: 0 | M30: 0 | O30: 0 | P30: 0 | R30: 0 | T30: =SUMIF('F8 restated'!$F$15:$EN$15,'F8'!T$15,'F8 restated'!$F29:$EN29) -> 0 | V30: =SUMIF('F8 restated'!$F$15:$EN$15,'F8'!V$15,'F8 restated'!$F29:$EN29) -> 0 | W30: =SUMIF('F8 restated'!$F$15:$EN$15,'F8'!W$15,'F8 restated'!$F29:$EN29) -> 0 | Y30: =SUMIF('F8 restated'!$F$15:$EN$15,'F8'!Y$15,'F8 restated'!$F29:$EN29) -> 0 | AA30: =SUM(First:Last!E478) -> 0 | AC30: =SUM(First:Last!F478) -> 0 | AD30: =SUM(First:Last!G478) -> 0 | AF30: 0
A31: 16 | B31: 145 | C31: Grante brendsh.kapitale per investime per trete | D31: Participation of the institution in investing for third parties | F31: 0 | H31: 0 | I31: 0 | K31: 0 | M31: 0 | O31: 0 | P31: 0 | R31: 0 | T31: =SUMIF('F8 restated'!$F$15:$EN$15,'F8'!T$15,'F8 restated'!$F30:$EN30) -> 0 | V31: =SUMIF('F8 restated'!$F$15:$EN$15,'F8'!V$15,'F8 restated'!$F30:$EN30) -> 0 | W31: =SUMIF('F8 restated'!$F$15:$EN$15,'F8'!W$15,'F8 restated'!$F30:$EN30) -> 0 | Y31: =SUMIF('F8 restated'!$F$15:$EN$15,'F8'!Y$15,'F8 restated'!$F30:$EN30) -> 0 | AA31: =SUM(First:Last!E479) -> 0 | AC31: =SUM(First:Last!F479) -> 0 | AD31: =SUM(First:Last!G479) -> 0 | AF31: 0
A32: 17 | B32: 15 | C32: Shuma te parashikuara rreziqe e shpenzime | D32: Forecasted amounts for disasters and expenses | F32: 0 | H32: 0 | I32: 0 | K32: 0 | M32: 0 | O32: 0 | P32: 0 | R32: 0 | T32: =SUMIF('F8 restated'!$F$15:$EN$15,'F8'!T$15,'F8 restated'!$F31:$EN31) -> 0 | V32: =SUMIF('F8 restated'!$F$15:$EN$15,'F8'!V$15,'F8 restated'!$F31:$EN31) -> 0 | W32: =SUMIF('F8 restated'!$F$15:$EN$15,'F8'!W$15,'F8 restated'!$F31:$EN31) -> 0 | Y32: =SUMIF('F8 restated'!$F$15:$EN$15,'F8'!Y$15,'F8 restated'!$F31:$EN31) -> 0 | AA32: =SUM(First:Last!E480) -> 0 | AC32: =SUM(First:Last!F480) -> 0 | AD32: =SUM(First:Last!G480) -> 0 | AF32: 0
A33: 18 | B33: 85 | C33: Rezultati I ushtrimit | D33: Result | F33: 0 | H33: 0 | I33: 0 | K33: 0 | M33: 0 | O33: 0 | P33: 0 | R33: 0 | T33: =SUMIF('F8 restated'!$F$15:$EN$15,'F8'!T$15,'F8 restated'!$F32:$EN32) -> 0 | V33: =SUMIF('F8 restated'!$F$15:$EN$15,'F8'!V$15,'F8 restated'!$F32:$EN32) -> 0 | W33: =SUMIF('F8 restated'!$F$15:$EN$15,'F8'!W$15,'F8 restated'!$F32:$EN32) -> 0 | Y33: =SUMIF('F8 restated'!$F$15:$EN$15,'F8'!Y$15,'F8 restated'!$F32:$EN32) -> 0 | AA33: =SUM(First:Last!E481) -> 0 | AC33: =SUM(First:Last!F481) -> 0 | AD33: =SUM(First:Last!G481) -> 0 | AF33: 0
A34: 19 | B34: 106.146 | C34: FONDI I JASHTEM | D34: EXTERNAL FUND | F34: 0 | H34: 0 | I34: 0 | K34: 0 | M34: 0 | O34: 0 | P34: 0 | R34: 0 | T34: =SUMIF('F8 restated'!$F$15:$EN$15,'F8'!T$15,'F8 restated'!$F33:$EN33) -> 0 | V34: =SUMIF('F8 restated'!$F$15:$EN$15,'F8'!V$15,'F8 restated'!$F33:$EN33) -> 0 | W34: =SUMIF('F8 restated'!$F$15:$EN$15,'F8'!W$15,'F8 restated'!$F33:$EN33) -> 0 | Y34: =SUMIF('F8 restated'!$F$15:$EN$15,'F8'!Y$15,'F8 restated'!$F33:$EN33) -> 0 | AA34: =SUM(First:Last!E482) -> 0 | AC34: =SUM(First:Last!F482) -> 0 | AD34: =SUM(First:Last!G482) -> 0 | AF34: 0
A35: 20 | B35: 106 | C35: Grante te Huaja Kapitale | D35: Capital foreigner grants | F35: 0 | H35: 0 | I35: 0 | K35: 0 | M35: 0 | O35: 0 | P35: 0 | R35: 0 | T35: =SUMIF('F8 restated'!$F$15:$EN$15,'F8'!T$15,'F8 restated'!$F34:$EN34) -> 0 | V35: =SUMIF('F8 restated'!$F$15:$EN$15,'F8'!V$15,'F8 restated'!$F34:$EN34) -> 0 | W35: =SUMIF('F8 restated'!$F$15:$EN$15,'F8'!W$15,'F8 restated'!$F34:$EN34) -> 0 | Y35: =SUMIF('F8 restated'!$F$15:$EN$15,'F8'!Y$15,'F8 restated'!$F34:$EN34) -> 0 | AA35: =SUM(First:Last!E483) -> 0 | AC35: =SUM(First:Last!F483) -> 0 | AD35: =SUM(First:Last!G483) -> 0 | AF35: 0
A36: 21 | B36: 146 | C36: Grante huaja.kapitale per investime per trete | D36: Capital foreigner grants investing for third parties | F36: 0 | H36: 0 | I36: 0 | K36: 0 | M36: 0 | O36: 0 | P36: 0 | R36: 0 | T36: =SUMIF('F8 restated'!$F$15:$EN$15,'F8'!T$15,'F8 restated'!$F35:$EN35) -> 0 | V36: =SUMIF('F8 restated'!$F$15:$EN$15,'F8'!V$15,'F8 restated'!$F35:$EN35) -> 0 | W36: =SUMIF('F8 restated'!$F$15:$EN$15,'F8'!W$15,'F8 restated'!$F35:$EN35) -> 0 | Y36: =SUMIF('F8 restated'!$F$15:$EN$15,'F8'!Y$15,'F8 restated'!$F35:$EN35) -> 0 | AA36: =SUM(First:Last!E484) -> 0 | AC36: =SUM(First:Last!F484) -> 0 | AD36: =SUM(First:Last!G484) -> 0 | AF36: 0
A37: 22 | C37: FONDI I KONSOLIDUAR ( 1 deri 4) | D37: CONSOLIDATED FUND (1up to 4) | F37: 0 | H37: 0 | I37: 0 | K37: 0 | M37: 0 | O37: 0 | P37: 0 | R37: 0 | T37: =T16+T24+T25+T34 -> 0 | V37: =V16+V24+V25+V34 -> 0 | W37: =W16+W24+W25+W34 -> 0 | Y37: =Y16+Y24+Y25+Y34 -> 0 | AA37: =AA16+AA24+AA25+AA34 -> 0 | AC37: =AC16+AC24+AC25+AC34 -> 0 | AD37: =AD16+AD24+AD25+AD34 -> 0 | AF37: =AF16+AF24+AF25+AF34 -> 0

Sheet F9
A1: ='General information'!A1 -> Project STAR
A2: ='General information'!A2 -> xxx
A3: =A8 -> Pasqyrё mbi numrin e punonjёsve dhe fondin e pagave (Formati 9)
A7: ='General information'!A2 -> xxx
A8: =Language!$D$94 -> Pasqyrё mbi numrin e punonjёsve dhe fondin e pagave (Formati 9)
A9: =Language!$D$14 -> Pёr vitin e mbyllur mё 31 dhjetor 2014
A10: =ALL -> (Shumat ne ALL'000, nëse nuk shprehet ndryshe)
A12: =Language!$D$39 -> Numёr | B12: Kategorite | D12: Categories | E12: =P12 -> Numri mesatar vjetor i punonjёsve | F12: =Q12 -> Qarkullimi I punonjёsve gjatё vitit | G12: =R12 -> 0 | H12: =S12 -> Numri I punonjёsve nё fund tё vitit | I12: =T12 -> Paga dhe kontribute | P12: =Language!$D$72 -> Numri mesatar vjetor i punonjёsve | Q12: =Language!$D$73 -> Qarkullimi I punonjёsve gjatё vitit | S12: =Language!$D$74 -> Numri I punonjёsve nё fund tё vitit | T12: =Language!$D$77 -> Paga dhe kontribute
F14: =Q14 -> Punonjёs tё rinj | G14: Tё larguar | I14: =T14 -> Totali I pagave | J14: Shpёrblime shtesё | K14: Mbёshtetje sociale e menjёhershme | L14: Sigurimi shoqёror dhe shёndetёsor | M14: Shpёrblime tё tjera | N14: Tatimi mbi tё ardhurat | Q14: =Language!$D$75 -> Punonjёs tё rinj | R14: =Language!$D$76 -> Tё larguar | T14: =Language!$D$78 -> Totali I pagave | U14: =Language!$D$79 -> Shpёrblime shtesё | V14: =Language!$D$80 -> Mbёshtetje sociale e menjёhershme | W14: =Language!$D$81 -> Sigurimi shoqёror dhe shёndetёsor | X14: =Language!$D$82 -> Shpёrblime tё tjera | Y14: =Language!$D$83 -> Tatimi mbi tё ardhurat
A15: a | B15: b | E15: =P15 -> 1 | F15: 2 | G15: 3 | H15: =S15 -> 4 | I15: 5 | J15: 6 | K15: 7 | L15: 8 | M15: 9 | N15: 10 | P15: 1 | Q15: 2 | R15: 3 | S15: 4 | T15: 5 | U15: 6 | V15: 7 | W15: 8 | X15: 9 | Y15: 10
B16: Numeri i punonjesve gjithesej ( 1+2+3+4+5) | D16: Total number of employees ( 1+2+3+4+5+6) | E16: =P16 -> 0 | F16: 0 | G16: 0 | H16: =S16 -> 0 | I16: =T16/Presentation_curr -> 0 | J16: 0 | K16: 0 | L16: 0 | M16: 0 | N16: 1259.289 | P16: =SUM(P17:P22) -> 0 | Q16: =SUM(Q17:Q22) -> 0 | R16: =SUM(R17:R22) -> 0 | S16: 0 | T16: 0 | U16: 0 | V16: 0 | W16: 0 | X16: 0 | Y16: 1259289
A17: 1 | B17: Drejtues | D17: Directors | E17: =P17 -> 0 | F17: =Q17 -> 0 | G17: =R17 -> 0 | H17: =S17 -> 0 | I17: 0 | J17: 0 | K17: 0 | L17: 0 | M17: 0 | N17: 176.4 | P17: =SUM(First:Last!E496) -> 0 | Q17: =SUM(First:Last!F496) -> 0 | R17: =SUM(First:Last!G496) -> 0 | S17: =P17+Q17-R17 -> 0 | T17: =SUM(First:Last!I496) -> 0 | U17: =SUM(First:Last!J496) -> 0 | V17: =SUM(First:Last!K496) -> 0 | W17: =SUM(First:Last!L496) -> 0 | X17: =SUM(First:Last!M496) -> 0 | Y17: =SUM(First:Last!N496) -> 176400
A18: 2 | B18: Spec.arsim te larte | D18: High level education specialist | E18: 0 | F18: 0 | G18: 0 | H18: 0 | I18: 0 | J18: 0 | K18: 0 | L18: 0 | M18: 0 | N18: 684 | P18: =SUM(First:Last!E497) -> 0 | Q18: =SUM(First:Last!F497) -> 0 | R18: =SUM(First:Last!G497) -> 0 | S18: 0 | T18: =SUM(First:Last!I497) -> 0 | U18: =SUM(First:Last!J497) -> 0 | V18: =SUM(First:Last!K497) -> 0 | W18: =SUM(First:Last!L497) -> 0 | X18: =SUM(First:Last!M497) -> 0 | Y18: =SUM(First:Last!N497) -> 684000
A19: 3 | B19: T e k n i k e | D19: Technical | E19: 0 | F19: 0 | G19: 0 | H19: 0 | I19: 0 | J19: 0 | K19: 0 | L19: 0 | M19: 0 | N19: 255.689 | P19: =SUM(First:Last!E498) -> 0 | Q19: =SUM(First:Last!F498) -> 0 | R19: =SUM(First:Last!G498) -> 0 | S19: 0 | T19: =SUM(First:Last!I498) -> 0 | U19: =SUM(First:Last!J498) -> 0 | V19: =SUM(First:Last!K498) -> 0 | W19: =SUM(First:Last!L498) -> 0 | X19: =SUM(First:Last!M498) -> 0 | Y19: =SUM(First:Last!N498) -> 255689
A20: 4 | B20: Nepunes te thjeshte | D20: Ordinary officers | E20: 0 | F20: 0 | G20: 0 | H20: 0 | I20: 0 | J20: 0 | K20: 0 | L20: 0 | M20: 0 | N20: 88 | P20: =SUM(First:Last!E499) -> 0 | Q20: =SUM(First:Last!F499) -> 0 | R20: =SUM(First:Last!G499) -> 0 | S20: 0 | T20: =SUM(First:Last!I499) -> 0 | U20: =SUM(First:Last!J499) -> 0 | V20: =SUM(First:Last!K499) -> 0 | W20: =SUM(First:Last!L499) -> 0 | X20: =SUM(First:Last!M499) -> 0 | Y20: =SUM(First:Last!N499) -> 88000
A21: 5 | B21: Punetore | D21: Employees | E21: 0 | F21: 0 | G21: 0 | H21: 0 | I21: 0 | J21: 0 | K21: 0 | L21: 0 | M21: 0 | N21: 55.2 | P21: =SUM(First:Last!E500) -> 0 | Q21: =SUM(First:Last!F500) -> 0 | R21: =SUM(First:Last!G500) -> 0 | S21: 0 | T21: =SUM(First:Last!I500) -> 0 | U21: =SUM(First:Last!J500) -> 0 | V21: =SUM(First:Last!K500) -> 0 | W21: =SUM(First:Last!L500) -> 0 | X21: =SUM(First:Last!M500) -> 0 | Y21: =SUM(First:Last!N500) -> 55200
A22: 6 | B22: Punonjes te perkohshem | D22: Temporary employees | E22: 0 | F22: 0 | G22: 0 | H22: 0 | I22: 0 | J22: 0 | K22: 0 | L22: 0 | M22: 0 | N22: 0 | P22: =SUM(First:Last!E501) -> 0 | Q22: =SUM(First:Last!F501) -> 0 | R22: =SUM(First:Last!G501) -> 0 | S22: 0 | T22: =SUM(First:Last!I501) -> 0 | U22: =SUM(First:Last!J501) -> 0 | V22: =SUM(First:Last!K501) -> 0 | W22: =SUM(First:Last!L501) -> 0 | X22: =SUM(First:Last!M501) -> 0 | Y22: =SUM(First:Last!N501) -> 0

Sheet _TM_Sheet2 (hidden)
A1: Left | B1: Top | C1: Right | D1: Bottom | E1: Ref
A2: 3 | B2: 5 | C2: 8 | D2: 18 | E2: $C$5:$H$18

Sheet F10 (Cons)
A1: ='General information'!A1 -> Project STAR
A2: ='General information'!A2 -> xxx
A3: =A8 -> Pasqyrё Pёrmbledhёse e Konsoliduar e Gjendjes Financiare (Formati 10)
A7: ='General information'!A2 -> xxx
A8: =Language!$D$95 -> Pasqyrё Pёrmbledhёse e Konsoliduar e Gjendjes Financiare (Formati 10)
A9: =Language!$D$14 -> Pёr vitin e mbyllur mё 31 dhjetor 2014
A10: =ALL -> (Shumat ne ALL'000, nëse nuk shprehet ndryshe)
A12: =Language!$D$39 -> Numёr | B12: =Language!$D$47 -> Numri I llogarisё | C12: EMERTIMI | D12: Description
F13: =Language!$D$38 -> Shёnime shpjeguese | H13: =N13 -> Vit ushtrimor 2014 Riparaqitur | J13: =P13 -> Vit ushtrimor 2014 | L13: =R13 -> Vit ushtrimor 2013 | N13: =P13&" "&Language!D53 -> Vit ushtrimor 2014 Riparaqitur | P13: =Language!$D$19 -> Vit ushtrimor 2014 | R13: =Language!$D$20 -> Vit ushtrimor 2013
A14: 1 | B14: 2 | C14: 3 | D14: 3 | H14: 4 | J14: 5 | L14: 6 | N14: 5 | P14: 4 | R14: 6
A15: 1 | B15: A | C15: A K T I V E | D15: Assets | H15: =N15/Presentation_curr -> 0 | J15: =P15/Presentation_curr -> 0 | L15: =R15/Presentation_curr -> 0 | N15: =N16+N53+N79 -> 0 | P15: =P16+P53+P79 -> 0 | R15: =R16+R53+R79 -> 0
A16: 2 | B16: I | C16: AKTIVE QARKULLUESE ( 1 - 3 ) | D16: Current Assets | H16: 0 | J16: 0 | L16: 0 | N16: =N17+N27+N43 -> 0 | P16: =P17+P27+P43 -> 0 | R16: =R17+R27+R43 -> 0
A17: 3 | B17: Klasa 5 | C17: 1. Arka, Banka dhe Diponibilitete | D17: 1. Petty- Cash, Banks, and Funds Availability | H17: 0 | J17: 0 | L17: 0 | N17: =SUM(N18:N26) -> 0 | P17: =SUM(P18:P26) -> 0 | R17: =SUM(R18:R26) -> 0
A18: 4 | B18: 50 | C18: Letra me vlere te vendosjes | D18: Securities settlement | H18: 0 | J18: 0 | L18: 0 | N18: ='F1'!N66 -> 0 | P18: =SUM(First:Last!E525) -> 0 | R18: =SUM(First:Last!F525) -> 0
A19: 5 | B19: 511 | C19: Vlera per tu arketuar | D19: Receivables | H19: 0 | J19: 0 | L19: 0 | N19: ='F1'!N67 -> 0 | P19: =SUM(First:Last!E526) -> 0 | R19: =SUM(First:Last!F526) -> 0
A20: 6 | B20: 512 | C20: Llogari ne banke | D20: Bank accounts | H20: 0 | J20: 0 | L20: 0 | N20: ='F1'!N68 -> 0 | P20: =SUM(First:Last!E527) -> 0 | R20: =SUM(First:Last!F527) -> 0
A21: 7 | B21: 52O | C21: Disponibilitete ne thesar | D21: Disposables | H21: 0 | J21: 0 | L21: 0 | N21: ='F1'!N69 -> 0 | P21: =SUM(First:Last!E528) -> 0 | R21: =SUM(First:Last!F528) -> 0
A22: 8 | B22: 531 | C22: Arka | D22: Petty-cash | H22: 0 | J22: 0 | L22: 0 | N22: ='F1'!N70 -> 0 | P22: =SUM(First:Last!E529) -> 0 | R22: =SUM(First:Last!F529) -> 0
A23: 9 | B23: 532 | C23: Vlera te tjera | D23: Other amounts | H23: 0 | J23: 0 | L23: 0 | N23: ='F1'!N71 -> 0 | P23: =SUM(First:Last!E530) -> 0 | R23: =SUM(First:Last!F530) -> 0
A24: 10 | B24: 54 | C24: Akreditiva dhe paradhenie | D24: accreditation and prepayments | H24: 0 | J24: 0 | L24: 0 | N24: ='F1'!N72 -> 0 | P24: =SUM(First:Last!E531) -> 0 | R24: =SUM(First:Last!F531) -> 0
A25: 11 | B25: 56 | C25: Llogari ne organizma krediti | D25: Accounts in Lending Institutions | H25: 0 | J25: 0 | L25: 0 | N25: ='F1'!N73 -> 0 | P25: =SUM(First:Last!E532) -> 0 | R25: =SUM(First:Last!F532) -> 0
A26: 12 | B26: 59 | C26: Provigjone zhvlersimi,letra me vlere(-) | D26: Depreciation provisions, securities (-) | H26: 0 | J26: 0 | L26: 0 | N26: ='F1'!N74 -> 0 | P26: =SUM(First:Last!E533) -> 0 | R26: =SUM(First:Last!F533) -> 0
A27: 13 | B27: Klasa 4 | C27: 2. Llogari te Arketueshme | D27: 2. Receivables | H27: 0 | J27: 0 | L27: 0 | N27: =SUM(N28:N42) -> 0 | P27: =SUM(P28:P42) -> 0 | R27: =SUM(R28:R42) -> 0
A28: 14 | B28: 409 | C28: Furnitore(Debitore),parapagime pagesa pjesore | D28: Suppliers, prepayments or partial payment | H28: 0 | J28: 0 | L28: 0 | N28: ='F1'!N50 -> 0 | P28: =SUM(First:Last!E535) -> 0 | R28: =SUM(First:Last!F535) -> 0
A29: 15 | B29: 41 | C29: Kliente e llogari te ngjashme | D29: Clients of similar accounts | H29: 0 | J29: 0 | L29: 0 | N29: ='F1'!N51 -> 0 | P29: =SUM(First:Last!E536) -> 0 | R29: =SUM(First:Last!F536) -> 0
A30: 16 | B30: 423 e 429 | C30: Personeli, paradhenie, deficite e gjoba | D30: Employees, prepayment, deficits and fees | H30: 0 | J30: 0 | L30: 0 | N30: ='F1'!N52 -> 0 | P30: =SUM(First:Last!E537) -> 0 | R30: =SUM(First:Last!F537) -> 0
A31: 17 | B31: 431 | C31: Shteti tatim taksa | D31: Government taxes | N31: ='F1'!N53 -> 0
A32: 18 | B32: 432 | C32: Tatime mbledh nga shteti per llog.Pushtetit Lokal | D32: Government tax collector for Local government | N32: ='F1'!N54 -> 0
A33: 19 | B33: 433 | C33: Shteti fatkeqesi natyrore | D33: Government natural disasters | N33: ='F1'!N55 -> 0
A34: 20 | B34: 4342 | C34: Te tjera operacione me shtetin(debitor) | D34: Other operations with the government (debtor) | H34: =N34/Presentation_curr -> 0 | J34: =P34/Presentation_curr -> 0 | L34: =R34/Presentation_curr -> 0 | N34: ='F1'!N56 -> 0 | P34: =SUM(First:Last!E541) -> 0 | R34: =SUM(First:Last!F541) -> 0
A35: 21 | B35: 435 | C35: Sigurime Shoqerore | D35: Social Insurance | N35: ='F1'!N57 -> 0
A36: 22 | B36: 436 | C36: Sigurime Shendetesore | D36: Health Insurance | N36: ='F1'!N58 -> 0
A37: 23 | B37: 437e 438 | C37: Organizma te tjere shoqerore | D37: Other social organizations | N37: ='F1'!N59 -> 0
A38: 24 | B38: 44 | C38: Institucione te tjera publike | D38: Other public institutions | N38: ='F1'!N60 -> 0
A39: 25 | B39: 45 | C39: Mardhenie me instit.brenda dhe jasht sistemit | D39: Relationships with institutions in and outside the system | N39: ='F1'!N61 -> 0
A40: 26 | B40: 465 | C40: Efekte per tu arketuar nga shitja e letrave vlere | D40: Receivables from selling of bonds | H40: =N40/Presentation_curr -> 0 | J40: =P40/Presentation_curr -> 0 | L40: =R40/Presentation_curr -> 0 | N40: ='F1'!N62 -> 0 | P40: =SUM(First:Last!E547) -> 0 | R40: =SUM(First:Last!F547) -> 0
A41: 27 | B41: 468 | C41: Deditore te ndryshem | D41: Different Debtors | H41: 0 | J41: 0 | L41: 0 | N41: ='F1'!N63 -> 0 | P41: =SUM(First:Last!E548) -> 0 | R41: =SUM(First:Last!F548) -> 0 | S41: =N41/$N$27 -> 
A42: 28 | B42: 49 | C42: Shuma parashikuara per zhvleresim(-) | D42: Forecasted amounts for depreciation (-) | H42: 0 | J42: 0 | L42: 0 | N42: ='F1'!N64 -> 0 | P42: =SUM(First:Last!E549) -> 0 | R42: =SUM(First:Last!F549) -> 0
A43: 29 | B43: Klasa 3 | C43: 3. llogarite e gjendjes se inventarit | D43: 3. Current Inventory accounts | H43: 0 | J43: 0 | L43: 0 | N43: =SUM(N44:N52) -> 0 | P43: =SUM(P44:P52) -> 0 | R43: =SUM(R44:R52) -> 0
A44: 30 | B44: 31 | C44: Materiale | D44: Materials | H44: 0 | J44: 0 | L44: 0 | N44: ='F1'!N40 -> 0 | P44: =SUM(First:Last!E551) -> 0 | R44: =SUM(First:Last!F551) -> 0
A45: 31 | B45: 32 | C45: Objekte inventari | D45: Inventory Objects | H45: 0 | J45: 0 | L45: 0 | N45: ='F1'!N41 -> 0 | P45: =SUM(First:Last!E552) -> 0 | R45: =SUM(First:Last!F552) -> 0
A46: 32 | B46: 33 | C46: Prodhime, punime e sherbime ne proces | D46: Production, work and services in process | H46: 0 | J46: 0 | L46: 0 | N46: ='F1'!N42 -> 0 | P46: =SUM(First:Last!E553) -> 0 | R46: =SUM(First:Last!F553) -> 0
A47: 33 | B47: 34 | C47: Produkte | D47: Products | H47: 0 | J47: 0 | L47: 0 | N47: ='F1'!N43 -> 0 | P47: =SUM(First:Last!E554) -> 0 | R47: =SUM(First:Last!F554) -> 0
A48: 34 | B48: 35 | C48: Mallra | D48: Goods | H48: 0 | J48: 0 | L48: 0 | N48: ='F1'!N44 -> 0 | P48: =SUM(First:Last!E555) -> 0 | R48: =SUM(First:Last!F555) -> 0
A49: 35 | B49: 36 | C49: Gje e gjalle ne rritje e majmeri | D49: Animals fattening | H49: 0 | J49: 0 | L49: 0 | N49: ='F1'!N45 -> 0 | P49: =SUM(First:Last!E556) -> 0 | R49: =SUM(First:Last!F556) -> 0
A50: 36 | B50: 37 | C50: Gjendje te pambritura ose prane te treteve | D50: Undelivered items or close to third party | H50: 0 | J50: 0 | L50: 0 | N50: ='F1'!N46 -> 0 | P50: =SUM(First:Last!E557) -> 0 | R50: =SUM(First:Last!F557) -> 0
A51: 37 | B51: 38 | C51: Diferenca nga cmimet e magazinimit | D51: Differences from warehouse prices | H51: 0 | J51: 0 | L51: 0 | N51: ='F1'!N47 -> 0 | P51: =SUM(First:Last!E558) -> 0 | R51: =SUM(First:Last!F558) -> 0
A52: 38 | B52: 39 | C52: Shuma te parashikuara per Zhvleresim(-) | D52: Forecasted amounts for inventory depreciation (-) | H52: 0 | J52: 0 | L52: 0 | N52: ='F1'!N48 -> 0 | P52: =SUM(First:Last!E559) -> 0 | R52: =SUM(First:Last!F559) -> 0
A53: 39 | B53: II | C53: AKTIVE JO QARKULLUESE ( 1 - 4 ) | D53: Non-current Assets | H53: 0 | J53: 0 | L53: 0 | N53: =N54+N58+N61+N74 -> 0 | P53: =P54+P58+P61+P74 -> 0 | R53: =R54+R58+R61+R74 -> 0
A54: 40 | B54: 23 | C54: 1.Investime | D54: 1. Investments | H54: 0 | J54: 0 | L54: 0 | N54: =SUM(N55:N57) -> 0 | P54: =SUM(P55:P57) -> 0 | R54: =SUM(R55:R57) -> 0
A55: 41 | B55: 230 | C55: Shpenzime per rritjen e AQ pa trupezuara | D55: Capitalized expense as Intangible Assets | H55: 0 | J55: 0 | L55: 0 | N55: ='F1'!$N$19 -> 0 | P55: =SUM(First:Last!E562) -> 0 | R55: =SUM(First:Last!F562) -> 0
A56: 42 | B56: 231 | C56: Shpenz.per rritjen e AQ te trupezuara | D56: Capitalized expense as Tangible Assets | H56: 0 | J56: 0 | L56: 0 | N56: ='F1'!N31 -> 0 | P56: =SUM(First:Last!E563) -> 0 | R56: =SUM(First:Last!F563) -> 0
A57: 43 | B57: 232 | C57: Transferime kapitale | D57: Transfers in capital | H57: 0 | J57: 0 | L57: 0 | N57: ='F1'!N32 -> 0 | P57: =SUM(First:Last!E564) -> 0 | R57: =SUM(First:Last!F564) -> 0
A58: 44 | B58: 25,26 | C58: 2.Aktive Financiare | D58: 2. Finance assets | H58: 0 | J58: 0 | L58: 0 | N58: =SUM(N59:N60) -> 0 | P58: =SUM(P59:P60) -> 0 | R58: =SUM(R59:R60) -> 0
A59: 45 | B59: 25 | C59: Huadhenie e nenhuadhenie | D59: Lending | H59: 0 | J59: 0 | L59: 0 | N59: ='F1'!N36 -> 0 | P59: =SUM(First:Last!E566) -> 0 | R59: =SUM(First:Last!F566) -> 0
A60: 46 | B60: 26 | C60: Pjesmarrje ne kapitalin e vet | D60: Equity | H60: 0 | J60: 0 | L60: 0 | N60: ='F1'!N37 -> 0 | P60: =SUM(First:Last!E567) -> 0 | R60: =SUM(First:Last!F567) -> 0
A61: 47 | B61: 21,24,28 | C61: 3.Aktive te Qendrushme te trupezuara | D61: 3. Tangible assets | H61: 0 | J61: 0 | L61: 0 | N61: =SUM(N62:N73) -> 0 | P61: =SUM(P62:P73) -> 0 | R61: =SUM(R62:R73) -> 0
A62: 48 | B62: 210 | C62: Toka,troje,terene | D62: Property. Plan | H62: 0 | J62: 0 | L62: 0 | N62: ='F1'!N21 -> 0 | P62: =SUM(First:Last!E569) -> 0 | R62: =SUM(First:Last!F569) -> 0
A63: 49 | B63: 211 | C63: Pyje,kullota,plantacione | D63: Forests, pastures, plantations | H63: 0 | J63: 0 | L63: 0 | N63: ='F1'!N22 -> 0 | P63: =SUM(First:Last!E570) -> 0 | R63: =SUM(First:Last!F570) -> 0
A64: 50 | B64: 212 | C64: Ndertime | D64: Construction works | H64: 0 | J64: 0 | L64: 0 | N64: ='F1'!N23 -> 0 | P64: =SUM(First:Last!E571) -> 0 | R64: =SUM(First:Last!F571) -> 0
A65: 51 | B65: 213 | C65: Rruge,rrjete,vepra ujore | D65: Roads, networks, water facilities | H65: 0 | J65: 0 | L65: 0 | N65: ='F1'!N24 -> 0 | P65: =SUM(First:Last!E572) -> 0 | R65: =SUM(First:Last!F572) -> 0
A66: 52 | B66: 214 | C66: Instalime teknike,makineri,paisje,vegla pune | D66: Technical installment, machinery, equipment, working tools | H66: 0 | J66: 0 | L66: 0 | N66: ='F1'!N25 -> 0 | P66: =SUM(First:Last!E573) -> 0 | R66: =SUM(First:Last!F573) -> 0
A67: 53 | B67: 215 | C67: Mjete transporti | D67: Transport vehicles | H67: 0 | J67: 0 | L67: 0 | N67: ='F1'!N26 -> 0 | P67: =SUM(First:Last!E574) -> 0 | R67: =SUM(First:Last!F574) -> 0
A68: 54 | B68: 216 | C68: Rezerva shtetrore | D68: Government reserve | H68: 0 | J68: 0 | L68: 0 | N68: ='F1'!N27 -> 0 | P68: =SUM(First:Last!E575) -> 0 | R68: =SUM(First:Last!F575) -> 0
A69: 55 | B69: 217 | C69: Kafshe pune e prodhimi | D69: Working and production animals | H69: 0 | J69: 0 | L69: 0 | N69: ='F1'!N28 -> 0 | P69: =SUM(First:Last!E576) -> 0 | R69: =SUM(First:Last!F576) -> 0
A70: 56 | B70: 218 | C70: Inventar ekonomik | D70: Economic Inventory | H70: 0 | J70: 0 | L70: 0 | N70: ='F1'!N29 -> 0 | P70: =SUM(First:Last!E577) -> 0 | R70: =SUM(First:Last!F577) -> 0
A71: 57 | B71: 219 | C71: Amortizimi aktiveve te qendrushme te trupezuara(-) | D71: tangible assets depreciation | H71: 0 | J71: 0 | L71: 0 | N71: ='F1'!N30 -> 0 | P71: =SUM(First:Last!E578) -> 0 | R71: =SUM(First:Last!F578) -> 0
A72: 58 | B72: 24 | C72: Aktive te Qend.te trupezuara te demtuara | D72: incorporated tangible assets | H72: =N72/Presentation_curr -> 0 | J72: =P72/Presentation_curr -> 0 | L72: =R72/Presentation_curr -> 0 | N72: ='F1'!N31 -> 0 | P72: =SUM(First:Last!E579) -> 0 | R72: =SUM(First:Last!F579) -> 0
A73: 59 | B73: 28 | C73: Caktime | D73: Assignments | H73: 0 | J73: 0 | L73: 0 | N73: ='F1'!N32 -> 0 | P73: =SUM(First:Last!E580) -> 0 | R73: =SUM(First:Last!F580) -> 0
A74: 60 | B74: 20 | C74: 4. Aktive te Qendrushme te pa trupezuara | D74: 4. Intangible assets | H74: 0 | J74: 0 | L74: 0 | N74: =SUM(N75:N78) -> 0 | P74: =SUM(P75:P78) -> 0 | R74: =SUM(R75:R78) -> 0
A75: 61 | B75: 201 | C75: Prime dhe emisione te rimbursimit te huave | D75: Premiums and loan reimbursement | H75: 0 | J75: 0 | L75: 0 | N75: ='F1'!N15 -> 0 | P75: =SUM(First:Last!E582) -> 0 | R75: =SUM(First:Last!F582) -> 0
A76: 62 | B76: 202 | C76: Studime e kerkime | D76: Research and development | H76: 0 | J76: 0 | L76: 0 | N76: ='F1'!N16 -> 0 | P76: =SUM(First:Last!E583) -> 0 | R76: =SUM(First:Last!F583) -> 0
A77: 63 | B77: 203 | C77: Koncesione,patenta, licenca e tjera ngjashme | D77: Concessions, driving licenses and other similar | H77: 0 | J77: 0 | L77: 0 | N77: ='F1'!N17 -> 0 | P77: =SUM(First:Last!E584) -> 0 | R77: =SUM(First:Last!F584) -> 0
A78: 64 | B78: 209 | C78: Amortizimi I aktiveve te qendrushme pa trupezuara(-) | D78: Intangible assets depreciation | H78: 0 | J78: 0 | L78: 0 | N78: ='F1'!N18 -> 0 | P78: =SUM(First:Last!E585) -> 0 | R78: =SUM(First:Last!F585) -> 0
A79: 65 | B79: III | C79: AKTIVE TE TJERA | D79: Other assets | H79: 0 | J79: 0 | L79: 0 | N79: =SUM(N80:N82) -> 0 | P79: =SUM(P80:P82) -> 0 | R79: =SUM(R80:R82) -> 0
A80: 66 | B80: 477 | C80: Diferenca konvertimi aktive | D80: foreign exchange diff. | H80: 0 | J80: 0 | L80: 0 | N80: ='F1'!N76 -> 0 | P80: =SUM(First:Last!E587) -> 0 | R80: =SUM(First:Last!F587) -> 0
A81: 67 | B81: 481 | C81: Shpenz.per tu shpernd.ne disa ushtrime | D81: expenses allocated to diff workings | H81: 0 | J81: 0 | L81: 0 | N81: ='F1'!N77 -> 0 | P81: =SUM(First:Last!E588) -> 0 | R81: =SUM(First:Last!F588) -> 0
A82: 68 | B82: 486 | C82: Shpenzime te periudhave te ardheshme | D82: Future expense | H82: 0 | J82: 0 | L82: 0 | N82: ='F1'!N78 -> 0 | P82: =SUM(First:Last!E589) -> 0 | R82: =SUM(First:Last!F589) -> 0
A83: 69 | B83: B | C83: P A S I V E | D83: Liabilities | H83: 0 | J83: 0 | L83: 0 | N83: =N84+N103+N105 -> 0 | P83: =P84+P103+P105 -> 0 | R83: =R84+R103+R105 -> 0
A84: 70 | B84: I | C84: DETYRIME QARKULLUESE ( 1 - 2 ) | D84: Current liabilities | H84: 0 | J84: 0 | L84: 0 | N84: =N85+N102 -> 0 | P84: =P85+P102 -> 0 | R84: =R85+R102 -> 0
A85: 71 | B85: Klasa 4 | C85: 1. Llogari te pagushme | D85: 1. Accounts payable | H85: 0 | J85: 0 | L85: 0 | N85: =SUM(N86:N101) -> 0 | P85: =SUM(P86:P101) -> 0 | R85: =SUM(R86:R101) -> 0
A86: 72 | B86: 419 | C86: Kliente(Kreditore), parapagese pjesore | D86: Creditors, forest prepayments | H86: 0 | J86: 0 | L86: 0 | N86: ='F2'!N33 -> 0 | P86: =SUM(First:Last!E593) -> 0 | R86: =SUM(First:Last!F593) -> 0
A87: 73 | B87: 40 | C87: Furnitore e llogari te lidhura me to | D87: Suppliers | H87: 0 | J87: 0 | L87: 0 | N87: ='F2'!N34 -> 0 | P87: =SUM(First:Last!E594) -> 0 | R87: =SUM(First:Last!F594) -> 0
A88: 74 | B88: 42 | C88: Personeli e llogari te lidhura me to | D88: employees and accounts related to them | H88: 0 | J88: 0 | L88: 0 | N88: ='F2'!N35 -> 0 | P88: =SUM(First:Last!E595) -> 0 | R88: =SUM(First:Last!F595) -> 0
A89: 75 | B89: 431 | C89: Shteti tatim-taksa | D89: Government tax | H89: 0 | J89: 0 | L89: 0 | N89: ='F2'!N36 -> 0 | P89: =SUM(First:Last!E596) -> 0 | R89: =SUM(First:Last!F596) -> 0
A90: 76 | B90: 432 | C90: Tatime mbedhura nga shteti per llog.Pusht.Lokal | D90: Taxes collected from government for the local government | H90: 0 | J90: 0 | L90: 0 | N90: ='F2'!N37 -> 0 | P90: =SUM(First:Last!E597) -> 0 | R90: =SUM(First:Last!F597) -> 0
A91: 77 | B91: 433 | C91: Shteti fatkeqesi natyrore | D91: Government natural disaster | H91: 0 | J91: 0 | L91: 0 | N91: ='F2'!N38 -> 0 | P91: =SUM(First:Last!E598) -> 0 | R91: =SUM(First:Last!F598) -> 0
A92: 78 | B92: 4341 | C92: Te tjera operacione me shtetin(kreditor) | D92: Other operational Creditors with the government | H92: 0 | J92: 0 | L92: 0 | N92: ='F2'!N39 -> 0 | P92: =SUM(First:Last!E599) -> 0 | R92: =SUM(First:Last!F599) -> 0
A93: 79 | B93: 435 | C93: Sigurime shoqerore | D93: Social Insurance | H93: 0 | J93: 0 | L93: 0 | N93: ='F2'!N40 -> 0 | P93: =SUM(First:Last!E600) -> 0 | R93: =SUM(First:Last!F600) -> 0
A94: 80 | B94: 436 | C94: Sigurime shendetsore | D94: Health Insurance | H94: 0 | J94: 0 | L94: 0 | N94: ='F2'!N41 -> 0 | P94: =SUM(First:Last!E601) -> 0 | R94: =SUM(First:Last!F601) -> 0
A95: 81 | B95: 437438 | C95: Organizma te tjere shoqerore | D95: Other social organizations | H95: 0 | J95: 0 | L95: 0 | N95: ='F2'!N42 -> 0 | P95: =SUM(First:Last!E602) -> 0 | R95: =SUM(First:Last!F602) -> 0
A96: 82 | B96: 44 | C96: Institucione te tjera publike | D96: Other public institutions | H96: 0 | J96: 0 | L96: 0 | N96: ='F2'!N43 -> 0 | P96: =SUM(First:Last!E603) -> 0 | R96: =SUM(First:Last!F603) -> 0
A97: 83 | B97: 45 | C97: Marrdhenie me institucione brenda e jasht sistemit | D97: Relationships with institutions in and outside the system | H97: 0 | J97: 0 | L97: 0 | N97: ='F2'!N44 -> 0 | P97: =SUM(First:Last!E604) -> 0 | R97: =SUM(First:Last!F604) -> 0
A98: 84 | B98: 460 | C98: Huadhenes | D98: Borrowings | H98: 0 | J98: 0 | L98: 0 | N98: ='F2'!N45 -> 0 | P98: =SUM(First:Last!E605) -> 0 | R98: =SUM(First:Last!F605) -> 0
A99: 85 | B99: 464 | C99: Detyrime per t' paguar per blerjen e letrave me vlere | D99: outstanding liabilities for securities | H99: 0 | J99: 0 | L99: 0 | N99: ='F2'!N46 -> 0 | P99: =SUM(First:Last!E606) -> 0 | R99: =SUM(First:Last!F606) -> 0
A100: 86 | B100: 466 | C100: Kreditore per mjete ne ruajtje | D100: Creditors for assets under guard | H100: 0 | J100: 0 | L100: 0 | N100: ='F2'!N47 -> 0 | P100: =SUM(First:Last!E607) -> 0 | R100: =SUM(First:Last!F607) -> 0
A101: 87 | B101: 467 | C101: Kreditore te ndryshem | D101: Sundry creditors | H101: 0 | J101: 0 | L101: 0 | N101: ='F2'!N48 -> 0 | P101: =SUM(First:Last!E608) -> 0 | R101: =SUM(First:Last!F608) -> 0
A102: 88 | B102: 16 | C102: 2.Huamarrje Afat Shkurter te brendshme | D102: 2. Non-current liabilities | H102: 0 | J102: 0 | L102: 0 | N102: ='F2'!$N$30 -> 0 | P102: =SUM(First:Last!E609) -> 0 | R102: =SUM(First:Last!F609) -> 0
A103: 89 | B103: II | C103: DETYRIME JO QARKULLUESE | D103: Non liquid liabilities | H103: 0 | J103: 0 | L103: 0 | N103: =N104 -> 0 | P103: =P104 -> 0 | R103: =R104 -> 0
A104: 90 | B104: 17 | C104: 1.Hua te jashtme | D104: 1. Foreign loans | H104: =N104/Presentation_curr -> 0 | J104: =P104/Presentation_curr -> 0 | L104: =R104/Presentation_curr -> 0 | N104: ='F2'!$N$31 -> 0 | P104: =SUM(First:Last!E611) -> 0 | R104: =SUM(First:Last!F611) -> 0
A105: 91 | B105: III | C105: PASIVE TE TJERA | D105: Other liabilities | H105: 0 | J105: 0 | L105: 0 | N105: =SUM(N106:N109) -> 0 | P105: =SUM(P106:P109) -> 0 | R105: =SUM(R106:R109) -> 0
A106: 92 | B106: 475 | C106: Te ardhura per tu regjist.vitet pasardhese | D106: registered incomes for coming years | H106: 0 | J106: 0 | L106: 0 | N106: ='F2'!N50 -> 0 | P106: =SUM(First:Last!E613) -> 0 | R106: =SUM(First:Last!F613) -> 0
A107: 93 | B107: 478 | C107: Diferenca konvertime pasive | D107: foreign exchange liabilities | H107: 0 | J107: 0 | L107: 0 | N107: ='F2'!N51 -> 0 | P107: =SUM(First:Last!E614) -> 0 | R107: =SUM(First:Last!F614) -> 0
A108: 94 | B108: 480 | C108: Te ardhura per tu klasifikuar ose rregulluar | D108: Incomes to classify or adjust | H108: 0 | J108: 0 | L108: 0 | N108: ='F2'!N52 -> 0 | P108: =SUM(First:Last!E615) -> 0 | R108: =SUM(First:Last!F615) -> 0
A109: 95 | B109: 487 | C109: Te ardhura te arketuara para nxjerrjes titullit | D109: incomes received before title exposure | H109: 0 | J109: 0 | L109: 0 | N109: ='F2'!N53 -> 0 | P109: =SUM(First:Last!E616) -> 0 | R109: =SUM(First:Last!F616) -> 0
A110: 96 | C110: AKTIVET NETO ( A - B ) | D110: Net assets (A - B) | H110: 0 | J110: 0 | L110: 0 | N110: =N15-N83 -> 0 | P110: =P15-P83 -> 0 | R110: =R15-R83 -> 0
A111: 97 | C111: PERFAQESUAR: Nga Fondi i Kosoliduar | D111: Presented: Consolidated budget | H111: 0 | J111: 0 | L111: 0 | N111: =N110-N112 -> 0 | P111: =SUM(First:Last!E618) -> 0 | R111: =SUM(First:Last!F618) -> 0
A112: 98 | C112: Nga kjo ; Rezult.e mbartura e te ushtrimit(+-) | D112: Carried forward results | H112: 0 | J112: 0 | L112: 0 | N112: ='F2'!N54+'F2'!N24-'F1'!N79-'F1'!N12 -> 0 | P112: =SUM(First:Last!E619) -> 0 | R112: =SUM(First:Last!F619) -> 0

Sheet _TM_expenses (hidden)
A1: Left | B1: Top | C1: Right | D1: Bottom | E1: Ref
A2: 2 | B2: 6 | C2: 4 | D2: 29 | E2: $B$6:$D$29

Sheet F11 (Cons)
A1: ='General information'!A1 -> Project STAR
A2: ='General information'!A2 -> xxx
A3: =A8 -> Pasqyrё Pёrmbledhёse e Konsoliduar e tё ardhurave dhe shpenzimeve tё funksionimit (Formati 11)
A7: ='General information'!A2 -> xxx
A8: =Language!$D$96 -> Pasqyrё Pёrmbledhёse e Konsoliduar e tё ardhurave dhe shpenzimeve tё funksionimit (Formati 11)
A9: =Language!$D$14 -> Pёr vitin e mbyllur mё 31 dhjetor 2014
A10: =ALL -> (Shumat ne ALL'000, nëse nuk shprehet ndryshe)
A12: =Language!$D$39 -> Numёr | B12: =Language!$D$47 -> Numri I llogarisё | C12: EMERTIMI | D12: DescriNtion
F13: =Language!$D$38 -> Shёnime shpjeguese | H13: =N13 -> Vit ushtrimor 2014 Riparaqitur | J13: =P13 -> Vit ushtrimor 2014 | L13: =R13 -> Vit ushtrimor 2013 | N13: =P13&" "&Language!D53 -> Vit ushtrimor 2014 Riparaqitur | P13: =Language!$D$19 -> Vit ushtrimor 2014 | R13: =Language!$D$20 -> Vit ushtrimor 2013
A14: 1 | B14: 2 | C14: c | D14: 3 | F14: 4 | H14: 5 | J14: 6 | L14: 7 | N14: 6 | P14: 5 | R14: 7
A15: 1 | B15: A | C15: TE ARDHURA GJITHESEJ | D15: TOTAL REVENUES | H15: =N15/Presentation_curr -> 0 | J15: 0 | L15: =R15/Presentation_curr -> 0 | N15: =N16+N37+N40+N45+N46 -> 0 | P15: =P16+P37+P40+P45+P46 -> 0 | R15: =R16+R37+R40+R45+R46 -> 0
A16: 2 | B16: 70,750,71 | C16: I. TE ARDHURA E KONTRIBUTE | D16: I. REVENUES AND CONTRIBUTES | H16: 0 | J16: 0 | L16: 0 | N16: =N17+N25+N33 -> 0 | P16: =P17+P25+P33 -> 0 | R16: =R17+R25+R33 -> 0
A17: 3 | B17: 70 | C17: 1. Te Ardhura Tatimore | D17: 1. Tax revenues uNon | H17: 0 | J17: 0 | L17: 0 | N17: =SUM(N18:N24) -> 0 | P17: =SUM(P18:P24) -> 0 | R17: =SUM(R18:R24) -> 0
A18: 4 | B18: 700 | C18: Mbi te ardhurat,fitimin e ardh.kaNitale | D18: Revenues, Nrofit and caNital incomes | H18: 0 | J18: 0 | L18: 0 | N18: ='F3-2'!$N$16 -> 0 | P18: =SUM(First:Last!E634) -> 0 | R18: =SUM(First:Last!F634) -> 0
A19: 5 | B19: 702 | C19: Tatime mbi Pasurine | D19: Wealth tax | H19: 0 | J19: 0 | L19: 0 | N19: ='F3-2'!$N$21 -> 0 | P19: =SUM(First:Last!E635) -> 0 | R19: =SUM(First:Last!F635) -> 0
A20: 6 | B20: 703 | C20: Tatime mbi mallrat e sherbimet brenda vendit | D20: tax uNon goods and services within the country | H20: 0 | J20: 0 | L20: 0 | N20: ='F3-2'!$N$25 -> 0 | P20: =SUM(First:Last!E636) -> 0 | R20: =SUM(First:Last!F636) -> 0
A21: 7 | B21: 704 | C21: Takse mbi tregtine e transaks..nderkombetare | D21: tax on retail and international transactions | H21: 0 | J21: 0 | L21: 0 | N21: ='F3-2'!$N$31 -> 0 | P21: =SUM(First:Last!E637) -> 0 | R21: =SUM(First:Last!F637) -> 0
A22: 8 | B22: 705 | C22: Taksa e rruges | D22: Road tax | H22: 0 | J22: 0 | L22: 0 | N22: ='F3-2'!$N$36 -> 0 | P22: =SUM(First:Last!E638) -> 0 | R22: =SUM(First:Last!F638) -> 0
A23: 9 | B23: 708 | C23: Te tjera tatime e taksa | D23: other taxes | H23: 0 | J23: 0 | L23: 0 | N23: ='F3-2'!$N$36 -> 0 | P23: =SUM(First:Last!E639) -> 0 | R23: =SUM(First:Last!F639) -> 0
A24: 10 | B24: 709 | C24: Kamat vonesa | D24: Kamat vonesa | H24: 0 | J24: 0 | L24: 0 | N24: ='F3-2'!$N$36 -> 0 | P24: =SUM(First:Last!E640) -> 0 | R24: =SUM(First:Last!F640) -> 0
A25: 11 | B25: 75 | C25: 2. Kontribute te sig.shoqerore e shendetsore | D25: 2. Contributions and social and health insurance | H25: 0 | J25: 0 | L25: 0 | N25: =SUM(N26:N32) -> 0 | P25: =SUM(P26:P32) -> 0 | R25: =SUM(R26:R32) -> 0
A26: 12 | B26: 750 | C26: Nga te Nunesuarit | D26: from emNloyees | H26: 0 | J26: 0 | L26: 0 | N26: ='F3-2'!N40 -> 0 | P26: =SUM(First:Last!E642) -> 0 | R26: =SUM(First:Last!F642) -> 0
A27: 13 | B27: 751 | C27: Nga Nunedhenesit | D27: from emNloyer | H27: 0 | J27: 0 | L27: 0 | N27: ='F3-2'!N41 -> 0 | P27: =SUM(First:Last!E643) -> 0 | R27: =SUM(First:Last!F643) -> 0
A28: 14 | B28: 752 | C28: Nga te vetNunesuarit | D28: from self emNloyees | H28: 0 | J28: 0 | L28: 0 | N28: ='F3-2'!N42 -> 0 | P28: =SUM(First:Last!E644) -> 0 | R28: =SUM(First:Last!F644) -> 0
A29: 15 | B29: 753 | C29: Nga fermeret | D29: from farmers | H29: 0 | J29: 0 | L29: 0 | N29: ='F3-2'!N43 -> 0 | P29: =SUM(First:Last!E645) -> 0 | R29: =SUM(First:Last!F645) -> 0
A30: 16 | B30: 754 | C30: Nga sigurimet vullnetare | D30: from volunteer insurance | H30: 0 | J30: 0 | L30: 0 | N30: ='F3-2'!N44 -> 0 | P30: =SUM(First:Last!E646) -> 0 | R30: =SUM(First:Last!F646) -> 0
A31: 17 | B31: 755 | C31: Kontribute te buxhetit Ner sigurime shoqerore | D31: contributes from budget on social insurance | H31: 0 | J31: 0 | L31: 0 | N31: ='F3-2'!N45 -> 0 | P31: =SUM(First:Last!E647) -> 0 | R31: =SUM(First:Last!F647) -> 0
A32: 18 | B32: 756 | C32: Kontribute te buxhetit Ner sigurime shendetesore | D32: contributes from budget on health insurance | H32: 0 | J32: 0 | L32: 0 | N32: ='F3-2'!N46 -> 0 | P32: =SUM(First:Last!E648) -> 0 | R32: =SUM(First:Last!F648) -> 0
A33: 19 | B33: 71 | C33: 3. Te Ardhura jo tatimore | D33: 3. Non tax revenues | H33: 0 | J33: 0 | L33: 0 | N33: =SUM(N34:N36) -> 0 | P33: =SUM(P34:P36) -> 0 | R33: =SUM(R34:R36) -> 0
A34: 20 | B34: 710 | C34: Nga ndermarrjet dhe Nronesia | D34: from organic enterNrise and ownershiN | H34: 0 | J34: 0 | L34: 0 | N34: ='F3-2'!N48 -> 0 | P34: =SUM(First:Last!E650) -> 0 | R34: =SUM(First:Last!F650) -> 0
A35: 21 | B35: 711 | C35: Sherbime administ.e ardhura sekondare | D35: administrative service and secondary revenues | H35: 0 | J35: 0 | L35: 0 | N35: ='F3-2'!N53 -> 0 | P35: =SUM(First:Last!E651) -> 0 | R35: =SUM(First:Last!F651) -> 0
A36: 22 | B36: 719 | C36: Te tjera te ardhura jo tatimore | D36: other non tax revenues | H36: 0 | J36: 0 | L36: 0 | N36: ='F3-2'!N61 -> 0 | P36: =SUM(First:Last!E652) -> 0 | R36: =SUM(First:Last!F652) -> 0
A37: 23 | B37: 72 | C37: II.GRANTE KORENTE TE NERGJITHSHEM | D37: II. GENERAL ACTUAL GRANTS | H37: 0 | J37: 0 | L37: 0 | N37: =SUM(N38:N39) -> 0 | P37: =SUM(P38:P39) -> 0 | R37: =SUM(R38:R39) -> 0
A38: 24 | B38: 720 | C38: Grant korent I brendeshem | D38: Internal actual grant | H38: 0 | J38: 0 | L38: 0 | N38: ='F3-2'!N63 -> 0 | P38: =SUM(First:Last!E654) -> 0 | R38: =SUM(First:Last!F654) -> 0
A39: 25 | B39: 721 | C39: Grant korent I jashtem | D39: External actual grant | H39: 0 | J39: 0 | L39: 0 | N39: ='F3-2'!N73 -> 0 | P39: =SUM(First:Last!E655) -> 0 | R39: =SUM(First:Last!F655) -> 0
A40: 26 | C40: III.TE ARDHURA FINANCIARE | D40: III. FINANCIAL REVENUES | H40: 0 | J40: 0 | L40: 0 | N40: =SUM(N41:N44) -> 0 | P40: =SUM(P41:P44) -> 0 | R40: =SUM(R41:R44) -> 0
A41: 27 | B41: 760 | C41: Nga interesat e huadhenies brendshme | D41: from interests of internal borrowings | H41: 0 | J41: 0 | L41: 0 | N41: ='F3-2'!N85 -> 0 | P41: =SUM(First:Last!E657) -> 0 | R41: =SUM(First:Last!F657) -> 0
A42: 28 | B42: 761 | C42: Nga interesat hudhenies se huaj | D42: from interests of external borrowings | H42: 0 | J42: 0 | L42: 0 | N42: ='F3-2'!N86 -> 0 | P42: =SUM(First:Last!E658) -> 0 | R42: =SUM(First:Last!F658) -> 0
A43: 29 | B43: 765 | C43: Te ardhura nga interesat e deNozitave | D43: revenues from deNosits interests | H43: 0 | J43: 0 | L43: 0 | N43: ='F3-2'!N87 -> 0 | P43: =SUM(First:Last!E659) -> 0 | R43: =SUM(First:Last!F659) -> 0
A44: 30 | B44: 766 | C44: Te ardhura nga kembimet valutore | D44: revenues from exchange | H44: 0 | J44: 0 | L44: 0 | N44: ='F3-2'!N88 -> 0 | P44: =SUM(First:Last!E660) -> 0 | R44: =SUM(First:Last!F660) -> 0
A45: 31 | B45: 78 | C45: IV.NUNIME NER INVESTIME E RIMARRJE | D45: IV. WORKS FOR INVESTMENTS AND RETAKINGS | H45: 0 | J45: 0 | L45: 0 | N45: ='F3-2'!$N$77 -> 0 | P45: =SUM(First:Last!E661) -> 0 | R45: =SUM(First:Last!F661) -> 0
A46: 32 | B46: 77 | C46: V. TE ARDHURA TE TJERA | D46: V. OTHER REVENUES | H46: 0 | J46: 0 | L46: 0 | N46: ='F3-2'!$N$89 -> 0 | P46: =SUM(First:Last!E662) -> 0 | R46: =SUM(First:Last!F662) -> 0
A47: 33 | B47: B | C47: SHNENZIME GJITHESEJ | D47: TOTAL EXNENSES | H47: =N47/Presentation_curr -> 0 | J47: 0 | L47: =R47/Presentation_curr -> 0 | N47: =N48+N67+N68+N71 -> 0 | P47: =P48+P67+P68+P71 -> 0 | R47: =R48+R67+R68+R71 -> 0
A48: 34 | C48: I. SHNENZIME KORENTE | D48: I. ACTUAL EXNENSES | H48: 0 | J48: 0 | L48: 0 | N48: =N49+N52+N63+N64+N65+N66 -> 0 | P48: =P49+P52+P63+P64+P65+P66 -> 0 | R48: =R49+R52+R63+R64+R65+R66 -> 0
A49: 35 | B49: 600601 | C49: 1. Naga dhe kontribute Nersoneli | D49: 1. Salaries and emNloyees contribution | H49: 0 | J49: 0 | L49: 0 | N49: =SUM(N50:N51) -> 0 | P49: =SUM(P50:P51) -> 0 | R49: =SUM(R50:R51) -> 0
A50: 36 | B50: 600 | C50: Naga,shNerblime e te tjera Nersoneli | D50: Salaries, rewards and other | H50: 0 | J50: 0 | L50: 0 | N50: ='F3-1'!$N$16 -> 0 | P50: =SUM(First:Last!E666) -> 0 | R50: =SUM(First:Last!F666) -> 0 | S50: =H51+H66 -> 0 | T50: =S50/H48 -> 
A51: 37 | B51: 601 | C51: Kontrib.te sig.shoq.e shendets. | D51: Contributes of social and health insurance | H51: 0 | J51: 0 | L51: 0 | N51: ='F3-1'!$N$21 -> 0 | P51: =SUM(First:Last!E667) -> 0 | R51: =SUM(First:Last!F667) -> 0
A52: 38 | B52: 602 | C52: 2.Mallra e sherbime | D52: 2. Goods and Services | H52: 0 | J52: 0 | L52: 0 | N52: =SUM(N53:N63) -> 0 | P52: =SUM(P53:P63) -> 0 | R52: =SUM(R53:R63) -> 0
A53: 39 | B53: 6020 | C53: Materiale zyre e te Nergjitheshme | D53: General office equiNment | H53: 0 | J53: 0 | L53: 0 | N53: ='F3-1'!N25 -> 0 | P53: =SUM(First:Last!E669) -> 0 | R53: =SUM(First:Last!F669) -> 0
A54: 40 | B54: 6021 | C54: Materiale e sherbime sNeciale | D54: SNecial service and materials | H54: 0 | J54: 0 | L54: 0 | N54: ='F3-1'!N26 -> 0 | P54: =SUM(First:Last!E670) -> 0 | R54: =SUM(First:Last!F670) -> 0
A55: 41 | B55: 6022 | C55: Sherbime nga te trete | D55: Services from third Narty | H55: 0 | J55: 0 | L55: 0 | N55: ='F3-1'!N27 -> 0 | P55: =SUM(First:Last!E671) -> 0 | R55: =SUM(First:Last!F671) -> 0
A56: 42 | B56: 6023 | C56: ShNenzime transNorti | D56: TransNort exNenses | H56: 0 | J56: 0 | L56: 0 | N56: ='F3-1'!N28 -> 0 | P56: =SUM(First:Last!E672) -> 0 | R56: =SUM(First:Last!F672) -> 0
A57: 43 | B57: 6024 | C57: ShNenzime udhetimi | D57: Traveling exNenses | H57: 0 | J57: 0 | L57: 0 | N57: ='F3-1'!N29 -> 0 | P57: =SUM(First:Last!E673) -> 0 | R57: =SUM(First:Last!F673) -> 0
A58: 44 | B58: 6025 | C58: ShNenzime Ner mirembajtje te zakonshme | D58: Ordinary maintenance exNenses | H58: 0 | J58: 0 | L58: 0 | N58: ='F3-1'!N30 -> 0 | P58: =SUM(First:Last!E674) -> 0 | R58: =SUM(First:Last!F674) -> 0
A59: 45 | B59: 6026 | C59: ShNenzime Ner qeramarrje | D59: Rental exNenses | H59: 0 | J59: 0 | L59: 0 | N59: ='F3-1'!N31 -> 0 | P59: =SUM(First:Last!E675) -> 0 | R59: =SUM(First:Last!F675) -> 0
A60: 46 | B60: 6027 | C60: ShNenzime Ner detyrime e komNesime legale | D60: ExNenses for legal comNensation and liabilities | H60: 0 | J60: 0 | L60: 0 | N60: ='F3-1'!N32 -> 0 | P60: =SUM(First:Last!E676) -> 0 | R60: =SUM(First:Last!F676) -> 0
A61: 47 | B61: 6028 | C61: ShNenzime te lidhura me huamarrjen | D61: ExNenses related to borrowings | H61: 0 | J61: 0 | L61: 0 | N61: ='F3-1'!N33 -> 0 | P61: =SUM(First:Last!E677) -> 0 | R61: =SUM(First:Last!F677) -> 0
A62: 48 | B62: 6029 | C62: ShNenzime te tjera | D62: Other exNenses | H62: 0 | J62: 0 | L62: 0 | N62: ='F3-1'!N34 -> 0 | P62: =SUM(First:Last!E678) -> 0 | R62: =SUM(First:Last!F678) -> 0
A63: 49 | B63: 603 | C63: 3.Subvecionet | D63: 3. Subsidies | H63: 0 | J63: 0 | L63: 0 | N63: ='F3-1'!N35 -> 0 | P63: =SUM(First:Last!E679) -> 0 | R63: =SUM(First:Last!F679) -> 0
A64: 50 | B64: 604 | C64: 4.Transferime korrente te brendshme | D64: 4. Internal actual transfers | H64: 0 | J64: 0 | L64: 0 | N64: ='F3-1'!N41 -> 0 | P64: =SUM(First:Last!E680) -> 0 | R64: =SUM(First:Last!F680) -> 0
A65: 51 | B65: 605 | C65: 5.Transferime korrente me jashte | D65: 5. External actual transfers | H65: 0 | J65: 0 | L65: 0 | N65: ='F3-1'!N46 -> 0 | P65: =SUM(First:Last!E681) -> 0 | R65: =SUM(First:Last!F681) -> 0
A66: 52 | B66: 606 | C66: 6.Transferta Ner buxh.familjare e individe | D66: 6. Budget transfers for families and individuals | H66: 0 | J66: 0 | L66: 0 | N66: ='F3-1'!N51 -> 0 | P66: =SUM(First:Last!E682) -> 0 | R66: =SUM(First:Last!F682) -> 0
A67: 53 | B67: 68 | C67: II.KUOTA AMORTIZIMI E SHUMA NARASHIK. | D67: II. AMORTIZATION QUOTES AND FORECASTED AMOUNT | H67: 0 | J67: 0 | L67: 0 | N67: ='F3-1'!N55 -> 0 | P67: =SUM(First:Last!E683) -> 0 | R67: =SUM(First:Last!F683) -> 0
A68: 54 | B68: 65.66 | C68: III. SHNENZIME FINANCIARE | D68: III. FINANCIAL EXNENSES | H68: 0 | J68: 0 | L68: 0 | N68: =SUM(N69:N70) -> 0 | P68: =SUM(P69:P70) -> 0 | R68: =SUM(R69:R70) -> 0
A69: 55 | C69: 1. ShNenzime financiare te brendshme | D69: 1. Internal financial service | H69: 0 | J69: 0 | L69: 0 | N69: ='F3-1'!$N$61 -> 0 | P69: =SUM(First:Last!E685) -> 0 | R69: =SUM(First:Last!F685) -> 0
A70: 56 | C70: 2. ShNenzime financiare te jashtme | D70: 2. External financial service | H70: 0 | J70: 0 | L70: 0 | N70: ='F3-1'!$N$66 -> 0 | P70: =SUM(First:Last!E686) -> 0 | R70: =SUM(First:Last!F686) -> 0
A71: 57 | B71: 67 | C71: IV. SHNENZIME TE TJERA | D71: IV. OTHER EXNENSES | H71: 0 | J71: 0 | L71: 0 | N71: ='F3-1'!$N$70 -> 0 | P71: =SUM(First:Last!E687) -> 0 | R71: =SUM(First:Last!F687) -> 0
A72: 58 | B72: C | C72: TE ARDHURAT NETO KONSTATUAR | D72: DETERMINED NET INCOME | H72: 0 | J72: 0 | L72: 0 | N72: =N15-N47 -> 0 | P72: =P15-P47 -> 0 | R72: =R15-R47 -> 0
A73: 59 | C73: Nga kjo ; Rezultatet e funksionimit | D73: From this: Functioning results | H73: 0 | J73: 0 | L73: 0 | N73: ='F3-1'!N83-'F3-2'!N99 -> 0 | P73: =SUM(First:Last!E689) -> 0 | R73: =SUM(First:Last!F689) -> 0
A74: 60 | C74: Grante te konstatuara funksionimi | D74: Functioning observed grants | H74: 0 | J74: 0 | L74: 0 | N74: =N72-N73 -> 0 | P74: =SUM(First:Last!E690) -> 0 | R74: =SUM(First:Last!F690) -> 0

Sheet Balance sheet
A1: ='General information'!A1 -> Project STAR
A2: ='General information'!A2 -> xxx
A3: =A8 -> Pasqyrё Pёrmbledhёse e Konsoliduar e Gjendjes Financiare (Formati 10)
A7: ='General information'!A2 -> xxx
A8: =Language!$D$95 -> Pasqyrё Pёrmbledhёse e Konsoliduar e Gjendjes Financiare (Formati 10)
A9: =Language!$D$14 -> Pёr vitin e mbyllur mё 31 dhjetor 2014
A10: =ALL -> (Shumat ne ALL'000, nëse nuk shprehet ndryshe)
A12: =Language!$D$39 -> Numёr | B12: =Language!$D$47 -> Numri I llogarisё | C12: EMERTIMI | D12: Description
F13: =Language!$D$38 -> Shёnime shpjeguese | H13: =N13 -> Vit ushtrimor 2014 Riparaqitur | J13: =P13 -> Vit ushtrimor 2014 | L13: =R13 -> Vit ushtrimor 2013 | N13: =P13&" "&Language!$D$53 -> Vit ushtrimor 2014 Riparaqitur | P13: =Language!$D$19 -> Vit ushtrimor 2014 | R13: =Language!$D$20 -> Vit ushtrimor 2013
A14: 1 | B14: 2 | C14: 3 | D14: 3 | H14: 4 | J14: 5 | L14: 6 | N14: 4 | P14: 5 | R14: 6
A15: 1 | B15: A | C15: A K T I V E | D15: Assets | H15: =N15/Presentation_curr -> 0 | J15: =P15/Presentation_curr -> 0 | L15: =R15/Presentation_curr -> 0 | N15: =N16+N20+N25 -> 0 | P15: =P16+P20+P25 -> 0 | R15: =R16+R20+R25 -> 0
A16: 2 | B16: I | C16: AKTIVE QARKULLUESE ( 1 - 3 ) | D16: Current Assets | H16: 0 | J16: 0 | L16: 0 | N16: =N17+N18+N19 -> 0 | P16: =P17+P18+P19 -> 0 | R16: =R17+R18+R19 -> 0
A17: 3 | B17: Klasa 5 | C17: 1. Arka, Banka dhe Diponibilitete | D17: 1. Petty- Cash, Banks, and Funds Availability | H17: 0 | J17: 0 | L17: 0 | N17: ='F10 (Cons)'!N17 -> 0 | P17: ='F10 (Cons)'!P17 -> 0 | R17: ='F10 (Cons)'!R17 -> 0
A18: 13 | B18: Klasa 4 | C18: 2. Llogari te Arketueshme | D18: 2. Receivables | H18: 0 | J18: 0 | L18: 0 | N18: ='F10 (Cons)'!N27 -> 0 | P18: ='F10 (Cons)'!P27 -> 0 | R18: ='F10 (Cons)'!R27 -> 0
A19: 29 | B19: Klasa 3 | C19: 3. llogarite e gjendjes se inventarit | D19: 3. Current Inventory accounts | H19: 0 | J19: 0 | L19: 0 | N19: ='F10 (Cons)'!N43 -> 0 | P19: ='F10 (Cons)'!P43 -> 0 | R19: ='F10 (Cons)'!R43 -> 0
A20: 39 | B20: II | C20: AKTIVE JO QARKULLUESE ( 1 - 4 ) | D20: Non-current Assets | H20: 0 | J20: 0 | L20: 0 | N20: =N21+N22+N23+N24 -> 0 | P20: =P21+P22+P23+P24 -> 0 | R20: =R21+R22+R23+R24 -> 0
A21: 40 | B21: 23 | C21: 1.Investime | D21: 1. Investments | H21: 0 | J21: 0 | L21: 0 | N21: ='F10 (Cons)'!N54 -> 0 | P21: ='F10 (Cons)'!P54 -> 0 | R21: ='F10 (Cons)'!R54 -> 0
A22: 44 | B22: 25,26 | C22: 2.Aktive Financiare | D22: 2. Finance assets | H22: 0 | J22: 0 | L22: 0 | N22: ='F10 (Cons)'!N58 -> 0 | P22: ='F10 (Cons)'!P58 -> 0 | R22: ='F10 (Cons)'!R58 -> 0
A23: 47 | B23: 21,24,28 | C23: 3.Aktive te Qendrushme te trupezuara | D23: 3. Tangible assets | H23: 0 | J23: 0 | L23: 0 | N23: ='F10 (Cons)'!N61 -> 0 | P23: ='F10 (Cons)'!P61 -> 0 | R23: ='F10 (Cons)'!R61 -> 0
A24: 60 | B24: 20 | C24: 4. Aktive te Qendrushme te pa trupezuara | D24: 4. Intangible assets | H24: 0 | J24: 0 | L24: 0 | N24: ='F10 (Cons)'!N74 -> 0 | P24: ='F10 (Cons)'!P74 -> 0 | R24: ='F10 (Cons)'!R74 -> 0
A25: 65 | B25: III | C25: AKTIVE TE TJERA | D25: Other assets | H25: 0 | J25: 0 | L25: 0 | N25: ='F10 (Cons)'!N79 -> 0 | P25: ='F10 (Cons)'!P79 -> 0 | R25: ='F10 (Cons)'!R79 -> 0
A26: 69 | B26: B | C26: P A S I V E | D26: Liabilities | H26: 0 | J26: 0 | L26: 0 | N26: =N27+N30+N32 -> 0 | P26: =P27+P30+P32 -> 0 | R26: =R27+R30+R32 -> 0
A27: 70 | B27: I | C27: DETYRIME QARKULLUESE ( 1 - 2 ) | D27: Current liabilities | H27: 0 | J27: 0 | L27: 0 | N27: =N28+N29 -> 0 | P27: =P28+P29 -> 0 | R27: =R28+R29 -> 0
A28: 71 | B28: Klasa 4 | C28: 1. Llogari te pagushme | D28: 1. Accounts payable | H28: 0 | J28: 0 | L28: 0 | N28: ='F10 (Cons)'!N85 -> 0 | P28: ='F10 (Cons)'!P85 -> 0 | R28: ='F10 (Cons)'!R85 -> 0
A29: 88 | B29: 16 | C29: 2.Huamarrje Afat Shkurter te brendshme | D29: 2. Non-current liabilities | H29: 0 | J29: 0 | L29: 0 | N29: ='F10 (Cons)'!N102 -> 0 | P29: ='F10 (Cons)'!P102 -> 0 | R29: ='F10 (Cons)'!R102 -> 0
A30: 89 | B30: II | C30: DETYRIME JO QARKULLUESE | D30: Non liquid liabilities | H30: 0 | J30: 0 | L30: 0 | N30: =N31 -> 0 | P30: =P31 -> 0 | R30: =R31 -> 0
A31: 90 | B31: 17 | C31: 1.Hua te jashtme | D31: 1. Foreign loans | H31: 0 | J31: 0 | L31: 0 | N31: ='F10 (Cons)'!N104 -> 0 | P31: ='F10 (Cons)'!P104 -> 0 | R31: ='F10 (Cons)'!R104 -> 0
A32: 91 | B32: III | C32: PASIVE TE TJERA | D32: Other liabilities | H32: 0 | J32: 0 | L32: 0 | N32: ='F10 (Cons)'!N105 -> 0 | P32: ='F10 (Cons)'!P105 -> 0 | R32: ='F10 (Cons)'!R105 -> 0
A33: 96 | C33: AKTIVET NETO ( A - B ) | D33: Net assets (A - B) | H33: 0 | J33: 0 | L33: 0 | N33: =N15-N26 -> 0 | P33: =P15-P26 -> 0 | R33: =R15-R26 -> 0
A34: 97 | C34: PERFAQESUAR: Nga Fondi i Kosoliduar | D34: Presented: Consolidated budget | H34: 0 | J34: 0 | L34: 0 | N34: ='F10 (Cons)'!N111 -> 0 | P34: ='F10 (Cons)'!P111 -> 0 | R34: ='F10 (Cons)'!R111 -> 0
A35: 98 | C35: Nga kjo ; Rezult.e mbartura e te ushtrimit(+-) | D35: Carried forward results | H35: 0 | J35: 0 | L35: 0 | N35: ='F10 (Cons)'!N112 -> 0 | P35: ='F10 (Cons)'!P112 -> 0 | R35: ='F10 (Cons)'!R112 -> 0

Sheet PnL
A1: ='General information'!A1 -> Project STAR
A2: ='General information'!A2 -> xxx
A3: =A8 -> Pasqyrё Pёrmbledhёse e Konsoliduar e tё ardhurave dhe shpenzimeve tё funksionimit (Formati 11)
A7: ='General information'!A2 -> xxx
A8: =Language!$D$96 -> Pasqyrё Pёrmbledhёse e Konsoliduar e tё ardhurave dhe shpenzimeve tё funksionimit (Formati 11)
A9: =Language!$D$14 -> Pёr vitin e mbyllur mё 31 dhjetor 2014
A10: =ALL -> (Shumat ne ALL'000, nëse nuk shprehet ndryshe)
A12: =Language!$D$39 -> Numёr | B12: =Language!$D$47 -> Numri I llogarisё | C12: EMERTIMI | D12: Description
F13: =Language!$D$38 -> Shёnime shpjeguese | H13: =N13 -> Vit ushtrimor 2014 Riparaqitur | J13: =P13 -> Vit ushtrimor 2014 | L13: =R13 -> Vit ushtrimor 2013 | N13: =P13&" "&Language!D53 -> Vit ushtrimor 2014 Riparaqitur | P13: =Language!$D$19 -> Vit ushtrimor 2014 | R13: =Language!$D$20 -> Vit ushtrimor 2013
A14: 1 | B14: 2 | C14: c | D14: 3 | F14: 4 | H14: 5 | J14: 6 | L14: 7 | N14: 5 | P14: 6 | R14: 7
A15: 1 | B15: A | C15: TE ARDHURA GJITHESEJ | D15: TOTAL REVENUES | H15: =N15/Presentation_curr -> 0 | J15: 0 | L15: 0 | N15: =N16+N20+N21+N22+N23 -> 0 | P15: =P16+P20+P21+P22+P23 -> 0 | R15: =R16+R20+R21+R22+R23 -> 0
A16: 2 | B16: 70,750,71 | C16: I. TE ARDHURA E KONTRIBUTE | D16: I. REVENUES AND CONTRIBUTES | H16: 0 | J16: 0 | L16: 0 | N16: =N17+N18+N19 -> 0 | P16: =P17+P18+P19 -> 0 | R16: =R17+R18+R19 -> 0
A17: 3 | B17: 70 | C17: 1. Te Ardhura Tatimore | D17: 1. Tax revenues upon | H17: 0 | J17: 0 | L17: 0 | N17: ='F11 (Cons)'!N17 -> 0 | P17: ='F11 (Cons)'!P17 -> 0 | R17: ='F11 (Cons)'!R17 -> 0
A18: 11 | B18: 75 | C18: 2. Kontribute te sig.shoqerore e shendetsore | D18: 2. Contributions and social and health insurance | H18: 0 | J18: 0 | L18: 0 | N18: ='F11 (Cons)'!N25 -> 0 | P18: ='F11 (Cons)'!P25 -> 0 | R18: ='F11 (Cons)'!R25 -> 0
A19: 19 | B19: 71 | C19: 3. Te Ardhura jo tatimore | D19: 3. Non tax revenues | H19: 0 | J19: 0 | L19: 0 | N19: ='F11 (Cons)'!N33 -> 0 | P19: ='F11 (Cons)'!P33 -> 0 | R19: ='F11 (Cons)'!R33 -> 0
A20: 23 | B20: 72 | C20: II.GRANTE KORENTE TE PERGJITHSHEM | D20: II. GENERAL ACTUAL GRANTS | H20: 0 | J20: 0 | L20: 0 | N20: ='F11 (Cons)'!N37 -> 0 | P20: ='F11 (Cons)'!P37 -> 0 | R20: ='F11 (Cons)'!R37 -> 0
A21: 26 | C21: III.TE ARDHURA FINANCIARE | D21: III. FINANCIAL REVENUES | H21: 0 | J21: 0 | L21: 0 | N21: ='F11 (Cons)'!N40 -> 0 | P21: ='F11 (Cons)'!P40 -> 0 | R21: ='F11 (Cons)'!R40 -> 0
A22: 31 | B22: 78 | C22: IV.PUNIME PER INVESTIME E RIMARRJE | D22: IV. WORKS FOR INVESTMENTS AND RETAKINGS | H22: 0 | J22: 0 | L22: 0 | N22: ='F11 (Cons)'!N45 -> 0 | P22: ='F11 (Cons)'!P45 -> 0 | R22: ='F11 (Cons)'!R45 -> 0
A23: 32 | B23: 77 | C23: V. TE ARDHURA TE TJERA | D23: V. OTHER REVENUES | H23: 0 | J23: 0 | L23: 0 | N23: ='F11 (Cons)'!N46 -> 0 | P23: ='F11 (Cons)'!P46 -> 0 | R23: ='F11 (Cons)'!R46 -> 0
A25: 33 | B25: B | C25: SHPENZIME GJITHESEJ | D25: TOTAL EXPENSES | H25: =N25/Presentation_curr -> 0 | J25: 0 | L25: 0 | N25: =N26+N33+N34+N35 -> 0 | P25: =P26+P33+P34+P35 -> 0 | R25: =R26+R33+R34+R35 -> 0
A26: 34 | C26: I. SHPENZIME KORENTE | D26: I. ACTUAL EXPENSES | H26: 0 | J26: 0 | L26: 0 | N26: =N27+N28+N29+N30+N31+N32 -> 0 | P26: =P27+P28+P29+P30+P31+P32 -> 0 | R26: =R27+R28+R29+R30+R31+R32 -> 0
A27: 35 | B27: 600601 | C27: 1. Paga dhe kontribute personeli | D27: 1. Salaries and employees contribution | H27: 0 | J27: 0 | L27: 0 | N27: ='F11 (Cons)'!N49 -> 0 | P27: ='F11 (Cons)'!P49 -> 0 | R27: ='F11 (Cons)'!R49 -> 0
A28: 38 | B28: 602 | C28: 2.Mallra e sherbime | D28: 2. Goods and Services | H28: 0 | J28: 0 | L28: 0 | N28: ='F11 (Cons)'!N52 -> 0 | P28: ='F11 (Cons)'!P52 -> 0 | R28: ='F11 (Cons)'!R52 -> 0
A29: 49 | B29: 603 | C29: 3.Subvecionet | D29: 3. Subsidies | H29: 0 | J29: 0 | L29: 0 | N29: ='F11 (Cons)'!N63 -> 0 | P29: ='F11 (Cons)'!P63 -> 0 | R29: ='F11 (Cons)'!R63 -> 0
A30: 50 | B30: 604 | C30: 4.Transferime korrente te brendshme | D30: 4. Internal actual transfers | H30: 0 | J30: 0 | L30: 0 | N30: ='F11 (Cons)'!N64 -> 0 | P30: ='F11 (Cons)'!P64 -> 0 | R30: ='F11 (Cons)'!R64 -> 0
A31: 51 | B31: 605 | C31: 5.Transferime korrente me jashte | D31: 5. External actual transfers | H31: 0 | J31: 0 | L31: 0 | N31: ='F11 (Cons)'!N65 -> 0 | P31: ='F11 (Cons)'!P65 -> 0 | R31: ='F11 (Cons)'!R65 -> 0
A32: 52 | B32: 606 | C32: 6.Transferta per buxh.familjare e individe | D32: 6. Budget transfers for families and individuals | H32: 0 | J32: 0 | L32: 0 | N32: ='F11 (Cons)'!N66 -> 0 | P32: ='F11 (Cons)'!P66 -> 0 | R32: ='F11 (Cons)'!R66 -> 0
A33: 53 | B33: 68 | C33: II.KUOTA AMORTIZIMI E SHUMA PARASHIK. | D33: II. AMORTIZATION QUOTES AND FORECASTED AMOUNT | H33: 0 | J33: 0 | L33: 0 | N33: ='F11 (Cons)'!N67 -> 0 | P33: ='F11 (Cons)'!P67 -> 0 | R33: ='F11 (Cons)'!R67 -> 0
A34: 54 | B34: 65.66 | C34: III. SHPENZIME FINANCIARE | D34: III. FINANCIAL EXPENSES | H34: 0 | J34: 0 | L34: 0 | N34: ='F11 (Cons)'!N68 -> 0 | P34: ='F11 (Cons)'!P68 -> 0 | R34: ='F11 (Cons)'!R68 -> 0
A35: 57 | B35: 67 | C35: IV. SHPENZIME TE TJERA | D35: IV. OTHER EXPENSES | H35: 0 | J35: 0 | L35: 0 | N35: ='F11 (Cons)'!N71 -> 0 | P35: ='F11 (Cons)'!P71 -> 0 | R35: ='F11 (Cons)'!R71 -> 0
A36: 58 | B36: C | C36: TE ARDHURAT NETO KONSTATUAR | D36: DETERMINED NET INCOME | H36: 0 | J36: 0 | L36: 0 | N36: =N15-N25 -> 0 | P36: =P15-P25 -> 0 | R36: =R15-R25 -> 0
A37: 59 | C37: Nga kjo ; Rezultatet e funksionimit | D37: From this: Functioning results | H37: 0 | J37: 0 | L37: 0 | N37: ='F11 (Cons)'!N73 -> 0 | P37: ='F11 (Cons)'!P73 -> 0 | R37: ='F11 (Cons)'!R73 -> 0
A38: 60 | C38: Grante te konstatuara funksionimi | D38: Functioning observed grants | H38: 0 | J38: 0 | L38: 0 | N38: ='F11 (Cons)'!N74 -> 0 | P38: ='F11 (Cons)'!P74 -> 0 | R38: ='F11 (Cons)'!R74 -> 0

Sheet Restated-->

Sheet F1 restated
A1: ='General information'!A1 -> Project STAR
A2: ='General information'!A2 -> xxx
A3: =A8 -> Bilanci Kontabёl - Aktivi (Formati 1)
A7: ='General information'!A2 -> xxx
A8: =Language!$D$85 -> Bilanci Kontabёl - Aktivi (Formati 1) | F8: LGU name | G8: LGU name | H8: LGU name | I8: LGU name | J8: LGU name | K8: LGU name | L8: LGU name | M8: LGU name | N8: LGU name | O8: LGU name | P8: LGU name | Q8: LGU name | R8: LGU name | S8: LGU name | T8: LGU name | U8: LGU name | V8: LGU name | W8: LGU name | X8: LGU name
A9: =Language!$D$14 -> Pёr vitin e mbyllur mё 31 dhjetor 2014
A10: =ALL -> (Shumat ne ALL'000, nëse nuk shprehet ndryshe)
A11: =Language!$D$39 -> Numёr | B11: =Language!$D$47 -> Numri I llogarisё | C11: EMERTIMI I LLOGARIVE TE AKTIVIT | D11: Assets | F11: =Language!$D$11&" "&Language!$D$53 -> Mё 31 dhjetor 2014 Riparaqitur | G11: =Language!$D$11&" "&Language!$D$53 -> Mё 31 dhjetor 2014 Riparaqitur | H11: =Language!$D$11&" "&Language!$D$53 -> Mё 31 dhjetor 2014 Riparaqitur | I11: =Language!$D$11&" "&Language!$D$53 -> Mё 31 dhjetor 2014 Riparaqitur | J11: =Language!$D$11&" "&Language!$D$53 -> Mё 31 dhjetor 2014 Riparaqitur | K11: =Language!$D$11&" "&Language!$D$53 -> Mё 31 dhjetor 2014 Riparaqitur | L11: =Language!$D$11&" "&Language!$D$53 -> Mё 31 dhjetor 2014 Riparaqitur | M11: =Language!$D$11&" "&Language!$D$53 -> Mё 31 dhjetor 2014 Riparaqitur | N11: =Language!$D$11&" "&Language!$D$53 -> Mё 31 dhjetor 2014 Riparaqitur | O11: =Language!$D$11&" "&Language!$D$53 -> Mё 31 dhjetor 2014 Riparaqitur | P11: =Language!$D$11&" "&Language!$D$53 -> Mё 31 dhjetor 2014 Riparaqitur | Q11: =Language!$D$11&" "&Language!$D$53 -> Mё 31 dhjetor 2014 Riparaqitur | R11: =Language!$D$11&" "&Language!$D$53 -> Mё 31 dhjetor 2014 Riparaqitur | S11: =Language!$D$11&" "&Language!$D$53 -> Mё 31 dhjetor 2014 Riparaqitur | T11: =Language!$D$11&" "&Language!$D$53 -> Mё 31 dhjetor 2014 Riparaqitur | U11: =Language!$D$11&" "&Language!$D$53 -> Mё 31 dhjetor 2014 Riparaqitur | V11: =Language!$D$11&" "&Language!$D$53 -> Mё 31 dhjetor 2014 Riparaqitur | W11: =Language!$D$11&" "&Language!$D$53 -> Mё 31 dhjetor 2014 Riparaqitur | X11: =Language!$D$11&" "&Language!$D$53 -> Mё 31 dhjetor 2014 Riparaqitur
A12: 1 | B12: 12 | C12: Rezultate te mbartura(saldo debitore) | D12: Brought forward results
A13: 2 | B13: A | C13: AKTIVE TE QENDRUESHME | D13: Non Current Assets
A14: 3 | B14: 20, 230 | C14: I.Te pa trupezuara | D14: I. Intangible Assets
A15: 4 | B15: 201 | C15: Prime te emisionit dhe rimbursimit te huave | D15: Amounts to be remitted and loan reimbursements
A16: 5 | B16: 202 | C16: Studime dhe kerkime | D16: Studies and research
A17: 6 | B17: 203 | C17: Koncesione, patenta,licenca e tjera ngjashme | D17: Concessions, license, other similar licenses
A18: 7 | B18: 209 | C18: Amortizimi i aktiveve qendrushme te pa trupezuara(-) | D18: Amortization of current intangible assets (-)
A19: 8 | B19: 230 | C19: Shpenzime per rritjen e aktiv.qendr.patrupezuara | D19: Expenses for increase of current intangible assets
A20: 9 | B20: 21,23, 24,28 | C20: II.Akt.Qendr.te Trupezuara | D20: II. Tangible Assets
A21: 10 | B21: 210 | C21: Toka,troje,Terene | D21: Land
A22: 11 | B22: 211 | C22: Pyje,Kullota Plantacione | D22: Forests, Pasture, Plantation
A23: 12 | B23: 212 | C23: Ndertime e Konstruksione | D23: Building and Constructions
A24: 13 | B24: 213 | C24: Rruge,rrjete,vepra ujore | D24: Roads, networks, water facilities
A25: 14 | B25: 214 | C25: Instalime teknike,makineri,paisje,vegla pune | D25: Technical installment, machinery, equipment, working tools
A26: 15 | B26: 215 | C26: Mjete transporti | D26: Transport vehicles
A27: 16 | B27: 216 | C27: Rezerva shtetrore | D27: Government reserve
A28: 17 | B28: 217 | C28: Kafshe pune e prodhimi | D28: Working and production animals
A29: 18 | B29: 218 | C29: Inventar ekonomik | D29: Economic Inventory
A30: 19 | B30: 219 | C30: Amortizimi aktiv.Qendr.te trupezuara(-) | D30: Depreciation of tangible assets
A31: 20 | B31: 231 | C31: Shpenzime proces per rritjen e AQT | D31: Expenses in process for increase of current tangible assets
A32: 21 | B32: 232 | C32: Shpenzime proces per transferime kapitale | D32: Expenses in process for capital transfers
A33: 22 | B33: 24 | C33: Aktive te Qend.te trupezuara te demtuara | D33: Damaged current tangible assets
A34: 23 | B34: 28 | C34: Caktime | D34: Assignments
A35: 24 | B35: 25.26 | C35: III.Aktive Financiare | D35: III. Financial Assets
A36: 25 | B36: 25 | C36: Huadhenie e nenhuadhenie | D36: Loan and sub-loans
A37: 26 | B37: 26 | C37: Pjesmarrje ne kapitalin e vet | D37: Participation with own capital
A38: 27 | B38: B | C38: AKTIVE QARKULLUESE | D38: CURRENT ASSETS
A39: 28 | B39: Klasa 3 | C39: I.Gjendja e Inventarit | D39: I. Inventory Status
A40: 29 | B40: 31 | C40: Materiale | D40: Materials
A41: 30 | B41: 32 | C41: Objekte inventari | D41: Inventory Objects
A42: 31 | B42: 33 | C42: Prodhime, punime e sherbime ne proces | D42: Production, work and services in process
A43: 32 | B43: 34 | C43: Produkte | D43: Products
A44: 33 | B44: 35 | C44: Mallra | D44: Goods
A45: 34 | B45: 36 | C45: Gje e gjalle ne rritje e majmeri | D45: Animals fattening
A46: 35 | B46: 37 | C46: Gjendje te pambritura ose prane te treteve | D46: Undelivered items or close to third party
A47: 36 | B47: 38 | C47: Diferenca nga cmimet e magazinimit | D47: Differences from warehouse prices
A48: 37 | B48: 39 | C48: Shuma te parashikuara per zhvleresim te inventarit(-) | D48: Forecasted amounts for inventory depreciation (-)
A49: 38 | B49: Klasa 4 | C49: II.Kerkesa arketimi mbi Debitoret | D49: II. Request for receivables
A50: 39 | B50: 409 | C50: Furnitore(Debitore),parapagime pagesa pjesore | D50: Suppliers, prepayments or partial payment
A51: 40 | B51: 411-418 | C51: Kliente e llogari te ngjashme | D51: Similar clients or accounts
A52: 41 | B52: 423.429 | C52: Personeli, paradhenie, deficite e gjoba | D52: Employees, prepayment, deficits and penalties
A53: 42 | B53: 431 | C53: Te drejta e taksa per t'u derdhur ne shtet | D53: Rights and taxes to deposit to government
A54: 43 | B54: 432 | C54: Tatime mbledh nga shteti per llog.Pushtetit Lokal | D54: Taxes collected from central government for the Local Government
A55: 44 | B55: 433 | C55: Shenz.fatkeqesi natyrore qe mbulon shteti | D55: Expenses for natural disaster covered from the government
A56: 45 | B56: 4342 | C56: Te tjera operacione me shtetin(debitor) | D56: Other operations with the government (debtor)
A57: 46 | B57: 435 | C57: Sigurime Shoqerore | D57: Social Insurance
A58: 47 | B58: 436 | C58: Sigurime Shendetesore | D58: Health Insurance
A59: 48 | B59: 437.438 | C59: Organizma te tjere shoqerore | D59: Other social organizations
A60: 49 | B60: 44 | C60: Institucione te tjera publike | D60: Other public institutions
A61: 50 | B61: 45 | C61: Mardhenie me instit.brenda dhe jasht sistemit | D61: Relationships with institutions in and outside the system
A62: 51 | B62: 465 | C62: Efekte per t'u arketuar nga shitja let.vlere vendosjes | D62: Receivables from selling of bonds
A63: 52 | B63: 468 | C63: Debitore te ndryshem | D63: Different Debtors
A64: 53 | B64: 49 | C64: Shuma te parashikuara per zhvleresim(-) | D64: Forecasted amounts for depreciation (-)
A65: 54 | B65: 50.59 | C65: III.Llogarite financiare | D65: III. Financial accounts
A66: 55 | B66: 50 | C66: Letra me vlere te vendosjes | D66: Securities
A67: 56 | B67: 511 | C67: Vlera per tu arketuar | D67: Amounts to receive
A68: 57 | B68: 512 | C68: Llogari ne banke | D68: Bank
A69: 58 | B69: 520 | C69: Disponibilitete ne thesar | D69: Treasury funds
A70: 59 | B70: 531 | C70: Llogari ne arke | D70: Petty-cash
A71: 60 | B71: 532 | C71: Vlera te tjera | D71: Other amounts
A72: 61 | B72: 54 | C72: Akreditiva dhe paradhenie | D72: Recognized and prepayments
A73: 62 | B73: 56 | C73: Llogari ne organizma krediti | D73: Accounts in Lending Institutions
A74: 63 | B74: 59 | C74: Provigjone zhvlersimi letra me vlere vendosjes(-) | D74: devaluation provisions on securities(-)
A75: 64 | B75: C | C75: LLOGARI TE TJERA AKTIVE | D75: Other Assets
A76: 65 | B76: 477 | C76: Diferenca konvertimi aktive | D76: Assets conversion differences
A77: 66 | B77: 481 | C77: Shpenz.per tu shpernd.ne disa ushtrime | D77: Expenses to distribute in several exercises
A78: 67 | B78: 486 | C78: Shpenzime te periudhave te ardheshme | D78: Expenses in the future
A79: 68 | B79: 85 | C79: REZULTATI I USHTRIMIT(saldo debitore) | D79: EXERCISE RESULTS (saldo debitore)
A80: 69 | B80: X | C80: TOTALI I AKTIVIT | D80: ASSETS TOTAL
A82: 70 | B82: 80.81 | C82: LLOGARITE JASHTE BILANCIT | D82: ACCOUNTS OUT OF BALANCE SHEET
A83: 71 | B83: 80,81 | C83: Evidenca aktive | D83: Active evidences

Sheet F2 restated
A1: ='General information'!A1 -> Project STAR
A2: ='General information'!A2 -> xxx
A3: =A8 -> Bilanci Kontabёl - Pasivi (Formati 2)
A7: ='General information'!A2 -> xxx
A8: =Language!$D$86 -> Bilanci Kontabёl - Pasivi (Formati 2) | F8: LGU name | G8: LGU name | H8: LGU name | I8: LGU name | J8: LGU name | K8: LGU name | L8: LGU name | M8: LGU name | N8: LGU name | O8: LGU name | P8: LGU name | Q8: LGU name | R8: LGU name | S8: LGU name | T8: LGU name | U8: LGU name | V8: LGU name | W8: LGU name | X8: LGU name | Y8: LGU name
A9: =Language!$D$14 -> Pёr vitin e mbyllur mё 31 dhjetor 2014
A10: =ALL -> (Shumat ne ALL'000, nëse nuk shprehet ndryshe)
A11: =Language!$D$39 -> Numёr | B11: =Language!$D$47 -> Numri I llogarisё | C11: EMERTIMI I LLOGARIVE TE PASIVIT | D11: Liabilities
F12: =Language!$D$19&" "&Language!$D$53 -> Vit ushtrimor 2014 Riparaqitur | G12: =F12 -> Vit ushtrimor 2014 Riparaqitur | H12: =G12 -> Vit ushtrimor 2014 Riparaqitur | I12: Vit ushtrimor 2014 Riparaqitur | J12: Vit ushtrimor 2014 Riparaqitur | K12: Vit ushtrimor 2014 Riparaqitur | L12: Vit ushtrimor 2014 Riparaqitur | M12: Vit ushtrimor 2014 Riparaqitur | N12: Vit ushtrimor 2014 Riparaqitur | O12: Vit ushtrimor 2014 Riparaqitur | P12: Vit ushtrimor 2014 Riparaqitur | Q12: Vit ushtrimor 2014 Riparaqitur | R12: Vit ushtrimor 2014 Riparaqitur | S12: Vit ushtrimor 2014 Riparaqitur | T12: Vit ushtrimor 2014 Riparaqitur | U12: Vit ushtrimor 2014 Riparaqitur | V12: Vit ushtrimor 2014 Riparaqitur | W12: Vit ushtrimor 2014 Riparaqitur | X12: Vit ushtrimor 2014 Riparaqitur | Y12: =X12 -> Vit ushtrimor 2014 Riparaqitur
A13: 1 | B13: A | C13: FONDE TE VETA | D13: OWN FUNDS
A14: 2 | B14: 10 | C14: I. Fonde te veta | D14: I. Own funds
A15: 3 | B15: 101 | C15: Fonde baze | D15: Base funds
A16: 4 | B16: 105 | C16: Grante te brendshme kapitale | D16: Capital internal grants
A17: 5 | B17: 106 | C17: Grante te huaja kapitale | D17: Capital foreigner grants
A18: 6 | B18: 107 | C18: Vlera Akt.Qend.te caktuara ne perdorim | D18: Current assets in use
A19: 7 | B19: 109 | C19: Rezerva nga rivlersimi aktiveve te qendrushme | D19: Reserves from revaluation of current assets
A20: 8 | B20: 11 | C20: II.Fonde te tjera te veta | D20: II. Other own funds
A21: 9 | B21: 111 | C21: Fonde rezerve | D21: Reserve funds
A22: 10 | B22: 115 | C22: Caktim nga rezultati i vitit per investime | D22: Assignments from the year results for investments
A23: 11 | B23: 116 | C23: Te ardhura nga shitja e Ak.Qendrushme | D23: Revenues from selling of current assets
A24: 12 | B24: 12 | C24: III.Rezultati i mbartur | D24: III. Carried result
A25: 13 | B25: 13 | C25: IV.Subvecione te jashtezakonshme( - ) | D25: IV. Exceptional subsidiaries ( - )
A26: 14 | B26: 14 | C26: V.Pjesemarrje te instit.ne invest.per te trete | D26: V. Participation of the institution in investing for third parties
A27: 15 | B27: 15 | C27: VI.Shuma parashikuara per rreziqe e shpenz. | D27: VI. Forecasted amounts for disasters and expenses
A28: 16 | B28: B | C28: D E T Y R I M E | D28: LIABILITIES
A29: 17 | B29: 16,17,18 | C29: I.Borxhe afatgjate | D29: I. Long-term debts
A30: 18 | B30: 16 | C30: Huamarrje e brendeshme dhe te ngjashme | D30: Internal borrowing and similar
A31: 19 | B31: 17 | C31: Huamarrje e huaj | D31: Borrowing out of the country
A32: 20 | B32: Klasa 4 | C32: II.Detyrime afatshkurter | D32: II. Short term liabilities
A33: 21 | B33: 419 | C33: Kliente(Kreditore), parapagese pjesore | D33: Clients (Creditors ), partial prepayment
A34: 22 | B34: 401-408 | C34: Furnitore e llogari te lidhura me to | D34: Suppliers and related accounts
A35: 23 | B35: 42 | C35: Personeli e llogari te lidhura me to | D35: Employees and related accounts
A36: 24 | B36: 431 | C36: Detyrime ndaj Shtetit per tatim-taksa | D36: Liabilities to government for taxes
A37: 25 | B37: 432 | C37: Tatime mbedhura nga shteti per llog.Pusht.Lokal | D37: Taxes collected from government for the local government
A38: 26 | B38: 433 | C38: Shteti fatkeqesi natyrore | D38: Government natural disaster
A39: 27 | B39: 4341 | C39: Te tjera operacione me shtetin(kreditor) | D39: Te tjera operacione me shtetin(kreditor)
A40: 28 | B40: 435 | C40: Sigurime shoqerore | D40: Social Insurance
A41: 29 | B41: 436 | C41: Sigurime shendetsore | D41: Health Insurance
A42: 30 | B42: 437.438 | C42: Organizma te tjere shoqerore | D42: Other social organizations
A43: 31 | B43: 44 | C43: Institucione te tjera publike | D43: Other public institutions
A44: 32 | B44: 45 | C44: Marrdhenie me institucione brenda e jasht sistemit | D44: Relationships with institutions in and outside the system
A45: 33 | B45: 460 | C45: Huadhenes | D45: Borrower
A46: 34 | B46: 464 | C46: Detyrime per t'u paguar per blerjen e letr,vlere | D46: Liabilities for bond purchasing
A47: 35 | B47: 466 | C47: Kreditore per mjete ne ruajtje | D47: Creditors for assets under guard
A48: 36 | B48: 467 | C48: Kreditore te ndryshem | D48: Other creditors
A49: 37 | B49: C | C49: LLOGARI TE TJERA | D49: OTHER ACCOUNTS
A50: 38 | B50: 475 | C50: Te ardhura per tu regjist.vitet pasardhese | D50: incomes to register in the coming years
A51: 39 | B51: 478 | C51: Diferenca konvertime pasive | D51: passive converting differences
A52: 40 | B52: 480 | C52: Te ardhura per tu klasifikuar ose rregulluar | D52: Incomes to classify or adjust
A53: 41 | B53: 487 | C53: te ardhura te arketuara para nxjerrjes titullit | D53: incomes received before title exposure
A54: 42 | B54: 85 | C54: REZULTATI I USHTRIMIT(Saldo kreditore) | D54: Result (credit amount)
A55: 43 | B55: X | C55: T O T A L I I P A S I V I T | D55: TOTAL LIABILITY
A57: 44 | B57: 80.81 | C57: LLOGARITE JASHTE BILANCIT | D57: ACCOUNTS OUT OF BALANCE SHEET
A58: 45 | B58: 80,81 | C58: Evidenca pasive | D58: Passive evidences

Sheet F3-1 restated
A1: ='General information'!A1 -> Project STAR
A2: ='General information'!A2 -> xxx
A3: =A8 -> Pasqyra e Shpenzimeve (Formati 3/1)
A7: ='General information'!A2 -> xxx
A8: =Language!$D$87 -> Pasqyra e Shpenzimeve (Formati 3/1) | F8: LGU name | G8: LGU name | H8: LGU name | I8: LGU name | J8: LGU name | K8: LGU name | L8: LGU name | M8: LGU name | N8: LGU name | O8: LGU name | P8: LGU name | Q8: LGU name | R8: LGU name | S8: LGU name | T8: LGU name | U8: LGU name | V8: LGU name | W8: LGU name | X8: LGU name | Y8: LGU name
A9: =Language!$D$14 -> Pёr vitin e mbyllur mё 31 dhjetor 2014
A10: =ALL -> (Shumat ne ALL'000, nëse nuk shprehet ndryshe)
A11: =Language!$D$39 -> Numёr | B11: =Language!$D$47 -> Numri I llogarisё | C11: PERSHKRIMI I SHPENZIMEVE TE USHTRIMIT
D12: Description of Expenses | F12: =Language!$D$19&" "&Language!$D$53 -> Vit ushtrimor 2014 Riparaqitur | G12: =Language!$D$19&" "&Language!$D$53 -> Vit ushtrimor 2014 Riparaqitur | H12: =Language!$D$19&" "&Language!$D$53 -> Vit ushtrimor 2014 Riparaqitur | I12: =Language!$D$19&" "&Language!$D$53 -> Vit ushtrimor 2014 Riparaqitur | J12: =Language!$D$19&" "&Language!$D$53 -> Vit ushtrimor 2014 Riparaqitur | K12: =Language!$D$19&" "&Language!$D$53 -> Vit ushtrimor 2014 Riparaqitur | L12: =Language!$D$19&" "&Language!$D$53 -> Vit ushtrimor 2014 Riparaqitur | M12: =Language!$D$19&" "&Language!$D$53 -> Vit ushtrimor 2014 Riparaqitur | N12: =Language!$D$19&" "&Language!$D$53 -> Vit ushtrimor 2014 Riparaqitur | O12: =Language!$D$19&" "&Language!$D$53 -> Vit ushtrimor 2014 Riparaqitur | P12: =Language!$D$19&" "&Language!$D$53 -> Vit ushtrimor 2014 Riparaqitur | Q12: =Language!$D$19&" "&Language!$D$53 -> Vit ushtrimor 2014 Riparaqitur | R12: =Language!$D$19&" "&Language!$D$53 -> Vit ushtrimor 2014 Riparaqitur | S12: =Language!$D$19&" "&Language!$D$53 -> Vit ushtrimor 2014 Riparaqitur | T12: =Language!$D$19&" "&Language!$D$53 -> Vit ushtrimor 2014 Riparaqitur | U12: =Language!$D$19&" "&Language!$D$53 -> Vit ushtrimor 2014 Riparaqitur | V12: =Language!$D$19&" "&Language!$D$53 -> Vit ushtrimor 2014 Riparaqitur | W12: =Language!$D$19&" "&Language!$D$53 -> Vit ushtrimor 2014 Riparaqitur | X12: =Language!$D$19&" "&Language!$D$53 -> Vit ushtrimor 2014 Riparaqitur | Y12: =Language!$D$19&" "&Language!$D$53 -> Vit ushtrimor 2014 Riparaqitur
A13: a | B13: b | C13: c
A14: 1 | B14: Klasa 6 | C14: A. SHPENZIMET SHFRYTEZIMI (I - III) | D14: A. Expenses for exploitation/usage
A15: 2 | B15: 60 | C15: I. Shpenzime Korrente | D15: I. Current expenses
A16: 3 | B16: 600 | C16: Paga,shperblime e te tjera personeli | D16: Salaries, bonuses
A17: 4 | B17: 6001 | C17: Paga, personeli i perhershem | D17: Salaries
A18: 5 | B18: 6002 | C18: Paga, personel I perkohshem | D18: Temporary salaries
A19: 6 | B19: 6003 | C19: Shperblime | D19: Bonuses
A20: 7 | B20: 6009 | C20: Shpenzime tjera personeli | D20: Other personal expenses
A21: 8 | B21: 601 | C21: Kontrib.te sig.shoq.e shendets. | D21: health and social insurance contributions
A22: 9 | B22: 6010 | C22: Kontribute per sigurimet shoqerore | D22: Insurance contributions
A23: 10 | B23: 6011 | C23: Kontribute per sigurimet shendetesore | D23: Health insurance
A24: 11 | B24: 602 | C24: Mallra dhe sherbime te tjera | D24: Other goods and services
A25: 12 | B25: 6020 | C25: Materiale zyre e te pergjitheshme | D25: stationary
A26: 13 | B26: 6021 | C26: Materiale dhe sherbime speciale | D26: Special services
A27: 14 | B27: 6022 | C27: Sherbime nga te trete | D27: Services from third party
A28: 15 | B28: 6023 | C28: Shpenzime transporti | D28: Transport expenses
A29: 16 | B29: 6024 | C29: Shpenzime udhetimi | D29: Travel expense
A30: 17 | B30: 6025 | C30: Shpenzime per mirembajtje te zakonshme | D30: Ordinary maintenance expenses
A31: 18 | B31: 6026 | C31: Shpenzime per qeramarrje | D31: Rent expenses
A32: 19 | B32: 6027 | C32: Shpenzime per detyrime per kompesime legale | D32: Expenses for legal liability for compensation
A33: 20 | B33: 6028 | C33: Shpenzime te lidhura me huamarrjen per hua | D33: Borrowing costs related to loans
A34: 21 | B34: 6029 | C34: Shpenzime te tjera operative | D34: Other operating expenses
A35: 22 | B35: 603 | C35: Subvencionet | D35: Subsidies
A36: 23 | B36: 6030 | C36: Subvecione per diference cmimi | D36: Subsidies for price differences
A37: 24 | B37: 6031 | C37: Subvecione per te nxitur punesimin | D37: Subsidies to promote employment
A38: 25 | B38: 6032 | C38: Subvecione per te mbuluar humbjet | D38: Subsidies to cover loss
A39: 26 | B39: 6033 | C39: Subvecione per sipermarrjet individuale | D39: Subsidies for entrepreneurship
A40: 27 | B40: 6039 | C40: Subvecione te tjera | D40: Other subsidies
A41: 28 | B41: 604 | C41: Transferime korrente te brendshme | D41: Current internal transfers
A42: 29 | B42: 6040 | C42: Transferime korente tek nivele tjera te Qeverise | D42: Current transfers to other government levels
A43: 30 | B43: 6041 | C43: Transferime korente tek institucione qeveritare te ndryshme | D43: Current transfers to various government institutions
A44: 31 | B44: 6042 | C44: Transferime korente tek Sigurimet Shoqerore e Shendetsore | D44: Current transfers for social and health insurance
A45: 32 | B45: 6044 | C45: Transferime korente tek Organizatat jo fitimprurse | D45: Current transfers for not for profit organizations
A46: 33 | B46: 605 | C46: Transferime korrente me jashte | D46: Current transfers with outsiders
A47: 34 | B47: 6051 | C47: Transferime Per Organizatat Nderkombetare | D47: Transfers for IOS
A48: 35 | B48: 6052 | C48: Transferime Per Qeverite e Huaja | D48: Transfers for foreign governments
A49: 36 | B49: 6053 | C49: Transferime Per institucionet jo fitimprurese te huaja | D49: Transfers for non not-for profit organizations
A50: 37 | B50: 6059 | C50: Transferime Te tjera korrente me jashte shtetit | D50: Other current transfers with foreign governments
A51: 38 | B51: 606 | C51: Transferta per buxh.familjare e individe | D51: Transfers family budges and other individuals
A52: 39 | B52: 6060 | C52: Transferta Te paguara nga ISSH e ISKSH | D52: Transfers paid from ISS and HII
A53: 40 | B53: 6061 | C53: Transferta Paguara nga Inst.Tjera e Org.Pusht.Vendor | D53: Transfers paid from other institutions and Local government
A54: 41 | B54: 63 | C54: II. Ndryshimi I gjendjeve te inventarit ( + - ) | D54: II. Change in inventory balances
A55: 42 | B55: 68 | C55: III. Kuota amortizimi dhe shuma te parashikuara | D55: III.Depreciation rates and expected balances
A56: 43 | B56: 681 | C56: Kuotat e amortizimit te shfrytezimit | D56: Amortization rates on exploitation
A57: 44 | B57: 682 | C57: Vlera mbetur e AQ te nxjerra jasht perdorimit e shitura | D57: Residual value on fixed assets, damaged or disposed
A58: 45 | B58: 683 | C58: Shuma te parashikuara te shfrytezimit | D58: Amounts provided for exploitations
A59: 46 | B59: 686 | C59: Shuma te parashikuara per aktivet financiare | D59: Amounts provided for finance assets
A60: 47 | B60: 65, 66 | C60: B. SHPENZIME FINANCIARE(I+II) | D60: B. Finance expenses
A61: 48 | B61: 65 | C61: I. Shpen.financiare te brendshme | D61: I. Internal finance expenses
A62: 49 | B62: 650 | C62: Interesa per bono thesarit dhe kredi direkte | D62: Bond interest rates and direct loans
A63: 50 | B63: 651 | C63: Interesa per huamarrje te tj. Brendshme | D63: Borrowing costs related to loans
A64: 51 | B64: 652 | C64: Interesa Letra tjera vlere Qeverise | D64: Other interest on government securities
A65: 52 | B65: 656 | C65: Shpenz.nga kembimet valutore | D65: foreign exchange expenses
A66: 53 | B66: 66 | C66: II. Shpen.financiare te jashtme | D66: II. External finance expenses
A67: 54 | B67: 660 | C67: Interesa per huamarrje nga Qeveri.te Huaja | D67: Interest on loans from Foreign Governments
A68: 55 | B68: 661 | C68: Interesa per financime nga Institucionet.nderkomb | D68: Interest on financing from international organizations
A69: 56 | B69: 662 | C69: Interesa per huamarrje te tjera jashtme | D69: Interest on other foreign loans
A70: 57 | B70: 67 | C70: C. SHPENZ.TE JASHTEZAKONSHME | D70: C. Extraordinary Expenses
A71: 58 | B71: 677 | C71: Humbje nga gabime te lejuara ne ushtr.paraardhese | D71: Losses from allowed errors from previous years
A72: 59 | B72: 678 | C72: Shpenzime te tjera te jashtzakonshme | D72: Other Extraordinary expenses
A73: 60 | B73: Klasa 6 | C73: TOTALI I SHPENZIMEVE | D73: TOTAL EXPENSES
A74: 61 | B74: 82,83,84 | C74: D. OPERAC.KORIGJ.REZULTATIT | D74: D. RESULT CORRECTIONS ACTIVITES
A75: 62 | B75: 828 | C75: Tituj te ardhurash te anulluara | D75: Names of cancelled revenues
A76: 63 | B76: 831 | C76: Caktim te ardh.funks.per investime | D76: Determination of revenues for investments
A77: 64 | B77: 8420 | C77: Derdhje te ardhura ne buxhet | D77: Revenues deposited in the budget
A78: 65 | B78: 8421 | C78: Derdhje buxhet te ardhuurave pa perdorura | D78: Deposit in the budget of unused revenues
A79: 66 | B79: 8422 | C79: Transferim te ardhurave brenda sistemit | D79: Transfers of revenues within the system
A80: 67 | B80: 8423 | C80: Transferime per ndrysh gjendje | D80: Transfers for changes in situation
A81: 68 | B81: 8424 | C81: Transferim per debitore te konstatuar e te ngjashme | D81: Transfers for identified debtors and similar items
A82: 69 | B82: Klasa 6 e 8 | C82: TOTALI OPERACIONEVE | D82: TOTAL FROM OPERATIONS
A83: 70 | B83: 85 | C83: REZULTATI NGA FUNKSIONIMI | D83: RESULTS FROM FUNCTIONING
A84: 71 | B84: X | C84: T O T A L I | D84: TOTAL

Sheet F3-2 restated
A1: ='General information'!A1 -> Project STAR
A2: ='General information'!A2 -> xxx
A3: =A8 -> Pasqyra e tё Ardhurave (Formati 3/2)
A7: ='General information'!A2 -> xxx
A8: =Language!$D$88 -> Pasqyra e tё Ardhurave (Formati 3/2) | F8: LGU name | G8: LGU name | H8: LGU name | I8: LGU name | J8: LGU name | K8: LGU name | L8: LGU name | M8: LGU name | N8: LGU name | O8: LGU name | P8: LGU name | Q8: LGU name | R8: LGU name | S8: LGU name | T8: LGU name | U8: LGU name | V8: LGU name | W8: LGU name | X8: LGU name | Y8: LGU name
A9: =Language!$D$14 -> Pёr vitin e mbyllur mё 31 dhjetor 2014
A10: =ALL -> (Shumat ne ALL'000, nëse nuk shprehet ndryshe)
A12: =Language!$D$39 -> Numёr | B12: =Language!$D$47 -> Numri I llogarisё | D12: Description of Revenues | F12: =Language!$D$19&" "&Language!$D$53 -> Vit ushtrimor 2014 Riparaqitur | G12: =Language!$D$19&" "&Language!$D$53 -> Vit ushtrimor 2014 Riparaqitur | H12: =Language!$D$19&" "&Language!$D$53 -> Vit ushtrimor 2014 Riparaqitur | I12: =Language!$D$19&" "&Language!$D$53 -> Vit ushtrimor 2014 Riparaqitur | J12: =Language!$D$19&" "&Language!$D$53 -> Vit ushtrimor 2014 Riparaqitur | K12: =Language!$D$19&" "&Language!$D$53 -> Vit ushtrimor 2014 Riparaqitur | L12: =Language!$D$19&" "&Language!$D$53 -> Vit ushtrimor 2014 Riparaqitur | M12: =Language!$D$19&" "&Language!$D$53 -> Vit ushtrimor 2014 Riparaqitur | N12: =Language!$D$19&" "&Language!$D$53 -> Vit ushtrimor 2014 Riparaqitur | O12: =Language!$D$19&" "&Language!$D$53 -> Vit ushtrimor 2014 Riparaqitur | P12: =Language!$D$19&" "&Language!$D$53 -> Vit ushtrimor 2014 Riparaqitur | Q12: =Language!$D$19&" "&Language!$D$53 -> Vit ushtrimor 2014 Riparaqitur | R12: =Language!$D$19&" "&Language!$D$53 -> Vit ushtrimor 2014 Riparaqitur | S12: =Language!$D$19&" "&Language!$D$53 -> Vit ushtrimor 2014 Riparaqitur | T12: =Language!$D$19&" "&Language!$D$53 -> Vit ushtrimor 2014 Riparaqitur | U12: =Language!$D$19&" "&Language!$D$53 -> Vit ushtrimor 2014 Riparaqitur | V12: =Language!$D$19&" "&Language!$D$53 -> Vit ushtrimor 2014 Riparaqitur | W12: =Language!$D$19&" "&Language!$D$53 -> Vit ushtrimor 2014 Riparaqitur | X12: =Language!$D$19&" "&Language!$D$53 -> Vit ushtrimor 2014 Riparaqitur | Y12: =Language!$D$19&" "&Language!$D$53 -> Vit ushtrimor 2014 Riparaqitur
A13: a | B13: b | C13: c
A14: 1 | B14: Klasa 7 | C14: A. TE ARDHURA TE SHFRYTEZIMIT(I - VI) | D14: A. REVENUES
A15: 2 | B15: 70 | C15: I. TE ARDHURA TATIMORE(a+b+c+d+e+f+g) | D15: I. TAX INCOMES
A16: 3 | B16: 700 | C16: a) Mbi te ardhurat,fitimin e ardh.kapitale | D16: a) on revenues, profit, and equity revenue
A17: 4 | B17: 7000 | C17: - Tatim mbi te ardhurat personale | D17: personal income tax
A18: 5 | B18: 7001 | C18: - Tatim mbi fitimin | D18: income tax
A19: 6 | B19: 7002 | C19: - Takse e tatim mbi biznesin e vogel | D19: small business tax
A20: 7 | B20: 7009 | C20: - Tjera tatime | D20: other tax
A21: 8 | B21: 702 | C21: b) Tatime mbi pasurine | D21: b) Property tax
A22: 9 | B22: 7020 | C22: - Mbi pasurine e pa lujteshme | D22: on immovable property
A23: 10 | B23: 7021 | C23: - Mbi shitjen e pasurise se palujteshme | D23: sales of immovable property
A24: 11 | B24: 7029 | C24: - Te tjera mbi pasurine | D24: other on property
A25: 12 | B25: 703 | C25: c) Tatime mbi mallrat e sherbimet brenda vendit | D25: c) tax upon goods and services in the country
A26: 13 | B26: 7030 | C26: - Tatimi mbi Vleren e Shtuar(TVSH) | D26: VAT
A27: 14 | B27: 7031 | C27: - Akciza | D27: Special taxes
A28: 15 | B28: 7032 | C28: - Takse mbi sherbimet specifike | D28: tax upon specific services
A29: 16 | B29: 7033 | C29: - Takse mbi perd.mallrave e lejim veprimtarie | D29: tax upon goods usage and activity permission
A30: 17 | B30: 7035 | C30: - Takse vendore mbi perd.mallrave e lejim veprimtarie | D30: local tax on goods usage and activity permission
A31: 18 | B31: 704 | C31: d) Takse mbi tregtine e transaks..nderkombetare | D31: d) tax upon commercial and international transactions
A32: 19 | B32: 7040 | C32: - Takse doganore per mallrat e importit | D32: duties on import goods
A33: 20 | B33: 7041 | C33: - Takse doganore per mallrat e eksportit | D33: duties on export goods
A34: 21 | B34: 7042 | C34: - Tarife sherbimi doganor dhe kaliposte | D34: custom tariff and post service
A35: 22 | B35: 7049 | C35: - Te tjera taksa mbi treg.e trans.nderkomb. | D35: other tax upon international commercial transport
A36: 23 | B36: 705 | C36: e) Taksa e rruges | D36: e) road tax
A37: 24 | B37: 708 | C37: f) Te tjera tatime e taksa kombtare | D37: f) other national tax
A38: 25 | B38: 709 | C38: g) Kamat vonesa | D38: g) penalty interest
A39: 26 | B39: 75 | C39: II. KONTRIBUTE SHOQERORE E SHENDETSORE | D39: II. SOCIAL AND HEALTH INSURANCE
A40: 27 | B40: 750 | C40: - Nga te punesuarit | D40: from employee's
A41: 28 | B41: 751 | C41: - Nga punedhenesit | D41: from employer
A42: 29 | B42: 752 | C42: - Nga te vetepunesuarit | D42: from self employees
A43: 30 | B43: 753 | C43: - Nga fermeret | D43: from farmers
A44: 31 | B44: 754 | C44: - Nga sigurimet vullnetare | D44: form volunteer insurance
A45: 32 | B45: 755 | C45: - Kontrib.buxhetit per Sigurimet Shoqerore | D45: Budget contribution for Social Insurance
A46: 33 | B46: 756 | C46: - Kontrib.buxhetit per Sigurimet Shendetes | D46: Budget contribution for Health Insurance
A47: 34 | B47: 71 | C47: III. TE ARDHUTRA JO TATIMORE(a+b+c) | D47: III. NON TAX REVENUES
A48: 35 | B48: 710 | C48: a) Nga ndermarrjet dhe pronesia | D48: a) from enterprise and ownership
A49: 36 | B49: 7100 | C49: - Nga nderm.publike jo financiare | D49: from public non financial enterprise
A50: 37 | B50: 7101 | C50: - Nga nderm.publike financiare | D50: from public financial enterprise
A51: 38 | B51: 7109 | C51: - Te tjera nga ndermarrjet dhe pronesia | D51: others from enterprise and ownership
A53: 39 | B53: 711 | C53: b) Sherbime administ.e ardhura sekondare | D53: b) Administrative service and secondary revenues
A54: 40 | B54: 7110 | C54: - Tarifa administrative dhe rregullatore | D54: administrative tariffs and regulations
A55: 41 | B55: 7111 | C55: - Te ardhura sekondare e pagesa sherbimesh | D55: secondary revenues and payments of services
A56: 42 | B56: 7112 | C56: - Takse per veprime gjyqsore e noteriale | D56: tax for legal actions and notary
A57: 43 | B57: 7113 | C57: - Nga shitja e mallrave e sherbimeve | D57: from goods and services sales
A58: 44 | B58: 7114 | C58: - Te ardhura nga biletat | D58: revenues from tickets
A59: 45 | B59: 7115 | C59: - Gjoba dhe kamatvonesa,sekuestrime e zhdemtime | D59: fines and late-fees, sequestration and compensation
A60: 46 | B60: 7116 | C60: - Te ardhura nga transferimi prones,legalizimi ndertimeve pa leje | D60: revenues from ownership transfer, legalization of buildings without permits
A61: 47 | B61: 719 | C61: c) Te tjera te ardhura jo tatimore | D61: c) other non tax revenues
A62: 48 | B62: 72 | C62: IV.GRANTE KORENTE(a+b) | D62: IV. ACTUAL GRANTS (a+b)
A63: 49 | B63: 720 | C63: a) Grant korent I brendeshem | D63: a) internal actual grant
A64: 50 | B64: 7200 | C64: - Nga I njejti nivel Qeverisje | D64: from same Government level
A65: 51 | B65: 7201 | C65: - Nga nivele tjera Qeverisje | D65: from other Government levels
A66: 52 | B66: 7202 | C66: - Nga buxheti per pagesa.posacme te ISSH | D66: from budget for special payments to Social Institute
A67: 53 | B67: 7203 | C67: - Nga buxheti per mbul.deficiti te ISSH e ISKSH | D67: from budget to cover the deficit of Social Institute and Healthcare Institute
A68: 54 | B68: 7204 | C68: - Pjesmarrje instit.ne tatime nacionale | D68: participation of institution in national taxes
A69: 55 | B69: 7205 | C69: - Financ.shtese nga te ardh.kriju.brenda sistemit | D69: additional finances created within the system
A70: 56 | B70: 7206 | C70: - Financim I pritshem nga buxheti | D70: expected financing from budget
A71: 57 | B71: 7207 | C71: - Sponsorizime nga te trete | D71: third party sponsorship
A72: 58 | B72: 7209 | C72: - Te tjera grante te brendshme | D72: other internal grants
A73: 59 | B73: 721 | C73: b) Grant korent I jashtem | D73: b) external actual grants
A74: 60 | B74: 7210 | C74: - Nga Qeveri te Huaja | D74: from foreigner Governments
A75: 61 | B75: 7211 | C75: - Nga Organizata Nderkombetare | D75: from international organizations
A76: 62 | B76: 73 | C76: V. NDRYSHIM GJENDJEVE PRODUKTEVE | D76: V. CHANGES IN PRODCUTS BALANCE
A77: 63 | B77: 78 | C77: VI.PUNIME PER INVESTIME E RIMARRJE | D77: VI. WORK INVESTMENTS AND RETAKINGS
A78: 64 | B78: 781 | C78: Punime,investime ne ekonomi | D78: works, investments in economy
A79: 65 | B79: 782 | C79: Rimarrje parash.per aktive qarkulluese | D79: Forecasted retakings for liquid assets
A80: 66 | B80: 783 | C80: Rimarrje parash.per aktivet e qendrushme | D80: Forecasted retakings for fixed assets
A81: 67 | B81: 784 | C81: Suprim shumave parash.per shp.v.ardhshme | D81: prepayment of expenses in the years to come
A82: 68 | B82: 785 | C82: Perdorim shumave parash.per shp.v.ardhshme | D82: Use of funds of the year to come
A83: 69 | B83: 787 | C83: Terheqje nga seks.investimeve | D83: withdraw from investments
A84: 70 | B84: 76 | C84: B. TE ARDHURA FINANCIARE | D84: B. FINANCIAL INCOMES
A85: 71 | B85: 760 | C85: Nga interesat e huadhenies brendshme | D85: from internal borrowing interests
A86: 72 | B86: 761 | C86: Nga interesat hudhenies se huaj | D86: from external borrowing interests
A87: 73 | B87: 765 | C87: Te ardhura nga interesat e depozitave | D87: incomes from deposits interests
A88: 74 | B88: 766 | C88: Te ardhura nga kembimet valutore | D88: revenues from exchange rates
A89: 75 | B89: 77 | C89: C. TE ARDHURA TE JASHTZAKONSHME | D89: C. EXTRAORDINARY REVENUES
A90: 76 | B90: 773 | C90: Nga veprimtari te mbyllura e ndryshime tjera trategjise | D90: from closed activities and changes in strategy
A91: 77 | B91: 777 | C91: Nga gabime te lejuara ne ushtrimet paraardhese | D91: from mistakes allowed in previous exercise
A92: 78 | B92: 778 | C92: Korigjime nga vitet e kaluara | D92: correction from previous year
A93: 79 | B93: 779 | C93: Te ardhura te tjera | D93: Other revenues
A94: 80 | B94: Klasa 7 | C94: TOTALI I TE ARDHURAVE | D94: TOTAL INCOMES
A95: 81 | B95: 82.84 | C95: D. OPERAC.KORIGJ.REZULTATIT | D95: D. RESULT CORRECTIONS ACTIVITES
A96: 82 | B96: 829 | C96: Urdh.shp.anulluar ose parashkruar | D96: canceled or under written expense order
A97: 83 | B97: 841 | C97: Transferimi i ndryshimt te gjendjeje | D97: status change transfer
A98: 84 | B98: Klasa 7 e 8 | C98: TOTALI OPERACIONEVE | D98: TOTAL FROM OPERATIONS
A99: 85 | B99: 85 | C99: REZULTATI I VEPRIMTARISE | D99: RESULTS FROM FUNCTIONING
A100: 86 | B100: X | C100: T O T A L I | D100: TOTAL

Sheet F8 restated
A1: ='General information'!A1 -> Project STAR
A2: ='General information'!A2 -> xxx
A3: =A8 -> Pasqyra e lёvizjes sё fondeve (Formati 8)
A7: ='General information'!A2 -> xxx | F7: LGU name | M7: LGU name | T7: LGU name | AA7: LGU name | AH7: LGU name | AO7: LGU name | AV7: LGU name | BC7: LGU name | BJ7: LGU name | BQ7: LGU name | BX7: LGU name | CE7: LGU name | CL7: LGU name | CS7: LGU name | CZ7: LGU name | DG7: LGU name | DN7: LGU name | DU7: LGU name | EB7: LGU name | EI7: LGU name
A8: =Language!$D$93 -> Pasqyra e lёvizjes sё fondeve (Formati 8)
A9: =Language!$D$14 -> Pёr vitin e mbyllur mё 31 dhjetor 2014
A10: =ALL -> (Shumat ne ALL'000, nëse nuk shprehet ndryshe)
F11: =Language!$D$53 -> Riparaqitur | M11: =Language!$D$53 -> Riparaqitur | T11: =Language!$D$53 -> Riparaqitur | AA11: =Language!$D$53 -> Riparaqitur | AH11: =Language!$D$53 -> Riparaqitur | AO11: =Language!$D$53 -> Riparaqitur | AV11: =Language!$D$53 -> Riparaqitur | BC11: =Language!$D$53 -> Riparaqitur | BJ11: =Language!$D$53 -> Riparaqitur | BQ11: =Language!$D$53 -> Riparaqitur | BX11: =Language!$D$53 -> Riparaqitur | CE11: =Language!$D$53 -> Riparaqitur | CL11: =Language!$D$53 -> Riparaqitur | CS11: =Language!$D$53 -> Riparaqitur | CZ11: =Language!$D$53 -> Riparaqitur | DG11: =Language!$D$53 -> Riparaqitur | DN11: =Language!$D$53 -> Riparaqitur | DU11: =Language!$D$53 -> Riparaqitur | EB11: =Language!$D$53 -> Riparaqitur | EI11: =Language!$D$53 -> Riparaqitur
A12: =Language!$D$39 -> Numёr | B12: =Language!$D$47 -> Numri I llogarisё | C12: EMERTIMI | D12: Description | F12: =Language!$D$17 -> Balanca hapёse 1 janar 2014 | K12: =Language!$D$18 -> Balancat mbyllёse 31 dhjetor 2014 | M12: =Language!$D$17 -> Balanca hapёse 1 janar 2014 | R12: =Language!$D$18 -> Balancat mbyllёse 31 dhjetor 2014 | T12: =Language!$D$17 -> Balanca hapёse 1 janar 2014 | Y12: =Language!$D$18 -> Balancat mbyllёse 31 dhjetor 2014 | AA12: =Language!$D$17 -> Balanca hapёse 1 janar 2014 | AF12: =Language!$D$18 -> Balancat mbyllёse 31 dhjetor 2014 | AH12: =Language!$D$17 -> Balanca hapёse 1 janar 2014 | AM12: =Language!$D$18 -> Balancat mbyllёse 31 dhjetor 2014 | AO12: =Language!$D$17 -> Balanca hapёse 1 janar 2014 | AT12: =Language!$D$18 -> Balancat mbyllёse 31 dhjetor 2014 | AV12: =Language!$D$17 -> Balanca hapёse 1 janar 2014 | BA12: =Language!$D$18 -> Balancat mbyllёse 31 dhjetor 2014 | BC12: =Language!$D$17 -> Balanca hapёse 1 janar 2014 | BH12: =Language!$D$18 -> Balancat mbyllёse 31 dhjetor 2014 | BJ12: =Language!$D$17 -> Balanca hapёse 1 janar 2014 | BO12: =Language!$D$18 -> Balancat mbyllёse 31 dhjetor 2014 | BQ12: =Language!$D$17 -> Balanca hapёse 1 janar 2014 | BV12: =Language!$D$18 -> Balancat mbyllёse 31 dhjetor 2014 | BX12: =Language!$D$17 -> Balanca hapёse 1 janar 2014 | CC12: =Language!$D$18 -> Balancat mbyllёse 31 dhjetor 2014 | CE12: =Language!$D$17 -> Balanca hapёse 1 janar 2014 | CJ12: =Language!$D$18 -> Balancat mbyllёse 31 dhjetor 2014 | CL12: =Language!$D$17 -> Balanca hapёse 1 janar 2014 | CQ12: =Language!$D$18 -> Balancat mbyllёse 31 dhjetor 2014 | CS12: =Language!$D$17 -> Balanca hapёse 1 janar 2014 | CX12: =Language!$D$18 -> Balancat mbyllёse 31 dhjetor 2014 | CZ12: =Language!$D$17 -> Balanca hapёse 1 janar 2014 | DE12: =Language!$D$18 -> Balancat mbyllёse 31 dhjetor 2014 | DG12: =Language!$D$17 -> Balanca hapёse 1 janar 2014 | DL12: =Language!$D$18 -> Balancat mbyllёse 31 dhjetor 2014 | DN12: =Language!$D$17 -> Balanca hapёse 1 janar 2014 | DS12: =Language!$D$18 -> Balancat mbyllёse 31 dhjetor 2014 | DU12: =Language!$D$17 -> Balanca hapёse 1 janar 2014 | DZ12: =Language!$D$18 -> Balancat mbyllёse 31 dhjetor 2014 | EB12: =Language!$D$17 -> Balanca hapёse 1 janar 2014 | EG12: =Language!$D$18 -> Balancat mbyllёse 31 dhjetor 2014 | EI12: =Language!$D$17 -> Balanca hapёse 1 janar 2014 | EN12: =Language!$D$18 -> Balancat mbyllёse 31 dhjetor 2014
H13: =Language!$D$50 -> Lёvizjet e periudhёs | O13: =Language!$D$50 -> Lёvizjet e periudhёs | V13: =Language!$D$50 -> Lёvizjet e periudhёs | AC13: =Language!$D$50 -> Lёvizjet e periudhёs | AJ13: =Language!$D$50 -> Lёvizjet e periudhёs | AQ13: =Language!$D$50 -> Lёvizjet e periudhёs | AX13: =Language!$D$50 -> Lёvizjet e periudhёs | BE13: =Language!$D$50 -> Lёvizjet e periudhёs | BL13: =Language!$D$50 -> Lёvizjet e periudhёs | BS13: =Language!$D$50 -> Lёvizjet e periudhёs | BZ13: =Language!$D$50 -> Lёvizjet e periudhёs | CG13: =Language!$D$50 -> Lёvizjet e periudhёs | CN13: =Language!$D$50 -> Lёvizjet e periudhёs | CU13: =Language!$D$50 -> Lёvizjet e periudhёs | DB13: =Language!$D$50 -> Lёvizjet e periudhёs | DI13: =Language!$D$50 -> Lёvizjet e periudhёs | DP13: =Language!$D$50 -> Lёvizjet e periudhёs | DW13: =Language!$D$50 -> Lёvizjet e periudhёs | ED13: =Language!$D$50 -> Lёvizjet e periudhёs | EK13: =Language!$D$50 -> Lёvizjet e periudhёs
F14: =Language!$D$45 -> Kredia | H14: =Language!$D$44 -> Debia | I14: =Language!$D$45 -> Kredia | K14: =Language!$D$45 -> Kredia | M14: =Language!$D$45 -> Kredia | O14: =Language!$D$44 -> Debia | P14: =Language!$D$45 -> Kredia | R14: =Language!$D$45 -> Kredia | T14: =Language!$D$45 -> Kredia | V14: =Language!$D$44 -> Debia | W14: =Language!$D$45 -> Kredia | Y14: =Language!$D$45 -> Kredia | AA14: =Language!$D$45 -> Kredia | AC14: =Language!$D$44 -> Debia | AD14: =Language!$D$45 -> Kredia | AF14: =Language!$D$45 -> Kredia | AH14: =Language!$D$45 -> Kredia | AJ14: =Language!$D$44 -> Debia | AK14: =Language!$D$45 -> Kredia | AM14: =Language!$D$45 -> Kredia | AO14: =Language!$D$45 -> Kredia | AQ14: =Language!$D$44 -> Debia | AR14: =Language!$D$45 -> Kredia | AT14: =Language!$D$45 -> Kredia | AV14: =Language!$D$45 -> Kredia | AX14: =Language!$D$44 -> Debia | AY14: =Language!$D$45 -> Kredia | BA14: =Language!$D$45 -> Kredia | BC14: =Language!$D$45 -> Kredia | BE14: =Language!$D$44 -> Debia | BF14: =Language!$D$45 -> Kredia | BH14: =Language!$D$45 -> Kredia | BJ14: =Language!$D$45 -> Kredia | BL14: =Language!$D$44 -> Debia | BM14: =Language!$D$45 -> Kredia | BO14: =Language!$D$45 -> Kredia | BQ14: =Language!$D$45 -> Kredia | BS14: =Language!$D$44 -> Debia | BT14: =Language!$D$45 -> Kredia | BV14: =Language!$D$45 -> Kredia | BX14: =Language!$D$45 -> Kredia | BZ14: =Language!$D$44 -> Debia | CA14: =Language!$D$45 -> Kredia | CC14: =Language!$D$45 -> Kredia | CE14: =Language!$D$45 -> Kredia | CG14: =Language!$D$44 -> Debia | CH14: =Language!$D$45 -> Kredia | CJ14: =Language!$D$45 -> Kredia | CL14: =Language!$D$45 -> Kredia | CN14: =Language!$D$44 -> Debia | CO14: =Language!$D$45 -> Kredia | CQ14: =Language!$D$45 -> Kredia | CS14: =Language!$D$45 -> Kredia | CU14: =Language!$D$44 -> Debia | CV14: =Language!$D$45 -> Kredia | CX14: =Language!$D$45 -> Kredia | CZ14: =Language!$D$45 -> Kredia | DB14: =Language!$D$44 -> Debia | DC14: =Language!$D$45 -> Kredia | DE14: =Language!$D$45 -> Kredia | DG14: =Language!$D$45 -> Kredia | DI14: =Language!$D$44 -> Debia | DJ14: =Language!$D$45 -> Kredia | DL14: =Language!$D$45 -> Kredia | DN14: =Language!$D$45 -> Kredia | DP14: =Language!$D$44 -> Debia | DQ14: =Language!$D$45 -> Kredia | DS14: =Language!$D$45 -> Kredia | DU14: =Language!$D$45 -> Kredia | DW14: =Language!$D$44 -> Debia | DX14: =Language!$D$45 -> Kredia | DZ14: =Language!$D$45 -> Kredia | EB14: =Language!$D$45 -> Kredia | ED14: =Language!$D$44 -> Debia | EE14: =Language!$D$45 -> Kredia | EG14: =Language!$D$45 -> Kredia | EI14: =Language!$D$45 -> Kredia | EK14: =Language!$D$44 -> Debia | EL14: =Language!$D$45 -> Kredia | EN14: =Language!$D$45 -> Kredia
A15: a | B15: b | C15: c | F15: 1 | H15: 2 | I15: 3 | K15: 4=1+3-2 | M15: 1 | O15: 2 | P15: 3 | R15: 4=1+3-2 | T15: 1 | V15: 2 | W15: 3 | Y15: 4=1+3-2 | AA15: 1 | AC15: 2 | AD15: 3 | AF15: 4=1+3-2 | AH15: 1 | AJ15: 2 | AK15: 3 | AM15: 4=1+3-2 | AO15: 1 | AQ15: 2 | AR15: 3 | AT15: 4=1+3-2 | AV15: 1 | AX15: 2 | AY15: 3 | BA15: 4=1+3-2 | BC15: 1 | BE15: 2 | BF15: 3 | BH15: 4=1+3-2 | BJ15: 1 | BL15: 2 | BM15: 3 | BO15: 4=1+3-2 | BQ15: 1 | BS15: 2 | BT15: 3 | BV15: 4=1+3-2 | BX15: 1 | BZ15: 2 | CA15: 3 | CC15: 4=1+3-2 | CE15: 1 | CG15: 2 | CH15: 3 | CJ15: 4=1+3-2 | CL15: 1 | CN15: 2 | CO15: 3 | CQ15: 4=1+3-2 | CS15: 1 | CU15: 2 | CV15: 3 | CX15: 4=1+3-2 | CZ15: 1 | DB15: 2 | DC15: 3 | DE15: 4=1+3-2 | DG15: 1 | DI15: 2 | DJ15: 3 | DL15: 4=1+3-2 | DN15: 1 | DP15: 2 | DQ15: 3 | DS15: 4=1+3-2 | DU15: 1 | DW15: 2 | DX15: 3 | DZ15: 4=1+3-2 | EB15: 1 | ED15: 2 | EE15: 3 | EG15: 4=1+3-2 | EI15: 1 | EK15: 2 | EL15: 3 | EN15: 4=1+3-2
A16: 1 | B16: 101 | C16: FONDE BAZE | D16: BASE FUND
A17: 2 | B17: 1010 | C17: Fondi baze gjendje | D17: Status of base fund
A18: 3 | B18: 1011 | C18: Shtesa fondi baze | D18: Additions base fund
A19: 4 | B19: 1012 | C19: Pakesime te fondit baze | D19: Decrease base fund
A20: 5 | B20: 1013 | C20: Pekesim nga konsumi i aktiveve qendrushshme | D20: Decrease from tangible assets consume
A21: 6 | B21: 1014 | C21: Pakesim nga shitja e aktiveve te qendrushme | D21: Decrease from selling tangible assets
A22: 7 | B22: 1015 | C22: Pakesim nga nxjerrja jasht perdorimit e AQ | D22: Decrease from
A23: 8 | B23: 1016 | C23: Pekseim nga transfertat e AQ | D23: decrease from transferring tangible assets
A24: 9 | B24: 109 | C24: DIFERENCA RIVLERSIMI AQ | D24: DIFFERENCE IN TANGIBLE ASSETS REVALUATION
A25: 10 | B25: 105,107,11,12,13,145,15,85 | C25: FONDI I BRENDESHEM | D25: INTERNAL FUND
A26: 11 | B26: 105 | C26: Grante brendeshme kapitale | D26: Capital internal grants
A27: 12 | B27: 107 | C27: Vlera te caktuara ne perdorim | D27: Current assets in use
A28: 13 | B28: 11 | C28: Fonde te tjera veta | D28: Other own funds
A29: 14 | B29: 12 | C29: Rezultat I mbartur | D29: Carried result
A30: 15 | B30: 13 | C30: Subvecione jashtzakoneshme | D30: Exceptional subsidiaries
A31: 16 | B31: 145 | C31: Grante brendsh.kapitale per investime per trete | D31: Participation of the institution in investing for third parties
A32: 17 | B32: 15 | C32: Shuma te parashikuara rreziqe e shpenzime | D32: Forecasted amounts for disasters and expenses
A33: 18 | B33: 85 | C33: Rezultati I ushtrimit | D33: Result
A34: 19 | B34: 106.146 | C34: FONDI I JASHTEM | D34: EXTERNAL FUND
A35: 20 | B35: 106 | C35: Grante te Huaja Kapitale | D35: Capital foreigner grants
A36: 21 | B36: 146 | C36: Grante huaja.kapitale per investime per trete | D36: Capital foreigner grants investing for third parties
A37: 22 | C37: FONDI I KONSOLIDUAR ( 1 deri 4) | D37: CONSOLIDATED FUND (1up to 4)

Sheet Analysis-->

Sheet Receivables
A1: ='General information'!A1 -> Project STAR
A2: ='General information'!A2 -> xxx
A3: =A8 -> Total receivables
A8: Total receivables
E9: Select the table below, starting from cell E10 and press the button "Pie chart"
A10: LGU Name | B10: =A8&" "&Language!$D$13&" "&Language!$D$35 -> Total receivables mё 31 dhjetor 2014 sipas NJQV-ve | C10: % | F10: =B10 -> Total receivables mё 31 dhjetor 2014 sipas NJQV-ve
A11: ='F1 restated'!F9 -> 0 | B11: ='F1 restated'!F49 -> 0 | C11: =B11/SUM($B$11:$B$29) ->  | E11: =IF(A11<>0,A11,"") ->  | F11: =IF(B11<>0,B11,"") -> 
A12: ='F1 restated'!G9 -> 0 | B12: ='F1 restated'!G49 -> 0 | C12: =B12/SUM($B$11:$B$29) ->  | E12: =IF(A12<>0,A12,"") -> 
A13: ='F1 restated'!H9 -> 0 | B13: ='F1 restated'!H49 -> 0
A14: ='F1 restated'!I9 -> 0 | B14: ='F1 restated'!I49 -> 0
A15: ='F1 restated'!J9 -> 0 | B15: ='F1 restated'!J49 -> 0 | E15: =IF(A15<>0,A15,"") -> 
A16: ='F1 restated'!K9 -> 0 | B16: ='F1 restated'!K49 -> 0 | E16: =IF(A16<>0,A16,"") -> 
A17: ='F1 restated'!L9 -> 0 | B17: ='F1 restated'!L49 -> 0
A18: ='F1 restated'!M9 -> 0 | B18: ='F1 restated'!M49 -> 0
A19: ='F1 restated'!N9 -> 0 | B19: ='F1 restated'!N49 -> 0
A20: ='F1 restated'!O9 -> 0 | B20: ='F1 restated'!O49 -> 0
A21: ='F1 restated'!P9 -> 0 | B21: ='F1 restated'!P49 -> 0
A22: ='F1 restated'!Q9 -> 0 | B22: ='F1 restated'!Q49 -> 0
A23: ='F1 restated'!R9 -> 0 | B23: ='F1 restated'!R49 -> 0
A24: ='F1 restated'!S9 -> 0 | B24: ='F1 restated'!S49 -> 0
A25: ='F1 restated'!T9 -> 0 | B25: ='F1 restated'!T49 -> 0
A26: ='F1 restated'!U9 -> 0 | B26: ='F1 restated'!U49 -> 0
A27: ='F1 restated'!V9 -> 0 | B27: ='F1 restated'!V49 -> 0
A28: ='F1 restated'!W9 -> 0 | B28: ='F1 restated'!W49 -> 0
A29: ='F1 restated'!X9 -> 0 | B29: ='F1 restated'!X49 -> 0

Sheet Tangible assets
A1: ='General information'!A1 -> Project STAR
A2: ='General information'!A2 -> xxx
A3: =A8 -> Total tangible assets
A8: Total tangible assets
E9: Select the table below, starting from cell E10 and press the button "Pie chart"
A10: LGU Name | B10: =A8&" "&Language!$D$13&" "&Language!$D$35 -> Total tangible assets mё 31 dhjetor 2014 sipas NJQV-ve | C10: % | F10: =B10 -> Total tangible assets mё 31 dhjetor 2014 sipas NJQV-ve
A11: ='F1 restated'!F9 -> 0 | B11: ='F1 restated'!F20 -> 0 | C11: =B11/SUM($B$11:$B$29) ->  | E11: =IF(A11<>0,A11,"") ->  | F11: =IF(B11<>0,B11,"") -> 
A12: ='F1 restated'!G9 -> 0 | B12: ='F1 restated'!G20 -> 0 | C12: =B12/SUM($B$11:$B$29) ->  | E12: =IF(A12<>0,A12,"") -> 
A13: ='F1 restated'!H9 -> 0 | B13: ='F1 restated'!H20 -> 0
A14: ='F1 restated'!I9 -> 0 | B14: ='F1 restated'!I20 -> 0
A15: ='F1 restated'!J9 -> 0 | B15: ='F1 restated'!J20 -> 0 | E15: =IF(A15<>0,A15,"") -> 
A16: ='F1 restated'!K9 -> 0 | B16: ='F1 restated'!K20 -> 0 | E16: =IF(A16<>0,A16,"") -> 
A17: ='F1 restated'!L9 -> 0 | B17: ='F1 restated'!L20 -> 0
A18: ='F1 restated'!M9 -> 0 | B18: ='F1 restated'!M20 -> 0
A19: ='F1 restated'!N9 -> 0 | B19: ='F1 restated'!N20 -> 0
A20: ='F1 restated'!O9 -> 0 | B20: ='F1 restated'!O20 -> 0
A21: ='F1 restated'!P9 -> 0 | B21: ='F1 restated'!P20 -> 0
A22: ='F1 restated'!Q9 -> 0 | B22: ='F1 restated'!Q20 -> 0
A23: ='F1 restated'!R9 -> 0 | B23: ='F1 restated'!R20 -> 0
A24: ='F1 restated'!S9 -> 0 | B24: ='F1 restated'!S20 -> 0
A25: ='F1 restated'!T9 -> 0 | B25: ='F1 restated'!T20 -> 0
A26: ='F1 restated'!U9 -> 0 | B26: ='F1 restated'!U20 -> 0
A27: ='F1 restated'!V9 -> 0 | B27: ='F1 restated'!V20 -> 0
A28: ='F1 restated'!W9 -> 0 | B28: ='F1 restated'!W20 -> 0
A29: ='F1 restated'!X9 -> 0 | B29: ='F1 restated'!X20 -> 0

Sheet Payables
A1: ='General information'!A1 -> Project STAR
A2: ='General information'!A2 -> xxx
A3: =A8 -> Total payables
A8: Total payables
E9: Select the table below, starting from cell E10 and press the button "Pie chart"
A10: LGU Name | B10: =A8&" "&Language!$D$13&" "&Language!$D$35 -> Total payables mё 31 dhjetor 2014 sipas NJQV-ve | C10: % | F10: =B10 -> Total payables mё 31 dhjetor 2014 sipas NJQV-ve
A11: ='F2 restated'!F9 -> 0 | B11: ='F2 restated'!F32 -> 0 | C11: =B11/SUM($B$11:$B$29) ->  | E11: =IF(A11<>0,A11,"") ->  | F11: =IF(B11<>0,B11,"") -> 
A12: ='F2 restated'!G9 -> 0 | B12: ='F2 restated'!G32 -> 0 | C12: =B12/SUM($B$11:$B$29) ->  | E12: =IF(A12<>0,A12,"") -> 
A13: ='F2 restated'!H9 -> 0 | B13: ='F2 restated'!H32 -> 0
A14: ='F2 restated'!I9 -> 0 | B14: ='F2 restated'!I32 -> 0
A15: ='F2 restated'!J9 -> 0 | B15: ='F2 restated'!J32 -> 0 | E15: =IF(A15<>0,A15,"") -> 
A16: ='F2 restated'!K9 -> 0 | B16: ='F2 restated'!K32 -> 0 | E16: =IF(A16<>0,A16,"") -> 
A17: ='F2 restated'!L9 -> 0 | B17: ='F2 restated'!L32 -> 0
A18: ='F2 restated'!M9 -> 0 | B18: ='F2 restated'!M32 -> 0
A19: ='F2 restated'!N9 -> 0 | B19: ='F2 restated'!N32 -> 0
A20: ='F2 restated'!O9 -> 0 | B20: ='F2 restated'!O32 -> 0
A21: ='F2 restated'!P9 -> 0 | B21: ='F2 restated'!P32 -> 0
A22: ='F2 restated'!Q9 -> 0 | B22: ='F2 restated'!Q32 -> 0
A23: ='F2 restated'!R9 -> 0 | B23: ='F2 restated'!R32 -> 0
A24: ='F2 restated'!S9 -> 0 | B24: ='F2 restated'!S32 -> 0
A25: ='F2 restated'!T9 -> 0 | B25: ='F2 restated'!T32 -> 0
A26: ='F2 restated'!U9 -> 0 | B26: ='F2 restated'!U32 -> 0
A27: ='F2 restated'!V9 -> 0 | B27: ='F2 restated'!V32 -> 0
A28: ='F2 restated'!W9 -> 0 | B28: ='F2 restated'!W32 -> 0
A29: ='F2 restated'!X9 -> 0 | B29: ='F2 restated'!X32 -> 0

Sheet Revenue
A1: ='General information'!A1 -> Project STAR
A2: ='General information'!A2 -> xxx
A3: =A8 -> Total revenue
A8: Total revenue
E9: Select the table below, starting from cell E10 and press the button "Pie chart"
A10: LGU Name | B10: =A8&" "&Language!$D$19&" "&Language!$D$53&" "&Language!$D$35 -> Total revenue Vit ushtrimor 2014 Riparaqitur sipas NJQV-ve | C10: % | F10: =B10 -> Total revenue Vit ushtrimor 2014 Riparaqitur sipas NJQV-ve
A11: ='F3-2 restated'!F9 -> 0 | B11: ='F3-2 restated'!F14 -> 0 | C11: =B11/SUM($B$11:$B$29) ->  | E11: =IF(A11<>0,A11,"") ->  | F11: =IF(B11<>0,B11,"") -> 
A12: ='F3-2 restated'!G9 -> 0 | B12: ='F3-2 restated'!G14 -> 0 | C12: =B12/SUM($B$11:$B$29) ->  | E12: =IF(A12<>0,A12,"") -> 
A13: ='F3-2 restated'!H9 -> 0 | B13: ='F3-2 restated'!H14 -> 0
A14: ='F3-2 restated'!I9 -> 0 | B14: ='F3-2 restated'!I14 -> 0
A15: ='F3-2 restated'!J9 -> 0 | B15: ='F3-2 restated'!J14 -> 0 | E15: =IF(A15<>0,A15,"") -> 
A16: ='F3-2 restated'!K9 -> 0 | B16: ='F3-2 restated'!K14 -> 0 | E16: =IF(A16<>0,A16,"") -> 
A17: ='F3-2 restated'!L9 -> 0 | B17: ='F3-2 restated'!L14 -> 0
A18: ='F3-2 restated'!M9 -> 0 | B18: ='F3-2 restated'!M14 -> 0
A19: ='F3-2 restated'!N9 -> 0 | B19: ='F3-2 restated'!N14 -> 0
A20: ='F3-2 restated'!O9 -> 0 | B20: ='F3-2 restated'!O14 -> 0
A21: ='F3-2 restated'!P9 -> 0 | B21: ='F3-2 restated'!P14 -> 0
A22: ='F3-2 restated'!Q9 -> 0 | B22: ='F3-2 restated'!Q14 -> 0
A23: ='F3-2 restated'!R9 -> 0 | B23: ='F3-2 restated'!R14 -> 0
A24: ='F3-2 restated'!S9 -> 0 | B24: ='F3-2 restated'!S14 -> 0
A25: ='F3-2 restated'!T9 -> 0 | B25: ='F3-2 restated'!T14 -> 0
A26: ='F3-2 restated'!U9 -> 0 | B26: ='F3-2 restated'!U14 -> 0
A27: ='F3-2 restated'!V9 -> 0 | B27: ='F3-2 restated'!V14 -> 0
A28: ='F3-2 restated'!W9 -> 0 | B28: ='F3-2 restated'!W14 -> 0
A29: ='F3-2 restated'!X9 -> 0 | B29: ='F3-2 restated'!X14 -> 0

Sheet Expenses
A1: ='General information'!A1 -> Project STAR
A2: ='General information'!A2 -> xxx
A3: =A8 -> Total expenses
A8: Total expenses
E9: Select the table below, starting from cell E10 and press the button "Pie chart"
A10: LGU Name | B10: =A8&" "&Language!$D$19&" "&Language!$D$53&" "&Language!$D$35 -> Total expenses Vit ushtrimor 2014 Riparaqitur sipas NJQV-ve | C10: % | F10: =B10 -> Total expenses Vit ushtrimor 2014 Riparaqitur sipas NJQV-ve
A11: ='F3-1 restated'!F9 -> 0 | B11: ='F3-1 restated'!F73 -> 0 | C11: =B11/SUM($B$11:$B$29) ->  | E11: =IF(A11<>0,A11,"") ->  | F11: =IF(B11<>0,B11,"") -> 
A12: ='F3-1 restated'!G9 -> 0 | B12: ='F3-1 restated'!G73 -> 0 | C12: =B12/SUM($B$11:$B$29) ->  | E12: =IF(A12<>0,A12,"") -> 
A13: ='F3-1 restated'!H9 -> 0 | B13: ='F3-1 restated'!H73 -> 0
A14: ='F3-1 restated'!I9 -> 0 | B14: ='F3-1 restated'!I73 -> 0
A15: ='F3-1 restated'!J9 -> 0 | B15: ='F3-1 restated'!J73 -> 0 | E15: =IF(A15<>0,A15,"") -> 
A16: ='F3-1 restated'!K9 -> 0 | B16: ='F3-1 restated'!K73 -> 0 | E16: =IF(A16<>0,A16,"") -> 
A17: ='F3-1 restated'!L9 -> 0 | B17: ='F3-1 restated'!L73 -> 0
A18: ='F3-1 restated'!M9 -> 0 | B18: ='F3-1 restated'!M73 -> 0
A19: ='F3-1 restated'!N9 -> 0 | B19: ='F3-1 restated'!N73 -> 0
A20: ='F3-1 restated'!O9 -> 0 | B20: ='F3-1 restated'!O73 -> 0
A21: ='F3-1 restated'!P9 -> 0 | B21: ='F3-1 restated'!P73 -> 0
A22: ='F3-1 restated'!Q9 -> 0 | B22: ='F3-1 restated'!Q73 -> 0
A23: ='F3-1 restated'!R9 -> 0 | B23: ='F3-1 restated'!R73 -> 0
A24: ='F3-1 restated'!S9 -> 0 | B24: ='F3-1 restated'!S73 -> 0
A25: ='F3-1 restated'!T9 -> 0 | B25: ='F3-1 restated'!T73 -> 0
A26: ='F3-1 restated'!U9 -> 0 | B26: ='F3-1 restated'!U73 -> 0
A27: ='F3-1 restated'!V9 -> 0 | B27: ='F3-1 restated'!V73 -> 0
A28: ='F3-1 restated'!W9 -> 0 | B28: ='F3-1 restated'!W73 -> 0
A29: ='F3-1 restated'!X9 -> 0 | B29: ='F3-1 restated'!X73 -> 0

Sheet Forms-->

Sheet First (hidden)

Sheet Template 1
A1: Template nr. 1
A2: ASSETS 2014 | F2: (in ALL)
A3: Nr. | B3: Account number | C3: EMERTIMI I LLOGARIVE TE AKTIVIT | D3: Asset Accounts Tittle | E3: Closed exercise | F3: Previous exercise
A5: 1 | B5: 12 | C5: Rezultate te mbartura(saldo debitore) | D5: Carried results
A6: 2 | B6: A | C6: AKTIVE TE QENDRUESHME | D6: Long-term Assets | E6: =E7+E13+E28 -> 0 | F6: =F7+F13+F28 -> 0
A7: 3 | B7: 20, 230 | C7: I.Te pa trupezuara | D7: I.Intangible | E7: =SUM(E8:E12) -> 0 | F7: =SUM(F8:F12) -> 0
A8: 4 | B8: 201 | C8: Prime te emisionit dhe rimbursimit te huave | D8: Amounts to be remitted and loan reimbursements
A9: 5 | B9: 202 | C9: Studime dhe kerkime | D9: Studies and research
A10: 6 | B10: 203 | C10: Koncesione, patenta,licenca e tjera ngjashme | D10: Concessions, license, other similar licenses
A11: 7 | B11: 209 | C11: Amortizimi i aktiveve qendrushme te pa trupezuara(-) | D11: Anortization of current intagible assets (-)
A12: 8 | B12: 230 | C12: Shpenzime per rritjen e aktiv.qendr.patrupezuara | D12: Expenses for increase of current intangible assets
A13: 9 | B13: 21,23,24,28 | C13: II.Akt.Qendr.te Trupezuara | D13: II.Tangible Assets | E13: =SUM(E14:E27) -> 0 | F13: =SUM(F14:F27) -> 0
A14: 10 | B14: 210 | C14: Toka,troje,Terene | D14: Land
A15: 11 | B15: 211 | C15: Pyje,Kullota Plantacione | D15: Forests, Pasture, Plantation
A16: 12 | B16: 212 | C16: Ndertime e Konstruksione | D16: Building and Constructions
A17: 13 | B17: 213 | C17: Rruge,rrjete,vepra ujore | D17: Roads, networks, water facilities
A18: 14 | B18: 214 | C18: Instalime teknike,makineri,paisje,vegla pune | D18: Technical installment, machineri, equipments, working tools
A19: 15 | B19: 215 | C19: Mjete transporti | D19: Transport vehicles
A20: 16 | B20: 216 | C20: Rezerva shtetrore | D20: Government reserve
A21: 17 | B21: 217 | C21: Kafshe pune e prodhimi | D21: Working and production animals
A22: 18 | B22: 218 | C22: Inventar ekonomik | D22: Economic Inventory
A23: 19 | B23: 219 | C23: Amortizimi aktiv.Qendr.te trupezuara(-) | D23: Depreciation of tangible assets
A24: 20 | B24: 231 | C24: Shpenzime proces per rritjen e AQT | D24: Expenses in process for increase of current tangible assets
A25: 21 | B25: 232 | C25: Shpenzime proces per transferime kapitale | D25: Expenses in process for capital transfers
A26: 22 | B26: 24 | C26: Aktive te Qend.te trupezuara te demtuara | D26: Damaged current tangible assets
A27: 23 | B27: 28 | C27: Caktime | D27: Assignments
A28: 24 | B28: 25.26 | C28: III.Aktive Financiare | D28: III. Financial Assets | E28: =SUM(E29:E30) -> 0 | F28: =SUM(F29:F30) -> 0
A29: 25 | B29: 25 | C29: qera | D29: Loan and sub-loans
A30: 26 | B30: 26 | C30: Pjesmarrje ne kapitalin e vet | D30: Participation with own capital
A31: 27 | B31: B | C31: AKTIVE QARKULLUESE | D31: FLOATING ASSETS | E31: =E32+E42+E58 -> 0 | F31: =F32+F42+F58 -> 0
A32: 28 | B32: Klasa 3 | C32: I.Gjendja e Inventarit | D32: I. Inventory Status | E32: =SUM(E33:E41) -> 0 | F32: =SUM(F33:F41) -> 0 | G32: =F32-E32 -> 0
A33: 29 | B33: 31 | C33: Materiale | D33: Materials
A34: 30 | B34: 32 | C34: Objekte inventari | D34: Inventory Objects
A35: 31 | B35: 33 | C35: Prodhime, punime e sherbime ne proces | D35: Production, work and services in process
A36: 32 | B36: 34 | C36: Produkte | D36: Products
A37: 33 | B37: 35 | C37: Mallra | D37: Goods
A38: 34 | B38: 36 | C38: Gje e gjalle ne rritje e majmeri | D38: Animals fattening
A39: 35 | B39: 37 | C39: Gjendje te pambritura ose prane te treteve | D39: Undelivered items or close to third party
A40: 36 | B40: 38 | C40: Diferenca nga cmimet e magazinimit | D40: Differencies from wharehouse prices
A41: 37 | B41: 39 | C41: Shuma te parashikuara per zhvleresim te inventarit(-) | D41: Forecasted amounts for inventory depreciation (-)
A42: 38 | B42: Klasa 4 | C42: II.Kerkesa arketimi mbi Debitoret | D42: II. Request for receivables | E42: =SUM(E43:E57) -> 0 | F42: =SUM(F43:F57) -> 0
A43: 39 | B43: 409 | C43: Furnitore(Debitore),parapagime pagesa pjesore | D43: Suppliers, prepayments or partial payment
A44: 40 | B44: 411-418 | C44: Kliente e llogari te ngjashme | D44: Similar clients or accounts
A45: 41 | B45: 423.429 | C45: Personeli, paradhenie, deficite e gjoba | D45: Employeers, prepayment, deficits and fees
A46: 42 | B46: 431 | C46: Te drejta e taksa per t'u derdhur ne shtet | D46: Rights and taxes to deposit to government
A47: 43 | B47: 432 | C47: Tatime mbledh nga shteti per llog.Pushtetit Lokal | D47: Taxes collected from central government for the Local Government
A48: 44 | B48: 433 | C48: Shenz.fatkeqesi natyrore qe mbulon shteti | D48: Expenses for natural disaster covered from the government
A49: 45 | B49: 4342 | C49: Te tjera operacione me shtetin(debitor) | D49: Other operations with the government (debitor)
A50: 46 | B50: 435 | C50: Sigurime Shoqerore | D50: Social Insurance
A51: 47 | B51: 436 | C51: Sigurime Shendetesore | D51: Health Insurance
A52: 48 | B52: 437.438 | C52: Organizma te tjere shoqerore | D52: Other social organizations
A53: 49 | B53: 44 | C53: Institucione te tjera publike | D53: Other public instituations
A54: 50 | B54: 45 | C54: Mardhenie me instit.brenda dhe jasht sistemit | D54: Relationships with institutions in and outside the system
A55: 51 | B55: 465 | C55: Efekte per t'u arketuar nga shitja let.vlere vendosjes | D55: Receivables from selling of bonds
A56: 52 | B56: 468 | C56: Debitore te ndryshem | D56: Different Debtors
A57: 53 | B57: 49 | C57: Shuma te parashikuara per zhvleresim(-) | D57: Forecasted amounts for depreciation (-)
A58: 54 | B58: 50.59 | C58: III.Llogarite financiare | D58: III. Financial accounts | E58: =SUM(E59:E67) -> 0 | F58: =SUM(F59:F67) -> 0
A59: 55 | B59: 50 | C59: Letra me vlere te vendosjes | D59: Securities
A60: 56 | B60: 511 | C60: Vlera per tu arketuar | D60: Amounts to receive
A61: 57 | B61: 512 | C61: Llogari ne banke | D61: Bank
A62: 58 | B62: 52O | C62: Disponibilitete ne thesar | D62: Treasury funds
A63: 59 | B63: 531 | C63: Llogari ne arke | D63: Petty-cash
A64: 60 | B64: 532 | C64: Vlera te tjera | D64: Other amounts
A65: 61 | B65: 54 | C65: Akreditiva dhe paradhenie | D65: Recgonised and prepayments
A66: 62 | B66: 56 | C66: Llogari ne organizma krediti | D66: Accounts in Lending Institutions
A67: 63 | B67: 59 | C67: Provigjone zhvlersimi letra me vlere vendosjes(-) | D67: devaluation provisions on securities(-)
A68: 64 | B68: C | C68: LLOGARI TE TJERA AKTIVE | D68: Other Assets | E68: =SUM(E69:E71) -> 0 | F68: =SUM(F69:F71) -> 0
A69: 65 | B69: 477 | C69: Diferenca konvertimi aktive | D69: Assets conversion differences
A70: 66 | B70: 481 | C70: Shpenz.per tu shpernd.ne disa ushtrime | D70: Expnses to distribute in several exercises
A71: 67 | B71: 486 | C71: Shpenzime te periudhave te ardheshme | D71: Expenses in the future
A72: 68 | B72: 85 | C72: REZULTATI I USHTRIMIT(saldo debitore) | D72: EXERCISE RESULTS (saldo debitore)
A73: 69 | B73: X | C73: TOTALI I AKTIVIT | D73: ASSETS TOTAL | E73: =E5+E6+E31+E68+E72 -> 0 | F73: =F5+F6+F31+F68+F72 -> 0
A75: 70 | B75: 80.81 | C75: LLOGARITE JASHTE BILANCIT | D75: ACCOUNTS OUT OF BALANCE SHEET | E75: =SUM(E76) -> 0 | F75: =SUM(F76) -> 0
A76: 71 | B76: 80,81 | C76: Evidenca aktive | D76: Active evidences
A80: Template nr. 2
A81: LIABILITIES 2014 | F81: (ne leke)
A82: Nr. | B82: Account number | C82: EMERTIMI I LLOGARIVE TE PASIVIT | D82: LIABILITIES | E82: Closed Exercise | F82: Current Exercise
A84: 1 | B84: A | C84: FONDE TE VETA | D84: OWN FUNDS | E84: =E85+E91+E95+E96+E97+E98 -> 0 | F84: =F85+F91+F95+F96+F97+F98 -> 0
A85: 2 | B85: 10 | C85: I. Fonde te veta | D85: I. Own funds | E85: =SUM(E86:E90) -> 0 | F85: =SUM(F86:F90) -> 0
A86: 3 | B86: 101 | C86: Fonde baze | D86: Base funds
A87: 4 | B87: 105 | C87: Grante te brendshme kapitale | D87: Capital internal grants
A88: 5 | B88: 106 | C88: Grante te huaja kapitale | D88: Capital foreigner grants
A89: 6 | B89: 107 | C89: Vlera Akt.Qend.te caktuara ne perdorim | D89: Current assets in use
A90: 7 | B90: 109 | C90: Rezerva nga rivlersimi aktiveve te qendrushme | D90: Reserves from revaluation of current assets
A91: 8 | B91: 11 | C91: II.Fonde te tjera te veta | D91: II. Other own funds | E91: =SUM(E92:E94) -> 0 | F91: =SUM(F92:F94) -> 0
A92: 9 | B92: 111 | C92: Fonde rezerve | D92: Reserve funds
A93: 10 | B93: 115 | C93: Caktim nga rezultati i vitit per investime | D93: Assigments from the year results for investments
A94: 11 | B94: 116 | C94: Te ardhura nga shitja e Ak.Qendrushme | D94: Revenues from selling of current assets
A95: 12 | B95: 12 | C95: III.Rezultati i mbartur | D95: III. Carried result
A96: 13 | B96: 13 | C96: IV.Subvecione te jashtezakonshme( - ) | D96: IV. Exceptional subsidieris ( - )
A97: 14 | B97: 14 | C97: V.Pjesemarrje te instit.ne invest.per te trete | D97: V. Participation of the institution in investing for third parties
A98: 15 | B98: 15 | C98: VI.Shuma parashikuara per rreziqe e shpenz. | D98: VI. Forecasted amounts for disasters and expenses
A99: 16 | B99: B | C99: D E T Y R I M E | D99: LIABILITIES | E99: =E100+E103 -> 0 | F99: =F100+F103 -> 0
A100: 17 | B100: 16,17,18 | C100: I.Borxhe afatgjate | D100: I. Longterm debts | E100: =SUM(E101:E102) -> 0 | F100: =SUM(F101:F102) -> 0
A101: 18 | B101: 16 | C101: Huamarrje e brendeshme dhe te ngjashme | D101: Internal borrowing and similar
A102: 19 | B102: 17 | C102: Huamarrje e huaj | D102: Borrowing out of the country
A103: 20 | B103: Klasa 4 | C103: II.Detyrime afatshkurter | D103: II. Short term liabilities | E103: =SUM(E104:E119) -> 0 | F103: =SUM(F104:F119) -> 0
A104: 21 | B104: 419 | C104: Kliente(Kreditore), parapagese pjesore | D104: Clients (Creditors ), partial prepayment
A105: 22 | B105: 401-408 | C105: Furnitore e llogari te lidhura me to | D105: Suppliers and related accounts
A106: 23 | B106: 42 | C106: Personeli e llogari te lidhura me to | D106: Employees and related accounts
A107: 24 | B107: 431 | C107: Detyrime ndaj Shtetit per tatim-taksa | D107: Liabilities to government for taxes
A108: 25 | B108: 432 | C108: Tatime mbedhura nga shteti per llog.Pusht.Lokal | D108: Taxes collected from government for the local government
A109: 26 | B109: 433 | C109: Shteti fatkeqesi natyrore | D109: Government natural disaster
A110: 27 | B110: 4341 | C110: Te tjera operacione me shtetin(kreditor) | D110: Te tjera operacione me shtetin(kreditor)
A111: 28 | B111: 435 | C111: Sigurime shoqerore | D111: Social Insurance
A112: 29 | B112: 436 | C112: Sigurime shendetsore | D112: Health Insurance
A113: 30 | B113: 437.438 | C113: Organizma te tjere shoqerore | D113: Other social organizations
A114: 31 | B114: 44 | C114: Institucione te tjera publike | D114: Other public instituations
A115: 32 | B115: 45 | C115: Marrdhenie me institucione brenda e jasht sistemit | D115: Relationships with institutions in and outside the system
A116: 33 | B116: 460 | C116: Huadhenes | D116: Borrower
A117: 34 | B117: 464 | C117: Detyrime per t'u paguar per blerjen e letr,vlere | D117: Liabilities for bond purchasing
A118: 35 | B118: 466 | C118: Kreditore per mjete ne ruajtje | D118: Creditors for assets under guard
A119: 36 | B119: 467 | C119: Kreditore te ndryshem | D119: Other creditors
A120: 37 | B120: C | C120: LLOGARI TE TJERA | D120: OTHER ACCOUNTS | E120: =SUM(E121:E124) -> 0 | F120: =SUM(F121:F124) -> 0
A121: 38 | B121: 475 | C121: Te ardhura per tu regjist.vitet pasardhese | D121: incomes to register in the coming years
A122: 39 | B122: 478 | C122: Diferenca konvertime pasive | D122: pasive converting differencies
A123: 40 | B123: 480 | C123: Te ardhura per tu klasifikuar ose rregulluar | D123: Incomes to clasiffy or adjust
A124: 41 | B124: 487 | C124: te ardhura te arketuara para nxjerrjes titullit | D124: incomes received before title exposure
A125: 42 | B125: 85 | C125: REZULTATI I USHTRIMIT(Saldo kreditore) | D125: Result (credit amount)
A126: 43 | B126: X | C126: T O T A L I I P A S I V I T | D126: TOTAL LIABILITY | E126: =E84+E99+E120+E125 -> 0 | F126: =F84+F99+F120+F125 -> 0
A128: 44 | B128: 80.81 | C128: LLOGARITE JASHTE BILANCIT | D128: ACCOUNTS OUT OF BALANCE SHEET | E128: =SUM(E129) -> 0 | F128: =SUM(F129) -> 0
A129: 45 | B129: 80,81 | C129: Evidenca pasive | D129: Evidenca pasive
B131: check | C131: Pasiv = Aktiv | D131: Liabilities = Assets | E131: =E126-E73 -> 0 | F131: =F126-F73 -> 0
A133: Template nr. 3/1
A134: EXPENSES 2014 | E134: (ne leke)
A135: Nr. | B135: Nr.llog. | C135: PERSHKRIMI I SHPENZIMEVE TE USHTRIMIT | E135: Current | F135: Previous
D136: DESCRIPTION OF EXPENSES | E136: Year | F136: Year
A137: a | B137: b | C137: c | E137: 1 | F137: 2
A138: 1 | B138: Klasa 6 | C138: A. SHPENZIMET SHFRYTEZIMI (I - III) | D138: Explotation conts | E138: =E139+E178+E179 -> 0 | F138: =F139+F178+F179 -> 0
A139: 2 | B139: 60 | C139: I. Shpenzime Korrente | D139: Current expenses | E139: =E140+E145+E148+E159+E165+E170+E175 -> 0 | F139: =F140+F145+F148+F159+F165+F170+F175 -> 0
A140: 3 | B140: 600 | C140: Paga,shperblime e te tjera personeli | D140: Salaries, bonuses | E140: =SUM(E141:E144) -> 0 | F140: =SUM(F141:F144) -> 0
A141: 4 | B141: 6001 | C141: Paga, personeli i perhershem | D141: Salaries
A142: 5 | B142: 6002 | C142: Paga, personel I perkohshem | D142: Temporary salaries
A143: 6 | B143: 6003 | C143: Shperblime | D143: Bonuses
A144: 7 | B144: 6009 | C144: Shpenzime tjera personeli | D144: Other personal expenses
A145: 8 | B145: 601 | C145: Kontrib.te sig.shoq.e shendets. | D145: health and social insurance contributions | E145: =SUM(E146:E147) -> 0 | F145: =SUM(F146:F147) -> 0
A146: 9 | B146: 6010 | C146: Kontribute per sigurimet shoqerore | D146: Inurance contributions
A147: 10 | B147: 6011 | C147: Kontribute per sigurimet shendetesore | D147: Health insurance
A148: 11 | B148: 602 | C148: Mallra dhe sherbime te tjera | D148: Other goods and services | E148: =SUM(E149:E158) -> 0 | F148: =SUM(F149:F158) -> 0
A149: 12 | B149: 6020 | C149: Materiale zyre e te pergjitheshme | D149: stationary
A150: 13 | B150: 6021 | C150: Materiale dhe sherbime speciale | D150: Special services
A151: 14 | B151: 6022 | C151: Sherbime nga te trete | D151: Services from third party
A152: 15 | B152: 6023 | C152: Shpenzime transporti | D152: Transport expenses
A153: 16 | B153: 6024 | C153: Shpenzime udhetimi | D153: Travel expense
A154: 17 | B154: 6025 | C154: Shpenzime per mirembajtje te zakonshme | D154: Ordinary maintanance expenses
A155: 18 | B155: 6026 | C155: Shpenzime per qeramarrje | D155: Rent expenses
A156: 19 | B156: 6027 | C156: Shpenzime per detyrime per kompesime legale | D156: Expenses for legal liability for compensation
A157: 20 | B157: 6028 | C157: Shpenzime te lidhura me huamarrjen per hua | D157: Borrowing costs related to loans
A158: 21 | B158: 6029 | C158: Shpenzime te tjera operative | D158: Other operating expenses
A159: 22 | B159: 603 | C159: Subvencionet | D159: Subsidies
A160: 23 | B160: 6030 | C160: Subvecione per diference cmimi | D160: Subsidies for price differences
A161: 24 | B161: 6031 | C161: Subvecione per te nxitur punesimin | D161: Subsidies to promote employment
A162: 25 | B162: 6032 | C162: Subvecione per te mbuluar humbjet | D162: Subsidies to cover loss
A163: 26 | B163: 6033 | C163: Subvecione per sipermarrjet individuale | D163: Subsidies for entrepreneurship
A164: 27 | B164: 6039 | C164: Subvecione te tjera | D164: Other subsidies
A165: 28 | B165: 604 | C165: Transferime korrente te brendshme | D165: Current interanl tranfers | E165: =SUM(E166:E169) -> 0 | F165: =SUM(F166:F169) -> 0
A166: 29 | B166: 6040 | C166: Transferime korente tek nivele tjera te Qeverise | D166: Current transfers to other government levels
A167: 30 | B167: 6041 | C167: Transferime korente tek institucione qeveritare te ndryshme | D167: Current transfers to various government institutions
A168: 31 | B168: 6042 | C168: Transferime korente tek Sigurimet Shoqerore e Shendetsore | D168: Current transfers for social and health inurance
A169: 32 | B169: 6044 | C169: Transferime korente tek Organizatat jo fitimprurse | D169: Current tranfers for not for profit organisations
A170: 33 | B170: 605 | C170: Transferime korrente me jashte | D170: Current tranfers with outsiders | E170: =SUM(E171:E174) -> 0 | F170: =SUM(F171:F174) -> 0
A171: 34 | B171: 6051 | C171: Transferime Per Organizatat Nderkombetare | D171: Tranfers for IOS
A172: 35 | B172: 6052 | C172: Transferime Per Qeverite e Huaja | D172: Tranfers for foreign governments
A173: 36 | B173: 6053 | C173: Transferime Per institucionet jo fitimprurese te huaja | D173: Tranfers for non not-for profit organisations
A174: 37 | B174: 6059 | C174: Transferime Te tjera korrente me jashte shtetit | D174: Other current tranfers with foreign governments
A175: 38 | B175: 606 | C175: Transferta per buxh.familjare e individe | D175: Tranfers family budges and other individuals | E175: =SUM(E176:E177) -> 0 | F175: =SUM(F176:F177) -> 0
A176: 39 | B176: 6060 | C176: Transferta Te paguara nga ISSH e ISKSH | D176: Tranfers paid from ISS and HII
A177: 40 | B177: 6061 | C177: Transferta Paguara nga Inst.Tjera e Org.Pusht.Vendor | D177: Tranfers paid from other insitutions and Local government
A178: 41 | B178: 63 | C178: II. Ndryshimi I gjendjeve te inventarit ( + - ) | D178: Change in inventory balances
A179: 42 | B179: 68 | C179: III. Kuota amortizimi dhe shuma te parashikuara | D179: Amortisation rates and expected balances | E179: =SUM(E180:E183) -> 0 | F179: =SUM(F180:F183) -> 0
A180: 43 | B180: 681 | C180: Kuotat e amortizimit te shfrytezimit | D180: Amortisatrion rates on explotation | E180: 0 | F180: 0
A181: 44 | B181: 682 | C181: Vlera mbetur e AQ te nxjerra jasht perdorimit e shitura | D181: Residual value on fixed assests, damaged or disposed | E181: 0 | F181: 0
A182: 45 | B182: 683 | C182: Shuma te parashikuara te shfrytezimit | D182: Amounts provided for explotations | E182: 0 | F182: 0
A183: 46 | B183: 686 | C183: Shuma te parashikuara per aktivet financiare | D183: Amounts provided for finance asssets | E183: 0 | F183: 0
A184: 47 | B184: 65, 66 | C184: B. SHPENZIME FINANCIARE(I+II) | D184: Finance expenses | E184: =E185+E190 -> 0 | F184: =F185+F190 -> 0
A185: 48 | B185: 65 | C185: I. Shpen.financiare te brendshme | D185: Internal finance expenses | E185: =SUM(E186:E189) -> 0 | F185: =SUM(F186:F189) -> 0
A186: 49 | B186: 650 | C186: Interesa per bono thesarit dhe kredi direkte | D186: Bond interest rates and direct loans | E186: 0 | F186: 0
A187: 50 | B187: 651 | C187: Interesa per huamarrje te tj. Brendshme | D187: Borrowing costs related to loans | E187: 0 | F187: 0
A188: 51 | B188: 652 | C188: Interesa Letra tjera vlere Qeverise | D188: Other interst on government securities | E188: 0 | F188: 0
A189: 52 | B189: 656 | C189: Shpenz.nga kembimet valutore | D189: foreign exchange expenses | E189: 0 | F189: 0
A190: 53 | B190: 66 | C190: II. Shpen.financiare te jashtme | D190: External finance expenses | E190: =SUM(E191:E193) -> 0 | F190: =SUM(F191:F193) -> 0
A191: 54 | B191: 660 | C191: Interesa per huamarrje nga Qeveri.te Huaja | D191: Interest on loans from Foreign Governments | E191: 0 | F191: 0
A192: 55 | B192: 661 | C192: Interesa per financime nga Institucionet.nderkomb | D192: Interest on financing from international organizations | E192: 0 | F192: 0
A193: 56 | B193: 662 | C193: Interesa per huamarrje te tjera jashtme | D193: Interest on other foreign loans | E193: 0 | F193: 0
A194: 57 | B194: 67 | C194: C. SHPENZ.TE JASHTEZAKONSHME | D194: C. Extraordinary Expenses | E194: =SUM(E195:E196) -> 0 | F194: =SUM(F195:F196) -> 0
A195: 58 | B195: 677 | C195: Humbje nga gabime te lejuara ne ushtr.paraardhese | D195: Losses from allowed errors from previous years | E195: 0 | F195: 0
A196: 59 | B196: 678 | C196: Shpenzime te tjera te jashtzakonshme | D196: Other Extraordinary expenses | E196: 0 | F196: 0
A197: 60 | B197: Klasa 6 | C197: TOTALI I SHPENZIMEVE | D197: TOTAL EXPENSES | E197: =E138+E184+E194 -> 0 | F197: =F138+F184+F194 -> 0
A198: 61 | B198: 82,83,84 | C198: D. OPERAC.KORIGJ.REZULTATIT | D198: TOTALI I SHPENZIMEVE | E198: =SUM(E199:E205) -> 0 | F198: =SUM(F199:F205) -> 0
A199: 62 | B199: 828 | C199: Tituj te ardhurash te anulluara | D199: Names of cancelled revenues
A200: 63 | B200: 831 | C200: Caktim te ardh.funks.per investime | D200: Determination of revenues for investments
A201: 64 | B201: 8420 | C201: Derdhje te ardhura ne buxhet | D201: Revenues deposited in the budget
A202: 65 | B202: 8421 | C202: Derdhje buxhet te ardhuurave pa perdorura | D202: Deposit in the budget of unused revenues
A203: 66 | B203: 8422 | C203: Transferim te ardhurave brenda sistemit | D203: Transfers of revenues within the system
A204: 67 | B204: 8423 | C204: Transferime per ndrysh gjendje | D204: Transfers for changes in situation
A205: 68 | B205: 8424 | C205: Transferim per debitore te konstatuar e te ngjashme | D205: Transfers for identified debtors and similar items
A206: 69 | B206: Klasa 6 e 8 | C206: TOTALI OPERACIONEVE | D206: TOTAL FROM OPERATIONS | E206: =E197+E198 -> 0 | F206: =F197+F198 -> 0
A207: 70 | B207: 85 | C207: REZULTATI NGA FUNKSIONIMI | D207: RESULTS FROM FUNCTIONING
A208: 71 | B208: X | C208: T O T A L I | D208: Totals | E208: =E206+E207 -> 0 | F208: =F206+F207 -> 0
A210: Accnt.85 ne 3/1 = Accnt.85 ne liability | D210: 0 | E210: =E207-E125 -> 0 | F210: =F207-F125 -> 0
... 462 more rows

Sheet Template 2
A1: Template nr. 1
A2: ASSETS 2014 | F2: (in ALL)
A3: Nr. | B3: Account number | C3: EMERTIMI I LLOGARIVE TE AKTIVIT | D3: Asset Accounts Tittle | E3: Closed exercise | F3: Previous exercise
A5: 1 | B5: 12 | C5: Rezultate te mbartura(saldo debitore) | D5: Carried results
A6: 2 | B6: A | C6: AKTIVE TE QENDRUESHME | D6: Long-term Assets | E6: =E7+E13+E28 -> 0 | F6: =F7+F13+F28 -> 0
A7: 3 | B7: 20, 230 | C7: I.Te pa trupezuara | D7: I.Intangible | E7: =SUM(E8:E12) -> 0 | F7: =SUM(F8:F12) -> 0
A8: 4 | B8: 201 | C8: Prime te emisionit dhe rimbursimit te huave | D8: Amounts to be remitted and loan reimbursements
A9: 5 | B9: 202 | C9: Studime dhe kerkime | D9: Studies and research
A10: 6 | B10: 203 | C10: Koncesione, patenta,licenca e tjera ngjashme | D10: Concessions, license, other similar licenses
A11: 7 | B11: 209 | C11: Amortizimi i aktiveve qendrushme te pa trupezuara(-) | D11: Anortization of current intagible assets (-)
A12: 8 | B12: 230 | C12: Shpenzime per rritjen e aktiv.qendr.patrupezuara | D12: Expenses for increase of current intangible assets
A13: 9 | B13: 21,23,24,28 | C13: II.Akt.Qendr.te Trupezuara | D13: II.Tangible Assets | E13: =SUM(E14:E27) -> 0 | F13: =SUM(F14:F27) -> 0
A14: 10 | B14: 210 | C14: Toka,troje,Terene | D14: Land
A15: 11 | B15: 211 | C15: Pyje,Kullota Plantacione | D15: Forests, Pasture, Plantation
A16: 12 | B16: 212 | C16: Ndertime e Konstruksione | D16: Building and Constructions
A17: 13 | B17: 213 | C17: Rruge,rrjete,vepra ujore | D17: Roads, networks, water facilities
A18: 14 | B18: 214 | C18: Instalime teknike,makineri,paisje,vegla pune | D18: Technical installment, machineri, equipments, working tools
A19: 15 | B19: 215 | C19: Mjete transporti | D19: Transport vehicles
A20: 16 | B20: 216 | C20: Rezerva shtetrore | D20: Government reserve
A21: 17 | B21: 217 | C21: Kafshe pune e prodhimi | D21: Working and production animals
A22: 18 | B22: 218 | C22: Inventar ekonomik | D22: Economic Inventory
A23: 19 | B23: 219 | C23: Amortizimi aktiv.Qendr.te trupezuara(-) | D23: Depreciation of tangible assets
A24: 20 | B24: 231 | C24: Shpenzime proces per rritjen e AQT | D24: Expenses in process for increase of current tangible assets
A25: 21 | B25: 232 | C25: Shpenzime proces per transferime kapitale | D25: Expenses in process for capital transfers
A26: 22 | B26: 24 | C26: Aktive te Qend.te trupezuara te demtuara | D26: Damaged current tangible assets
A27: 23 | B27: 28 | C27: Caktime | D27: Assignments
A28: 24 | B28: 25.26 | C28: III.Aktive Financiare | D28: III. Financial Assets | E28: =SUM(E29:E30) -> 0 | F28: =SUM(F29:F30) -> 0
A29: 25 | B29: 25 | C29: qera | D29: Loan and sub-loans
A30: 26 | B30: 26 | C30: Pjesmarrje ne kapitalin e vet | D30: Participation with own capital
A31: 27 | B31: B | C31: AKTIVE QARKULLUESE | D31: FLOATING ASSETS | E31: =E32+E42+E58 -> 0 | F31: =F32+F42+F58 -> 0
A32: 28 | B32: Klasa 3 | C32: I.Gjendja e Inventarit | D32: I. Inventory Status | E32: =SUM(E33:E41) -> 0 | F32: =SUM(F33:F41) -> 0 | G32: =F32-E32 -> 0
A33: 29 | B33: 31 | C33: Materiale | D33: Materials
A34: 30 | B34: 32 | C34: Objekte inventari | D34: Inventory Objects
A35: 31 | B35: 33 | C35: Prodhime, punime e sherbime ne proces | D35: Production, work and services in process
A36: 32 | B36: 34 | C36: Produkte | D36: Products
A37: 33 | B37: 35 | C37: Mallra | D37: Goods
A38: 34 | B38: 36 | C38: Gje e gjalle ne rritje e majmeri | D38: Animals fattening
A39: 35 | B39: 37 | C39: Gjendje te pambritura ose prane te treteve | D39: Undelivered items or close to third party
A40: 36 | B40: 38 | C40: Diferenca nga cmimet e magazinimit | D40: Differencies from wharehouse prices
A41: 37 | B41: 39 | C41: Shuma te parashikuara per zhvleresim te inventarit(-) | D41: Forecasted amounts for inventory depreciation (-)
A42: 38 | B42: Klasa 4 | C42: II.Kerkesa arketimi mbi Debitoret | D42: II. Request for receivables | E42: =SUM(E43:E57) -> 0 | F42: =SUM(F43:F57) -> 0
A43: 39 | B43: 409 | C43: Furnitore(Debitore),parapagime pagesa pjesore | D43: Suppliers, prepayments or partial payment
A44: 40 | B44: 411-418 | C44: Kliente e llogari te ngjashme | D44: Similar clients or accounts
A45: 41 | B45: 423.429 | C45: Personeli, paradhenie, deficite e gjoba | D45: Employeers, prepayment, deficits and fees
A46: 42 | B46: 431 | C46: Te drejta e taksa per t'u derdhur ne shtet | D46: Rights and taxes to deposit to government
A47: 43 | B47: 432 | C47: Tatime mbledh nga shteti per llog.Pushtetit Lokal | D47: Taxes collected from central government for the Local Government
A48: 44 | B48: 433 | C48: Shenz.fatkeqesi natyrore qe mbulon shteti | D48: Expenses for natural disaster covered from the government
A49: 45 | B49: 4342 | C49: Te tjera operacione me shtetin(debitor) | D49: Other operations with the government (debitor)
A50: 46 | B50: 435 | C50: Sigurime Shoqerore | D50: Social Insurance
A51: 47 | B51: 436 | C51: Sigurime Shendetesore | D51: Health Insurance
A52: 48 | B52: 437.438 | C52: Organizma te tjere shoqerore | D52: Other social organizations
A53: 49 | B53: 44 | C53: Institucione te tjera publike | D53: Other public instituations
A54: 50 | B54: 45 | C54: Mardhenie me instit.brenda dhe jasht sistemit | D54: Relationships with institutions in and outside the system
A55: 51 | B55: 465 | C55: Efekte per t'u arketuar nga shitja let.vlere vendosjes | D55: Receivables from selling of bonds
A56: 52 | B56: 468 | C56: Debitore te ndryshem | D56: Different Debtors
A57: 53 | B57: 49 | C57: Shuma te parashikuara per zhvleresim(-) | D57: Forecasted amounts for depreciation (-)
A58: 54 | B58: 50.59 | C58: III.Llogarite financiare | D58: III. Financial accounts | E58: =SUM(E59:E67) -> 0 | F58: =SUM(F59:F67) -> 0
A59: 55 | B59: 50 | C59: Letra me vlere te vendosjes | D59: Securities
A60: 56 | B60: 511 | C60: Vlera per tu arketuar | D60: Amounts to receive
A61: 57 | B61: 512 | C61: Llogari ne banke | D61: Bank
A62: 58 | B62: 52O | C62: Disponibilitete ne thesar | D62: Treasury funds
A63: 59 | B63: 531 | C63: Llogari ne arke | D63: Petty-cash
A64: 60 | B64: 532 | C64: Vlera te tjera | D64: Other amounts
A65: 61 | B65: 54 | C65: Akreditiva dhe paradhenie | D65: Recgonised and prepayments
A66: 62 | B66: 56 | C66: Llogari ne organizma krediti | D66: Accounts in Lending Institutions
A67: 63 | B67: 59 | C67: Provigjone zhvlersimi letra me vlere vendosjes(-) | D67: devaluation provisions on securities(-)
A68: 64 | B68: C | C68: LLOGARI TE TJERA AKTIVE | D68: Other Assets | E68: =SUM(E69:E71) -> 0 | F68: =SUM(F69:F71) -> 0
B69: 477 | C69: Diferenca konvertimi aktive | D69: Assets conversion differences
A70: 66 | B70: 481 | C70: Shpenz.per tu shpernd.ne disa ushtrime | D70: Expnses to distribute in several exercises
A71: 67 | B71: 486 | C71: Shpenzime te periudhave te ardheshme | D71: Expenses in the future
A72: 68 | B72: 85 | C72: REZULTATI I USHTRIMIT(saldo debitore) | D72: EXERCISE RESULTS (saldo debitore)
A73: 69 | B73: X | C73: TOTALI I AKTIVIT | D73: ASSETS TOTAL | E73: =E5+E6+E31+E68+E72 -> 0 | F73: =F5+F6+F31+F68+F72 -> 0
A75: 70 | B75: 80.81 | C75: LLOGARITE JASHTE BILANCIT | D75: ACCOUNTS OUT OF BALANCE SHEET | E75: =SUM(E76) -> 0 | F75: =SUM(F76) -> 0
A76: 71 | B76: 80,81 | C76: Evidenca aktive | D76: Active evidences
A80: Template nr. 2
A81: LIABILITIES 2014 | F81: (ne leke)
A82: Nr. | B82: Account number | C82: EMERTIMI I LLOGARIVE TE PASIVIT | D82: LIABILITIES | E82: Closed Exercise | F82: Current Exercise
A84: 1 | B84: A | C84: FONDE TE VETA | D84: OWN FUNDS | E84: =E85+E91+E95+E96+E97+E98 -> 0 | F84: =F85+F91+F95+F96+F97+F98 -> 0
A85: 2 | B85: 10 | C85: I. Fonde te veta | D85: I. Own funds | E85: =SUM(E86:E90) -> 0 | F85: =SUM(F86:F90) -> 0
A86: 3 | B86: 101 | C86: Fonde baze | D86: Base funds
A87: 4 | B87: 105 | C87: Grante te brendshme kapitale | D87: Capital internal grants
A88: 5 | B88: 106 | C88: Grante te huaja kapitale | D88: Capital foreigner grants
A89: 6 | B89: 107 | C89: Vlera Akt.Qend.te caktuara ne perdorim | D89: Current assets in use
A90: 7 | B90: 109 | C90: Rezerva nga rivlersimi aktiveve te qendrushme | D90: Reserves from revaluation of current assets
A91: 8 | B91: 11 | C91: II.Fonde te tjera te veta | D91: II. Other own funds | E91: =SUM(E92:E94) -> 0 | F91: =SUM(F92:F94) -> 0
A92: 9 | B92: 111 | C92: Fonde rezerve | D92: Reserve funds
A93: 10 | B93: 115 | C93: Caktim nga rezultati i vitit per investime | D93: Assigments from the year results for investments
A94: 11 | B94: 116 | C94: Te ardhura nga shitja e Ak.Qendrushme | D94: Revenues from selling of current assets
A95: 12 | B95: 12 | C95: III.Rezultati i mbartur | D95: III. Carried result
A96: 13 | B96: 13 | C96: IV.Subvecione te jashtezakonshme( - ) | D96: IV. Exceptional subsidieris ( - )
A97: 14 | B97: 14 | C97: V.Pjesemarrje te instit.ne invest.per te trete | D97: V. Participation of the institution in investing for third parties
A98: 15 | B98: 15 | C98: VI.Shuma parashikuara per rreziqe e shpenz. | D98: VI. Forecasted amounts for disasters and expenses
A99: 16 | B99: B | C99: D E T Y R I M E | D99: LIABILITIES | E99: =E100+E103 -> 0 | F99: =F100+F103 -> 0
A100: 17 | B100: 16,17,18 | C100: I.Borxhe afatgjate | D100: I. Longterm debts | E100: =SUM(E101:E102) -> 0 | F100: =SUM(F101:F102) -> 0
A101: 18 | B101: 16 | C101: Huamarrje e brendeshme dhe te ngjashme | D101: Internal borrowing and similar
A102: 19 | B102: 17 | C102: Huamarrje e huaj | D102: Borrowing out of the country
A103: 20 | B103: Klasa 4 | C103: II.Detyrime afatshkurter | D103: II. Short term liabilities | E103: =SUM(E104:E119) -> 0 | F103: =SUM(F104:F119) -> 0
A104: 21 | B104: 419 | C104: Kliente(Kreditore), parapagese pjesore | D104: Clients (Creditors ), partial prepayment
A105: 22 | B105: 401-408 | C105: Furnitore e llogari te lidhura me to | D105: Suppliers and related accounts
A106: 23 | B106: 42 | C106: Personeli e llogari te lidhura me to | D106: Employees and related accounts
A107: 24 | B107: 431 | C107: Detyrime ndaj Shtetit per tatim-taksa | D107: Liabilities to government for taxes
A108: 25 | B108: 432 | C108: Tatime mbedhura nga shteti per llog.Pusht.Lokal | D108: Taxes collected from government for the local government
A109: 26 | B109: 433 | C109: Shteti fatkeqesi natyrore | D109: Government natural disaster
A110: 27 | B110: 4341 | C110: Te tjera operacione me shtetin(kreditor) | D110: Te tjera operacione me shtetin(kreditor)
A111: 28 | B111: 435 | C111: Sigurime shoqerore | D111: Social Insurance
A112: 29 | B112: 436 | C112: Sigurime shendetsore | D112: Health Insurance
A113: 30 | B113: 437.438 | C113: Organizma te tjere shoqerore | D113: Other social organizations
A114: 31 | B114: 44 | C114: Institucione te tjera publike | D114: Other public instituations
A115: 32 | B115: 45 | C115: Marrdhenie me institucione brenda e jasht sistemit | D115: Relationships with institutions in and outside the system
A116: 33 | B116: 460 | C116: Huadhenes | D116: Borrower
A117: 34 | B117: 464 | C117: Detyrime per t'u paguar per blerjen e letr,vlere | D117: Liabilities for bond purchasing
A118: 35 | B118: 466 | C118: Kreditore per mjete ne ruajtje | D118: Creditors for assets under guard
A119: 36 | B119: 467 | C119: Kreditore te ndryshem | D119: Other creditors
A120: 37 | B120: C | C120: LLOGARI TE TJERA | D120: OTHER ACCOUNTS | E120: =SUM(E121:E124) -> 0 | F120: =SUM(F121:F124) -> 0
A121: 38 | B121: 475 | C121: Te ardhura per tu regjist.vitet pasardhese | D121: incomes to register in the coming years
A122: 39 | B122: 478 | C122: Diferenca konvertime pasive | D122: pasive converting differencies
A123: 40 | B123: 480 | C123: Te ardhura per tu klasifikuar ose rregulluar | D123: Incomes to clasiffy or adjust
A124: 41 | B124: 487 | C124: te ardhura te arketuara para nxjerrjes titullit | D124: incomes received before title exposure
A125: 42 | B125: 85 | C125: REZULTATI I USHTRIMIT(Saldo kreditore) | D125: Result (credit amount)
A126: 43 | B126: X | C126: T O T A L I I P A S I V I T | D126: TOTAL LIABILITY | E126: =E84+E99+E120+E125 -> 0 | F126: =F84+F99+F120+F125 -> 0
A128: 44 | B128: 80.81 | C128: LLOGARITE JASHTE BILANCIT | D128: ACCOUNTS OUT OF BALANCE SHEET | E128: =SUM(E129) -> 0 | F128: =SUM(F129) -> 0
A129: 45 | B129: 80,81 | C129: Evidenca pasive | D129: Evidenca pasive
B131: check | C131: Pasiv = Aktiv | D131: Liabilities = Assets | E131: =E126-E73 -> 0 | F131: =F126-F73 -> 0
A133: Template nr. 3/1
A134: EXPENSES 2014 | E134: (ne leke)
A135: Nr. | B135: Nr.llog. | C135: PERSHKRIMI I SHPENZIMEVE TE USHTRIMIT | E135: Current | F135: Previous
D136: DESCRIPTION OF EXPENSES | E136: Year | F136: Year
A137: a | B137: b | C137: c | E137: 1 | F137: 2
A138: 1 | B138: Klasa 6 | C138: A. SHPENZIMET SHFRYTEZIMI (I - III) | D138: Explotation conts | E138: =E139+E178+E179 -> 0 | F138: =F139+F178+F179 -> 0
A139: 2 | B139: 60 | C139: I. Shpenzime Korrente | D139: Current expenses | E139: =E140+E145+E148+E159+E165+E170+E175 -> 0 | F139: =F140+F145+F148+F159+F165+F170+F175 -> 0
A140: 3 | B140: 600 | C140: Paga,shperblime e te tjera personeli | D140: Salaries, bonuses | E140: =SUM(E141:E144) -> 0 | F140: =SUM(F141:F144) -> 0
A141: 4 | B141: 6001 | C141: Paga, personeli i perhershem | D141: Salaries
A142: 5 | B142: 6002 | C142: Paga, personel I perkohshem | D142: Temporary salaries
A143: 6 | B143: 6003 | C143: Shperblime | D143: Bonuses
A144: 7 | B144: 6009 | C144: Shpenzime tjera personeli | D144: Other personal expenses
A145: 8 | B145: 601 | C145: Kontrib.te sig.shoq.e shendets. | D145: health and social insurance contributions | E145: =SUM(E146:E147) -> 0 | F145: =SUM(F146:F147) -> 0
A146: 9 | B146: 6010 | C146: Kontribute per sigurimet shoqerore | D146: Inurance contributions
A147: 10 | B147: 6011 | C147: Kontribute per sigurimet shendetesore | D147: Health insurance
A148: 11 | B148: 602 | C148: Mallra dhe sherbime te tjera | D148: Other goods and services | E148: =SUM(E149:E158) -> 0 | F148: =SUM(F149:F158) -> 0
A149: 12 | B149: 6020 | C149: Materiale zyre e te pergjitheshme | D149: stationary
A150: 13 | B150: 6021 | C150: Materiale dhe sherbime speciale | D150: Special services
A151: 14 | B151: 6022 | C151: Sherbime nga te trete | D151: Services from third party
A152: 15 | B152: 6023 | C152: Shpenzime transporti | D152: Transport expenses
A153: 16 | B153: 6024 | C153: Shpenzime udhetimi | D153: Travel expense
A154: 17 | B154: 6025 | C154: Shpenzime per mirembajtje te zakonshme | D154: Ordinary maintanance expenses
A155: 18 | B155: 6026 | C155: Shpenzime per qeramarrje | D155: Rent expenses
A156: 19 | B156: 6027 | C156: Shpenzime per detyrime per kompesime legale | D156: Expenses for legal liability for compensation
A157: 20 | B157: 6028 | C157: Shpenzime te lidhura me huamarrjen per hua | D157: Borrowing costs related to loans
A158: 21 | B158: 6029 | C158: Shpenzime te tjera operative | D158: Other operating expenses
A159: 22 | B159: 603 | C159: Subvencionet | D159: Subsidies | E159: =SUM(E160:E164) -> 0 | F159: =SUM(F160:F164) -> 0
A160: 23 | B160: 6030 | C160: Subvecione per diference cmimi | D160: Subsidies for price differences | E160: 0 | F160: 0
A161: 24 | B161: 6031 | C161: Subvecione per te nxitur punesimin | D161: Subsidies to promote employment | E161: 0 | F161: 0
A162: 25 | B162: 6032 | C162: Subvecione per te mbuluar humbjet | D162: Subsidies to cover loss | E162: 0 | F162: 0
A163: 26 | B163: 6033 | C163: Subvecione per sipermarrjet individuale | D163: Subsidies for entrepreneurship | E163: 0 | F163: 0
A164: 27 | B164: 6039 | C164: Subvecione te tjera | D164: Other subsidies | E164: 0 | F164: 0
A165: 28 | B165: 604 | C165: Transferime korrente te brendshme | D165: Current interanl tranfers | E165: =SUM(E166:E169) -> 0 | F165: =SUM(F166:F169) -> 0
A166: 29 | B166: 6040 | C166: Transferime korente tek nivele tjera te Qeverise | D166: Current transfers to other government levels
A167: 30 | B167: 6041 | C167: Transferime korente tek institucione qeveritare te ndryshme | D167: Current transfers to various government institutions
A168: 31 | B168: 6042 | C168: Transferime korente tek Sigurimet Shoqerore e Shendetsore | D168: Current transfers for social and health inurance
A169: 32 | B169: 6044 | C169: Transferime korente tek Organizatat jo fitimprurse | D169: Current tranfers for not for profit organisations
A170: 33 | B170: 605 | C170: Transferime korrente me jashte | D170: Current tranfers with outsiders | E170: =SUM(E171:E174) -> 0 | F170: =SUM(F171:F174) -> 0
A171: 34 | B171: 6051 | C171: Transferime Per Organizatat Nderkombetare | D171: Tranfers for IOS | E171: 0 | F171: 0
A172: 35 | B172: 6052 | C172: Transferime Per Qeverite e Huaja | D172: Tranfers for foreign governments | E172: 0 | F172: 0
A173: 36 | B173: 6053 | C173: Transferime Per institucionet jo fitimprurese te huaja | D173: Tranfers for non not-for profit organisations | E173: 0 | F173: 0
A174: 37 | B174: 6059 | C174: Transferime Te tjera korrente me jashte shtetit | D174: Other current tranfers with foreign governments | E174: 0 | F174: 0
A175: 38 | B175: 606 | C175: Transferta per buxh.familjare e individe | D175: Tranfers family budges and other individuals | E175: =SUM(E176:E177) -> 0 | F175: =SUM(F176:F177) -> 0
A176: 39 | B176: 6060 | C176: Transferta Te paguara nga ISSH e ISKSH | D176: Tranfers paid from ISS and HII
A177: 40 | B177: 6061 | C177: Transferta Paguara nga Inst.Tjera e Org.Pusht.Vendor | D177: Tranfers paid from other insitutions and Local government
A178: 41 | B178: 63 | C178: II. Ndryshimi I gjendjeve te inventarit ( + - ) | D178: Change in inventory balances
A179: 42 | B179: 68 | C179: III. Kuota amortizimi dhe shuma te parashikuara | D179: Amortisation rates and expected balances | E179: =SUM(E180:E183) -> 0 | F179: =SUM(F180:F183) -> 0
A180: 43 | B180: 681 | C180: Kuotat e amortizimit te shfrytezimit | D180: Amortisatrion rates on explotation
A181: 44 | B181: 682 | C181: Vlera mbetur e AQ te nxjerra jasht perdorimit e shitura | D181: Residual value on fixed assests, damaged or disposed
A182: 45 | B182: 683 | C182: Shuma te parashikuara te shfrytezimit | D182: Amounts provided for explotations
A183: 46 | B183: 686 | C183: Shuma te parashikuara per aktivet financiare | D183: Amounts provided for finance asssets
A184: 47 | B184: 65, 66 | C184: B. SHPENZIME FINANCIARE(I+II) | D184: Finance expenses | E184: =E185+E190 -> 0 | F184: =F185+F190 -> 0
A185: 48 | B185: 65 | C185: I. Shpen.financiare te brendshme | D185: Internal finance expenses | E185: =SUM(E186:E189) -> 0 | F185: =SUM(F186:F189) -> 0
A186: 49 | B186: 650 | C186: Interesa per bono thesarit dhe kredi direkte | D186: Bond interest rates and direct loans
A187: 50 | B187: 651 | C187: Interesa per huamarrje te tj. Brendshme | D187: Borrowing costs related to loans
A188: 51 | B188: 652 | C188: Interesa Letra tjera vlere Qeverise | D188: Other interst on government securities
A189: 52 | B189: 656 | C189: Shpenz.nga kembimet valutore | D189: foreign exchange expenses
A190: 53 | B190: 66 | C190: II. Shpen.financiare te jashtme | D190: External finance expenses | E190: =SUM(E191:E193) -> 0 | F190: =SUM(F191:F193) -> 0
A191: 54 | B191: 660 | C191: Interesa per huamarrje nga Qeveri.te Huaja | D191: Interest on loans from Foreign Governments
A192: 55 | B192: 661 | C192: Interesa per financime nga Institucionet.nderkomb | D192: Interest on financing from international organizations
A193: 56 | B193: 662 | C193: Interesa per huamarrje te tjera jashtme | D193: Interest on other foreign loans
A194: 57 | B194: 67 | C194: C. SHPENZ.TE JASHTEZAKONSHME | D194: C. Extraordinary Expenses | E194: =SUM(E195:E196) -> 0 | F194: =SUM(F195:F196) -> 0
A195: 58 | B195: 677 | C195: Humbje nga gabime te lejuara ne ushtr.paraardhese | D195: Losses from allowed errors from previous years
A196: 59 | B196: 678 | C196: Shpenzime te tjera te jashtzakonshme | D196: Other Extraordinary expenses
A197: 60 | B197: Klasa 6 | C197: TOTALI I SHPENZIMEVE | D197: TOTAL EXPENSES | E197: =E138+E184+E194 -> 0 | F197: =F138+F184+F194 -> 0
A198: 61 | B198: 82,83,84 | C198: D. OPERAC.KORIGJ.REZULTATIT | D198: TOTALI I SHPENZIMEVE | E198: =SUM(E199:E205) -> 0 | F198: =SUM(F199:F205) -> 0
A199: 62 | B199: 828 | C199: Tituj te ardhurash te anulluara | D199: Names of cancelled revenues
A200: 63 | B200: 831 | C200: Caktim te ardh.funks.per investime | D200: Determination of revenues for investments
A201: 64 | B201: 8420 | C201: Derdhje te ardhura ne buxhet | D201: Revenues deposited in the budget
A202: 65 | B202: 8421 | C202: Derdhje buxhet te ardhuurave pa perdorura | D202: Deposit in the budget of unused revenues
A203: 66 | B203: 8422 | C203: Transferim te ardhurave brenda sistemit | D203: Transfers of revenues within the system
A204: 67 | B204: 8423 | C204: Transferime per ndrysh gjendje | D204: Transfers for changes in situation
A205: 68 | B205: 8424 | C205: Transferim per debitore te konstatuar e te ngjashme | D205: Transfers for identified debtors and similar items
A206: 69 | B206: Klasa 6 e 8 | C206: TOTALI OPERACIONEVE | D206: TOTAL FROM OPERATIONS | E206: =E197+E198 -> 0 | F206: =F197+F198 -> 0
A207: 70 | B207: 85 | C207: REZULTATI NGA FUNKSIONIMI | D207: RESULTS FROM FUNCTIONING
A208: 71 | B208: X | C208: T O T A L I | D208: Totals | E208: =E206+E207 -> 0 | F208: =F206+F207 -> 0
A210: Accnt.85 ne 3/1 = Accnt.85 ne liability | D210: 0 | E210: =E207-E125 -> 0 | F210: =F207-F125 -> 0
... 462 more rows

Sheet Template 3
A1: Template nr. 1
A2: ASSETS 2014 | F2: (in ALL)
A3: Nr. | B3: Account number | C3: EMERTIMI I LLOGARIVE TE AKTIVIT | D3: Asset Accounts Tittle | E3: Closed exercise | F3: Previous exercise
A5: 1 | B5: 12 | C5: Rezultate te mbartura(saldo debitore) | D5: Carried results
A6: 2 | B6: A | C6: AKTIVE TE QENDRUESHME | D6: Long-term Assets | E6: =E7+E13+E28 -> 0 | F6: =F7+F13+F28 -> 0
A7: 3 | B7: 20, 230 | C7: I.Te pa trupezuara | D7: I.Intangible | E7: =SUM(E8:E12) -> 0 | F7: =SUM(F8:F12) -> 0
A8: 4 | B8: 201 | C8: Prime te emisionit dhe rimbursimit te huave | D8: Amounts to be remitted and loan reimbursements
A9: 5 | B9: 202 | C9: Studime dhe kerkime | D9: Studies and research
A10: 6 | B10: 203 | C10: Koncesione, patenta,licenca e tjera ngjashme | D10: Concessions, license, other similar licenses
A11: 7 | B11: 209 | C11: Amortizimi i aktiveve qendrushme te pa trupezuara(-) | D11: Anortization of current intagible assets (-)
A12: 8 | B12: 230 | C12: Shpenzime per rritjen e aktiv.qendr.patrupezuara | D12: Expenses for increase of current intangible assets
A13: 9 | B13: 21,23,24,28 | C13: II.Akt.Qendr.te Trupezuara | D13: II.Tangible Assets | E13: =SUM(E14:E27) -> 0 | F13: =SUM(F14:F27) -> 0
A14: 10 | B14: 210 | C14: Toka,troje,Terene | D14: Land
A15: 11 | B15: 211 | C15: Pyje,Kullota Plantacione | D15: Forests, Pasture, Plantation
A16: 12 | B16: 212 | C16: Ndertime e Konstruksione | D16: Building and Constructions
A17: 13 | B17: 213 | C17: Rruge,rrjete,vepra ujore | D17: Roads, networks, water facilities
A18: 14 | B18: 214 | C18: Instalime teknike,makineri,paisje,vegla pune | D18: Technical installment, machineri, equipments, working tools
A19: 15 | B19: 215 | C19: Mjete transporti | D19: Transport vehicles
A20: 16 | B20: 216 | C20: Rezerva shtetrore | D20: Government reserve
A21: 17 | B21: 217 | C21: Kafshe pune e prodhimi | D21: Working and production animals
A22: 18 | B22: 218 | C22: Inventar ekonomik | D22: Economic Inventory
A23: 19 | B23: 219 | C23: Amortizimi aktiv.Qendr.te trupezuara(-) | D23: Depreciation of tangible assets
A24: 20 | B24: 231 | C24: Shpenzime proces per rritjen e AQT | D24: Expenses in process for increase of current tangible assets
A25: 21 | B25: 232 | C25: Shpenzime proces per transferime kapitale | D25: Expenses in process for capital transfers
A26: 22 | B26: 24 | C26: Aktive te Qend.te trupezuara te demtuara | D26: Damaged current tangible assets
A27: 23 | B27: 28 | C27: Caktime | D27: Assignments
A28: 24 | B28: 25.26 | C28: III.Aktive Financiare | D28: III. Financial Assets | E28: =SUM(E29:E30) -> 0 | F28: =SUM(F29:F30) -> 0
A29: 25 | B29: 25 | C29: qera | D29: Loan and sub-loans | E29: 0 | F29: 0
A30: 26 | B30: 26 | C30: Pjesmarrje ne kapitalin e vet | D30: Participation with own capital | E30: 0 | F30: 0
A31: 27 | B31: B | C31: AKTIVE QARKULLUESE | D31: FLOATING ASSETS | E31: =E32+E42+E58 -> 0 | F31: =F32+F42+F58 -> 0
A32: 28 | B32: Klasa 3 | C32: I.Gjendja e Inventarit | D32: I. Inventory Status | E32: =SUM(E33:E41) -> 0 | F32: =SUM(F33:F41) -> 0 | G32: =F32-E32 -> 0
A33: 29 | B33: 31 | C33: Materiale | D33: Materials
A34: 30 | B34: 32 | C34: Objekte inventari | D34: Inventory Objects
A35: 31 | B35: 33 | C35: Prodhime, punime e sherbime ne proces | D35: Production, work and services in process
A36: 32 | B36: 34 | C36: Produkte | D36: Products
A37: 33 | B37: 35 | C37: Mallra | D37: Goods
A38: 34 | B38: 36 | C38: Gje e gjalle ne rritje e majmeri | D38: Animals fattening
A39: 35 | B39: 37 | C39: Gjendje te pambritura ose prane te treteve | D39: Undelivered items or close to third party
A40: 36 | B40: 38 | C40: Diferenca nga cmimet e magazinimit | D40: Differencies from wharehouse prices
A41: 37 | B41: 39 | C41: Shuma te parashikuara per zhvleresim te inventarit(-) | D41: Forecasted amounts for inventory depreciation (-)
A42: 38 | B42: Klasa 4 | C42: II.Kerkesa arketimi mbi Debitoret | D42: II. Request for receivables | E42: =SUM(E43:E57) -> 0 | F42: =SUM(F43:F57) -> 0
